Workbook

Sheet LDC Info
AA3: Algoma Power Inc.
AA4: Atikokan Hydro Inc.
AA5: Attawapiskat Power Corporation
AA6: Bluewater Power Distribution Corp.
AA7: Brant County Power
AA8: Brantford Power Inc.
AA9: Burlington Hydro Inc.
AA10: Cambridge and North Dumfries Hydro
AA11: Canadian Niagara Power Inc. – Eastern Ontario Power/Fort Erie/Port Colborne
AA12: Centre Wellington Hydro Ltd.
AA13: Chapleau Public Utilities Corporation
D14: Utility Name | E14: Niagara Peninsula Energy Inc. | AA14: COLLUS Power Corp.
AA15: Cooperative Hydro Embrun Inc.
D16: Assigned EB Number | E16: EB-2014-0096 | AA16: E.L.K. Energy Inc.
AA17: Enersource Hydro Mississauga Inc.
D18: Name of Contact and Title | E18: Suzanne Wilson, VP Finance | AA18: Entegrus Powerlines Inc.
AA19: ENWIN Utilities Ltd.
D20: Phone Number | E20: 905-353-6004 | AA20: Erie Thames Powerlines Corp.
AA21: Espanola Regional Hydro Distribution Corporation
D22: Email Address | E22: Suzanne.wilson@npei.ca | AA22: Essex Powerlines Corporation
AA23: Festival Hydro Inc.
D24: Test Year | E24: 2015 | AA24: Fort Albany Power Corporation
AA25: Fort Frances Power Corporation
D26: Bridge Year | E26: =IF(ISBLANK(E24), "", E24-1) -> 2014 | AA26: Greater Sudbury Hydro Inc.
AA27: Grimsby Power Inc.
D28: Last Rebasing Year | E28: 2011 | AA28: Guelph Hydro Electric Systems Inc.
AA29: Haldimand County Hydro Inc.
A30: Identify the accounting standard used for the test year
E31: MIFRS
A33: Did you update your depreciation and capitalization policies?
E34: Yes
A36: When did you update your depreciation and capitalization policies?
E37: 2001-01-01 | F37: 2013
A39: Identify the year that the applicant has adopted or is expected to adopt IFRS for financial reporting purposes
E40: 2015 or Later
A43: Are you applying for cost recovery for the test and/or future year(s) for Green Energy initiatives?
E44: No
A46: ="Is " & E14 & " an embedded distributor?" -> Is Niagara Peninsula Energy Inc. an embedded distributor? | E46: No
B49: Notes | AA49: Guelph Hydro Electric Systems Inc.
AA50: Halton Hills Hydro Inc.
C51: Pale green cells represent input cells. | AA51: Hearst Power Distribution Co. Ltd.
AA52: Horizon Utilities Corporation
C53: Pale blue cells represent drop-down lists. The applicant should select the appropriate item from the drop-down list. | AA53: Hydro 2000 Inc.
AA54: Hydro Hawkesbury Inc.
C55: White cells contain fixed values, automatically generated values or formulae. | AA55: Hydro One Brampton Networks Inc.
AA56: Hydro One Networks Inc.
AA57: Hydro One Remote Communities Inc.
AA58: Hydro Ottawa Limited
AA59: Innisfil Hydro Dist. Systems Limited
AA60: Kashechewan Power Corporation
AA61: Kenora Hydro Electric Corporation Ltd.
AA62: Kingston Hydro Corporation
AA63: Kitchener-Wilmot Hydro Inc.
AA64: Lakefront Utilities Inc.
AA65: Lakeland Power Distribution Ltd.
AA66: London Hydro Inc.
AA67: Midland Power Utility Corporation
AA68: Milton Hydro Distribution Inc.
AA69: Newmarket – Tay Power Distribution Ltd.
AA70: Niagara Peninsula Energy Inc.
AA71: Niagara-on-the-Lake Hydro Inc.
AA72: Norfolk Power Distribution Ltd.
AA73: North Bay Hydro Distribution Limited
AA74: Northern Ontario Wires Inc.
AA75: Oakville Hydro Distribution Inc.
AA76: Orangeville Hydro Limited
AA77: Orillia Power Distribution Corp.
AA78: Oshawa PUC Networks Inc.
AA79: Ottawa River Power Corporation
AA80: Parry Sound Power Corporation
AA81: Peterborough Distribution Inc.
AA82: PowerStream Inc.
AA83: PUC Distribution Inc.
AA84: Renfrew Hydro Inc.
AA85: Rideau St. Lawrence Distribution Inc.
AA86: St. Thomas Energy Inc.
AA87: Sioux Lookout Hydro Inc.
AA88: Thunder Bay Hydro Electricity Distribution
AA89: Tillsonburg Hydro Inc.
AA90: Toronto Hydro-Electric System Limited
AA91: Veridian Connections Inc.
AA92: Wasaga Distribution Inc.
AA93: Waterloo North Hydro Inc.
AA94: Welland Hydro Electric System Corp.
AA95: Wellington North Power Inc.
AA96: West Coast Huron Energy Inc.
AA97: Westario Power Inc.
AA98: Whitby Hydro Electric Corporation
AA99: Woodstock Hydro Services Inc.

Sheet Table of Contents
A15: 1 | B15: LDC Information Sheet | E15: 26 | F15: App.2-FC: Calculation of Renewable Generation Connection Direct Benefits/Provincial Amount: Renewable Expansion Investments
A16: 2 | B16: Index | E16: 27 | F16: App.2-G: Service Reliability Indicators
A17: 3 | B17: Cost of Service Application Flowchart | E17: 28 | F17: App.2-H: Other Operating Revenue
A18: 4 | B18: List of Key References | E18: 29 | F18: App.2-I: Load Forecast CDM Adjustment Workform
A19: 5 | B19: App.2-AA: Capital Projects Table | E19: 30 | F19: App.2-IA: Actual and Forecast Load and Customer Data
A20: 6 | B20: App.2-AB: Capital Expenditures | E20: 31 | F20: App.2-JA: OM&A Summary Analysis
A21: 7 | B21: App. 2-AC: Customer Engagement Worksheet | E21: 32 | F21: App.2-JB: Recoverable OM&A Cost Driver Table
A22: 8 | B22: App.2-B: General Accounting Instructions | E22: 33 | F22: App.2-JC: OMA Programs Table
A23: 9 | B23: App.2-BA: Fixed Asset Continuity Schedule | E23: 34 | F23: App.2-K: Employee Costs
A24: 10 | B24: Appendix 2-BB: Service Life Comparison | E24: 35 | F24: App.2-L: Recoverable OM&A Cost per Customer and per FTE
A25: 11 | B25: App.2-CA: 2012 Depreciation and Amortization Expense (Old CGAAP) | E25: 36 | F25: App.2-M: Regulatory Costs Schedule
A26: 12 | B26: App.2-CB: 2012 Depreciation and Amortization Expense (New CGAAP) | E26: 37 | F26: App.2-N: Shared Servcies and Corporate Cost Allocation
A27: 13 | B27: App.2-CC: 2013 Depreciation and Amortization Expense (New CGAAP) | E27: 38 | F27: App.2-OA: Capital Structure and Cost of Capital
A28: 14 | B28: App.2-CD: 2014 Depreciation and Amortization Expense (MIFRS) | E28: 39 | F28: App.2-OB: Debt Instruments
A29: 15 | B29: App.2-CE: 2015 Depreciation and Amortization Expense (MIFRS) | E29: 40 | F29: App.2-P: Cost Allocation
A30: 16 | B30: App.2-CF: 2013 Depreciation and Amortization Expense (Old CGAAP) | E30: 41 | F30: App.2-Q: Cost of Serving Embedded Distributor(s)
A31: 17 | B31: App.2-CG: 2013 Depreciation and Amortization Expense (New CGAAP) | E31: 42 | F31: App.2-R: Loss Factors
A32: 18 | B32: App.2-CH: 2014 Depreciation and Amortization Expense (MIFRS) | E32: 43 | F32: App.2-S: Stranded Meter Treatment
A33: 19 | B33: App.2-CI: 2015 Depreciation and Amortization Expense (MIFRS) | E33: 44 | F33: App.2-TA: Account 1592, PILs and Tax Variances
A34: 20 | B34: App.2-D: Overhead Expenses | E34: 45 | F34: App.2-TB: Account 1592, HST-OVAT Input Tax Credits
A35: 21 | B35: App.2-EA: Account 1575 PP&E Deferral Account (2015 IFRS Adopters) | E35: 46 | F35: App.2-U: One-Time Incremental IFRS Transition Costs
A36: 22 | B36: App.2-EB: Account 1576 - Accounting Changes Under CGAAP (2012 Changes) | E36: 47 | F36: App.2-V: Revenue Reconciliation
A37: 23 | B37: App.2-EC: Account 1576 - Accounting Changes Under CGAAP (2013 Changes) | E37: 48 | F37: App.2-W: Bill Impacts
A38: 24 | B38: App.2-FA: Renewable Generation Connection Investment Summary | E38: 49 | F38: App.2-Y: Transition to MIFRS Summary Impact
A39: 25 | B39: App.2-FB: Calculation of Renewable Generation Connection Direct Benefits/Provincial Amount: Renewable Enabling Improvement Investments | E39: 50 | F39: App. 2-Z: Tariff Schedule

Sheet COS Flowchart
B4: Cost of Service Rate Application Schematic
B6: The Cost of Service Rate Application Schematic is a flowchart appended to Chapter 2 of the Filing Requirements as a guide for the components of an application and how demand and costs interrelate to derive the revenue requirement and then how the revenue requirement is allocated between classes and through fixed/variable splits to derive rates that will be compensatory for the annual revenue requirement, based on the the forecasted demand. There is no form to be filled out; therefore, this Schedule is not required to be filed.

Sheet List of Key References
B3: List of Key References
A5: A list of key references for understanding the Filing Requirements has been embedded in the document below. To access the list of references and associated hyperlinks doublt click the icon below.

Sheet App.2-AA_Capital Projects
I1: File Number: | J1: =EBNUMBER -> EB-2014-0096
I2: Exhibit: | J2: 2
I3: Tab: | J3: 2
I4: Schedule: | J4: 1
I5: Page: | J5: 3
I7: Date: | J7: 2014-08-29
C9: Appendix 2-AA
C10: Capital Projects Table
A13: Project # | B13: Ref # | C13: Projects | D13: =E13-1 -> 2010 | E13: =F13-1 -> 2011 | F13: =G13-1 -> 2012 | G13: =BridgeYear - 1 -> 2013 | H13: =BridgeYear & " Bridge Year" -> 2014 Bridge Year | I13: =TestYear & " Test Year" -> 2015 Test Year | J13: Total
C14: Reporting Basis | D14: CGAAP | E14: CGAAP | F14: CGAAP | G14: CGAAP | H14: CGAAP | I14: MIFRS
C15: System Access
C16: Subdivisions | D16: 682639.86 | E16: 290295.07 | F16: 518409.33 | G16: 703212.42 | H16: =400000.23 -> 400000.23 | I16: =587004.3 -> 587004.3 | J16: =SUM(D16:I16) -> 3181561.21
B17: 42 | C17: Customer Connection/Extension | D17: =264436.55-102781 -> 161655.55 | E17: =419519.19-29557.01 -> 389962.18 | F17: =368288.92-98399.23 -> 269889.69 | G17: =293960.04-116149.15 -> 177810.89 | J17: =SUM(D17:I17) -> 999318.31
B18: 42 | C18: New Upgrade Services | D18: =434480.23-102781 -> 331699.23 | E18: 458413.94 | F18: =294836.37-98399.23 -> 196437.14 | G18: =200883.31-116149.14 -> 84734.17 | J18: 1071284.48
B19: 43 | C19: Line Relocation due to Municipal Requirements < Materiality | D19: 472209.17 | E19: 295727.13 | F19: 236974.89 | G19: 355571.98 | H19: =539910.42 -> 539910.42 | I19: =500000 -> 500000 | J19: 2400393.59
B20: 42 | C20: Demand based system reinforcements for new commercial services | D20: 435392.89 | E20: 573711.89 | F20: 711788.16 | G20: 1011492.6 | H20: =1410778 -> 1410778 | I20: =1007500 -> 1007500 | J20: 5150663.54
B21: 55 | C21: Niagara Parks Commission | I21: 818904.74 | J21: 818904.74
A22: 2013-0100 | B22: 38 | C22: City of Niagara Falls Kalar @ Rideau | G22: 169530.46 | J22: 169530.46
A23: 2010-0016 | B23: 39 | C23: Dorchester NS&T to Morrison | D23: 180975.96 | J23: 180975.96
A24: 2011-0072 | B24: 40 | C24: Drummond & Lundy's Lane Conflicts | F24: 267122.72 | J24: 267122.72
A25: 2010-0009 | B25: 41 | C25: Kalar to Catalina relocation | D25: 164362.04 | E25: 483044.21 | J25: 647406.25
A26: 2010-0053 | C26: Oakwood Drive relocation | D26: 159399.46 | J26: 159399.46
A27: 2010-0026 | B27: 49 | C27: South Pelham Street | D27: 816593.01 | J27: 816593.01
C28: Capital contributions | D28: -1160428.16 | E28: =-1571525.77 -> -1571525.77 | F28: =-1472887.49 -> -1472887.49 | G28: =-991373.48 -> -991373.48 | H28: -900000 | I28: =-200000-125000-450000-52800 -> -827800 | J28: -6924014.9
C30: Sub-Total System Access | D30: =SUM(D16:D28) -> 2244499.01 | E30: 919628.65 | F30: 727734.44 | G30: 1510979.04 | H30: 1450688.65 | I30: 2085609.04 | J30: 8939138.83
C31: Miscellaneous System Access | D31: =32236.83-177853.89+11250+4485.47+7986.27+5092.5+229185.98+88870+111881 -> 313134.16 | E31: =322928.09-491150.48+122832+20022+50903-2843 -> 22691.61 | F31: =-148691.91-37901.7+218252.84+25000+175423+4308+121434 -> 357824.23 | G31: =16679+244986.5+224787 -> 486452.5 | H31: =150000+130000 -> 280000 | I31: =150000+193500 -> 343500 | J31: =SUM(D31:I31) -> 1803602.5
C32: Total System Access | D32: =D30+D31 -> 2557633.17 | E32: =E30+E31 -> 942320.26 | F32: 1085558.67 | G32: 1997431.54 | H32: 1730688.65 | I32: 2429109.04 | J32: 10742741.33
C33: System Renewal
C34: MS/DS Rehabilitations
A35: 2010-0025 | B35: 4 | C35: Pelham MS | D35: 226046.26 | J35: =SUM(D35:I35) -> 226046.26
A36: 2010-0017 | B36: 10 | C36: Campden DS Feeder Egress | D36: 207207.88 | J36: 207207.88
A37: 2011-0017 | B37: 12 | C37: Campden DS Oil Containment | E37: 214586.15 | J37: 214586.15
A38: 2011-0013 | B38: 5 | C38: Smithville | E38: 361958.94 | F38: 274090.44 | J38: 636049.38
A39: 2011-0022 2012-0009 | B39: 6 | C39: Station Street | E39: 41710.64 | F39: 137208.57 | G39: 100331.17 | J39: 279250.38
B40: 7 | C40: Station #22 North of Pew | I40: 507139.32 | J40: 507139.32
B41: 8 | C41: Station #22 South of Pew | I41: 143724.04 | J41: 143724.04
A42: 2012-0012 | B42: 6 | C42: Greenlane | F42: 275300.02 | G42: 197505.22 | J42: 472805.24
A43: 2013-0017 | B43: 9 | C43: Station #8 | G43: 191113.31 | H43: 252037.12 | J43: 443150.43
A44: 2011-0011 | B44: 11 | C44: 4 Sectionalizing West Area | E44: 156717.65 | J44: 156717.65
A45: 2011-0004 | B45: 13 | C45: Lundy's Lane Pole Line -Montrose | E45: 156212.96 | J45: 156212.96
A46: 2011-0007 | B46: 14 | C46: Murray/Culp/Dunn/Main Rebuilds | E46: 395970.04 | J46: 395970.04
A47: 2011-0005 & 2012-0005 | B47: 15 | C47: Riall St Rebuild | E47: 143115.86 | F47: 357947.94 | J47: 501063.8
A48: 2012-0002 | B48: 16 | C48: Lundy's Lane/Ker St UG replacement | F48: 356579.94 | J48: 356579.94
A49: 2012-0001 | B49: 17 | C49: Montrose Kinsmen to Lundys | F49: 608127.98 | J49: 608127.98
A50: 2012-0007 | B50: 18 | C50: Murray/Dixon Rebuild | F50: 633980.72 | J50: 633980.72
A51: 2012-0014 & 2013-0014 | B51: 19 | C51: Victoria Ave Voltage Conversion | F51: 173041.55 | G51: 170304.78 | J51: 343346.33
A52: 2013-0005 | B52: 1 | C52: 12-M-6 Replacement | G52: 538747.4 | H52: 372631.07 | J52: 911378.47
A53: 2013-0011 | B53: 2 | C53: Dorchester-Garden St to McMillan | G53: 198807 | H53: 362017.57 | J53: 560824.57
A54: 2013-0008 | B54: 3 | C54: High Street - Dorchester Stn 10 O/H | G54: 633879.86 | J54: 633879.86
A55: 2013-0007 | B55: 20 | C55: Murray/Culp | G55: 712699.58 | J55: 712699.58
A56: 2013-0021 | B56: 21 | C56: OH to UG Beacon Inn Jordan | G56: 259593 | J56: 259593
A57: 2013-0003 | B57: 22 | C57: UG Primary Weightman Bridge | G57: 113001.21 | H57: 701809.61 | J57: 814810.82
A58: 2014-0009 | B58: 23 | C58: 3-M-28, 3-M-26, 3-M-29 | H58: 417730.73 | J58: 417730.73
A59: 2014-0001 | B59: 24 | C59: Crawford Street Rebuild | H59: 516556.59 | I59: 282323.71 | J59: 798880.3
B60: 56 | C60: Frederica Street Rebuild | I60: 676144.06 | J60: 676144.06
A61: 2014-0004 | B61: 25 | C61: Fallsview Blvd -Ferry/Robinson | H61: =332173.25 -> 332173.25 | J61: 332173.25
A62: 2014-0015 | B62: 26 | C62: Jordan Rd-Red Maple to QEW | H62: 397516.11 | J62: 397516.11
B63: 26 | C63: Jordan Phase II | I63: =449324.38 -> 449324.38 | J63: 449324.38
A64: 2014-1006 | B64: 27 | C64: Wholesale Meter Replacement | H64: 300000 | J64: 300000
A65: 2014-0008 | B65: 28 | C65: OH to UG Rolling Acres Phase I | H65: 768694 | I65: 570500.09 | J65: 1339194.09
A66: 2014-0007 | B66: 29 | C66: OH line rebuilds - 6 streets | H66: 516512.63 | J66: 516512.63
A67: 1007 & 2007 | B67: 30 | C67: System Sustainment/Minor Betterments | D67: 1008971.37 | E67: 451574.56 | F67: 525207.46 | G67: 670726.79 | H67: 400000 | I67: 680000 | J67: 3736480.18
A68: 1010 & 2010 | B68: 31 | C68: Replace poles identified with limited structural integrity | D68: 788664.24 | E68: 826301.78 | F68: 862337.68 | G68: 859297.52 | H68: 778701.57 | I68: 431729.48 | J68: 4547032.27
A69: 0020's | B69: 32 | C69: Replacement of Submersibles & Kiosks with EFD switches and posi-tects | D69: 501362.39 | E69: 508036.18 | F69: 705374.02 | G69: 643270.37 | H69: 624456.69 | I69: 647028.76 | J69: 3629528.41
A70: 2013-2011 | B70: 33 | C70: Replacement of Transformers with >50PPM PCB Content | G70: 125175.21 | H70: 566478.91 | I70: 495104.13 | J70: 1186758.25
B71: 57 | C71: NWTC Metering | I71: 289604.56 | J71: 289604.56
B72: 60 | C72: Willodell Rebuild | I72: 310710.49 | J72: 310710.49
B73: 59 | C73: Willoughby Dr. Extension | I73: 383293.15 | J73: 383293.15
B74: 58 | C74: Willoughby Drive | I74: 372190.81 | J74: 372190.81
C75: Sub-Total System Renewal | D75: =SUM(D35:D74) -> 2732252.14 | E75: 3256184.76 | F75: 4909196.32 | G75: 5414452.42 | H75: 7307315.85 | I75: 6238816.98 | J75: 29858218.47
C76: Miscellaneous System Renewal | D76: =4677.75+87741.53+14390.52+6938.26+3508.54+2085+2045.71-182765.53+2500+95894 -> 37015.78 | E76: =28428.45+32228.6+9129.82+14930.02+66895.21+132161.13+7690.9+2269.12+34006.58+20279.83+27843.05+390950.71+130765+8132 -> 905710.42 | F76: =2803.44-5689.27-3065.76+71079.34+106395.16+97938.48+4636.39+725.36+4491.45+5074.66+1218.44+130+103999.36-149322.27 -> 240414.78 | G76: =60517.38+3086.17+2124.78+72125.82-10946.55-86.85+85282.1+9398.97+221903.8-357147.58+124077.85+171585.42+110653.27 -> 492574.58 | I76: =144237.09 -> 144237.09 | J76: =SUM(D76:I76) -> 1819952.65
C77: Total System Renewal | D77: =D75+D76 -> 2769267.92 | E77: =E75+E76 -> 4161895.18 | F77: 5149611.1 | G77: 5907027 | H77: 7307315.85 | I77: 6383054.07 | J77: 31678171.12
C78: System Service
C79: Smart meters | D79: 4175009.94 | G79: 27128 | H79: 1903089 | J79: =SUM(D79:I79) -> 6105226.94
C80: MIST Meters | I80: 143150 | J80: =SUM(D80:I80) -> 143150
A81: 0006's | B81: 34 | C81: Switchgear replacement program | D81: 461326.56 | E81: 191369.75 | F81: 313736.96 | G81: 264912.52 | H81: 110057 | I81: 250002 | J81: =SUM(D81:I81) -> 1591404.79
A82: 2010-0024 | B82: 35 | C82: Cherry Avenue | D82: 179386.08 | J82: 179386.08
A83: 2010-0023 | B83: 36 | C83: Durham Voltage Conversion | D83: 364430.29 | J83: 364430.29
A84: 2010-0002 | B84: 37 | C84: High Street Area | D84: =255782.48 -> 255782.48 | J84: 255782.48
A85: 2010-0008 | B85: 47 | C85: Oakwood Drive | D85: 198387.02 | J85: 198387.02
A86: 2011-0003 | B86: 50 | C86: KM2 & KM6 Montrose-McLeod | E86: 347760.15 | J86: 347760.15
A87: 2012-0003 | B87: 51 | C87: Kalar MTS K-M-1 | F87: 169040.51 | J87: 169040.51
A88: 2014-0018 | B88: 53 | C88: King Street 27.6 kV | H88: 112554.47 | I88: 114459.97 | J88: 227014.44
A89: 2010-0007 | B89: 54 | C89: Robinson St Primary Extension | D89: 306868.52 | E89: 733071.71 | J89: 1039940.23
B90: 62 | C90: Culp St-Drummond to Main | D90: 211701.35
B91: 48 | C91: Kalar Extend NS&T ROW-Beaverdams | E91: 385308.2 | F91: 383130.19 | J91: 768438.39
C92: Mobile Substation | E92: 214554.91 | J92: 214554.91
C93: Wi-Max Project | F93: 332339 | G93: 348369.69 | H93: 227500 | I93: 215000 | J93: 1123208.69
C94: Sub-Total System Service | D94: =SUM(D79:D93) -> 6152892.24 | E94: 1872064.72 | F94: 1198246.66 | G94: 640410.21 | H94: 2353200.47 | I94: 722611.97 | J94: 12939426.27
C95: Miscellaneous | D95: =-432.02+627.86+2881.55+60831.36+30710.94+20244.19+13905.7+77171.15+52267.27+3561.64+50690 -> 312459.64 | E95: =28216.25+11725.58+50876.35+3500.4 -> 94318.58 | F95: =100929.02+9301.28+12365+1228.59-4665.6+46879.07+5793.9+32452.67+10844.16+5448.48+4959.95 -> 225536.52 | G95: =60256.75+10100+19430.39+24636.44+54399.98+1420.14+36617.73 -> 206861.43 | H95: =100000+30000 -> 130000 | I95: =30000+100000+73000 -> 203000 | J95: 1172176.17
C96: Total System Service | D96: =SUM(D94:D95) -> 6465351.88 | E96: 1966383.3 | F96: 1423783.18 | G96: 847271.64 | H96: 2483200.47 | I96: 925611.97 | J96: 14111602.44
C97: General Plant
C98: Building | D98: 67187.63 | E98: 121779.16 | F98: 631111.34 | G98: 1912394.51 | H98: 1500485 | I98: 44000 | J98: 4276957.64
C99: Computer Hardware | D99: 257959.65 | E99: 247812.44 | F99: 370710.03 | G99: 274902.73 | H99: 297040 | I99: 240248 | J99: 1688672.85
C100: Computer Software | D100: 250022.44 | E100: 193505.26 | F100: 213430.66 | G100: 114741.93 | H100: 498710 | I100: 368740 | J100: 1639150.29
C101: Vehicles | D101: 869037.34 | E101: 541643.33 | F101: 1160648.67 | G101: 1329695.61 | H101: 672000 | I101: 698877.94 | J101: 5271902.89
C102: General Equipment | D102: 176811.27 | E102: 175155.88 | F102: 244850.5 | G102: 265584.91 | H102: 299000 | I102: 95626.51 | J102: 1257029.07
C103: Sub-Total General Plant | D103: =SUM(D98:D102) -> 1621018.33 | E103: 1279896.07 | F103: 2620751.2 | G103: 3897319.69 | H103: 3267235 | I103: 1447492.45 | J103: 14133712.74
C104: Miscellaneous-General Plant | D104: 0 | E104: 0 | F104: 0 | G104: 0 | H104: 0 | I104: 0 | J104: 0
C105: Total General Plant | D105: =D103+D104 -> 1621018.33 | E105: =E103+E104 -> 1279896.07 | F105: 2620751.2 | G105: 3897319.69 | H105: 3267235 | I105: 1447492.45 | J105: 14133712.74
C106: Less Renewable Generation Facility Assets and Other Non Rate-Regulated Utility Assets (input as negative) | E106: 0 | F106: 0 | G106: 0 | H106: 0 | I106: 0 | J106: 0
C107: Total | D107: =D32+D77+D96+D105 -> 13413271.3 | E107: 8350494.81 | F107: 10279704.15 | G107: 12649049.87 | H107: 14788439.97 | I107: 11185267.53 | J107: 70666227.63
C111: Notes:
C113: 1 Please provide a breakdown of the major components of each capital project undertaken in each year. Please ensure that all projects below the materiality threshold are included in the miscellaneous line. Add more projects as required.
C114: 2 The applicant should group projects appropriately and avoid presentations that result in classification of significant components of the capital budget in the miscellaneous category.

Sheet App.2-AB_Capital Expenditures
S1: File Number: | U1: =EBNUMBER -> EB-2014-0096
S2: Exhibit: | U2: 2
S3: Tab: | U3: 2
S4: Schedule: | U4: 1
S5: Attachment: | U5: 2
S7: Date: | U7: 2014-08-29
A9: Appendix 2-AB
A10: Table 2 - Capital Expenditure Summary from Chapter 5 Consolidated Distribution System Plan Filing Requirements
A12: First year of Forecast Period: | B12: =TestYear -> 2015
A13: CATEGORY | B13: Historical Period (previous plan1 & actual) | Q13: Forecast Period (planned)
B14: 2010 | E14: 2011 | H14: 2012 | K14: 2013 | N14: 2014 Bridge Year | Q14: 2015 Test Year | R14: 2016 | S14: 2017 | T14: 2018 | U14: 2019
B15: Plan | C15: Actual | D15: Var | E15: Plan | F15: Actual | G15: Var | H15: Plan | I15: Actual | J15: Var | K15: Plan | L15: Actual | M15: Var | N15: Plan | O15: Actual2 | P15: Var
B16: $ '000 | D16: % | E16: $ '000 | G16: % | H16: $ '000 | J16: % | K16: $ '000 | M16: % | N16: $ '000 | P16: % | Q16: $ '000
A17: System Access | B17: =(1930290+200000)/1000 -> 2130.29 | C17: 2557.633443 | D17: =IF(ISERROR((C17-B17)/B17),"--",(C17-B17)/B17) -> 0.2006034122 | E17: =(185185+2014251)/1000 -> 2199.436 | F17: 942.3211187 | G17: =IF(ISERROR((F17-E17)/E17),"--",(F17-E17)/E17) -> -0.5715623829 | H17: =1630000/1000 -> 1630 | I17: 1085.558985 | J17: =IF(ISERROR((I17-H17)/H17),"--",(I17-H17)/H17) -> -0.3340128924 | K17: =2030846/1000 -> 2030.846 | L17: 1997.431181 | M17: =IF(ISERROR((L17-K17)/K17),"--",(L17-K17)/K17) -> -0.01645364511 | N17: 1731 | O17: 1730.68865 | P17: =IF(ISERROR((O17-N17)/N17),"--",(O17-N17)/N17) -> -0.0001798671288 | Q17: 2429.109044 | R17: 2249.03472 | S17: 1820.76352 | T17: 1933.37189 | U17: 1663.0043
A18: System Renewal | B18: =(2797562+200000)/1000 -> 2997.562 | C18: 2769.268018 | D18: -0.07615988647 | E18: =(4305452+462963)/1000 -> 4768.415 | F18: 4161.895575 | G18: -0.1271951844 | H18: =(5509570+2360000)/1000 -> 7869.57 | I18: 5149.611103 | J18: -0.345629926 | K18: =5838329.47/1000 -> 5838.32947 | L18: 5907.02709 | M18: 0.01176665686 | N18: 7307 | O18: 7307.31585 | P18: 4.322567401e-05 | Q18: 6383.054079 | R18: 4161.45904 | S18: 5889.42121 | T18: 7301.06884 | U18: 7223.42782
A19: System Service | B19: =(3216215+3483000)/1000 -> 6699.215 | C19: 6465.351868 | D19: -0.03490903521 | E19: =(1012025+500000)/1000 -> 1512.025 | F19: 1966.383297 | G19: 0.3004965504 | H19: =(901982+346000+1114300)/1000 -> 2362.282 | I19: 1423.783171 | J19: -0.3972848409 | K19: =(200000+900000)/1000 -> 1100 | L19: 847.2720399 | M19: -0.229752691 | N19: =2483-1903 -> 580 | O19: 2483.20047 | P19: 3.281380121 | Q19: 925.6119719 | R19: 3760.41881 | S19: 2448.70893 | T19: 768.752 | U19: 1330.49044
A20: General Plant | B20: =200+1620 -> 1820 | C20: 1621.01833 | D20: -0.1093305879 | E20: =1123 -> 1123 | F20: 1279.89607 | G20: 0.1397115494 | H20: =(2631000+484000-346000)/1000 -> 2769 | I20: 2620.7512 | J20: -0.05353875045 | K20: =(25+1865+1570+2768-200) -> 6028 | L20: 3897.31969 | M20: -0.3534638869 | N20: =1303+198+1994-228 -> 3267 | O20: 3267.235 | P20: 7.193143557e-05 | Q20: 1447.492922 | R20: 1434.2438 | S20: 1352.312844 | T20: 1204.102134 | U20: 1311.045832
A21: TOTAL EXPENDITURE | B21: =SUM(B17:B20) -> 13647.067 | C21: =SUM(C17:C20) -> 13413.27166 | D21: -0.0171315449 | E21: 9602.876 | F21: 8350.49606 | G21: -0.1304171729 | H21: 14630.852 | I21: 10279.70446 | J21: -0.2973953629 | K21: 14997.17547 | L21: 12649.05 | M21: -0.1565711807 | N21: 12885 | O21: 14788.43997 | P21: 0.1477252596 | Q21: 11185.26802 | R21: 11605.15637 | S21: 11511.2065 | T21: 11207.29486 | U21: =SUM(U17:U20) -> 11527.96839
A22: System O&M | B22: =5730662/1000 -> 5730.662 | C22: =5690750/1000 -> 5690.75 | D22: -0.006964640385 | E22: =6142107/1000 -> 6142.107 | F22: =6281768/1000 -> 6281.768 | G22: 0.02273828834 | H22: =6763586/1000 -> 6763.586 | I22: =6708104/1000 -> 6708.104 | J22: -0.008203044953 | K22: =6880362/1000 -> 6880.362 | L22: =6280725/1000 -> 6280.725 | M22: -0.08715195509 | N22: =6636344/1000 -> 6636.344 | O22: =N22 -> 6636.344 | P22: 0 | Q22: =6846074/1000 -> 6846.074 | R22: =Q22*1.02 -> 6982.99548 | S22: =R22*1.02 -> 7122.65539 | T22: =S22*1.02 -> 7265.108497 | U22: =T22*1.02 -> 7410.410667
A24: Notes to the Table:
A25: 1. Historical “previous plan” data is not required unless a plan has previously been filed
A26: 2. Indicate the number of months of 'actual' data included in the last year of the Historical Period (normally a 'bridge' year): | I26: 2014 Actual = the Plan at time of filing | N26: 12
A28: Explanatory Notes on Variances (complete only if applicable)
A29: Notes on shifts in forecast vs. historical budgets by category
A32: Notes on year over year Plan vs. Actual variances for Total Expenditures
A35: Notes on Plan vs. Actual variance trends for individual expenditure categories

Sheet App. 2-AC_Customer Engagement
B1: File Number: | C1: =EBNUMBER -> EB-2014-0096
B2: Exhibit: | C2: 1
B3: Tab: | C3: 3
B4: Schedule: | C4: 1
B5: Page: | C5: 1
B7: Date: | C7: 2014-08-29
A9: Appendix 2-AC
A10: Customer Engagement Activities Summary
A12: Provide a list of customer engagement activities | B12: Provide a list of customer needs and preferences identified through each engagement activity | C12: Actions taken to respond to identified needs and preferences. If no action was taken, explain why.
A13: 1. Definition and Schedule of Customer Engagement Plan | B13: Identification that in order to document and respond to customer needs and preferences, plan needed to be in place. Within the plan, define principles of customer engagement, the documentation and process to be followed to track customer needs and preferences. Schedule quarterly meetings. Follow through on lessons learned. | C13: Take an integrated approach to customer engagement: efficient engegement, investigate DS, smart grid, renewables, CDM. Coordinated, effective planning and plan. Created a standard consultation form to document the purpose of each consultation activity, whether the distributor initiated the consultation activity or was invited to participate in it, the nature and prospective tming of the final deliverables. Documentation of meeting minutes, survey result tables, interview notes. Plan to complete quarterly review meetings and Year End report of progress of customer engagement. Created a solid basis for monitoring and tracking.
A15: 2. Identify customer needs, preferences, priorities: use of data analytics from customer surveys, customer call activity, outages. Take a long term perspective by applying principles of customer engagement over a 5 year period of distribution system plan. | B15: Customer needs and preferences identified: utility response time, communication and education to customers on how to save on their monthly bill. Integration of customer needs/preferences/priorities in DS planning and plan. | C15: Bi-annual survey completed; incorporate changes to customer service reporting, call scripts. Call trending and reporting of customer inquiries, complaints and feedback, review of customer inquiries including response time. Post outage review of data. Document information to customers on outages and first response. Communicate to customers on capital improvement projects and construction work. As DS planning progresses, NPEI will identify any new issue emerging from customer comment that may necessitate customer input. NPEI will increase in perception that customers feel that they are being consulted and their views are being addressed.
A17: 3. Facilitate customer access to energy consumption data and behind the meter services. | B17: Make options available to facilitate customer access to consumption data in an electronic format. Provide customers with ability to make decisions affecting electricity costs. Educate customers on energy bills and price. | C17: NPEI has a web portal, My Account, which it provides access to its customers to their energy data in electronic format, as well as, their electronic bills. NPEI has tracked customers feedback on the portal and has upgraded the My Account platform as a result of feedback. NPEI is in progress of adding more self service options for the customer including new account process, update of account information, application of payment plans. NPEI will highlight any improvements made year to year within the Annual Customer Engagement Year End report.
A19: 4. Consult with the Ontario Power Authority, with the regionally interconnected distributors and with the transmittor. | B19: Participation in any regional planning process. Integrate final consultation on any potentional regional planning processes that will impact NPEI in their Distribution System Plan. | C19: NPEI will obtain letter from OPA and from Hydro One that no region process is currently under way. NPEI did learn that as a utility we are in OPA group 3, meaning that there are no regional investments impacting our area within the next 5 years. NPEI will document information to customer on REG opportunities, modalities and connection.
A21: 5. Conservation program access and Site Visits | B21: Access to conservation programs for all accounts, understand from customers what is needed and wanted from conservation programs | C21: NPEI completed data collection and consultation to determine key market characters within service area. NPEI completed market character interviews and site visits. NPEI will integrate tracking consultation topics into CDM engagement activities.
A22: 6. Educate and inform customers | B22: Deliver OPA contracted province-wide conservation and demand management programs | C22: One on one customer meetings, group events, community events. Applicant representatives for business to assist with application process for conservation programs.
A23: 7. Customer Consultations | B23: CDM market characterization. Customer interviews and site visits | C23: Identify market segments to achieve kWh savings. Customer preferences needs and priorities related to CDM and other DSP matters from greenhouses, hotel/motel sectors
A24: 8. Service territory stakeholder consultations | B24: CDM market characterization. Customer interviews and site visits | C24: Particular market actors ie. assist with identifying and implementing strategies for conservation energy demand savings for customers
A45: Note: Use "ALT-ENTER" to go to the next line within a cell

Sheet App.2-B_Acct Instructions
A1: General Instructions to MIFRS Appendices
A2: Types of Schedules to File
A4: The purpose of this tab is to provide general instructions. The specific instructions to each appendix are listed in footnotes of each appendix.
A6: The typical applicant is expected to have made capitalization and depreciation policy changes under CGAAP as permitted by the Board on January 1, 2012 or mandated by the Board by January 1, 2013, and adopts IFRS for reporting purposes on January 1, 2015 (transition date January 1, 2014). In general, applicants under the two scenarios should provide the following information in the appendices:
E9: Accounting Policy Changes in 2012 and Adopts IFRS in 2015 | F9: Accounting Policy Changes in 2013 and Adopts IFRS in 2015
E10: (Date of Transition to IFRS 2014)
A11: Information to be filed in 2015 CoS Application | B11: 2015 | C11: Test | E11: MIFRS | F11: MIFRS
B12: 2014 | C12: Bridge | E12: MIFRS and Revised CGAAP* | F12: MIFRS and Revised CGAAP*
B13: 2013 | C13: Historical | E13: Revised CGAAP | F13: CGAAP and Revised CGAAP
B14: 2012 | C14: Historical | E14: CGAAP and Revised CGAAP | F14: CGAAP
B15: 2011 and Prior | C15: Historical | E15: CGAAP | F15: CGAAP
A17: 1) For the year that the applicant implemented changes to its capitalization and depreciation policies (2012 or 2013), the applicant must file two appendices, one before and one after the policy changes.
A20: 2) For the transition year (2014), the applicant may file two appendices, one under Revised CGAAP and one under MIFRS depending, on the materiality of impacts. See the specific instructions under each appendix below for further details.
A25: Appendix 2-BA - Fixed Asset Schedule
A27: Applicants are to provide Appendix 2-BA in accordance with the years and corresponding accounting standards noted in the above table to provide a year over year continuity in fixed assets.
A28: *For the transition year (2014), the applicant should file two appendices, one under Revised CGAAP and one under MIFRS if the change between Revised CGAAP and MIFRS is material. If the change from the accounting standards is not material, the applicant may choose to only provide one appendix under MIFRS. The applicant must also indicate the fixed asset net book value balance under Revised CGAAP, the total dollar value of the change and explain why it is not material.
A32: Regulatory Gross Assets of Property, Plant and Equipment
A34: For an applicant that is adopting IFRS on January 1, 2015 for financial reporting purposes, the applicant must establish the continuity of historic cost by using the December 31, 2013 regulatory gross assets of property, plant and equipment as the opening January 1, 2014 regulatory gross assets. The applicant must provide schedules (including Appendix 2-BA, Fixed Asset Continuity Schedule) which must identify the following details to substantiate the continuity of historic cost for regulatory purposes:
A37: · December 31, 2013 regulatory gross assets of property, plant and equipment, by asset class; and
A38: · January 1, 2014 regulatory gross assets of property, plant and equipment, by asset class.
A40: Accumulated Depreciation
A42: For an applicant that is adopting IFRS on January 1, 2015 for financial reporting purposes, the applicant must establish the continuity of historic cost by using the December 31, 2013 regulatory accumulated depreciation as the opening January 1, 2014 regulatory accumulated depreciation. The applicant must provide schedules (including Appendix 2-BA, Fixed Asset Continuity Schedule) which must identify the following details to substantiate the continuity of historic cost for regulatory purposes:
A45: · December 31, 2013 regulatory accumulated depreciation, by asset class; and
A46: · January 1, 2014 regulatory accumulated depreciation, by asset class.
A48: Appendix 2-C - Depreciation and Amortization
A50: Applicants are to provide Appendix 2-C starting in the year capitalization and depreciation policy changes were implemented in accordance with the years and corresponding accounting standards listed in the above table.
A51: If an applicant changed capitalization and depreciation policies effective January 1, 2012 and will adopt IFRS for reporting purposes effective January 1, 2015, the applicant must complete Appendix 2-CA to 2-CE (inclusive).
A52: If an applicant changed capitalization and depreciation policies effective January 1, 2013 and will adopt IFRS for reporting purposes effective January 1, 2015, the applicant must complete Appendix 2-CF to 2-CI (inclusive).
A53: *Depreciation accounting policy changes were mandated by the Board by January 1, 2013. These accounting changes should be implemented consistent with the Board’s regulatory accounting policies as set out for MIFRS as contained in the Report of the Board, Transition to International Financial Reporting Standards (EB-2008-0408), the Depreciation Study for Use by Electricity Distributors (EB-2010-0178) and the Revised 2012 Accounting Procedures Handbook for Electricity Distributors. In general, no further changes to an applicant's depreciation policy (i.e. assets' service lives) are expected after the Board mandated changes by January 1, 2013. The set of Appendix CA to CI assumes this to be the case. If the applicant has made any changes to its depreciation policy subsequent to the Board mandated changes, applicants must identify the change, explain the nature of the change, the reason for the change, quantify the impact of the change, and quantify the depreciation expense before and after the change.
A56: Appendix 2-E - Account 1575, IFRS-CGAAP Transitional PP&E Amounts (2-EA), Account 1576, Accounting Changes Under CGAAP (2-EB, 2-EC)
A58: If an applicant changed capitalization and depreciation policies effective January 1, 2012 and will adopt IFRS for reporting purposes effective January 1, 2015, the applicant must complete Appendix 2-EA and 2-EB. If the applicant does not make any further PP&E accounting policy changes beyond the capitalization and depreciation policy changes as permitted by the Board on January 1, 2012 (i.e. no further changes made on transition to IFRS), the applicant must indicate this and does not need to complete Appendix 2-EA.
A60: If an applicant changed capitalization and depreciation policies effective January 1, 2013 and will adopt IFRS for reporting purposes effective January 1, 2015, the applicant must complete Appendix 2-EA and 2-EC. If the applicant does not make any further PP&E accounting policy changes beyond the capitalization and depreciation policy changes as mandated by the Board by January 1, 2013 (i.e. no further changes made on transition to IFRS), the applicant must indicate this and does not need to complete Appendix 2-EA.
A62: Please refer to section 2.12.4 and 2.12.5 of the Filing Requirements for further details.
A64: Appendix 2-YA - Summary of Impacts to Revenue Requirement from Transition to MIFRS
A66: For applicants adopting MIFRS, the applicants must provide a summary of the dollar impacts of MIFRS to each component of the revenue requirement (e.g. rate base, operating costs, etc), including the overall impact on the proposed revenue requirement. Accordingly, the applicants must identify financial differences and resulting revenue requirement impacts arising from the adoption of MIFRS as compared to CGAAP prior to capitalization and depreciation policy changes.

Sheet App.2-BA_Fixed Asset Cont 2011
L1: File Number: | M1: =EBNUMBER -> EB-2014-0096
L2: Exhibit: | M2: 2
L3: Tab: | M3: 1
L4: Schedule: | M4: 1
L5: Page: | M5: 1
L7: Date: | M7: 2014-08-29
A9: Appendix 2-BA
A10: Fixed Asset Continuity Schedule
E12: Accounting Standard | F12: CGAAP
E13: Year | F13: 2011
D15: Cost | J15: Accumulated Depreciation
A16: CCA Class | B16: OEB | C16: Description | D16: Opening Balance | E16: Additions | F16: Disposals | G16: Closing Balance | I16: Opening Balance | J16: Additions | K16: Disposals | L16: Closing Balance | M16: Net Book Value
A17: 12 | B17: 1611 | C17: Computer Software (Formally known as Account 1925) | D17: 2170029 | E17: 247505 | F17: -54000.43 | G17: =D17+E17+F17 -> 2363533.57 | I17: -1945983.33 | J17: -104805 | L17: =I17+J17+K17 -> -2050788.33 | M17: =G17+L17 -> 312745.24
A18: CEC | B18: 1612 | C18: Land Rights (Formally known as Account 1906) | G18: =D18+E18+F18 -> 0 | L18: =I18+J18+K18 -> 0 | M18: =G18+L18 -> 0
A19: N/A | B19: 1805 | C19: Land | D19: 507272.79 | G19: 507272.79 | I19: 0 | L19: 0 | M19: 507272.79
A20: 47 | B20: 1806 | C20: Land Rights | D20: 1598170.68 | G20: 1598170.68 | I20: -690185.22 | J20: -56850 | L20: -747035.22 | M20: 851135.46
A21: 47 | B21: 1808 | C21: Buildings | D21: 111638.13 | G21: 111638.13 | I21: -99967 | J21: -4111 | L21: -104078 | M21: 7560.13
A22: 13 | B22: 1810 | C22: Leasehold Improvements | G22: 0 | L22: 0 | M22: 0
A23: 47 | B23: 1815 | C23: Transformer Station Equipment >50 kV | D23: 6602000.57 | G23: 6602000.57 | I23: -903106.42 | J23: -146009 | L23: -1049115.42 | M23: 5552885.15
A24: 47 | B24: 1820 | C24: Distribution Station Equipment <50 kV | D24: 4984095.82 | E24: 799780 | G24: 5783875.82 | I24: -2945129.43 | J24: -158386 | L24: -3103515.43 | M24: 2680360.39
A25: 47 | B25: 1825 | C25: Storage Battery Equipment | G25: 0 | L25: 0 | M25: 0
A26: 47 | B26: 1830 | C26: Poles, Towers & Fixtures | D26: 30625638.52 | E26: 1760405 | F26: -0.3499999978 | G26: 32386043.17 | I26: -16981049.44 | J26: -886143.07 | K26: 0 | L26: -17867192.51 | M26: 14518850.66
A27: 47 | B27: 1835 | C27: Overhead Conductors & Devices | D27: 32902160 | E27: 1721225.21 | F27: -0.21 | G27: 34623385 | I27: -14955471.46 | J27: -1228547.22 | K27: 0 | L27: -16184018.68 | M27: 18439366.32
A28: 47 | B28: 1840 | C28: Underground Conduit | D28: 11491536.45 | E28: 470858 | F28: 0.3100000005 | G28: 11962394.76 | I28: -785673.15 | J28: -203335.98 | K28: 0 | L28: -989009.13 | M28: 10973385.63
A29: 47 | B29: 1845 | C29: Underground Conductors & Devices | D29: 56340588.45 | E29: 2311906 | F29: 0.3999999985 | G29: 58652494.85 | I29: -33154618.91 | J29: -2365135.9 | K29: 0 | L29: -35519754.81 | M29: 23132740.04
A30: 47 | B30: 1850 | C30: Line Transformers | D30: 32027301.53 | E30: 1064335 | F30: -209294.43 | G30: 32882342.1 | I30: -17051222.38 | J30: -1130746.64 | K30: 209293.67 | L30: -17972675.35 | M30: 14909666.75
A31: 47 | B31: 1855 | C31: Services (Overhead & Underground) | D31: 3853918.48 | E31: 338070 | F31: 0.4399999999 | G31: 4191988.92 | I31: -772447.05 | J31: -160915.64 | K31: 0 | L31: -933362.69 | M31: 3258626.23
A32: 47 | B32: 1860 | C32: Meters | D32: 2493234.48 | E32: 177179.88 | F32: -92783.18 | G32: 2577631.18 | I32: -1031411.54 | J32: -419378 | K32: 173002 | L32: -1277787.54 | M32: 1299843.64
A33: 47 | B33: 1860 | C33: Meters (Smart Meters) | D33: 4175009.94 | G33: 4175009.94 | I33: 0 | J33: 0 | K33: 0 | L33: 0 | M33: 4175009.94
A34: 47 | B34: 1865 | C34: Other Installations on Customer's Premises | D34: 0 | G34: 0 | L34: 0 | M34: 0
A35: 47 | B35: 1875 | C35: Street Lighting and Signal Systems | D35: 21835 | G35: 21835 | I35: -4118.96 | J35: -840.7 | L35: -4959.66 | M35: 16875.34
A36: N/A | B36: 1905 | C36: Land | D36: 508969.83 | G36: 508969.83 | L36: 0 | M36: 508969.83
A37: 47 | B37: 1908 | C37: Buildings & Fixtures | D37: 12458371.49 | E37: 121779 | G37: 12580150.49 | I37: -2026855.26 | J37: -211195.42 | L37: -2238050.68 | M37: 10342099.81
A38: 13 | B38: 1910 | C38: Leasehold Improvements | D38: 120252.32 | G38: 120252.32 | I38: -120252.32 | J38: 0 | L38: -120252.32 | M38: 0
A39: 8 | B39: 1915 | C39: Office Furniture & Equipment (10 years) | D39: 1142390.44 | E39: 68799 | G39: 1211189.44 | I39: -700466.23 | J39: -73244 | L39: -773710.23 | M39: 437479.21
A40: 8 | B40: 1915 | C40: Office Furniture & Equipment (5 years) | G40: 0 | L40: 0 | M40: 0
A41: 10 | B41: 1920 | C41: Computer Equipment - Hardware | D41: 1257769.3 | G41: 1257769.3 | I41: -1257769.3 | J41: 0 | L41: -1257769.3 | M41: 0
A42: 45 | B42: 1920 | C42: Computer Equip.-Hardware(Post Mar. 22/04) | D42: 320323.46 | G42: 320323.46 | I42: -315054.356 | L42: -315054.356 | M42: 5269.104
A43: 50 | B43: 1920 | C43: Computer Equip.-Hardware(Post Mar. 19/07) | D43: 1304707.75 | E43: 247812 | G43: 1552519.75 | I43: -611848.47 | J43: -232399 | L43: -844247.47 | M43: 708272.28
A44: 10 | B44: 1930 | C44: Transportation Equipment | D44: 6353934.86 | E44: 541641 | F44: -451091.88 | G44: 6444483.98 | I44: -4104213.54 | J44: -438086.93 | K44: 434695 | L44: -4107605.47 | M44: 2336878.51
A45: 8 | B45: 1935 | C45: Stores Equipment | D45: 226597.31 | E45: 9817 | G45: 236414.31 | I45: -186481 | J45: -4736 | L45: -191217 | M45: 45197.31
A46: 8 | B46: 1940 | C46: Tools, Shop & Garage Equipment | D46: 1661082.55 | E46: 77760 | G46: 1738842.55 | I46: -1320132.07 | J46: -66152.65 | L46: -1386284.72 | M46: 352557.83
A47: 8 | B47: 1945 | C47: Measurement & Testing Equipment | D47: 188846.33 | E47: 15160 | G47: 204006.33 | I47: -161506.95 | J47: -17291.5 | L47: -178798.45 | M47: 25207.88
A48: 8 | B48: 1950 | C48: Power Operated Equipment | D48: 0 | G48: 0 | I48: 0 | J48: 0 | L48: 0 | M48: 0
A49: 8 | B49: 1955 | C49: Communications Equipment | D49: 168596.33 | E49: 1985 | G49: 170581.33 | I49: -112449.43 | J49: -21204 | L49: -133653.43 | M49: 36927.9
A50: 8 | B50: 1955 | C50: Communication Equipment (Smart Meters) | G50: 0 | L50: 0 | M50: 0
A51: 8 | B51: 1960 | C51: Miscellaneous Equipment | D51: 72951.31 | G51: 72951.31 | I51: -53366.71 | J51: -6973 | L51: -60339.71 | M51: 12611.6
A52: 47 | B52: 1970 | C52: Load Management Controls Customer Premises | G52: 0 | L52: 0 | M52: 0
A53: 47 | B53: 1975 | C53: Load Management Controls Utility Premises | G53: 0 | L53: =I53+J53+K53 -> 0 | M53: 0
A54: 47 | B54: 1980 | C54: System Supervisor Equipment | D54: 128960.64 | G54: 128960.64 | I54: -128961 | J54: 0 | L54: -128961 | M54: -0.36
A55: 47 | B55: 1985 | C55: Miscellaneous Fixed Assets | G55: 0 | L55: 0 | M55: 0
A56: 47 | B56: 1990 | C56: Other Tangible Property | G56: 0 | L56: 0 | M56: 0
A57: 47 | B57: 1995 | C57: Contributions & Grants | D57: -17481077.36 | E57: -1571526 | G57: -19052603.36 | I57: 4023356.34 | J57: 705961.88 | L57: 4729318.22 | M57: -14323285.14
A58: 47 | B58: 2440 | C58: Deferred Revenue5 | G58: 0 | M58: 0
A59: 47 | B59: 2005 | C59: 2005-Property Under Capital Leases | G59: 0
G60: 0 | L60: 0 | M60: =G60+L60 -> 0
C61: Sub-Total | D61: =SUM(D17:D60) -> 198337106.4 | E61: =SUM(E17:E60) -> 8404491.09 | F61: =SUM(F17:F60) -> -807169.33 | G61: =SUM(G17:G60) -> 205934428.2 | I61: =SUM(I17:I60) -> -98396384.59 | J61: =SUM(J17:J60) -> -7230524.77 | K61: =SUM(K17:K60) -> 816990.67 | L61: =SUM(L17:L60) -> -104809918.7 | M61: =SUM(M17:M60) -> 101124509.5
C62: Less Socialized Renewable Energy Generation Investments (input as negative) | G62: =D62+E62+F62 -> 0 | L62: =I62+J62+K62 -> 0 | M62: =G62+L62 -> 0
C63: Less Other Non Rate-Regulated Utility Assets (input as negative) | G63: =D63+E63+F63 -> 0 | L63: =I63+J63+K63 -> 0 | M63: =G63+L63 -> 0
C64: Total PP&E | D64: =SUM(D61:D63) -> 198337106.4 | E64: =SUM(E61:E63) -> 8404491.09 | F64: =SUM(F61:F63) -> -807169.33 | G64: =SUM(G61:G63) -> 205934428.2 | I64: =SUM(I61:I63) -> -98396384.59 | J64: =SUM(J61:J63) -> -7230524.77 | K64: =SUM(K61:K63) -> 816990.67 | L64: =SUM(L61:L63) -> -104809918.7 | M64: =SUM(M61:M63) -> 101124509.5
C65: Depreciation Expense adj. from gain or loss on the retirement of assets (pool of like assets), if applicable6
C66: Total | J66: =J64+J65 -> -7230524.77
I68: Less: Fully Allocated Depreciation
A69: 10 | C69: Transportation | I69: Transportation
A70: 8 | C70: Stores Equipment | I70: Stores Equipment
I71: Net Depreciation | K71: =J66-K69-K70 -> -7230524.77
A73: Notes:
A75: 1 | B75: Tables in the format outlined above covering all fixed asset accounts should be submitted for the Test Year, Bridge Year and all relevant historical years. At a minimum , the applicant must provide data for the earlier of: 1) all historical years back to its last rebasing; or 2) at least three years of historical actuals, in addition to Bridge Year and Test Year forecasts.
A78: 2 | B78: The "CCA Class" for fixed assets should agree with the CCA Class used for tax purposes in Tax Returns. Fixed Assets sub-components may be used where the underlying asset components are classified under multiple CCA Classes for tax purposes. If an applicant uses any different classes from those shown in the table, an explanation should be provided. (also see note 3 below).
A81: 3 | B81: The table may need to be customized for a utility's asset categories or for any new asset accounts announced or authorized by the Board.
A83: 4 | B83: The additions column (E) must not include construction work in progress (CWIP).
A85: 5 | B85: Effective on the date of IFRS adoption, customer contributions will no longer be recorded in Account 1995 Contributions & Grants, but will be recorded in Account 2440, Deferred Revenues.
A87: 6 | B87: Where a distributor for general financial reporting purposes under IFRS has accounted for the amount of gain or loss on the retirement of assets in a pool of like assets as a charge or credit to income, for reporting and rate application filings the distributor shall reclassify such gains and losses as depreciation expense, and disclose the amount separately.

Sheet App.2-BA_Fixed Asset Cont 2012
L1: File Number: | M1: =EBNUMBER -> EB-2014-0096
L2: Exhibit: | M2: 2
L3: Tab: | M3: 1
L4: Schedule: | M4: 1
L5: Page: | M5: 2
L7: Date: | M7: 2014-08-29
A9: Appendix 2-BA
A10: Fixed Asset Continuity Schedule
E12: Accounting Standard | F12: CGAAP
E13: Year | F13: 2012
D15: Cost | J15: Accumulated Depreciation
A16: CCA Class | B16: OEB | C16: Description | D16: Opening Balance | E16: Additions | F16: Disposals | G16: Closing Balance | I16: Opening Balance | J16: Additions | K16: Disposals | L16: Closing Balance | M16: Net Book Value
A17: 12 | B17: 1611 | C17: Computer Software (Formally known as Account 1925) | D17: ='App.2-BA_Fixed Asset Cont 2011'!G17 -> 2363533.57 | E17: 213431 | G17: =D17+E17+F17 -> 2576964.57 | I17: ='App.2-BA_Fixed Asset Cont 2011'!L17 -> -2050788.33 | J17: -159611.87 | L17: =I17+J17+K17 -> -2210400.2 | M17: =G17+L17 -> 366564.37
A18: CEC | B18: 1612 | C18: Land Rights (Formally known as Account 1906) | D18: ='App.2-BA_Fixed Asset Cont 2011'!G18 -> 0 | G18: =D18+E18+F18 -> 0 | I18: ='App.2-BA_Fixed Asset Cont 2011'!L18 -> 0 | L18: =I18+J18+K18 -> 0 | M18: =G18+L18 -> 0
A19: N/A | B19: 1805 | C19: Land | D19: ='App.2-BA_Fixed Asset Cont 2011'!G19 -> 507272.79 | G19: 507272.79 | I19: ='App.2-BA_Fixed Asset Cont 2011'!L19 -> 0 | L19: 0 | M19: 507272.79
A20: 47 | B20: 1806 | C20: Land Rights | D20: ='App.2-BA_Fixed Asset Cont 2011'!G20 -> 1598170.68 | E20: 5416 | G20: 1603586.68 | I20: ='App.2-BA_Fixed Asset Cont 2011'!L20 -> -747035.22 | J20: -64028.59 | L20: -811063.81 | M20: 792522.87
A21: 47 | B21: 1808 | C21: Buildings | D21: ='App.2-BA_Fixed Asset Cont 2011'!G21 -> 111638.13 | G21: 111638.13 | I21: ='App.2-BA_Fixed Asset Cont 2011'!L21 -> -104078 | J21: -7559 | L21: -111637 | M21: 1.13
A22: 13 | B22: 1810 | C22: Leasehold Improvements | D22: ='App.2-BA_Fixed Asset Cont 2011'!G22 -> 0 | G22: 0 | I22: ='App.2-BA_Fixed Asset Cont 2011'!L22 -> 0 | L22: 0 | M22: 0
A23: 47 | B23: 1815 | C23: Transformer Station Equipment >50 kV | D23: ='App.2-BA_Fixed Asset Cont 2011'!G23 -> 6602000.57 | E23: 16266 | G23: 6618266.57 | I23: ='App.2-BA_Fixed Asset Cont 2011'!L23 -> -1049115.42 | J23: -146211.97 | L23: -1195327.39 | M23: 5422939.18
A24: 47 | B24: 1820 | C24: Distribution Station Equipment <50 kV | D24: ='App.2-BA_Fixed Asset Cont 2011'!G24 -> 5783875.82 | E24: 666649 | G24: 6450524.82 | I24: ='App.2-BA_Fixed Asset Cont 2011'!L24 -> -3103515.43 | J24: -191904.86 | L24: -3295420.29 | M24: 3155104.53
A25: 47 | B25: 1825 | C25: Storage Battery Equipment | D25: ='App.2-BA_Fixed Asset Cont 2011'!G25 -> 0 | G25: 0 | I25: ='App.2-BA_Fixed Asset Cont 2011'!L25 -> 0 | L25: 0 | M25: 0
A26: 47 | B26: 1830 | C26: Poles, Towers & Fixtures | D26: ='App.2-BA_Fixed Asset Cont 2011'!G26 -> 32386043.17 | E26: 1474815 | F26: 0 | G26: 33860858.17 | I26: ='App.2-BA_Fixed Asset Cont 2011'!L26 -> -17867192.51 | J26: -945170.49 | K26: 0 | L26: -18812363 | M26: 15048495.17
A27: 47 | B27: 1835 | C27: Overhead Conductors & Devices | D27: ='App.2-BA_Fixed Asset Cont 2011'!G27 -> 34623385 | E27: 1638693 | F27: 0 | G27: 36262078 | I27: ='App.2-BA_Fixed Asset Cont 2011'!L27 -> -16184018.68 | J27: -1299638.03 | K27: 0 | L27: -17483656.71 | M27: 18778421.29
A28: 47 | B28: 1840 | C28: Underground Conduit | D28: ='App.2-BA_Fixed Asset Cont 2011'!G28 -> 11962394.76 | E28: 802096 | F28: 0 | G28: 12764490.76 | I28: ='App.2-BA_Fixed Asset Cont 2011'!L28 -> -989009.13 | J28: -228692.21 | K28: 0 | L28: -1217701.34 | M28: 11546789.42
A29: 47 | B29: 1845 | C29: Underground Conductors & Devices | D29: ='App.2-BA_Fixed Asset Cont 2011'!G29 -> 58652494.85 | E29: 2345741 | F29: 0 | G29: 60998235.85 | I29: ='App.2-BA_Fixed Asset Cont 2011'!L29 -> -35519754.81 | J29: -2266640.41 | K29: 0 | L29: -37786395.22 | M29: 23211840.63
A30: 47 | B30: 1850 | C30: Line Transformers | D30: ='App.2-BA_Fixed Asset Cont 2011'!G30 -> 32882342.1 | E30: 1246688 | F30: -241410 | G30: 33887620.1 | I30: ='App.2-BA_Fixed Asset Cont 2011'!L30 -> -17972675.35 | J30: -1204680.68 | K30: 241410.02 | L30: -18935946.01 | M30: 14951674.09
A31: 47 | B31: 1855 | C31: Services (Overhead & Underground) | D31: ='App.2-BA_Fixed Asset Cont 2011'!G31 -> 4191988.92 | E31: 437074 | F31: 0.3300000001 | G31: 4629063.25 | I31: ='App.2-BA_Fixed Asset Cont 2011'!L31 -> -933362.69 | J31: -176420.3 | K31: 0 | L31: -1109782.99 | M31: 3519280.26
A32: 47 | B32: 1860 | C32: Meters | D32: ='App.2-BA_Fixed Asset Cont 2011'!G32 -> 2577631.18 | E32: 209382 | F32: -141557 | G32: 2645456.18 | I32: ='App.2-BA_Fixed Asset Cont 2011'!L32 -> -1277787.54 | J32: -362629.12 | K32: 103654.89 | L32: -1536761.77 | M32: 1108694.41
A33: 47 | B33: 1860 | C33: Meters (Smart Meters) | D33: ='App.2-BA_Fixed Asset Cont 2011'!G33 -> 4175009.94 | G33: 4175009.94 | I33: ='App.2-BA_Fixed Asset Cont 2011'!L33 -> 0 | J33: 0 | L33: 0 | M33: 4175009.94
A34: 47 | B34: 1865 | C34: Other Installations on Customer's Premises | D34: ='App.2-BA_Fixed Asset Cont 2011'!G34 -> 0 | G34: 0 | I34: ='App.2-BA_Fixed Asset Cont 2011'!L34 -> 0 | L34: 0 | M34: 0
A35: 47 | B35: 1875 | C35: Street Lighting and Signal Systems | D35: ='App.2-BA_Fixed Asset Cont 2011'!G35 -> 21835 | G35: 21835 | I35: ='App.2-BA_Fixed Asset Cont 2011'!L35 -> -4959.66 | J35: -1313.22 | L35: -6272.88 | M35: 15562.12
A36: N/A | B36: 1905 | C36: Land | D36: ='App.2-BA_Fixed Asset Cont 2011'!G36 -> 508969.83 | G36: 508969.83 | I36: ='App.2-BA_Fixed Asset Cont 2011'!L36 -> 0 | L36: 0 | M36: 508969.83
A37: 47 | B37: 1908 | C37: Buildings & Fixtures | D37: ='App.2-BA_Fixed Asset Cont 2011'!G37 -> 12580150.49 | E37: 625695.04 | G37: 13205845.53 | I37: ='App.2-BA_Fixed Asset Cont 2011'!L37 -> -2238050.68 | J37: -217482.65 | L37: -2455533.33 | M37: 10750312.2
A38: 13 | B38: 1910 | C38: Leasehold Improvements | D38: ='App.2-BA_Fixed Asset Cont 2011'!G38 -> 120252.32 | E38: 0 | G38: 120252.32 | I38: ='App.2-BA_Fixed Asset Cont 2011'!L38 -> -120252.32 | L38: -120252.32 | M38: 0
A39: 8 | B39: 1915 | C39: Office Furniture & Equipment (10 years) | D39: ='App.2-BA_Fixed Asset Cont 2011'!G39 -> 1211189.44 | E39: 111949 | G39: 1323138.44 | I39: ='App.2-BA_Fixed Asset Cont 2011'!L39 -> -773710.23 | J39: -78052.49 | L39: -851762.72 | M39: 471375.72
A40: 8 | B40: 1915 | C40: Office Furniture & Equipment (5 years) | D40: ='App.2-BA_Fixed Asset Cont 2011'!G40 -> 0 | G40: 0 | I40: ='App.2-BA_Fixed Asset Cont 2011'!L40 -> 0 | L40: 0 | M40: 0
A41: 10 | B41: 1920 | C41: Computer Equipment - Hardware | D41: ='App.2-BA_Fixed Asset Cont 2011'!G41 -> 1257769.3 | G41: 1257769.3 | I41: ='App.2-BA_Fixed Asset Cont 2011'!L41 -> -1257769.3 | L41: -1257769.3 | M41: 0
A42: 45 | B42: 1920 | C42: Computer Equip.-Hardware(Post Mar. 22/04) | D42: ='App.2-BA_Fixed Asset Cont 2011'!G42 -> 320323.46 | G42: 320323.46 | I42: ='App.2-BA_Fixed Asset Cont 2011'!L42 -> -315054.356 | L42: -315054.356 | M42: 5269.104
A43: 50 | B43: 1920 | C43: Computer Equip.-Hardware(Post Mar. 19/07) | D43: ='App.2-BA_Fixed Asset Cont 2011'!G43 -> 1552519.75 | E43: 370710 | G43: 1923229.75 | I43: ='App.2-BA_Fixed Asset Cont 2011'!L43 -> -844247.47 | J43: -266599 | L43: -1110846.47 | M43: 812383.28
A44: 10 | B44: 1930 | C44: Transportation Equipment | D44: ='App.2-BA_Fixed Asset Cont 2011'!G44 -> 6444483.98 | E44: 1160649 | G44: 7605132.98 | I44: ='App.2-BA_Fixed Asset Cont 2011'!L44 -> -4107605.47 | J44: -455441.01 | L44: -4563046.48 | M44: 3042086.5
A45: 8 | B45: 1935 | C45: Stores Equipment | D45: ='App.2-BA_Fixed Asset Cont 2011'!G45 -> 236414.31 | E45: 0 | G45: 236414.31 | I45: ='App.2-BA_Fixed Asset Cont 2011'!L45 -> -191217 | J45: -5424.28 | L45: -196641.28 | M45: 39773.03
A46: 8 | B46: 1940 | C46: Tools, Shop & Garage Equipment | D46: ='App.2-BA_Fixed Asset Cont 2011'!G46 -> 1738842.55 | E46: 132901 | G46: 1871743.55 | I46: ='App.2-BA_Fixed Asset Cont 2011'!L46 -> -1386284.72 | J46: -70945.34 | L46: -1457230.06 | M46: 414513.49
A47: 8 | B47: 1945 | C47: Measurement & Testing Equipment | D47: ='App.2-BA_Fixed Asset Cont 2011'!G47 -> 204006.33 | E47: 0 | G47: 204006.33 | I47: ='App.2-BA_Fixed Asset Cont 2011'!L47 -> -178798.45 | J47: -7820.6 | L47: -186619.05 | M47: 17387.28
A48: 8 | B48: 1950 | C48: Power Operated Equipment | D48: ='App.2-BA_Fixed Asset Cont 2011'!G48 -> 0 | E48: 0 | G48: 0 | I48: ='App.2-BA_Fixed Asset Cont 2011'!L48 -> 0 | J48: 0 | L48: 0 | M48: 0
A49: 8 | B49: 1955 | C49: Communications Equipment | D49: ='App.2-BA_Fixed Asset Cont 2011'!G49 -> 170581.33 | E49: 332339 | G49: 502920.33 | I49: ='App.2-BA_Fixed Asset Cont 2011'!L49 -> -133653.43 | J49: -22327.98 | L49: -155981.41 | M49: 346938.92
A50: 8 | B50: 1955 | C50: Communication Equipment (Smart Meters) | D50: ='App.2-BA_Fixed Asset Cont 2011'!G50 -> 0 | G50: 0 | I50: ='App.2-BA_Fixed Asset Cont 2011'!L50 -> 0 | L50: 0 | M50: 0
A51: 8 | B51: 1960 | C51: Miscellaneous Equipment | D51: ='App.2-BA_Fixed Asset Cont 2011'!G51 -> 72951.31 | G51: 72951.31 | I51: ='App.2-BA_Fixed Asset Cont 2011'!L51 -> -60339.71 | J51: -6974.25 | L51: -67313.96 | M51: 5637.35
A52: 47 | B52: 1970 | C52: Load Management Controls Customer Premises | D52: ='App.2-BA_Fixed Asset Cont 2011'!G52 -> 0 | G52: 0 | I52: ='App.2-BA_Fixed Asset Cont 2011'!L52 -> 0 | L52: 0 | M52: 0
A53: 47 | B53: 1975 | C53: Load Management Controls Utility Premises | D53: ='App.2-BA_Fixed Asset Cont 2011'!G53 -> 0 | G53: 0 | I53: ='App.2-BA_Fixed Asset Cont 2011'!L53 -> 0 | L53: =I53+J53+K53 -> 0 | M53: 0
A54: 47 | B54: 1980 | C54: System Supervisor Equipment | D54: ='App.2-BA_Fixed Asset Cont 2011'!G54 -> 128960.64 | G54: 128960.64 | I54: ='App.2-BA_Fixed Asset Cont 2011'!L54 -> -128961 | J54: 0 | L54: -128961 | M54: -0.36
A55: 47 | B55: 1985 | C55: Miscellaneous Fixed Assets | D55: ='App.2-BA_Fixed Asset Cont 2011'!G55 -> 0 | G55: 0 | I55: ='App.2-BA_Fixed Asset Cont 2011'!L55 -> 0 | L55: 0 | M55: 0
A56: 47 | B56: 1990 | C56: Other Tangible Property | D56: ='App.2-BA_Fixed Asset Cont 2011'!G56 -> 0 | G56: 0 | I56: ='App.2-BA_Fixed Asset Cont 2011'!L56 -> 0 | L56: 0 | M56: 0
A57: 47 | B57: 1995 | C57: Contributions & Grants | D57: ='App.2-BA_Fixed Asset Cont 2011'!G57 -> -19052603.36 | E57: -1472887 | G57: -20525490.36 | I57: ='App.2-BA_Fixed Asset Cont 2011'!L57 -> 4729318.22 | J57: 764296.89 | L57: 5493615.11 | M57: -15031875.25
A58: 47 | B58: 2440 | C58: Deferred Revenue5 | D58: ='App.2-BA_Fixed Asset Cont 2011'!G58 -> 0 | G58: 0 | I58: ='App.2-BA_Fixed Asset Cont 2011'!L58 -> 0 | M58: 0
A59: 47 | B59: 2005 | C59: 2005-Property Under Capital Leases | D59: ='App.2-BA_Fixed Asset Cont 2011'!G59 -> 0 | G59: 0 | I59: ='App.2-BA_Fixed Asset Cont 2011'!L59 -> 0
G60: 0 | L60: 0 | M60: =G60+L60 -> 0
C61: Sub-Total | D61: =SUM(D17:D60) -> 205934428.2 | E61: =SUM(E17:E60) -> 10317607.04 | F61: =SUM(F17:F60) -> -382966.67 | G61: =SUM(G17:G60) -> 215869068.5 | I61: =SUM(I17:I60) -> -104809918.7 | J61: =SUM(J17:J60) -> -7421271.46 | K61: =SUM(K17:K60) -> 345064.91 | L61: =SUM(L17:L60) -> -111886125.2 | M61: =SUM(M17:M60) -> 103982943.3
C62: Less Socialized Renewable Energy Generation Investments (input as negative) | G62: =D62+E62+F62 -> 0 | L62: =I62+J62+K62 -> 0 | M62: =G62+L62 -> 0
C63: Less Other Non Rate-Regulated Utility Assets (input as negative) | G63: =D63+E63+F63 -> 0 | L63: =I63+J63+K63 -> 0 | M63: =G63+L63 -> 0
C64: Total PP&E | D64: =SUM(D61:D63) -> 205934428.2 | E64: =SUM(E61:E63) -> 10317607.04 | F64: =SUM(F61:F63) -> -382966.67 | G64: =SUM(G61:G63) -> 215869068.5 | I64: =SUM(I61:I63) -> -104809918.7 | J64: =SUM(J61:J63) -> -7421271.46 | K64: =SUM(K61:K63) -> 345064.91 | L64: =SUM(L61:L63) -> -111886125.2 | M64: =SUM(M61:M63) -> 103982943.3
C65: Depreciation Expense adj. from gain or loss on the retirement of assets (pool of like assets), if applicable6
C66: Total | J66: =J64+J65 -> -7421271.46
I68: Less: Fully Allocated Depreciation
A69: 10 | C69: Transportation | I69: Transportation
A70: 8 | C70: Stores Equipment | I70: Stores Equipment
I71: Net Depreciation | K71: =J66-K69-K70 -> -7421271.46
A73: Notes:
A75: 1 | B75: Tables in the format outlined above covering all fixed asset accounts should be submitted for the Test Year, Bridge Year and all relevant historical years. At a minimum , the applicant must provide data for the earlier of: 1) all historical years back to its last rebasing; or 2) at least three years of historical actuals, in addition to Bridge Year and Test Year forecasts.
A78: 2 | B78: The "CCA Class" for fixed assets should agree with the CCA Class used for tax purposes in Tax Returns. Fixed Assets sub-components may be used where the underlying asset components are classified under multiple CCA Classes for tax purposes. If an applicant uses any different classes from those shown in the table, an explanation should be provided. (also see note 3 below).
A81: 3 | B81: The table may need to be customized for a utility's asset categories or for any new asset accounts announced or authorized by the Board.
A83: 4 | B83: The additions column (E) must not include construction work in progress (CWIP).
A85: 5 | B85: Effective on the date of IFRS adoption, customer contributions will no longer be recorded in Account 1995 Contributions & Grants, but will be recorded in Account 2440, Deferred Revenues.
A87: 6 | B87: Where a distributor for general financial reporting purposes under IFRS has accounted for the amount of gain or loss on the retirement of assets in a pool of like assets as a charge or credit to income, for reporting and rate application filings the distributor shall reclassify such gains and losses as depreciation expense, and disclose the amount separately.

Sheet App.2-BA_FA Cont Component 2013
L1: File Number: | M1: =EBNUMBER -> EB-2014-0096
L2: Exhibit: | M2: 2
L3: Tab: | M3: 1
L4: Schedule: | M4: 1
L5: Page: | M5: 3
L7: Date: | M7: 2014-08-29
A9: Appendix 2-BA
A10: Fixed Asset Continuity Schedule
E12: Accounting Standard | F12: CGAAP
E13: Year | F13: 2013
D15: Cost | J15: Accumulated Depreciation
A16: CCA Class | B16: OEB | C16: Description | D16: Opening Balance | E16: Componentization | F16: Disposals | G16: Closing Balance | I16: Opening Balance | J16: Additions | K16: Disposals | L16: Closing Balance | M16: Net Book Value
A17: 12 | B17: 1611 | C17: Computer Software (Formally known as Account 1925) | D17: ='App.2-BA_Fixed Asset Cont 2012'!$G17 -> 2576964.57 | G17: =D17+E17+F17 -> 2576964.57 | I17: ='App.2-BA_Fixed Asset Cont 2012'!L17 -> -2210400.2 | L17: =I17+J17+K17 -> -2210400.2 | M17: =G17+L17 -> 366564.37
A18: CEC | B18: 1612 | C18: Land Rights (Formally known as Account 1906) | D18: ='App.2-BA_Fixed Asset Cont 2012'!$G18 -> 0 | G18: =D18+E18+F18 -> 0 | I18: ='App.2-BA_Fixed Asset Cont 2012'!L18 -> 0 | L18: =I18+J18+K18 -> 0 | M18: =G18+L18 -> 0
A19: N/A | B19: 1805 | C19: Land | D19: ='App.2-BA_Fixed Asset Cont 2012'!$G19 -> 507272.79 | G19: 507272.79 | I19: ='App.2-BA_Fixed Asset Cont 2012'!L19 -> 0 | L19: 0 | M19: 507272.79
A20: 47 | B20: 1806 | C20: Land Rights | D20: ='App.2-BA_Fixed Asset Cont 2012'!$G20 -> 1603586.68 | G20: 1603586.68 | I20: ='App.2-BA_Fixed Asset Cont 2012'!L20 -> -811063.81 | L20: -811063.81 | M20: 792522.87
A21: 47 | B21: 1808 | C21: Buildings | D21: ='App.2-BA_Fixed Asset Cont 2012'!$G21 -> 111638.13 | G21: 111638.13 | I21: ='App.2-BA_Fixed Asset Cont 2012'!L21 -> -111637 | L21: -111637 | M21: 1.13
A22: 13 | B22: 1810 | C22: Leasehold Improvements | D22: ='App.2-BA_Fixed Asset Cont 2012'!$G22 -> 0 | G22: 0 | I22: ='App.2-BA_Fixed Asset Cont 2012'!L22 -> 0 | L22: 0 | M22: 0
A23: 47 | B23: 1815 | C23: Transformer Station Equipment > 50 kV (1708, 1740, 1745) | D23: ='App.2-BA_Fixed Asset Cont 2012'!G23 -> 6618266.57 | E23: -2785253.77 | G23: 3833012.8 | I23: ='App.2-BA_Fixed Asset Cont 2012'!L23 -> -1195327.39 | J23: 570654 | L23: -624673.39 | M23: 3208339.41
A24: 47 | B24: 1815 | C24: Transformer Station Equipment > 50 kV (1715, 1815) | D24: 0 | E24: 1502385.84 | G24: 1502385.84 | I24: 0 | J24: -176326.84 | L24: -176326.84 | M24: 1326059
A25: 47 | B25: 1815 | C25: Transformer Station Equipment > 50 kV (1716) | D25: 0 | E25: 46955.06 | G25: 46955.06 | I25: 0 | J25: -14433.06 | L25: -14433.06 | M25: 32522
A26: 47 | B26: 1815 | C26: Transformer Station Equipment > 50 kV (1717) | D26: 0 | E26: 610733.93 | G26: 610733.93 | I26: 0 | J26: -187726.93 | L26: -187726.93 | M26: 423007
A27: 47 | B27: 1815 | C27: Transformer Station Equipment > 50 kV (1719) | D27: 0 | E27: 625178.94 | G27: 625178.94 | I27: 0 | J27: -192166.94 | L27: -192166.94 | M27: 433012
A28: 47 | B28: 1820 | C28: Distribution Station Equipment <50 kV | D28: ='App.2-BA_Fixed Asset Cont 2012'!G24 -> 6450524.82 | E28: =-1880385.35 -> -1880385.35 | G28: 4570139.47 | I28: ='App.2-BA_Fixed Asset Cont 2012'!L24 -> -3295420.29 | J28: =730153.71 -> 730153.71 | L28: -2565266.58 | M28: 2004872.89
A29: 47 | B29: 1820 | C29: Distribution Station Equipment <50 Kv (1821) | E29: 1880385.35 | G29: 1880385.35 | J29: -730153.71 | L29: -730153.71 | M29: 1150231.64
A30: 47 | B30: 1825 | C30: Storage Battery Equipment | D30: ='App.2-BA_Fixed Asset Cont 2012'!$G25 -> 0 | G30: 0 | I30: ='App.2-BA_Fixed Asset Cont 2012'!L25 -> 0 | L30: 0 | M30: 0
A31: 47 | B31: 1830 | C31: Poles, Towers & Fixtures - Wood | D31: ='App.2-BA_Fixed Asset Cont 2012'!G26+'App.2-BA_Fixed Asset Cont 2012'!G35 -> 33882693.17 | E31: =-2918249.31+7670710 -> 4752460.69 | G31: 38635153.86 | I31: ='App.2-BA_Fixed Asset Cont 2012'!L26+'App.2-BA_Fixed Asset Cont 2012'!L35 -> -18818635.88 | J31: =1240865.22-5394606 -> -4153740.78 | L31: -22972376.66 | M31: 15662777.2
A32: 47 | B32: 1830 | C32: Poles, Towers & Fixtures - (1831) Concrete | E32: 2918249.31 | G32: 2918249.31 | J32: -1240865.22 | L32: -1240865.22 | M32: 1677384.09
A33: 47 | B33: 1835 | C33: Overhead Conductors & Devices | D33: ='App.2-BA_Fixed Asset Cont 2012'!G27 -> 36262078 | E33: =-10041361-4402746.88 -> -14444107.88 | G33: 21817970.12 | I33: ='App.2-BA_Fixed Asset Cont 2012'!L27 -> -17483656.71 | J33: =7765257.02+1279128.78 -> 9044385.8 | L33: -8439270.91 | M33: 13378699.21
A34: 47 | B34: 1835 | C34: Overhead Conductors & Devices (1836) | E34: 2501048.3 | G34: 2501048.3 | J34: -816410.15 | L34: -816410.15 | M34: 1684638.15
A35: 47 | B35: 1835 | C35: Overhead Conductors & Devices (1837) | E35: 1901698.58 | G35: 1901698.58 | J35: -462718.63 | L35: -462718.63 | M35: 1438979.95
A36: 47 | B36: 1840 | C36: Underground Conduit | D36: ='App.2-BA_Fixed Asset Cont 2012'!$G28 -> 12764490.76 | E36: -3691583 | G36: 9072907.76 | I36: ='App.2-BA_Fixed Asset Cont 2012'!L28 -> -1217701.34 | J36: -980391.48 | L36: -2198092.82 | M36: 6874814.94
A37: 47 | B37: 1845 | C37: Underground Conductors & Devices | D37: ='App.2-BA_Fixed Asset Cont 2012'!G29 -> 60998235.85 | E37: =3691583-1884815.71 -> 1806767.29 | G37: 62805003.14 | I37: ='App.2-BA_Fixed Asset Cont 2012'!L29 -> -37786395.22 | J37: 1926336.53 | L37: -35860058.69 | M37: 26944944.45
A38: 47 | B38: 1845 | C38: Underground Conductors & Devices (1846) | E38: 1884815.71 | G38: 1884815.71 | J38: -945945.05 | L38: -945945.05 | M38: 938870.66
A39: 47 | B39: 1850 | C39: Line Transformers (1850) Polemount | D39: ='App.2-BA_Fixed Asset Cont 2012'!G30 -> 33887620.1 | E39: =2370651-17225897.26 -> -14855246.26 | G39: 19032373.84 | I39: ='App.2-BA_Fixed Asset Cont 2012'!L30 -> -18935946.01 | J39: 5671814.68 | L39: -13264131.33 | M39: 5768242.51
A40: 47 | B40: 1850 | C40: Line Transformers (1853) Padmount | E40: 17225897.26 | G40: 17225897.26 | J40: -8042465.46 | L40: -8042465.46 | M40: 9183431.8
A41: 47 | B41: 1855 | C41: Services (Overhead & Underground) | D41: ='App.2-BA_Fixed Asset Cont 2012'!$G31 -> 4629063.25 | G41: 4629063.25 | I41: ='App.2-BA_Fixed Asset Cont 2012'!L31 -> -1109782.99 | J41: 0 | L41: -1109782.99 | M41: 3519280.26
A42: 47 | B42: 1860 | C42: Meters | D42: ='App.2-BA_Fixed Asset Cont 2012'!$G32 -> 2645456.18 | G42: 2645456.18 | I42: ='App.2-BA_Fixed Asset Cont 2012'!L32 -> -1536761.77 | J42: 695835 | L42: -840926.77 | M42: 1804529.41
A43: 47 | B43: 1860 | C43: Meters (Smart Meters) | D43: ='App.2-BA_Fixed Asset Cont 2012'!$G33 -> 4175009.94 | G43: 4175009.94 | I43: ='App.2-BA_Fixed Asset Cont 2012'!L33 -> 0 | J43: -695835.09 | L43: -695835.09 | M43: 3479174.85
A44: 47 | B44: 1865 | C44: Other Installations on Customer's Premises | D44: ='App.2-BA_Fixed Asset Cont 2012'!$G34 -> 0 | G44: 0 | I44: ='App.2-BA_Fixed Asset Cont 2012'!L34 -> 0 | L44: 0 | M44: 0
A45: 47 | B45: 1875 | C45: Street Lighting and Signal Systems | G45: 0 | L45: 0 | M45: 0
A46: N/A | B46: 1905 | C46: Land | D46: ='App.2-BA_Fixed Asset Cont 2012'!$G36 -> 508969.83 | G46: 508969.83 | I46: ='App.2-BA_Fixed Asset Cont 2012'!L36 -> 0 | L46: 0 | M46: 508969.83
A47: 47 | B47: 1908 | C47: Buildings & Fixtures | D47: ='App.2-BA_Fixed Asset Cont 2012'!$G37 -> 13205845.53 | G47: 13205845.53 | I47: ='App.2-BA_Fixed Asset Cont 2012'!L37 -> -2455533.33 | L47: -2455533.33 | M47: 10750312.2
A48: 13 | B48: 1910 | C48: Leasehold Improvements | D48: ='App.2-BA_Fixed Asset Cont 2012'!$G38 -> 120252.32 | G48: 120252.32 | I48: ='App.2-BA_Fixed Asset Cont 2012'!L38 -> -120252.32 | L48: -120252.32 | M48: 0
A49: 8 | B49: 1915 | C49: Office Furniture & Equipment (10 years) | D49: ='App.2-BA_Fixed Asset Cont 2012'!$G39 -> 1323138.44 | G49: 1323138.44 | I49: ='App.2-BA_Fixed Asset Cont 2012'!L39 -> -851762.72 | L49: -851762.72 | M49: 471375.72
A50: 8 | B50: 1915 | C50: Office Furniture & Equipment (5 years) | D50: ='App.2-BA_Fixed Asset Cont 2012'!$G40 -> 0 | G50: 0 | I50: ='App.2-BA_Fixed Asset Cont 2012'!L40 -> 0 | L50: 0 | M50: 0
A51: 10 | B51: 1920 | C51: Computer Equipment - Hardware | D51: ='App.2-BA_Fixed Asset Cont 2012'!$G41 -> 1257769.3 | G51: 1257769.3 | I51: ='App.2-BA_Fixed Asset Cont 2012'!L41 -> -1257769.3 | L51: -1257769.3 | M51: 0
A52: 45 | B52: 1920 | C52: Computer Equip.-Hardware(Post Mar. 22/04) | D52: ='App.2-BA_Fixed Asset Cont 2012'!$G42 -> 320323.46 | G52: 320323.46 | I52: ='App.2-BA_Fixed Asset Cont 2012'!L42 -> -315054.356 | L52: -315054.356 | M52: 5269.104
A53: 50 | B53: 1920 | C53: Computer Equip.-Hardware(Post Mar. 19/07) | D53: ='App.2-BA_Fixed Asset Cont 2012'!$G43 -> 1923229.75 | G53: 1923229.75 | I53: ='App.2-BA_Fixed Asset Cont 2012'!L43 -> -1110846.47 | L53: -1110846.47 | M53: 812383.28
A54: 10 | B54: 1930 | C54: Transportation Equipment (1931) | E54: 548320.97 | G54: 548320.97 | J54: -321095.91 | L54: -321095.91 | M54: 227225.06
A55: 10 | B55: 1930 | C55: Transportation Equipment (1932) Large Trucks | D55: ='App.2-BA_Fixed Asset Cont 2012'!G44 -> 7605132.98 | E55: -869227.24 | G55: 6735905.74 | I55: ='App.2-BA_Fixed Asset Cont 2012'!L44 -> -4563046.48 | J55: 545496.45 | L55: -4017550.03 | M55: 2718355.71
A56: 10 | B56: 1930 | C56: Transportation Equipment (1933) Trailers | E56: 320906.27 | G56: 320906.27 | J56: -224400.54 | L56: -224400.54 | M56: 96505.73
A57: 8 | B57: 1935 | C57: Stores Equipment | D57: ='App.2-BA_Fixed Asset Cont 2012'!$G45 -> 236414.31 | G57: 236414.31 | I57: ='App.2-BA_Fixed Asset Cont 2012'!L45 -> -196641.28 | L57: -196641.28 | M57: 39773.03
A58: 8 | B58: 1940 | C58: Tools, Shop & Garage Equipment | D58: ='App.2-BA_Fixed Asset Cont 2012'!$G46 -> 1871743.55 | G58: 1871743.55 | I58: ='App.2-BA_Fixed Asset Cont 2012'!L46 -> -1457230.06 | L58: -1457230.06 | M58: 414513.49
A59: 8 | B59: 1945 | C59: Measurement & Testing Equipment | D59: ='App.2-BA_Fixed Asset Cont 2012'!$G47 -> 204006.33 | G59: 204006.33 | I59: ='App.2-BA_Fixed Asset Cont 2012'!L47 -> -186619.05 | L59: -186619.05 | M59: 17387.28
A60: 8 | B60: 1950 | C60: Power Operated Equipment | D60: ='App.2-BA_Fixed Asset Cont 2012'!$G48 -> 0 | G60: 0 | I60: ='App.2-BA_Fixed Asset Cont 2012'!L48 -> 0 | L60: 0 | M60: 0
A61: 8 | B61: 1955 | C61: Communications Equipment | D61: ='App.2-BA_Fixed Asset Cont 2012'!$G49 -> 502920.33 | G61: 502920.33 | I61: ='App.2-BA_Fixed Asset Cont 2012'!L49 -> -155981.41 | L61: -155981.41 | M61: 346938.92
A62: 8 | B62: 1955 | C62: Communication Equipment (Smart Meters) | D62: ='App.2-BA_Fixed Asset Cont 2012'!$G50 -> 0 | G62: 0 | I62: ='App.2-BA_Fixed Asset Cont 2012'!L50 -> 0 | L62: 0 | M62: 0
A63: 8 | B63: 1960 | C63: Miscellaneous Equipment | D63: ='App.2-BA_Fixed Asset Cont 2012'!$G51 -> 72951.31 | G63: 72951.31 | I63: ='App.2-BA_Fixed Asset Cont 2012'!L51 -> -67313.96 | L63: -67313.96 | M63: 5637.35
A64: 47 | B64: 1970 | C64: Load Management Controls Customer Premises | D64: ='App.2-BA_Fixed Asset Cont 2012'!$G52 -> 0 | G64: 0 | I64: ='App.2-BA_Fixed Asset Cont 2012'!L52 -> 0 | L64: 0 | M64: 0
A65: 47 | B65: 1975 | C65: Load Management Controls Utility Premises | D65: ='App.2-BA_Fixed Asset Cont 2012'!$G53 -> 0 | G65: 0 | I65: ='App.2-BA_Fixed Asset Cont 2012'!L53 -> 0 | L65: =I65+J65+K65 -> 0 | M65: 0
A66: 47 | B66: 1980 | C66: System Supervisor Equipment | D66: ='App.2-BA_Fixed Asset Cont 2012'!$G54 -> 128960.64 | G66: 128960.64 | I66: ='App.2-BA_Fixed Asset Cont 2012'!L54 -> -128961 | L66: -128961 | M66: -0.36
A67: 47 | B67: 1985 | C67: Miscellaneous Fixed Assets | D67: ='App.2-BA_Fixed Asset Cont 2012'!$G55 -> 0 | G67: 0 | I67: ='App.2-BA_Fixed Asset Cont 2012'!L55 -> 0 | L67: 0 | M67: 0
A68: 47 | B68: 1990 | C68: Other Tangible Property | D68: ='App.2-BA_Fixed Asset Cont 2012'!$G56 -> 0 | G68: 0 | I68: ='App.2-BA_Fixed Asset Cont 2012'!L56 -> 0 | L68: 0 | M68: 0
A69: 47 | B69: 1995 | C69: Contributions & Grants | D69: ='App.2-BA_Fixed Asset Cont 2012'!$G57 -> -20525490.36 | G69: -20525490.36 | I69: ='App.2-BA_Fixed Asset Cont 2012'!L57 -> 5493615.11 | L69: 5493615.11 | M69: -15031875.25
A70: 47 | B70: 2440 | C70: Deferred Revenue5 | D70: ='App.2-BA_Fixed Asset Cont 2012'!$G58 -> 0 | G70: 0 | I70: ='App.2-BA_Fixed Asset Cont 2012'!L58 -> 0 | M70: 0
A71: 47 | B71: 2005 | C71: 2005-Property Under Capital Leases | D71: ='App.2-BA_Fixed Asset Cont 2012'!$G59 -> 0 | G71: 0 | I71: ='App.2-BA_Fixed Asset Cont 2012'!L59 -> 0 | M71: 0
G72: 0 | L72: 0 | M72: =G72+L72 -> 0
C73: Sub-Total | D73: =SUM(D17:D72) -> 215869068.5 | E73: =SUM(E17:E72) -> -3.725290298e-09 | F73: =SUM(F17:F72) -> 0 | G73: =SUM(G17:G72) -> 215869068.5 | I73: =SUM(I17:I72) -> -111886125.2 | J73: =SUM(J17:J72) -> 0.3799999996 | K73: =SUM(K17:K72) -> 0 | L73: =SUM(L17:L72) -> -111886124.9 | M73: =SUM(M17:M72) -> 103982943.7
C74: Less Socialized Renewable Energy Generation Investments (input as negative) | G74: =D74+E74+F74 -> 0 | L74: =I74+J74+K74 -> 0 | M74: =G74+L74 -> 0
C75: Less Other Non Rate-Regulated Utility Assets (input as negative) | G75: =D75+E75+F75 -> 0 | L75: =I75+J75+K75 -> 0 | M75: =G75+L75 -> 0
C76: Total PP&E | D76: =SUM(D73:D75) -> 215869068.5 | E76: =SUM(E73:E75) -> -3.725290298e-09 | F76: =SUM(F73:F75) -> 0 | G76: =SUM(G73:G75) -> 215869068.5 | I76: =SUM(I73:I75) -> -111886125.2 | J76: =SUM(J73:J75) -> 0.3799999996 | K76: =SUM(K73:K75) -> 0 | L76: =SUM(L73:L75) -> -111886124.9 | M76: =SUM(M73:M75) -> 103982943.7
C77: Depreciation Expense adj. from gain or loss on the retirement of assets (pool of like assets), if applicable6
C78: Total | J78: =J76+J77 -> 0.3799999996
I80: Less: Fully Allocated Depreciation
A81: 10 | C81: Transportation | I81: Transportation
A82: 8 | C82: Stores Equipment | I82: Stores Equipment
I83: Net Depreciation | K83: =J78-K81-K82 -> 0.3799999996
A85: Notes:
A87: 1 | B87: Tables in the format outlined above covering all fixed asset accounts should be submitted for the Test Year, Bridge Year and all relevant historical years. At a minimum , the applicant must provide data for the earlier of: 1) all historical years back to its last rebasing; or 2) at least three years of historical actuals, in addition to Bridge Year and Test Year forecasts.
A90: 2 | B90: The "CCA Class" for fixed assets should agree with the CCA Class used for tax purposes in Tax Returns. Fixed Assets sub-components may be used where the underlying asset components are classified under multiple CCA Classes for tax purposes. If an applicant uses any different classes from those shown in the table, an explanation should be provided. (also see note 3 below).
A93: 3 | B93: The table may need to be customized for a utility's asset categories or for any new asset accounts announced or authorized by the Board.
A95: 4 | B95: The additions column (E) must not include construction work in progress (CWIP).
A97: 5 | B97: Effective on the date of IFRS adoption, customer contributions will no longer be recorded in Account 1995 Contributions & Grants, but will be recorded in Account 2440, Deferred Revenues.
A99: 6 | B99: Where a distributor for general financial reporting purposes under IFRS has accounted for the amount of gain or loss on the retirement of assets in a pool of like assets as a charge or credit to income, for reporting and rate application filings the distributor shall reclassify such gains and losses as depreciation expense, and disclose the amount separately.

Sheet App.2-BA_Fixed Asset Cont 2013
L1: File Number: | M1: =EBNUMBER -> EB-2014-0096
L2: Exhibit: | M2: 2
L3: Tab: | M3: 1
L4: Schedule: | M4: 1
L5: Page: | M5: 4
L7: Date: | M7: 2014-08-29
A9: Appendix 2-BA
A10: Fixed Asset Continuity Schedule
E12: Accounting Standard | F12: CGAAP
E13: Year | F13: 2013
D15: Cost | J15: Accumulated Depreciation
A16: CCA Class | B16: OEB | C16: Description | D16: Opening Balance | E16: Additions | F16: Disposals | G16: Closing Balance | I16: Opening Balance | J16: Additions | K16: Disposals | L16: Closing Balance | M16: Net Book Value
A17: 12 | B17: 1611 | C17: Computer Software (Formally known as Account 1925) | D17: ='App.2-BA_FA Cont Component 2013'!G17 -> 2576964.57 | E17: 114742 | G17: =D17+E17+F17 -> 2691706.57 | I17: ='App.2-BA_FA Cont Component 2013'!L17 -> -2210400.2 | J17: -223111.68 | L17: =I17+J17+K17 -> -2433511.88 | M17: =G17+L17 -> 258194.69
A18: CEC | B18: 1612 | C18: Land Rights (Formally known as Account 1906) | D18: ='App.2-BA_FA Cont Component 2013'!G18 -> 0 | G18: =D18+E18+F18 -> 0 | I18: ='App.2-BA_FA Cont Component 2013'!L18 -> 0 | L18: =I18+J18+K18 -> 0 | M18: =G18+L18 -> 0
A19: N/A | B19: 1805 | C19: Land | D19: ='App.2-BA_FA Cont Component 2013'!G19 -> 507272.79 | G19: 507272.79 | I19: ='App.2-BA_FA Cont Component 2013'!L19 -> 0 | L19: 0 | M19: 507272.79
A20: 47 | B20: 1806 | C20: Land Rights | D20: ='App.2-BA_FA Cont Component 2013'!G20 -> 1603586.68 | E20: 809.6 | G20: 1604396.28 | I20: ='App.2-BA_FA Cont Component 2013'!L20 -> -811063.81 | J20: -57097.98 | L20: -868161.79 | M20: 736234.49
A21: 47 | B21: 1808 | C21: Buildings | D21: ='App.2-BA_FA Cont Component 2013'!G21 -> 111638.13 | G21: 111638.13 | I21: ='App.2-BA_FA Cont Component 2013'!L21 -> -111637 | J21: 0 | L21: -111637 | M21: 1.13
A22: 13 | B22: 1810 | C22: Leasehold Improvements | D22: ='App.2-BA_FA Cont Component 2013'!G22 -> 0 | G22: 0 | I22: ='App.2-BA_FA Cont Component 2013'!L22 -> 0 | L22: 0 | M22: 0
A23: 47 | B23: 1815 | C23: Transformer Station Equipment > 50 kV (1708, 1740, 1745) | D23: ='App.2-BA_FA Cont Component 2013'!G23 -> 3833012.8 | E23: 0 | G23: 3833012.8 | I23: ='App.2-BA_FA Cont Component 2013'!L23 -> -624673.39 | J23: -76660.29 | L23: -701333.68 | M23: 3131679.12
A24: 47 | B24: 1815 | C24: Transformer Station Equipment > 50 kV (1715, 1815) | D24: ='App.2-BA_FA Cont Component 2013'!G24 -> 1502385.84 | E24: 16679 | G24: 1519064.84 | I24: ='App.2-BA_FA Cont Component 2013'!L24 -> -176326.84 | J24: =-34483.24-1796.38 -> -36279.62 | L24: -212606.46 | M24: 1306458.38
A25: 47 | B25: 1815 | C25: Transformer Station Equipment > 50 kV (1716) | D25: ='App.2-BA_FA Cont Component 2013'!G25 -> 46955.06 | G25: 46955.06 | I25: ='App.2-BA_FA Cont Component 2013'!L25 -> -14433.06 | J25: -22586.61 | L25: -37019.67 | M25: 9935.39
A26: 47 | B26: 1815 | C26: Transformer Station Equipment > 50 kV (1717) | D26: ='App.2-BA_FA Cont Component 2013'!G26 -> 610733.93 | G26: 610733.93 | I26: ='App.2-BA_FA Cont Component 2013'!L26 -> -187726.93 | J26: -13339.38 | L26: -201066.31 | M26: 409667.62
A27: 47 | B27: 1815 | C27: Transformer Station Equipment > 50 kV (1719) | D27: ='App.2-BA_FA Cont Component 2013'!G27 -> 625178.94 | G27: 625178.94 | I27: ='App.2-BA_FA Cont Component 2013'!L27 -> -192166.94 | J27: -35746.73 | L27: -227913.67 | M27: 397265.27
A28: 47 | B28: 1820 | C28: Distribution Station Equipment <50 kV | D28: ='App.2-BA_FA Cont Component 2013'!G28 -> 4570139.47 | E28: 83151 | F28: -581020 | G28: 4072270.47 | I28: ='App.2-BA_FA Cont Component 2013'!L28 -> -2565266.58 | J28: -80229.87 | K28: 514155.26 | L28: -2131341.19 | M28: 1940929.28
A29: 47 | B29: 1820 | C29: Distribution Station Equipment <50 Kv (1821) | D29: ='App.2-BA_FA Cont Component 2013'!G29 -> 1880385.35 | E29: 401384 | G29: 2281769.35 | I29: ='App.2-BA_FA Cont Component 2013'!L29 -> -730153.71 | J29: -63262.52 | L29: -793416.23 | M29: 1488353.12
A30: 47 | B30: 1825 | C30: Storage Battery Equipment | D30: ='App.2-BA_FA Cont Component 2013'!G30 -> 0 | G30: 0 | I30: ='App.2-BA_FA Cont Component 2013'!L30 -> 0 | L30: 0 | M30: 0
A31: 47 | B31: 1830 | C31: Poles, Towers & Fixtures - Wood | D31: ='App.2-BA_FA Cont Component 2013'!G31 -> 38635153.86 | E31: 1900121.1 | G31: 40535274.96 | I31: ='App.2-BA_FA Cont Component 2013'!L31 -> -22972376.66 | J31: -384436.2 | L31: -23356812.86 | M31: 17178462.1
A32: 47 | B32: 1830 | C32: Poles, Towers & Fixtures - (1831) Concrete | D32: ='App.2-BA_FA Cont Component 2013'!G32 -> 2918249.31 | E32: 120418.61 | G32: 3038667.92 | I32: ='App.2-BA_FA Cont Component 2013'!L32 -> -1240865.22 | J32: =-30261.75-2418.35 -> -32680.1 | L32: -1273545.32 | M32: 1765122.6
A33: 47 | B33: 1835 | C33: Overhead Conductors & Devices | D33: ='App.2-BA_FA Cont Component 2013'!G33 -> 21817970.12 | E33: 1518020.17 | G33: 23335990.29 | I33: ='App.2-BA_FA Cont Component 2013'!L33 -> -8439270.91 | J33: -254998.99 | L33: -8694269.9 | M33: 14641720.39
A34: 47 | B34: 1835 | C34: Overhead Conductors & Devices (1836) | D34: ='App.2-BA_FA Cont Component 2013'!G34 -> 2501048.3 | E34: 105662 | G34: 2606710.3 | I34: ='App.2-BA_FA Cont Component 2013'!L34 -> -816410.15 | J34: =-241865.37-76901.15 -> -318766.52 | L34: -1135176.67 | M34: 1471533.63
A35: 47 | B35: 1835 | C35: Overhead Conductors & Devices (1837) | D35: ='App.2-BA_FA Cont Component 2013'!G35 -> 1901698.58 | E35: 340329.59 | G35: 2242028.17 | I35: ='App.2-BA_FA Cont Component 2013'!L35 -> -462718.63 | J35: =-55264.08-8813.43 -> -64077.51 | L35: -526796.14 | M35: 1715232.03
A36: 47 | B36: 1840 | C36: Underground Conduit | D36: ='App.2-BA_FA Cont Component 2013'!G36 -> 9072907.76 | E36: 590886.75 | G36: 9663794.51 | I36: ='App.2-BA_FA Cont Component 2013'!L36 -> -2198092.82 | J36: -161244.42 | L36: -2359337.24 | M36: 7304457.27
A37: 47 | B37: 1845 | C37: Underground Conductors & Devices | D37: ='App.2-BA_FA Cont Component 2013'!G37 -> 62805003.14 | E37: 1698458.63 | G37: 64503461.77 | I37: ='App.2-BA_FA Cont Component 2013'!L37 -> -35860058.69 | J37: -1626236.87 | L37: -37486295.56 | M37: 27017166.21
A38: 47 | B38: 1845 | C38: Underground Conductors & Devices (1846) | D38: ='App.2-BA_FA Cont Component 2013'!G38 -> 1884815.71 | E38: 186760.03 | G38: 2071575.74 | I38: ='App.2-BA_FA Cont Component 2013'!L38 -> -945945.05 | J38: =-3606.07-72951.68-15063.04 -> -91620.79 | L38: -1037565.84 | M38: 1034009.9
A39: 47 | B39: 1850 | C39: Line Transformers (1850) Polemount | D39: ='App.2-BA_FA Cont Component 2013'!G39 -> 19032373.84 | E39: 432676.47 | F39: =-272675-F40 -> -143205.44 | G39: 19321844.87 | I39: ='App.2-BA_FA Cont Component 2013'!L39 -> -13264131.33 | J39: -211500.13 | K39: 143205.44 | L39: =I39+J39+K39 -> -13332426.02 | M39: 5989418.85
A40: 47 | B40: 1850 | C40: Line Transformers (1853) Padmount | D40: ='App.2-BA_FA Cont Component 2013'!G40 -> 17225897.26 | E40: 937944.7 | F40: -129469.56 | G40: 18034372.4 | I40: ='App.2-BA_FA Cont Component 2013'!L40 -> -8042465.46 | J40: =-66966.28-401029.71 -> -467995.99 | K40: 129469.56 | L40: -8380991.89 | M40: 9653380.51
A41: 47 | B41: 1855 | C41: Services (Overhead & Underground) | D41: ='App.2-BA_FA Cont Component 2013'!G41 -> 4629063.25 | E41: 800998 | G41: 5430061.25 | I41: ='App.2-BA_FA Cont Component 2013'!L41 -> -1109782.99 | J41: -201181.73 | L41: -1310964.72 | M41: 4119096.53
A42: 47 | B42: 1860 | C42: Meters | D42: ='App.2-BA_FA Cont Component 2013'!G42 -> 2645456.18 | E42: 248020 | G42: 2893476.18 | I42: ='App.2-BA_FA Cont Component 2013'!L42 -> -840926.77 | J42: -146928.3 | L42: =I42+J42+K42 -> -987855.07 | M42: 1905621.11
A43: 47 | B43: 1860 | C43: Meters (Smart Meters) | D43: ='App.2-BA_FA Cont Component 2013'!G43 -> 4175009.94 | E43: 27477 | G43: 4202486.94 | I43: ='App.2-BA_FA Cont Component 2013'!L43 -> -695835.09 | J43: -279238.18 | L43: -975073.27 | M43: 3227413.67
A44: 47 | B44: 1865 | C44: Other Installations on Customer's Premises | D44: ='App.2-BA_FA Cont Component 2013'!G44 -> 0 | E44: 0 | G44: 0 | I44: ='App.2-BA_FA Cont Component 2013'!L44 -> 0 | L44: 0 | M44: 0
A45: 47 | B45: 1875 | C45: Street Lighting and Signal Systems | D45: ='App.2-BA_FA Cont Component 2013'!G45 -> 0 | E45: 0 | G45: 0 | I45: ='App.2-BA_FA Cont Component 2013'!L45 -> 0 | L45: 0 | M45: 0
A46: N/A | B46: 1905 | C46: Land | D46: ='App.2-BA_FA Cont Component 2013'!G46 -> 508969.83 | E46: 0 | G46: 508969.83 | I46: ='App.2-BA_FA Cont Component 2013'!L46 -> 0 | L46: 0 | M46: 508969.83
A47: 47 | B47: 1908 | C47: Buildings & Fixtures | D47: ='App.2-BA_FA Cont Component 2013'!G47 -> 13205845.53 | E47: 1911585 | G47: 15117430.53 | I47: ='App.2-BA_FA Cont Component 2013'!L47 -> -2455533.33 | J47: -231983.67 | L47: -2687517 | M47: 12429913.53
A48: 13 | B48: 1910 | C48: Leasehold Improvements | D48: ='App.2-BA_FA Cont Component 2013'!G48 -> 120252.32 | E48: 0 | G48: 120252.32 | I48: ='App.2-BA_FA Cont Component 2013'!L48 -> -120252.32 | J48: 0 | L48: -120252.32 | M48: 0
A49: 8 | B49: 1915 | C49: Office Furniture & Equipment (10 years) | D49: ='App.2-BA_FA Cont Component 2013'!G49 -> 1323138.44 | E49: 170426 | G49: 1493564.44 | I49: ='App.2-BA_FA Cont Component 2013'!L49 -> -851762.72 | J49: -85856.72 | L49: -937619.44 | M49: 555945
A50: 8 | B50: 1915 | C50: Office Furniture & Equipment (5 years) | D50: ='App.2-BA_FA Cont Component 2013'!G50 -> 0 | G50: 0 | I50: ='App.2-BA_FA Cont Component 2013'!L50 -> 0 | L50: 0 | M50: 0
A51: 10 | B51: 1920 | C51: Computer Equipment - Hardware | D51: ='App.2-BA_FA Cont Component 2013'!G51 -> 1257769.3 | G51: 1257769.3 | I51: ='App.2-BA_FA Cont Component 2013'!L51 -> -1257769.3 | L51: -1257769.3 | M51: 0
A52: 45 | B52: 1920 | C52: Computer Equip.-Hardware(Post Mar. 22/04) | D52: ='App.2-BA_FA Cont Component 2013'!G52 -> 320323.46 | G52: 320323.46 | I52: ='App.2-BA_FA Cont Component 2013'!L52 -> -315054.356 | L52: -315054.356 | M52: 5269.104
A53: 50 | B53: 1920 | C53: Computer Equip.-Hardware(Post Mar. 19/07) | D53: ='App.2-BA_FA Cont Component 2013'!G53 -> 1923229.75 | E53: 276353 | G53: 2199582.75 | I53: ='App.2-BA_FA Cont Component 2013'!L53 -> -1110846.47 | J53: -304064.93 | K53: 151.48 | L53: -1414759.92 | M53: 784822.83
A54: 10 | B54: 1930 | C54: Transportation Equipment (1931) | D54: ='App.2-BA_FA Cont Component 2013'!G54 -> 548320.97 | E54: 180596.99 | F54: -22934.28 | G54: 705983.68 | I54: ='App.2-BA_FA Cont Component 2013'!L54 -> -321095.91 | J54: -64851.07 | K54: 22056 | L54: -363890.98 | M54: 342092.7
A55: 10 | B55: 1930 | C55: Transportation Equipment (1932) Large Trucks | D55: ='App.2-BA_FA Cont Component 2013'!G55 -> 6735905.74 | E55: 1141557.01 | F55: -332764.72 | G55: 7544698.03 | I55: ='App.2-BA_FA Cont Component 2013'!L55 -> -4017550.03 | J55: -213066.99 | K55: =176946.68+155818.04 -> 332764.72 | L55: -3897852.3 | M55: 3646845.73
A56: 10 | B56: 1930 | C56: Transportation Equipment (1933) Trailers | D56: ='App.2-BA_FA Cont Component 2013'!G56 -> 320906.27 | E56: 8420 | G56: 329326.27 | I56: ='App.2-BA_FA Cont Component 2013'!L56 -> -224400.54 | J56: -5232.51 | L56: -229633.05 | M56: 99693.22
A57: 8 | B57: 1935 | C57: Stores Equipment | D57: ='App.2-BA_FA Cont Component 2013'!G57 -> 236414.31 | E57: 0 | G57: 236414.31 | I57: ='App.2-BA_FA Cont Component 2013'!L57 -> -196641.28 | J57: -5424.28 | L57: -202065.56 | M57: 34348.75
A58: 8 | B58: 1940 | C58: Tools, Shop & Garage Equipment | D58: ='App.2-BA_FA Cont Component 2013'!G58 -> 1871743.55 | E58: 83082 | G58: 1954825.55 | I58: ='App.2-BA_FA Cont Component 2013'!L58 -> -1457230.06 | J58: -75413.36 | L58: -1532643.42 | M58: 422182.13
A59: 8 | B59: 1945 | C59: Measurement & Testing Equipment | D59: ='App.2-BA_FA Cont Component 2013'!G59 -> 204006.33 | E59: 0 | G59: 204006.33 | I59: ='App.2-BA_FA Cont Component 2013'!L59 -> -186619.05 | J59: -7508.17 | L59: -194127.22 | M59: 9879.11
A60: 8 | B60: 1950 | C60: Power Operated Equipment | D60: ='App.2-BA_FA Cont Component 2013'!G60 -> 0 | E60: 0 | G60: 0 | I60: ='App.2-BA_FA Cont Component 2013'!L60 -> 0 | J60: 0 | L60: 0 | M60: 0
A61: 8 | B61: 1955 | C61: Communications Equipment | D61: ='App.2-BA_FA Cont Component 2013'!G61 -> 502920.33 | E61: 343864 | G61: 846784.33 | I61: ='App.2-BA_FA Cont Component 2013'!L61 -> -155981.41 | J61: -19419.08 | L61: -175400.49 | M61: 671383.84
A62: 8 | B62: 1955 | C62: Communication Equipment (Smart Meters) | D62: ='App.2-BA_FA Cont Component 2013'!G62 -> 0 | E62: 0 | G62: 0 | I62: ='App.2-BA_FA Cont Component 2013'!L62 -> 0 | L62: 0 | M62: 0
A63: 8 | B63: 1960 | C63: Miscellaneous Equipment | D63: ='App.2-BA_FA Cont Component 2013'!G63 -> 72951.31 | E63: 0 | G63: 72951.31 | I63: ='App.2-BA_FA Cont Component 2013'!L63 -> -67313.96 | J63: -3318.45 | L63: -70632.41 | M63: 2318.9
A64: 47 | B64: 1970 | C64: Load Management Controls Customer Premises | D64: ='App.2-BA_FA Cont Component 2013'!G64 -> 0 | G64: 0 | I64: ='App.2-BA_FA Cont Component 2013'!L64 -> 0 | L64: 0 | M64: 0
A65: 47 | B65: 1975 | C65: Load Management Controls Utility Premises | D65: ='App.2-BA_FA Cont Component 2013'!G65 -> 0 | G65: 0 | I65: ='App.2-BA_FA Cont Component 2013'!L65 -> 0 | L65: =I65+J65+K65 -> 0 | M65: 0
A66: 47 | B66: 1980 | C66: System Supervisor Equipment | D66: ='App.2-BA_FA Cont Component 2013'!G66 -> 128960.64 | G66: 128960.64 | I66: ='App.2-BA_FA Cont Component 2013'!L66 -> -128961 | L66: -128961 | M66: -0.36
A67: 47 | B67: 1985 | C67: Miscellaneous Fixed Assets | D67: ='App.2-BA_FA Cont Component 2013'!G67 -> 0 | G67: 0 | I67: ='App.2-BA_FA Cont Component 2013'!L67 -> 0 | L67: 0 | M67: 0
A68: 47 | B68: 1990 | C68: Other Tangible Property | D68: ='App.2-BA_FA Cont Component 2013'!G68 -> 0 | G68: 0 | I68: ='App.2-BA_FA Cont Component 2013'!L68 -> 0 | L68: 0 | M68: 0
A69: 47 | B69: 1995 | C69: Contributions & Grants | D69: ='App.2-BA_FA Cont Component 2013'!G69 -> -20525490.36 | E69: -991373 | G69: -21516863.36 | I69: ='App.2-BA_FA Cont Component 2013'!L69 -> 5493615.11 | J69: 810261.01 | L69: 6303876.12 | M69: -15212987.24
A70: 47 | B70: 2440 | C70: Deferred Revenue5 | D70: ='App.2-BA_FA Cont Component 2013'!G70 -> 0 | G70: 0 | I70: ='App.2-BA_FA Cont Component 2013'!L70 -> 0 | M70: 0
A71: 47 | B71: 2005 | C71: 2005-Property Under Capital Leases | D71: ='App.2-BA_FA Cont Component 2013'!G71 -> 0 | G71: 0 | I71: ='App.2-BA_FA Cont Component 2013'!L71 -> 0 | M71: 0
G72: 0 | L72: 0 | M72: =G72+L72 -> 0
C73: Sub-Total | D73: =SUM(D17:D72) -> 215869068.5 | E73: =SUM(E17:E72) -> 12649049.65 | F73: =SUM(F17:F72) -> -1209394 | G73: =SUM(G17:G72) -> 227308724.2 | I73: =SUM(I17:I72) -> -111886124.9 | J73: =SUM(J17:J72) -> -5055098.63 | K73: =SUM(K17:K72) -> 1141802.46 | L73: =SUM(L17:L72) -> -115799421 | M73: =SUM(M17:M72) -> 111509303.2
C74: Less Socialized Renewable Energy Generation Investments (input as negative) | G74: =D74+E74+F74 -> 0 | L74: =I74+J74+K74 -> 0 | M74: =G74+L74 -> 0
C75: Less Other Non Rate-Regulated Utility Assets (input as negative) | G75: =D75+E75+F75 -> 0 | L75: =I75+J75+K75 -> 0 | M75: =G75+L75 -> 0
C76: Total PP&E | D76: =SUM(D73:D75) -> 215869068.5 | E76: =SUM(E73:E75) -> 12649049.65 | F76: =SUM(F73:F75) -> -1209394 | G76: =SUM(G73:G75) -> 227308724.2 | I76: =SUM(I73:I75) -> -111886124.9 | J76: =SUM(J73:J75) -> -5055098.63 | K76: =SUM(K73:K75) -> 1141802.46 | L76: =SUM(L73:L75) -> -115799421 | M76: =SUM(M73:M75) -> 111509303.2
C77: Depreciation Expense adj. from gain or loss on the retirement of assets (pool of like assets), if applicable6
C78: Total | J78: =J76+J77 -> -5055098.63
I80: Less: Fully Allocated Depreciation
A81: 10 | C81: Transportation | I81: Transportation
A82: 8 | C82: Stores Equipment | I82: Stores Equipment
I83: Net Depreciation | K83: =J78-K81-K82 -> -5055098.63
A85: Notes:
A87: 1 | B87: Tables in the format outlined above covering all fixed asset accounts should be submitted for the Test Year, Bridge Year and all relevant historical years. At a minimum , the applicant must provide data for the earlier of: 1) all historical years back to its last rebasing; or 2) at least three years of historical actuals, in addition to Bridge Year and Test Year forecasts.
A90: 2 | B90: The "CCA Class" for fixed assets should agree with the CCA Class used for tax purposes in Tax Returns. Fixed Assets sub-components may be used where the underlying asset components are classified under multiple CCA Classes for tax purposes. If an applicant uses any different classes from those shown in the table, an explanation should be provided. (also see note 3 below).
A93: 3 | B93: The table may need to be customized for a utility's asset categories or for any new asset accounts announced or authorized by the Board.
A95: 4 | B95: The additions column (E) must not include construction work in progress (CWIP).
A97: 5 | B97: Effective on the date of IFRS adoption, customer contributions will no longer be recorded in Account 1995 Contributions & Grants, but will be recorded in Account 2440, Deferred Revenues.
A99: 6 | B99: Where a distributor for general financial reporting purposes under IFRS has accounted for the amount of gain or loss on the retirement of assets in a pool of like assets as a charge or credit to income, for reporting and rate application filings the distributor shall reclassify such gains and losses as depreciation expense, and disclose the amount separately.

Sheet App.2-BA_Fixed Asset 2013_Old
L1: File Number: | M1: =EBNUMBER -> EB-2014-0096
L2: Exhibit: | M2: 2
L3: Tab: | M3: 1
L4: Schedule: | M4: 1
L5: Page: | M5: 5
L7: Date: | M7: 2014-08-29
A9: Appendix 2-BA
A10: Fixed Asset Continuity Schedule
E12: Accounting Standard | F12: CGAAP
E13: Year | F13: 2013 | I13: Using Old Useful Lives
D15: Cost | J15: Accumulated Depreciation
A16: CCA Class | B16: OEB | C16: Description | D16: Opening Balance | E16: Additions | F16: Disposals | G16: Closing Balance | I16: Opening Balance | J16: Additions | K16: Disposals | L16: Closing Balance | M16: Net Book Value
A17: 12 | B17: 1611 | C17: Computer Software (Formally known as Account 1925) | D17: ='App.2-BA_FA Cont Component 2013'!G17 -> 2576964.57 | E17: 114742 | G17: =D17+E17+F17 -> 2691706.57 | I17: ='App.2-BA_FA Cont Component 2013'!L17 -> -2210400.2 | J17: -223111.68 | L17: =I17+J17+K17 -> -2433511.88 | M17: =G17+L17 -> 258194.69
A18: CEC | B18: 1612 | C18: Land Rights (Formally known as Account 1906) | D18: ='App.2-BA_FA Cont Component 2013'!G18 -> 0 | G18: =D18+E18+F18 -> 0 | I18: ='App.2-BA_FA Cont Component 2013'!L18 -> 0 | L18: =I18+J18+K18 -> 0 | M18: =G18+L18 -> 0
A19: N/A | B19: 1805 | C19: Land | D19: ='App.2-BA_FA Cont Component 2013'!G19 -> 507272.79 | G19: 507272.79 | I19: ='App.2-BA_FA Cont Component 2013'!L19 -> 0 | L19: 0 | M19: 507272.79
A20: 47 | B20: 1806 | C20: Land Rights | D20: ='App.2-BA_FA Cont Component 2013'!G20 -> 1603586.68 | E20: 809.6 | G20: 1604396.28 | I20: ='App.2-BA_FA Cont Component 2013'!L20 -> -811063.81 | J20: -57097.98 | L20: -868161.79 | M20: 736234.49
A21: 47 | B21: 1808 | C21: Buildings | D21: ='App.2-BA_FA Cont Component 2013'!G21 -> 111638.13 | G21: 111638.13 | I21: ='App.2-BA_FA Cont Component 2013'!L21 -> -111637 | L21: -111637 | M21: 1.13
A22: 13 | B22: 1810 | C22: Leasehold Improvements | D22: ='App.2-BA_FA Cont Component 2013'!G22 -> 0 | G22: 0 | I22: ='App.2-BA_FA Cont Component 2013'!L22 -> 0 | L22: 0 | M22: 0
A23: 47 | B23: 1815 | C23: Transformer Station Equipment > 50 kV (1708, 1740, 1745) | D23: ='App.2-BA_FA Cont Component 2013'!G23 -> 3833012.8 | E23: 0 | G23: 3833012.8 | I23: ='App.2-BA_FA Cont Component 2013'!L23 -> -624673.39 | J23: -76660.28 | L23: -701333.67 | M23: 3131679.13
A24: 47 | B24: 1815 | C24: Transformer Station Equipment > 50 kV (1715, 1815) | D24: ='App.2-BA_FA Cont Component 2013'!G24 -> 1502385.84 | E24: 16679 | G24: 1519064.84 | I24: ='App.2-BA_FA Cont Component 2013'!L24 -> -176326.84 | J24: -41943.74 | L24: -218270.58 | M24: 1300794.26
A25: 47 | B25: 1815 | C25: Transformer Station Equipment > 50 kV (1716) | D25: ='App.2-BA_FA Cont Component 2013'!G25 -> 46955.06 | G25: 46955.06 | I25: ='App.2-BA_FA Cont Component 2013'!L25 -> -14433.06 | J25: -1025.57 | L25: -15458.63 | M25: 31496.43
A26: 47 | B26: 1815 | C26: Transformer Station Equipment > 50 kV (1717) | D26: ='App.2-BA_FA Cont Component 2013'!G26 -> 610733.93 | G26: 610733.93 | I26: ='App.2-BA_FA Cont Component 2013'!L26 -> -187726.93 | J26: -13339.38 | L26: -201066.31 | M26: 409667.62
A27: 47 | B27: 1815 | C27: Transformer Station Equipment > 50 kV (1719) | D27: ='App.2-BA_FA Cont Component 2013'!G27 -> 625178.94 | G27: 625178.94 | I27: ='App.2-BA_FA Cont Component 2013'!L27 -> -192166.94 | J27: -13654.87 | L27: -205821.81 | M27: 419357.13
A28: 47 | B28: 1820 | C28: Distribution Station Equipment <50 kV | D28: ='App.2-BA_FA Cont Component 2013'!G28 -> 4570139.47 | E28: 83151 | F28: -581020 | G28: 4072270.47 | I28: ='App.2-BA_FA Cont Component 2013'!L28 -> -2565266.58 | J28: -143534.91 | K28: 514155.26 | L28: -2194646.23 | M28: 1877624.24
A29: 47 | B29: 1820 | C29: Distribution Station Equipment <50 Kv (1821) | D29: ='App.2-BA_FA Cont Component 2013'!G29 -> 1880385.35 | E29: 401384 | G29: 2281769.35 | I29: ='App.2-BA_FA Cont Component 2013'!L29 -> -730153.71 | J29: -69770.26 | L29: -799923.97 | M29: 1481845.38
A30: 47 | B30: 1825 | C30: Storage Battery Equipment | D30: ='App.2-BA_FA Cont Component 2013'!G30 -> 0 | G30: 0 | I30: ='App.2-BA_FA Cont Component 2013'!L30 -> 0 | L30: 0 | M30: 0
A31: 47 | B31: 1830 | C31: Poles, Towers & Fixtures - Wood | D31: ='App.2-BA_FA Cont Component 2013'!G31 -> 38635153.86 | E31: 1900121.1 | G31: 40535274.96 | I31: ='App.2-BA_FA Cont Component 2013'!L31 -> -22972376.66 | J31: =-1186237.56-873.4 -> -1187110.96 | L31: -24159487.62 | M31: 16375787.34
A32: 47 | B32: 1830 | C32: Poles, Towers & Fixtures - (1831) Concrete | D32: ='App.2-BA_FA Cont Component 2013'!G32 -> 2918249.31 | E32: 120418.61 | G32: 3038667.92 | I32: ='App.2-BA_FA Cont Component 2013'!L32 -> -1240865.22 | J32: -106803.49 | L32: -1347668.71 | M32: 1690999.21
A33: 47 | B33: 1835 | C33: Overhead Conductors & Devices | D33: ='App.2-BA_FA Cont Component 2013'!G33 -> 21817970.12 | E33: 1518020.17 | G33: 23335990.29 | I33: ='App.2-BA_FA Cont Component 2013'!L33 -> -8439270.91 | J33: -872612.44 | L33: -9311883.35 | M33: 14024106.94
A34: 47 | B34: 1835 | C34: Overhead Conductors & Devices (1836) | D34: ='App.2-BA_FA Cont Component 2013'!G34 -> 2501048.3 | E34: 105662 | G34: 2606710.3 | I34: ='App.2-BA_FA Cont Component 2013'!L34 -> -816410.15 | J34: -105665.8 | L34: -922075.95 | M34: 1684634.35
A35: 47 | B35: 1835 | C35: Overhead Conductors & Devices (1837) | D35: ='App.2-BA_FA Cont Component 2013'!G35 -> 1901698.58 | E35: 340329.59 | G35: 2242028.17 | I35: ='App.2-BA_FA Cont Component 2013'!L35 -> -462718.63 | J35: -82904.47 | L35: -545623.1 | M35: 1696405.07
A36: 47 | B36: 1840 | C36: Underground Conduit | D36: ='App.2-BA_FA Cont Component 2013'!G36 -> 9072907.76 | E36: 590886.75 | G36: 9663794.51 | I36: ='App.2-BA_FA Cont Component 2013'!L36 -> -2198092.82 | J36: -374689.74 | L36: -2572782.56 | M36: 7091011.95
A37: 47 | B37: 1845 | C37: Underground Conductors & Devices | D37: ='App.2-BA_FA Cont Component 2013'!G37 -> 62805003.14 | E37: 1698458.63 | G37: 64503461.77 | I37: ='App.2-BA_FA Cont Component 2013'!L37 -> -35860058.69 | J37: -2257998.48 | L37: -38118057.17 | M37: 26385404.6
A38: 47 | B38: 1845 | C38: Underground Conductors & Devices (1846) | D38: ='App.2-BA_FA Cont Component 2013'!G38 -> 1884815.71 | E38: 186760.03 | G38: 2071575.74 | I38: ='App.2-BA_FA Cont Component 2013'!L38 -> -945945.05 | J38: -69445.33 | L38: -1015390.38 | M38: 1056185.36
A39: 47 | B39: 1850 | C39: Line Transformers (1850) Polemount | D39: ='App.2-BA_FA Cont Component 2013'!G39 -> 19032373.84 | E39: 432676.47 | F39: =-272675-F40 -> -143205.44 | G39: 19321844.87 | I39: ='App.2-BA_FA Cont Component 2013'!L39 -> -13264131.33 | J39: -531141.95 | K39: 143205.44 | L39: =I39+J39+K39 -> -13652067.84 | M39: 5669777.03
A40: 47 | B40: 1850 | C40: Line Transformers (1853) Padmount | D40: ='App.2-BA_FA Cont Component 2013'!G40 -> 17225897.26 | E40: 937944.7 | F40: -129469.56 | G40: 18034372.4 | I40: ='App.2-BA_FA Cont Component 2013'!L40 -> -8042465.46 | J40: -693862.95 | K40: 129469.56 | L40: -8606858.85 | M40: 9427513.55
A41: 47 | B41: 1855 | C41: Services (Overhead & Underground) | D41: ='App.2-BA_FA Cont Component 2013'!G41 -> 4629063.25 | E41: 800998 | G41: 5430061.25 | I41: ='App.2-BA_FA Cont Component 2013'!L41 -> -1109782.99 | J41: -201181.73 | L41: -1310964.72 | M41: 4119096.53
A42: 47 | B42: 1860 | C42: Meters | D42: ='App.2-BA_FA Cont Component 2013'!G42 -> 2645456.18 | E42: 248020 | G42: 2893476.18 | I42: ='App.2-BA_FA Cont Component 2013'!L42 -> -840926.77 | J42: -128806.33 | L42: =I42+J42+K42 -> -969733.1 | M42: 1923743.08
A43: 47 | B43: 1860 | C43: Meters (Smart Meters) | D43: ='App.2-BA_FA Cont Component 2013'!G43 -> 4175009.94 | E43: 27477 | G43: 4202486.94 | I43: ='App.2-BA_FA Cont Component 2013'!L43 -> -695835.09 | J43: -279238.28 | L43: -975073.37 | M43: 3227413.57
A44: 47 | B44: 1865 | C44: Other Installations on Customer's Premises | D44: ='App.2-BA_FA Cont Component 2013'!G44 -> 0 | E44: 0 | G44: 0 | I44: ='App.2-BA_FA Cont Component 2013'!L44 -> 0 | L44: 0 | M44: 0
A45: 47 | B45: 1875 | C45: Street Lighting and Signal Systems | D45: ='App.2-BA_FA Cont Component 2013'!G45 -> 0 | E45: 0 | G45: 0 | I45: ='App.2-BA_FA Cont Component 2013'!L45 -> 0 | L45: 0 | M45: 0
A46: N/A | B46: 1905 | C46: Land | D46: ='App.2-BA_FA Cont Component 2013'!G46 -> 508969.83 | E46: 0 | G46: 508969.83 | I46: ='App.2-BA_FA Cont Component 2013'!L46 -> 0 | L46: 0 | M46: 508969.83
A47: 47 | B47: 1908 | C47: Buildings & Fixtures | D47: ='App.2-BA_FA Cont Component 2013'!G47 -> 13205845.53 | E47: 1911585 | G47: 15117430.53 | I47: ='App.2-BA_FA Cont Component 2013'!L47 -> -2455533.33 | J47: -231983.67 | L47: -2687517 | M47: 12429913.53
A48: 13 | B48: 1910 | C48: Leasehold Improvements | D48: ='App.2-BA_FA Cont Component 2013'!G48 -> 120252.32 | E48: 0 | G48: 120252.32 | I48: ='App.2-BA_FA Cont Component 2013'!L48 -> -120252.32 | L48: -120252.32 | M48: 0
A49: 8 | B49: 1915 | C49: Office Furniture & Equipment (10 years) | D49: ='App.2-BA_FA Cont Component 2013'!G49 -> 1323138.44 | E49: 170426 | G49: 1493564.44 | I49: ='App.2-BA_FA Cont Component 2013'!L49 -> -851762.72 | J49: -85856.73 | L49: -937619.45 | M49: 555944.99
A50: 8 | B50: 1915 | C50: Office Furniture & Equipment (5 years) | D50: ='App.2-BA_FA Cont Component 2013'!G50 -> 0 | G50: 0 | I50: ='App.2-BA_FA Cont Component 2013'!L50 -> 0 | L50: 0 | M50: 0
A51: 10 | B51: 1920 | C51: Computer Equipment - Hardware | D51: ='App.2-BA_FA Cont Component 2013'!G51 -> 1257769.3 | G51: 1257769.3 | I51: ='App.2-BA_FA Cont Component 2013'!L51 -> -1257769.3 | L51: -1257769.3 | M51: 0
A52: 45 | B52: 1920 | C52: Computer Equip.-Hardware(Post Mar. 22/04) | D52: ='App.2-BA_FA Cont Component 2013'!G52 -> 320323.46 | G52: 320323.46 | I52: ='App.2-BA_FA Cont Component 2013'!L52 -> -315054.356 | L52: -315054.356 | M52: 5269.104
A53: 50 | B53: 1920 | C53: Computer Equip.-Hardware(Post Mar. 19/07) | D53: ='App.2-BA_FA Cont Component 2013'!G53 -> 1923229.75 | E53: 276353 | G53: 2199582.75 | I53: ='App.2-BA_FA Cont Component 2013'!L53 -> -1110846.47 | J53: -304064.93 | K53: 151.48 | L53: -1414759.92 | M53: 784822.83
A54: 10 | B54: 1930 | C54: Transportation Equipment (1931) | D54: ='App.2-BA_FA Cont Component 2013'!G54 -> 548320.97 | E54: 180596.99 | F54: -22934.28 | G54: 705983.68 | I54: ='App.2-BA_FA Cont Component 2013'!L54 -> -321095.91 | J54: -64851.07 | K54: 22056 | L54: -363890.98 | M54: 342092.7
A55: 10 | B55: 1930 | C55: Transportation Equipment (1932) Large Trucks | D55: ='App.2-BA_FA Cont Component 2013'!G55 -> 6735905.74 | E55: 1141557.01 | F55: -332764.72 | G55: 7544698.03 | I55: ='App.2-BA_FA Cont Component 2013'!L55 -> -4017550.03 | J55: -488146.79 | K55: =176946.68+155818.04 -> 332764.72 | L55: -4172932.1 | M55: 3371765.93
A56: 10 | B56: 1930 | C56: Transportation Equipment (1933) Trailers | D56: ='App.2-BA_FA Cont Component 2013'!G56 -> 320906.27 | E56: 8420 | G56: 329326.27 | I56: ='App.2-BA_FA Cont Component 2013'!L56 -> -224400.54 | J56: -14675.39 | L56: -239075.93 | M56: 90250.34
A57: 8 | B57: 1935 | C57: Stores Equipment | D57: ='App.2-BA_FA Cont Component 2013'!G57 -> 236414.31 | E57: 0 | G57: 236414.31 | I57: ='App.2-BA_FA Cont Component 2013'!L57 -> -196641.28 | J57: -5424.28 | L57: -202065.56 | M57: 34348.75
A58: 8 | B58: 1940 | C58: Tools, Shop & Garage Equipment | D58: ='App.2-BA_FA Cont Component 2013'!G58 -> 1871743.55 | E58: 83082 | G58: 1954825.55 | I58: ='App.2-BA_FA Cont Component 2013'!L58 -> -1457230.06 | J58: -75413.36 | L58: -1532643.42 | M58: 422182.13
A59: 8 | B59: 1945 | C59: Measurement & Testing Equipment | D59: ='App.2-BA_FA Cont Component 2013'!G59 -> 204006.33 | E59: 0 | G59: 204006.33 | I59: ='App.2-BA_FA Cont Component 2013'!L59 -> -186619.05 | J59: -7508.17 | L59: -194127.22 | M59: 9879.11
A60: 8 | B60: 1950 | C60: Power Operated Equipment | D60: ='App.2-BA_FA Cont Component 2013'!G60 -> 0 | E60: 0 | G60: 0 | I60: ='App.2-BA_FA Cont Component 2013'!L60 -> 0 | L60: 0 | M60: 0
A61: 8 | B61: 1955 | C61: Communications Equipment | D61: ='App.2-BA_FA Cont Component 2013'!G61 -> 502920.33 | E61: 343864 | G61: 846784.33 | I61: ='App.2-BA_FA Cont Component 2013'!L61 -> -155981.41 | J61: -107082.25 | L61: -263063.66 | M61: 583720.67
A62: 8 | B62: 1955 | C62: Communication Equipment (Smart Meters) | D62: ='App.2-BA_FA Cont Component 2013'!G62 -> 0 | E62: 0 | G62: 0 | I62: ='App.2-BA_FA Cont Component 2013'!L62 -> 0 | L62: 0 | M62: 0
A63: 8 | B63: 1960 | C63: Miscellaneous Equipment | D63: ='App.2-BA_FA Cont Component 2013'!G63 -> 72951.31 | E63: 0 | G63: 72951.31 | I63: ='App.2-BA_FA Cont Component 2013'!L63 -> -67313.96 | J63: -3318.45 | L63: -70632.41 | M63: 2318.9
A64: 47 | B64: 1970 | C64: Load Management Controls Customer Premises | D64: ='App.2-BA_FA Cont Component 2013'!G64 -> 0 | G64: 0 | I64: ='App.2-BA_FA Cont Component 2013'!L64 -> 0 | L64: 0 | M64: 0
A65: 47 | B65: 1975 | C65: Load Management Controls Utility Premises | D65: ='App.2-BA_FA Cont Component 2013'!G65 -> 0 | G65: 0 | I65: ='App.2-BA_FA Cont Component 2013'!L65 -> 0 | L65: 0 | M65: 0
A66: 47 | B66: 1980 | C66: System Supervisor Equipment | D66: ='App.2-BA_FA Cont Component 2013'!G66 -> 128960.64 | G66: 128960.64 | I66: ='App.2-BA_FA Cont Component 2013'!L66 -> -128961 | L66: -128961 | M66: -0.36
A67: 47 | B67: 1985 | C67: Miscellaneous Fixed Assets | D67: ='App.2-BA_FA Cont Component 2013'!G67 -> 0 | G67: 0 | I67: ='App.2-BA_FA Cont Component 2013'!L67 -> 0 | L67: 0 | M67: 0
A68: 47 | B68: 1990 | C68: Other Tangible Property | D68: ='App.2-BA_FA Cont Component 2013'!G68 -> 0 | G68: 0 | I68: ='App.2-BA_FA Cont Component 2013'!L68 -> 0 | L68: 0 | M68: 0
A69: 47 | B69: 1995 | C69: Contributions & Grants | D69: ='App.2-BA_FA Cont Component 2013'!G69 -> -20525490.36 | E69: -991373 | G69: -21516863.36 | I69: ='App.2-BA_FA Cont Component 2013'!L69 -> 5493615.11 | J69: 810261 | L69: 6303876.11 | M69: -15212987.25
A70: 47 | B70: 2440 | C70: Deferred Revenue5 | D70: ='App.2-BA_FA Cont Component 2013'!G70 -> 0 | G70: 0 | I70: ='App.2-BA_FA Cont Component 2013'!L70 -> 0 | M70: 0
A71: 47 | B71: 2005 | C71: 2005-Property Under Capital Leases | D71: ='App.2-BA_FA Cont Component 2013'!G71 -> 0 | G71: 0 | I71: ='App.2-BA_FA Cont Component 2013'!L71 -> 0 | M71: 0
G72: 0 | L72: 0 | M72: =G72+L72 -> 0
C73: Sub-Total | D73: =SUM(D17:D72) -> 215869068.5 | E73: =SUM(E17:E72) -> 12649049.65 | F73: =SUM(F17:F72) -> -1209394 | G73: =SUM(G17:G72) -> 227308724.2 | I73: =SUM(I17:I72) -> -111886124.9 | J73: =SUM(J17:J72) -> -8109664.71 | K73: =SUM(K17:K72) -> 1141802.46 | L73: =SUM(L17:L72) -> -118853987.1 | M73: =SUM(M17:M72) -> 108454737.1
C74: Less Socialized Renewable Energy Generation Investments (input as negative) | G74: =D74+E74+F74 -> 0 | L74: =I74+J74+K74 -> 0 | M74: =G74+L74 -> 0
C75: Less Other Non Rate-Regulated Utility Assets (input as negative) | G75: =D75+E75+F75 -> 0 | L75: =I75+J75+K75 -> 0 | M75: =G75+L75 -> 0
C76: Total PP&E | D76: =SUM(D73:D75) -> 215869068.5 | E76: =SUM(E73:E75) -> 12649049.65 | F76: =SUM(F73:F75) -> -1209394 | G76: =SUM(G73:G75) -> 227308724.2 | I76: =SUM(I73:I75) -> -111886124.9 | J76: =SUM(J73:J75) -> -8109664.71 | K76: =SUM(K73:K75) -> 1141802.46 | L76: =SUM(L73:L75) -> -118853987.1 | M76: =SUM(M73:M75) -> 108454737.1
C77: Depreciation Expense adj. from gain or loss on the retirement of assets (pool of like assets), if applicable6
C78: Total | J78: =J76+J77 -> -8109664.71
I80: Less: Fully Allocated Depreciation
A81: 10 | C81: Transportation | I81: Transportation
A82: 8 | C82: Stores Equipment | I82: Stores Equipment
I83: Net Depreciation | K83: =J78-K81-K82 -> -8109664.71
A85: Notes:
A87: 1 | B87: Tables in the format outlined above covering all fixed asset accounts should be submitted for the Test Year, Bridge Year and all relevant historical years. At a minimum , the applicant must provide data for the earlier of: 1) all historical years back to its last rebasing; or 2) at least three years of historical actuals, in addition to Bridge Year and Test Year forecasts.
A90: 2 | B90: The "CCA Class" for fixed assets should agree with the CCA Class used for tax purposes in Tax Returns. Fixed Assets sub-components may be used where the underlying asset components are classified under multiple CCA Classes for tax purposes. If an applicant uses any different classes from those shown in the table, an explanation should be provided. (also see note 3 below).
A93: 3 | B93: The table may need to be customized for a utility's asset categories or for any new asset accounts announced or authorized by the Board.
A95: 4 | B95: The additions column (E) must not include construction work in progress (CWIP).
A97: 5 | B97: Effective on the date of IFRS adoption, customer contributions will no longer be recorded in Account 1995 Contributions & Grants, but will be recorded in Account 2440, Deferred Revenues.
A99: 6 | B99: Where a distributor for general financial reporting purposes under IFRS has accounted for the amount of gain or loss on the retirement of assets in a pool of like assets as a charge or credit to income, for reporting and rate application filings the distributor shall reclassify such gains and losses as depreciation expense, and disclose the amount separately.

Sheet App.2-BA_Fixed Asset Cont2014
L1: File Number: | M1: =EBNUMBER -> EB-2014-0096
L2: Exhibit: | M2: 2
L3: Tab: | M3: 1
L4: Schedule: | M4: 1
L5: Page: | M5: 6
L7: Date: | M7: 2014-08-29
A9: Appendix 2-BA
A10: Fixed Asset Continuity Schedule
E12: Accounting Standard | F12: CGAAP
E13: Year | F13: 2014
D15: Cost | J15: Accumulated Depreciation
A16: CCA Class | B16: OEB | C16: Description | D16: Opening Balance | E16: Additions | F16: Disposals | G16: Closing Balance | I16: Opening Balance | J16: Additions | K16: Disposals | L16: Closing Balance | M16: Net Book Value
A17: 12 | B17: 1611 | C17: Computer Software (Formally known as Account 1925) | D17: ='App.2-BA_Fixed Asset Cont 2013'!G17 -> 2691706.57 | E17: 737966 | G17: =D17+E17+F17 -> 3429672.57 | I17: ='App.2-BA_Fixed Asset Cont 2013'!L17 -> -2433511.88 | J17: -467668.0575 | L17: =I17+J17+K17 -> -2901179.938 | M17: =G17+L17 -> 528492.6325
A18: CEC | B18: 1612 | C18: Land Rights (Formally known as Account 1906) | D18: ='App.2-BA_Fixed Asset Cont 2013'!G18 -> 0 | G18: =D18+E18+F18 -> 0 | I18: ='App.2-BA_Fixed Asset Cont 2013'!L18 -> 0 | L18: =I18+J18+K18 -> 0 | M18: =G18+L18 -> 0
A19: N/A | B19: 1805 | C19: Land | D19: ='App.2-BA_Fixed Asset Cont 2013'!G19 -> 507272.79 | G19: 507272.79 | I19: ='App.2-BA_Fixed Asset Cont 2013'!L19 -> 0 | L19: 0 | M19: 507272.79
A20: 47 | B20: 1806 | C20: Land Rights | D20: ='App.2-BA_Fixed Asset Cont 2013'!G20 -> 1604396.28 | G20: 1604396.28 | I20: ='App.2-BA_Fixed Asset Cont 2013'!L20 -> -868161.79 | J20: -57066.5648 | L20: -925228.3548 | M20: 679167.9252
A21: 47 | B21: 1808 | C21: Buildings | D21: ='App.2-BA_Fixed Asset Cont 2013'!G21 -> 111638.13 | G21: 111638.13 | I21: ='App.2-BA_Fixed Asset Cont 2013'!L21 -> -111637 | J21: 0 | L21: -111637 | M21: 1.13
A22: 13 | B22: 1810 | C22: Leasehold Improvements | D22: ='App.2-BA_Fixed Asset Cont 2013'!G22 -> 0 | G22: 0 | I22: ='App.2-BA_Fixed Asset Cont 2013'!L22 -> 0 | L22: 0 | M22: 0
A23: 47 | B23: 1815 | C23: Transformer Station Equipment > 50 kV (1708, 1740, 1745) | D23: ='App.2-BA_Fixed Asset Cont 2013'!G23 -> 3833012.8 | G23: 3833012.8 | I23: ='App.2-BA_Fixed Asset Cont 2013'!L23 -> -701333.68 | J23: -76660.27247 | L23: -777993.9525 | M23: 3055018.848
A24: 47 | B24: 1815 | C24: Transformer Station Equipment > 50 kV (1715, 1815) | D24: ='App.2-BA_Fixed Asset Cont 2013'!G24 -> 1519064.84 | G24: 1519064.84 | I24: ='App.2-BA_Fixed Asset Cont 2013'!L24 -> -212606.46 | J24: -36488.1 | L24: -249094.56 | M24: 1269970.28
A25: 47 | B25: 1815 | C25: Transformer Station Equipment > 50 kV (1716) | D25: ='App.2-BA_Fixed Asset Cont 2013'!G25 -> 46955.06 | G25: 46955.06 | I25: ='App.2-BA_Fixed Asset Cont 2013'!L25 -> -37019.67 | J25: -10840.71 | L25: -47860.38 | M25: -905.32
A26: 47 | B26: 1815 | C26: Transformer Station Equipment > 50 kV (1717) | D26: ='App.2-BA_Fixed Asset Cont 2013'!G26 -> 610733.93 | G26: 610733.93 | I26: ='App.2-BA_Fixed Asset Cont 2013'!L26 -> -201066.31 | J26: -13339.38 | L26: -214405.69 | M26: 396328.24
A27: 47 | B27: 1815 | C27: Transformer Station Equipment > 50 kV (1719) | D27: ='App.2-BA_Fixed Asset Cont 2013'!G27 -> 625178.94 | G27: 625178.94 | I27: ='App.2-BA_Fixed Asset Cont 2013'!L27 -> -227913.67 | J27: -35746.73 | L27: -263660.4 | M27: 361518.54
A28: 47 | B28: 1820 | C28: Distribution Station Equipment <50 kV | D28: ='App.2-BA_Fixed Asset Cont 2013'!G28 -> 4072270.47 | E28: 140249.92 | G28: 4212520.39 | I28: ='App.2-BA_Fixed Asset Cont 2013'!L28 -> -2131341.19 | J28: -59365.95297 | L28: -2190707.143 | M28: 2021813.247
A29: 47 | B29: 1820 | C29: Distribution Station Equipment <50 Kv (1821) | D29: ='App.2-BA_Fixed Asset Cont 2013'!G29 -> 2281769.35 | E29: 111787.08 | G29: 2393556.43 | I29: ='App.2-BA_Fixed Asset Cont 2013'!L29 -> -793416.23 | J29: -71815.38 | L29: -865231.61 | M29: 1528324.82
A30: 47 | B30: 1825 | C30: Storage Battery Equipment | D30: ='App.2-BA_Fixed Asset Cont 2013'!G30 -> 0 | G30: 0 | I30: ='App.2-BA_Fixed Asset Cont 2013'!L30 -> 0 | L30: 0 | M30: 0
A31: 47 | B31: 1830 | C31: Poles, Towers & Fixtures - Wood | D31: ='App.2-BA_Fixed Asset Cont 2013'!G31 -> 40535274.96 | E31: 1869515.04 | G31: 42404790 | I31: ='App.2-BA_Fixed Asset Cont 2013'!L31 -> -23356812.86 | J31: -422132.5638 | L31: -23778945.42 | M31: 18625844.58
A32: 47 | B32: 1830 | C32: Poles, Towers & Fixtures - (1831) Concrete | D32: ='App.2-BA_Fixed Asset Cont 2013'!G32 -> 3038667.92 | E32: 62223.96 | G32: 3100891.88 | I32: ='App.2-BA_Fixed Asset Cont 2013'!L32 -> -1273545.32 | J32: -34202.12 | L32: -1307747.44 | M32: 1793144.44
A33: 47 | B33: 1835 | C33: Overhead Conductors & Devices | D33: ='App.2-BA_Fixed Asset Cont 2013'!G33 -> 23335990.29 | E33: 673087.52 | G33: 24009077.81 | I33: ='App.2-BA_Fixed Asset Cont 2013'!L33 -> -8694269.9 | J33: -273258.2296 | L33: -8967528.13 | M33: 15041549.68
A34: 47 | B34: 1835 | C34: Overhead Conductors & Devices (1836) | D34: ='App.2-BA_Fixed Asset Cont 2013'!G34 -> 2606710.3 | E34: 138345.6 | G34: 2745055.9 | I34: ='App.2-BA_Fixed Asset Cont 2013'!L34 -> -1135176.67 | J34: -214387.33 | L34: -1349564 | M34: 1395491.9
A35: 47 | B35: 1835 | C35: Overhead Conductors & Devices (1837) | D35: ='App.2-BA_Fixed Asset Cont 2013'!G35 -> 2242028.17 | E35: 30398.88 | G35: 2272427.05 | I35: ='App.2-BA_Fixed Asset Cont 2013'!L35 -> -526796.14 | J35: -70256.32 | L35: -597052.46 | M35: 1675374.59
A36: 47 | B36: 1840 | C36: Underground Conduit | D36: ='App.2-BA_Fixed Asset Cont 2013'!G36 -> 9663794.51 | E36: 1246226 | G36: 10910020.51 | I36: ='App.2-BA_Fixed Asset Cont 2013'!L36 -> -2359337.24 | J36: -179615.5392 | L36: -2538952.779 | M36: 8371067.731
A37: 47 | B37: 1845 | C37: Underground Conductors & Devices | D37: ='App.2-BA_Fixed Asset Cont 2013'!G37 -> 64503461.77 | E37: 2441444.96 | G37: 66944906.73 | I37: ='App.2-BA_Fixed Asset Cont 2013'!L37 -> -37486295.56 | J37: -1700675.399 | L37: -39186970.96 | M37: 27757935.77
A38: 47 | B38: 1845 | C38: Underground Conductors & Devices (1846) | D38: ='App.2-BA_Fixed Asset Cont 2013'!G38 -> 2071575.74 | E38: 94463.04 | G38: 2166038.78 | I38: ='App.2-BA_Fixed Asset Cont 2013'!L38 -> -1037565.84 | J38: -52929.44 | L38: -1090495.28 | M38: 1075543.5
A39: 47 | B39: 1850 | C39: Line Transformers (1850) Polemount | D39: ='App.2-BA_Fixed Asset Cont 2013'!G39 -> 19321844.87 | E39: 950460.57 | G39: 20272305.44 | I39: ='App.2-BA_Fixed Asset Cont 2013'!L39 -> -13332426.02 | J39: -221021.4274 | L39: -13553447.45 | M39: 6718857.993
A40: 47 | B40: 1850 | C40: Line Transformers (1853) Padmount | D40: ='App.2-BA_Fixed Asset Cont 2013'!G40 -> 18034372.4 | E40: 867991.44 | G40: 18902363.84 | I40: ='App.2-BA_Fixed Asset Cont 2013'!L40 -> -8380991.89 | J40: -498830.11 | L40: -8879822 | M40: 10022541.84
A41: 47 | B41: 1855 | C41: Services (Overhead & Underground) | D41: ='App.2-BA_Fixed Asset Cont 2013'!G41 -> 5430061.25 | E41: 1062007 | G41: 6492068.25 | I41: ='App.2-BA_Fixed Asset Cont 2013'!L41 -> -1310964.72 | J41: -238441.8176 | L41: -1549406.538 | M41: 4942661.712
A42: 47 | B42: 1860 | C42: Meters | D42: ='App.2-BA_Fixed Asset Cont 2013'!G42 -> 2893476.18 | E42: 602413.58 | G42: 3495889.76 | I42: ='App.2-BA_Fixed Asset Cont 2013'!L42 -> -987855.07 | J42: -164940.3935 | L42: -1152795.464 | M42: 2343094.296
A43: 47 | B43: 1860 | C43: Meters (Smart Meters) | D43: ='App.2-BA_Fixed Asset Cont 2013'!G43 -> 4202486.94 | E43: 1658578.32 | G43: 5861065.26 | I43: ='App.2-BA_Fixed Asset Cont 2013'!L43 -> -975073.27 | J43: -465231.13 | L43: -1440304.4 | M43: 4420760.86
A44: 47 | B44: 1865 | C44: Other Installations on Customer's Premises | D44: ='App.2-BA_Fixed Asset Cont 2013'!G44 -> 0 | G44: 0 | I44: ='App.2-BA_Fixed Asset Cont 2013'!L44 -> 0 | J44: 0 | L44: 0 | M44: 0
A45: 47 | B45: 1875 | C45: Street Lighting and Signal Systems | D45: ='App.2-BA_Fixed Asset Cont 2013'!G45 -> 0 | G45: 0 | I45: ='App.2-BA_Fixed Asset Cont 2013'!L45 -> 0 | L45: 0 | M45: 0
A46: N/A | B46: 1905 | C46: Land | D46: ='App.2-BA_Fixed Asset Cont 2013'!G46 -> 508969.83 | G46: 508969.83 | I46: ='App.2-BA_Fixed Asset Cont 2013'!L46 -> 0 | L46: 0 | M46: 508969.83
A47: 47 | B47: 1908 | C47: Buildings & Fixtures | D47: ='App.2-BA_Fixed Asset Cont 2013'!G47 -> 15117430.53 | E47: 1500485 | G47: 16617915.53 | I47: ='App.2-BA_Fixed Asset Cont 2013'!L47 -> -2687517 | J47: -260610.5721 | L47: -2948127.572 | M47: 13669787.96
A48: 13 | B48: 1910 | C48: Leasehold Improvements | D48: ='App.2-BA_Fixed Asset Cont 2013'!G48 -> 120252.32 | G48: 120252.32 | I48: ='App.2-BA_Fixed Asset Cont 2013'!L48 -> -120252.32 | L48: -120252.32 | M48: 0
A49: 8 | B49: 1915 | C49: Office Furniture & Equipment (10 years) | D49: ='App.2-BA_Fixed Asset Cont 2013'!G49 -> 1493564.44 | E49: 157000 | G49: 1650564.44 | I49: ='App.2-BA_Fixed Asset Cont 2013'!L49 -> -937619.44 | J49: -100229.14 | L49: -1037848.58 | M49: 612715.86
A50: 8 | B50: 1915 | C50: Office Furniture & Equipment (5 years) | D50: ='App.2-BA_Fixed Asset Cont 2013'!G50 -> 0 | G50: 0 | I50: ='App.2-BA_Fixed Asset Cont 2013'!L50 -> 0 | L50: 0 | M50: 0
A51: 10 | B51: 1920 | C51: Computer Equipment - Hardware | D51: ='App.2-BA_Fixed Asset Cont 2013'!G51 -> 1257769.3 | G51: 1257769.3 | I51: ='App.2-BA_Fixed Asset Cont 2013'!L51 -> -1257769.3 | L51: -1257769.3 | M51: 0
A52: 45 | B52: 1920 | C52: Computer Equip.-Hardware(Post Mar. 22/04) | D52: ='App.2-BA_Fixed Asset Cont 2013'!G52 -> 320323.46 | G52: 320323.46 | I52: ='App.2-BA_Fixed Asset Cont 2013'!L52 -> -315054.356 | L52: -315054.356 | M52: 5269.104
A53: 50 | B53: 1920 | C53: Computer Equip.-Hardware(Post Mar. 19/07) | D53: ='App.2-BA_Fixed Asset Cont 2013'!G53 -> 2199582.75 | E53: 302295 | G53: 2501877.75 | I53: ='App.2-BA_Fixed Asset Cont 2013'!L53 -> -1414759.92 | J53: -284534.359 | L53: -1699294.279 | M53: 802583.471
A54: 10 | B54: 1930 | C54: Transportation Equipment (1931) | D54: ='App.2-BA_Fixed Asset Cont 2013'!G54 -> 705983.68 | E54: 0 | G54: 705983.68 | I54: ='App.2-BA_Fixed Asset Cont 2013'!L54 -> -363890.98 | J54: -68306.8518 | L54: -432197.8318 | M54: 273785.8482
A55: 10 | B55: 1930 | C55: Transportation Equipment (1932) Large Trucks | D55: ='App.2-BA_Fixed Asset Cont 2013'!G55 -> 7544698.03 | E55: 650000 | G55: 8194698.03 | I55: ='App.2-BA_Fixed Asset Cont 2013'!L55 -> -3897852.3 | J55: -303228.31 | L55: -4201080.61 | M55: 3993617.42
A56: 10 | B56: 1930 | C56: Transportation Equipment (1933) Trailers | D56: ='App.2-BA_Fixed Asset Cont 2013'!G56 -> 329326.27 | E56: 22000 | G56: 351326.27 | I56: ='App.2-BA_Fixed Asset Cont 2013'!L56 -> -229633.05 | J56: -6133.61 | L56: -235766.66 | M56: 115559.61
A57: 8 | B57: 1935 | C57: Stores Equipment | D57: ='App.2-BA_Fixed Asset Cont 2013'!G57 -> 236414.31 | E57: 75000 | G57: 311414.31 | I57: ='App.2-BA_Fixed Asset Cont 2013'!L57 -> -202065.56 | J57: -9174.28 | L57: -211239.84 | M57: 100174.47
A58: 8 | B58: 1940 | C58: Tools, Shop & Garage Equipment | D58: ='App.2-BA_Fixed Asset Cont 2013'!G58 -> 1954825.55 | E58: 67000 | G58: 2021825.55 | I58: ='App.2-BA_Fixed Asset Cont 2013'!L58 -> -1532643.42 | J58: -78814.84 | L58: -1611458.26 | M58: 410367.29
A59: 8 | B59: 1945 | C59: Measurement & Testing Equipment | D59: ='App.2-BA_Fixed Asset Cont 2013'!G59 -> 204006.33 | E59: 0 | G59: 204006.33 | I59: ='App.2-BA_Fixed Asset Cont 2013'!L59 -> -194127.22 | J59: -5092.23 | L59: =I59+J59+K59 -> -199219.45 | M59: 4786.88
A60: 8 | B60: 1950 | C60: Power Operated Equipment | D60: ='App.2-BA_Fixed Asset Cont 2013'!G60 -> 0 | E60: 0 | G60: 0 | I60: ='App.2-BA_Fixed Asset Cont 2013'!L60 -> 0 | J60: 0 | L60: 0 | M60: 0
A61: 8 | B61: 1955 | C61: Communications Equipment | D61: ='App.2-BA_Fixed Asset Cont 2013'!G61 -> 846784.33 | E61: 227500 | G61: 1074284.33 | I61: ='App.2-BA_Fixed Asset Cont 2013'!L61 -> -175400.49 | J61: -40433.96888 | L61: -215834.4589 | M61: 858449.8711
A62: 8 | B62: 1955 | C62: Communication Equipment (Smart Meters) | D62: ='App.2-BA_Fixed Asset Cont 2013'!G62 -> 0 | E62: 0 | G62: 0 | I62: ='App.2-BA_Fixed Asset Cont 2013'!L62 -> 0 | L62: 0 | M62: 0
A63: 8 | B63: 1960 | C63: Miscellaneous Equipment | D63: ='App.2-BA_Fixed Asset Cont 2013'!G63 -> 72951.31 | E63: 0 | G63: 72951.31 | I63: ='App.2-BA_Fixed Asset Cont 2013'!L63 -> -70632.41 | J63: -2071.84 | L63: -72704.25 | M63: 247.06
A64: 47 | B64: 1970 | C64: Load Management Controls Customer Premises | D64: ='App.2-BA_Fixed Asset Cont 2013'!G64 -> 0 | E64: 0 | G64: 0 | I64: ='App.2-BA_Fixed Asset Cont 2013'!L64 -> 0 | L64: 0 | M64: 0
A65: 47 | B65: 1975 | C65: Load Management Controls Utility Premises | D65: ='App.2-BA_Fixed Asset Cont 2013'!G65 -> 0 | G65: 0 | I65: ='App.2-BA_Fixed Asset Cont 2013'!L65 -> 0 | L65: 0 | M65: 0
A66: 47 | B66: 1980 | C66: System Supervisor Equipment | D66: ='App.2-BA_Fixed Asset Cont 2013'!G66 -> 128960.64 | G66: 128960.64 | I66: ='App.2-BA_Fixed Asset Cont 2013'!L66 -> -128961 | L66: -128961 | M66: -0.36
A67: 47 | B67: 1985 | C67: Miscellaneous Fixed Assets | D67: ='App.2-BA_Fixed Asset Cont 2013'!G67 -> 0 | G67: 0 | I67: ='App.2-BA_Fixed Asset Cont 2013'!L67 -> 0 | L67: 0 | M67: 0
A68: 47 | B68: 1990 | C68: Other Tangible Property | D68: ='App.2-BA_Fixed Asset Cont 2013'!G68 -> 0 | G68: 0 | I68: ='App.2-BA_Fixed Asset Cont 2013'!L68 -> 0 | L68: 0 | M68: 0
A69: 47 | B69: 1995 | C69: Contributions & Grants | D69: ='App.2-BA_Fixed Asset Cont 2013'!G69 -> -21516863.36 | E69: -900000 | G69: -22416863.36 | I69: ='App.2-BA_Fixed Asset Cont 2013'!L69 -> 6303876.12 | J69: 845482.4952 | L69: 7149358.615 | M69: -15267504.74
A70: 47 | B70: 2440 | C70: Deferred Revenue5 | D70: ='App.2-BA_Fixed Asset Cont 2013'!G70 -> 0 | G70: 0 | I70: ='App.2-BA_Fixed Asset Cont 2013'!L70 -> 0 | M70: 0
A71: 47 | B71: 2005 | C71: 2005-Property Under Capital Leases | D71: ='App.2-BA_Fixed Asset Cont 2013'!G71 -> 0 | G71: 0 | I71: ='App.2-BA_Fixed Asset Cont 2013'!L71 -> 0 | M71: 0
G72: 0 | L72: 0 | M72: =G72+L72 -> 0
C73: Sub-Total | D73: =SUM(D17:D72) -> 227308724.2 | E73: =SUM(E17:E72) -> 14788438.91 | F73: =SUM(F17:F72) -> 0 | G73: =SUM(G17:G72) -> 242097163.1 | I73: =SUM(I17:I72) -> -115799421 | J73: =SUM(J17:J72) -> -5678060.475 | K73: =SUM(K17:K72) -> 0 | L73: =SUM(L17:L72) -> -121477481.5 | M73: =SUM(M17:M72) -> 120619681.6
C74: Less Socialized Renewable Energy Generation Investments (input as negative) | G74: =D74+E74+F74 -> 0 | L74: =I74+J74+K74 -> 0 | M74: =G74+L74 -> 0
C75: Less Other Non Rate-Regulated Utility Assets (input as negative) | G75: =D75+E75+F75 -> 0 | L75: =I75+J75+K75 -> 0 | M75: =G75+L75 -> 0
C76: Total PP&E | D76: =SUM(D73:D75) -> 227308724.2 | E76: =SUM(E73:E75) -> 14788438.91 | F76: =SUM(F73:F75) -> 0 | G76: =SUM(G73:G75) -> 242097163.1 | I76: =SUM(I73:I75) -> -115799421 | J76: =SUM(J73:J75) -> -5678060.475 | K76: =SUM(K73:K75) -> 0 | L76: =SUM(L73:L75) -> -121477481.5 | M76: =SUM(M73:M75) -> 120619681.6
C77: Depreciation Expense adj. from gain or loss on the retirement of assets (pool of like assets), if applicable6
C78: Total | J78: =J76+J77 -> -5678060.475
I80: Less: Fully Allocated Depreciation
A81: 10 | C81: Transportation | I81: Transportation
A82: 8 | C82: Stores Equipment | I82: Stores Equipment
I83: Net Depreciation | K83: =J78-K81-K82 -> -5678060.475
A85: Notes:
A87: 1 | B87: Tables in the format outlined above covering all fixed asset accounts should be submitted for the Test Year, Bridge Year and all relevant historical years. At a minimum , the applicant must provide data for the earlier of: 1) all historical years back to its last rebasing; or 2) at least three years of historical actuals, in addition to Bridge Year and Test Year forecasts.
A90: 2 | B90: The "CCA Class" for fixed assets should agree with the CCA Class used for tax purposes in Tax Returns. Fixed Assets sub-components may be used where the underlying asset components are classified under multiple CCA Classes for tax purposes. If an applicant uses any different classes from those shown in the table, an explanation should be provided. (also see note 3 below).
A93: 3 | B93: The table may need to be customized for a utility's asset categories or for any new asset accounts announced or authorized by the Board.
A95: 4 | B95: The additions column (E) must not include construction work in progress (CWIP).
A97: 5 | B97: Effective on the date of IFRS adoption, customer contributions will no longer be recorded in Account 1995 Contributions & Grants, but will be recorded in Account 2440, Deferred Revenues.
A99: 6 | B99: Where a distributor for general financial reporting purposes under IFRS has accounted for the amount of gain or loss on the retirement of assets in a pool of like assets as a charge or credit to income, for reporting and rate application filings the distributor shall reclassify such gains and losses as depreciation expense, and disclose the amount separately.

Sheet App.2-BA_Fixed Asset 2014_Old
L1: File Number: | M1: =EBNUMBER -> EB-2014-0096
L2: Exhibit: | M2: 2
L3: Tab: | M3: 1
L4: Schedule: | M4: 1
L5: Page: | M5: 7
L7: Date: | M7: 2014-08-29
A9: Appendix 2-BA
A10: Fixed Asset Continuity Schedule
E12: Accounting Standard | F12: CGAAP
E13: Year | F13: 2014 | I13: Using Old Useful Lives
D15: Cost | J15: Accumulated Depreciation
A16: CCA Class | B16: OEB | C16: Description | D16: Opening Balance | E16: Additions | F16: Disposals | G16: Closing Balance | I16: Opening Balance | J16: Additions | K16: Disposals | L16: Closing Balance | M16: Net Book Value
A17: 12 | B17: 1611 | C17: Computer Software (Formally known as Account 1925) | D17: ='App.2-BA_Fixed Asset 2013_Old '!G17 -> 2691706.57 | E17: 737966 | G17: =D17+E17+F17 -> 3429672.57 | I17: ='App.2-BA_Fixed Asset 2013_Old '!L17 -> -2433511.88 | J17: =-260670.56-206997.5 -> -467668.06 | L17: =I17+J17+K17 -> -2901179.94 | M17: =G17+L17 -> 528492.63
A18: CEC | B18: 1612 | C18: Land Rights (Formally known as Account 1906) | D18: ='App.2-BA_Fixed Asset 2013_Old '!G18 -> 0 | G18: =D18+E18+F18 -> 0 | I18: ='App.2-BA_Fixed Asset 2013_Old '!L18 -> 0 | L18: =I18+J18+K18 -> 0 | M18: =G18+L18 -> 0
A19: N/A | B19: 1805 | C19: Land | D19: ='App.2-BA_Fixed Asset 2013_Old '!G19 -> 507272.79 | G19: 507272.79 | I19: ='App.2-BA_Fixed Asset 2013_Old '!L19 -> 0 | L19: 0 | M19: 507272.79
A20: 47 | B20: 1806 | C20: Land Rights | D20: ='App.2-BA_Fixed Asset 2013_Old '!G20 -> 1604396.28 | G20: 1604396.28 | I20: ='App.2-BA_Fixed Asset 2013_Old '!L20 -> -868161.79 | J20: -57066.56 | L20: -925228.35 | M20: 679167.93
A21: 47 | B21: 1808 | C21: Buildings | D21: ='App.2-BA_Fixed Asset 2013_Old '!G21 -> 111638.13 | G21: 111638.13 | I21: ='App.2-BA_Fixed Asset 2013_Old '!L21 -> -111637 | J21: 0 | L21: -111637 | M21: 1.13
A22: 13 | B22: 1810 | C22: Leasehold Improvements | D22: ='App.2-BA_Fixed Asset 2013_Old '!G22 -> 0 | G22: 0 | I22: ='App.2-BA_Fixed Asset 2013_Old '!L22 -> 0 | L22: 0 | M22: 0
A23: 47 | B23: 1815 | C23: Transformer Station Equipment > 50 kV (1708, 1740, 1745) | D23: ='App.2-BA_Fixed Asset 2013_Old '!G23 -> 3833012.8 | G23: 3833012.8 | I23: ='App.2-BA_Fixed Asset 2013_Old '!L23 -> -701333.67 | J23: -76660.28 | L23: -777993.95 | M23: 3055018.85
A24: 47 | B24: 1815 | C24: Transformer Station Equipment > 50 kV (1715, 1815) | D24: ='App.2-BA_Fixed Asset 2013_Old '!G24 -> 1519064.84 | G24: 1519064.84 | I24: ='App.2-BA_Fixed Asset 2013_Old '!L24 -> -218270.58 | J24: -42152.23 | L24: -260422.81 | M24: 1258642.03
A25: 47 | B25: 1815 | C25: Transformer Station Equipment > 50 kV (1716) | D25: ='App.2-BA_Fixed Asset 2013_Old '!G25 -> 46955.06 | G25: 46955.06 | I25: ='App.2-BA_Fixed Asset 2013_Old '!L25 -> -15458.63 | J25: -1025.57 | L25: -16484.2 | M25: 30470.86
A26: 47 | B26: 1815 | C26: Transformer Station Equipment > 50 kV (1717) | D26: ='App.2-BA_Fixed Asset 2013_Old '!G26 -> 610733.93 | G26: 610733.93 | I26: ='App.2-BA_Fixed Asset 2013_Old '!L26 -> -201066.31 | J26: -13339.37 | L26: -214405.68 | M26: 396328.25
A27: 47 | B27: 1815 | C27: Transformer Station Equipment > 50 kV (1719) | D27: ='App.2-BA_Fixed Asset 2013_Old '!G27 -> 625178.94 | G27: 625178.94 | I27: ='App.2-BA_Fixed Asset 2013_Old '!L27 -> -205821.81 | J27: -13654.88 | L27: -219476.69 | M27: 405702.25
A28: 47 | B28: 1820 | C28: Distribution Station Equipment <50 kV | D28: ='App.2-BA_Fixed Asset 2013_Old '!G28 -> 4072270.47 | E28: 140249.92 | G28: 4212520.39 | I28: ='App.2-BA_Fixed Asset 2013_Old '!L28 -> -2194646.23 | J28: -124656.76 | L28: -2319302.99 | M28: 1893217.4
A29: 47 | B29: 1820 | C29: Distribution Station Equipment <50 Kv (1821) | D29: ='App.2-BA_Fixed Asset 2013_Old '!G29 -> 2281769.35 | E29: 111787.08 | G29: 2393556.43 | I29: ='App.2-BA_Fixed Asset 2013_Old '!L29 -> -799923.97 | J29: -80033.69 | L29: -879957.66 | M29: 1513598.77
A30: 47 | B30: 1825 | C30: Storage Battery Equipment | D30: ='App.2-BA_Fixed Asset 2013_Old '!G30 -> 0 | G30: 0 | I30: ='App.2-BA_Fixed Asset 2013_Old '!L30 -> 0 | L30: 0 | M30: 0
A31: 47 | B31: 1830 | C31: Poles, Towers & Fixtures - Wood | D31: ='App.2-BA_Fixed Asset 2013_Old '!G31 -> 40535274.96 | E31: 1869515.04 | G31: 42404790 | I31: ='App.2-BA_Fixed Asset 2013_Old '!L31 -> -24159487.62 | J31: =-1243192.3-873.4 -> -1244065.7 | L31: -25403553.32 | M31: 17001236.68
A32: 47 | B32: 1830 | C32: Poles, Towers & Fixtures - (1831) Concrete | D32: ='App.2-BA_Fixed Asset 2013_Old '!G32 -> 3038667.92 | E32: 62223.96 | G32: 3100891.88 | I32: ='App.2-BA_Fixed Asset 2013_Old '!L32 -> -1347668.71 | J32: -108794.22 | L32: -1456462.93 | M32: 1644428.95
A33: 47 | B33: 1835 | C33: Overhead Conductors & Devices | D33: ='App.2-BA_Fixed Asset 2013_Old '!G33 -> 23335990.29 | E33: 673087.52 | G33: 24009077.81 | I33: ='App.2-BA_Fixed Asset 2013_Old '!L33 -> -9311883.35 | J33: -907833.19 | L33: -10219716.54 | M33: 13789361.27
A34: 47 | B34: 1835 | C34: Overhead Conductors & Devices (1836) | D34: ='App.2-BA_Fixed Asset 2013_Old '!G34 -> 2606710.3 | E34: 138345.6 | G34: 2745055.9 | I34: ='App.2-BA_Fixed Asset 2013_Old '!L34 -> -922075.95 | J34: -110545.95 | L34: -1032621.9 | M34: 1712434
A35: 47 | B35: 1835 | C35: Overhead Conductors & Devices (1837) | D35: ='App.2-BA_Fixed Asset 2013_Old '!G35 -> 2242028.17 | E35: 30398.88 | G35: 2272427.05 | I35: ='App.2-BA_Fixed Asset 2013_Old '!L35 -> -545623.1 | J35: -90194.55 | L35: -635817.65 | M35: 1636609.4
A36: 47 | B36: 1840 | C36: Underground Conduit | D36: ='App.2-BA_Fixed Asset 2013_Old '!G36 -> 9663794.51 | E36: 1246226 | G36: 10910020.51 | I36: ='App.2-BA_Fixed Asset 2013_Old '!L36 -> -2572782.56 | J36: -411432 | L36: -2984214.56 | M36: 7925805.95
A37: 47 | B37: 1845 | C37: Underground Conductors & Devices | D37: ='App.2-BA_Fixed Asset 2013_Old '!G37 -> 64503461.77 | E37: 2441444.96 | G37: 66944906.73 | I37: ='App.2-BA_Fixed Asset 2013_Old '!L37 -> -38118057.17 | J37: -2270043.94 | L37: -40388101.11 | M37: 26556805.62
A38: 47 | B38: 1845 | C38: Underground Conductors & Devices (1846) | D38: ='App.2-BA_Fixed Asset 2013_Old '!G38 -> 2071575.74 | E38: 94463.04 | G38: 2166038.78 | I38: ='App.2-BA_Fixed Asset 2013_Old '!L38 -> -1015390.38 | J38: -73256.4 | L38: -1088646.78 | M38: 1077392
A39: 47 | B39: 1850 | C39: Line Transformers (1850) Polemount | D39: ='App.2-BA_Fixed Asset 2013_Old '!G39 -> 19321844.87 | E39: 950460.57 | G39: 20272305.44 | I39: ='App.2-BA_Fixed Asset 2013_Old '!L39 -> -13652067.84 | J39: -537276.68 | L39: -14189344.52 | M39: 6082960.92
A40: 47 | B40: 1850 | C40: Line Transformers (1853) Padmount | D40: ='App.2-BA_Fixed Asset 2013_Old '!G40 -> 18034372.4 | E40: 867991.44 | G40: 18902363.84 | I40: ='App.2-BA_Fixed Asset 2013_Old '!L40 -> -8606858.85 | J40: -706502.91 | L40: -9313361.76 | M40: 9589002.08
A41: 47 | B41: 1855 | C41: Services (Overhead & Underground) | D41: ='App.2-BA_Fixed Asset 2013_Old '!G41 -> 5430061.25 | E41: 1062007 | G41: 6492068.25 | I41: ='App.2-BA_Fixed Asset 2013_Old '!L41 -> -1310964.72 | J41: -238441.82 | L41: -1549406.54 | M41: 4942661.71
A42: 47 | B42: 1860 | C42: Meters | D42: ='App.2-BA_Fixed Asset 2013_Old '!G42 -> 2893476.18 | E42: 602413.58 | G42: 3495889.76 | I42: ='App.2-BA_Fixed Asset 2013_Old '!L42 -> -969733.1 | J42: -152822.45 | L42: -1122555.55 | M42: 2373334.21
A43: 47 | B43: 1860 | C43: Meters (Smart Meters) | D43: ='App.2-BA_Fixed Asset 2013_Old '!G43 -> 4202486.94 | E43: 1658578.32 | G43: 5861065.26 | I43: ='App.2-BA_Fixed Asset 2013_Old '!L43 -> -975073.37 | J43: -465231.03 | L43: -1440304.4 | M43: 4420760.86
A44: 47 | B44: 1865 | C44: Other Installations on Customer's Premises | D44: ='App.2-BA_Fixed Asset 2013_Old '!G44 -> 0 | G44: 0 | I44: ='App.2-BA_Fixed Asset 2013_Old '!L44 -> 0 | L44: 0 | M44: 0
A45: 47 | B45: 1875 | C45: Street Lighting and Signal Systems | D45: ='App.2-BA_Fixed Asset 2013_Old '!G45 -> 0 | G45: 0 | I45: ='App.2-BA_Fixed Asset 2013_Old '!L45 -> 0 | L45: 0 | M45: 0
A46: N/A | B46: 1905 | C46: Land | D46: ='App.2-BA_Fixed Asset 2013_Old '!G46 -> 508969.83 | G46: 508969.83 | I46: ='App.2-BA_Fixed Asset 2013_Old '!L46 -> 0 | L46: 0 | M46: 508969.83
A47: 47 | B47: 1908 | C47: Buildings & Fixtures | D47: ='App.2-BA_Fixed Asset 2013_Old '!G47 -> 15117430.53 | E47: 1500485 | G47: 16617915.53 | I47: ='App.2-BA_Fixed Asset 2013_Old '!L47 -> -2687517 | J47: -260610.57 | L47: -2948127.57 | M47: 13669787.96
A48: 13 | B48: 1910 | C48: Leasehold Improvements | D48: ='App.2-BA_Fixed Asset 2013_Old '!G48 -> 120252.32 | G48: 120252.32 | I48: ='App.2-BA_Fixed Asset 2013_Old '!L48 -> -120252.32 | L48: -120252.32 | M48: 0
A49: 8 | B49: 1915 | C49: Office Furniture & Equipment (10 years) | D49: ='App.2-BA_Fixed Asset 2013_Old '!G49 -> 1493564.44 | E49: 157000 | G49: 1650564.44 | I49: ='App.2-BA_Fixed Asset 2013_Old '!L49 -> -937619.45 | J49: -100229.14 | L49: -1037848.59 | M49: 612715.85
A50: 8 | B50: 1915 | C50: Office Furniture & Equipment (5 years) | D50: ='App.2-BA_Fixed Asset 2013_Old '!G50 -> 0 | G50: 0 | I50: ='App.2-BA_Fixed Asset 2013_Old '!L50 -> 0 | L50: 0 | M50: 0
A51: 10 | B51: 1920 | C51: Computer Equipment - Hardware | D51: ='App.2-BA_Fixed Asset 2013_Old '!G51 -> 1257769.3 | G51: 1257769.3 | I51: ='App.2-BA_Fixed Asset 2013_Old '!L51 -> -1257769.3 | L51: -1257769.3 | M51: 0
A52: 45 | B52: 1920 | C52: Computer Equip.-Hardware(Post Mar. 22/04) | D52: ='App.2-BA_Fixed Asset 2013_Old '!G52 -> 320323.46 | G52: 320323.46 | I52: ='App.2-BA_Fixed Asset 2013_Old '!L52 -> -315054.356 | L52: -315054.356 | M52: 5269.104
A53: 50 | B53: 1920 | C53: Computer Equip.-Hardware(Post Mar. 19/07) | D53: ='App.2-BA_Fixed Asset 2013_Old '!G53 -> 2199582.75 | E53: 302295 | G53: 2501877.75 | I53: ='App.2-BA_Fixed Asset 2013_Old '!L53 -> -1414759.92 | J53: =-283226.86-1307.5 -> -284534.36 | L53: -1699294.28 | M53: 802583.47
A54: 10 | B54: 1930 | C54: Transportation Equipment (1931) | D54: ='App.2-BA_Fixed Asset 2013_Old '!G54 -> 705983.68 | E54: 0 | G54: 705983.68 | I54: ='App.2-BA_Fixed Asset 2013_Old '!L54 -> -363890.98 | J54: -68306.85 | L54: -432197.83 | M54: 273785.85
A55: 10 | B55: 1930 | C55: Transportation Equipment (1932) Large Trucks | D55: ='App.2-BA_Fixed Asset 2013_Old '!G55 -> 7544698.03 | E55: 650000 | G55: 8194698.03 | I55: ='App.2-BA_Fixed Asset 2013_Old '!L55 -> -4172932.1 | J55: -639749.48 | L55: -4812681.58 | M55: 3382016.45
A56: 10 | B56: 1930 | C56: Transportation Equipment (1933) Trailers | D56: ='App.2-BA_Fixed Asset 2013_Old '!G56 -> 329326.27 | E56: 22000 | G56: 351326.27 | I56: ='App.2-BA_Fixed Asset 2013_Old '!L56 -> -239075.93 | J56: -16927.03 | L56: -256002.96 | M56: 95323.31
A57: 8 | B57: 1935 | C57: Stores Equipment | D57: ='App.2-BA_Fixed Asset 2013_Old '!G57 -> 236414.31 | E57: 75000 | G57: 311414.31 | I57: ='App.2-BA_Fixed Asset 2013_Old '!L57 -> -202065.56 | J57: -9174.28 | L57: -211239.84 | M57: 100174.47
A58: 8 | B58: 1940 | C58: Tools, Shop & Garage Equipment | D58: ='App.2-BA_Fixed Asset 2013_Old '!G58 -> 1954825.55 | E58: 67000 | G58: 2021825.55 | I58: ='App.2-BA_Fixed Asset 2013_Old '!L58 -> -1532643.42 | J58: -78814.84 | L58: -1611458.26 | M58: 410367.29
A59: 8 | B59: 1945 | C59: Measurement & Testing Equipment | D59: ='App.2-BA_Fixed Asset 2013_Old '!G59 -> 204006.33 | E59: 0 | G59: 204006.33 | I59: ='App.2-BA_Fixed Asset 2013_Old '!L59 -> -194127.22 | J59: -5092.23 | L59: -199219.45 | M59: 4786.88
A60: 8 | B60: 1950 | C60: Power Operated Equipment | D60: ='App.2-BA_Fixed Asset 2013_Old '!G60 -> 0 | E60: 0 | G60: 0 | I60: ='App.2-BA_Fixed Asset 2013_Old '!L60 -> 0 | L60: 0 | M60: 0
A61: 8 | B61: 1955 | C61: Communications Equipment | D61: ='App.2-BA_Fixed Asset 2013_Old '!G61 -> 846784.33 | E61: 227500 | G61: 1074284.33 | I61: ='App.2-BA_Fixed Asset 2013_Old '!L61 -> -263063.66 | J61: -199196.16 | L61: -462259.82 | M61: 612024.51
A62: 8 | B62: 1955 | C62: Communication Equipment (Smart Meters) | D62: ='App.2-BA_Fixed Asset 2013_Old '!G62 -> 0 | E62: 0 | G62: 0 | I62: ='App.2-BA_Fixed Asset 2013_Old '!L62 -> 0 | L62: 0 | M62: 0
A63: 8 | B63: 1960 | C63: Miscellaneous Equipment | D63: ='App.2-BA_Fixed Asset 2013_Old '!G63 -> 72951.31 | E63: 0 | G63: 72951.31 | I63: ='App.2-BA_Fixed Asset 2013_Old '!L63 -> -70632.41 | J63: -2071.84 | L63: -72704.25 | M63: 247.06
A64: 47 | B64: 1970 | C64: Load Management Controls Customer Premises | D64: ='App.2-BA_Fixed Asset 2013_Old '!G64 -> 0 | E64: 0 | G64: 0 | I64: ='App.2-BA_Fixed Asset 2013_Old '!L64 -> 0 | L64: 0 | M64: 0
A65: 47 | B65: 1975 | C65: Load Management Controls Utility Premises | D65: ='App.2-BA_Fixed Asset 2013_Old '!G65 -> 0 | G65: 0 | I65: ='App.2-BA_Fixed Asset 2013_Old '!L65 -> 0 | L65: 0 | M65: 0
A66: 47 | B66: 1980 | C66: System Supervisor Equipment | D66: ='App.2-BA_Fixed Asset 2013_Old '!G66 -> 128960.64 | G66: 128960.64 | I66: ='App.2-BA_Fixed Asset 2013_Old '!L66 -> -128961 | L66: -128961 | M66: -0.36
A67: 47 | B67: 1985 | C67: Miscellaneous Fixed Assets | D67: ='App.2-BA_Fixed Asset 2013_Old '!G67 -> 0 | G67: 0 | I67: ='App.2-BA_Fixed Asset 2013_Old '!L67 -> 0 | L67: 0 | M67: 0
A68: 47 | B68: 1990 | C68: Other Tangible Property | D68: ='App.2-BA_Fixed Asset 2013_Old '!G68 -> 0 | G68: 0 | I68: ='App.2-BA_Fixed Asset 2013_Old '!L68 -> 0 | L68: 0 | M68: 0
A69: 47 | B69: 1995 | C69: Contributions & Grants | D69: ='App.2-BA_Fixed Asset 2013_Old '!G69 -> -21516863.36 | E69: -900000 | G69: -22416863.36 | I69: ='App.2-BA_Fixed Asset 2013_Old '!L69 -> 6303876.11 | J69: 845482.5 | L69: 7149358.61 | M69: -15267504.75
A70: 47 | B70: 2440 | C70: Deferred Revenue5 | D70: ='App.2-BA_Fixed Asset 2013_Old '!G70 -> 0 | G70: 0 | I70: ='App.2-BA_Fixed Asset 2013_Old '!L70 -> 0 | M70: 0
A71: 47 | B71: 2005 | C71: 2005-Property Under Capital Leases | D71: ='App.2-BA_Fixed Asset 2013_Old '!G71 -> 0 | G71: 0 | I71: ='App.2-BA_Fixed Asset 2013_Old '!L71 -> 0 | M71: 0
G72: 0 | L72: 0 | M72: =G72+L72 -> 0
C73: Sub-Total | D73: =SUM(D17:D72) -> 227308724.2 | E73: =SUM(E17:E72) -> 14788438.91 | F73: =SUM(F17:F72) -> 0 | G73: =SUM(G17:G72) -> 242097163.1 | I73: =SUM(I17:I72) -> -118853987.1 | J73: =SUM(J17:J72) -> -9011922.52 | K73: =SUM(K17:K72) -> 0 | L73: =SUM(L17:L72) -> -127865909.6 | M73: =SUM(M17:M72) -> 114231253.5
C74: Less Socialized Renewable Energy Generation Investments (input as negative) | G74: =D74+E74+F74 -> 0 | L74: =I74+J74+K74 -> 0 | M74: =G74+L74 -> 0
C75: Less Other Non Rate-Regulated Utility Assets (input as negative) | G75: =D75+E75+F75 -> 0 | L75: =I75+J75+K75 -> 0 | M75: =G75+L75 -> 0
C76: Total PP&E | D76: =SUM(D73:D75) -> 227308724.2 | E76: =SUM(E73:E75) -> 14788438.91 | F76: =SUM(F73:F75) -> 0 | G76: =SUM(G73:G75) -> 242097163.1 | I76: =SUM(I73:I75) -> -118853987.1 | J76: =SUM(J73:J75) -> -9011922.52 | K76: =SUM(K73:K75) -> 0 | L76: =SUM(L73:L75) -> -127865909.6 | M76: =SUM(M73:M75) -> 114231253.5
C77: Depreciation Expense adj. from gain or loss on the retirement of assets (pool of like assets), if applicable6
C78: Total | J78: =J76+J77 -> -9011922.52
I80: Less: Fully Allocated Depreciation
A81: 10 | C81: Transportation | I81: Transportation
A82: 8 | C82: Stores Equipment | I82: Stores Equipment
I83: Net Depreciation | K83: =J78-K81-K82 -> -9011922.52
A85: Notes:
A87: 1 | B87: Tables in the format outlined above covering all fixed asset accounts should be submitted for the Test Year, Bridge Year and all relevant historical years. At a minimum , the applicant must provide data for the earlier of: 1) all historical years back to its last rebasing; or 2) at least three years of historical actuals, in addition to Bridge Year and Test Year forecasts.
A90: 2 | B90: The "CCA Class" for fixed assets should agree with the CCA Class used for tax purposes in Tax Returns. Fixed Assets sub-components may be used where the underlying asset components are classified under multiple CCA Classes for tax purposes. If an applicant uses any different classes from those shown in the table, an explanation should be provided. (also see note 3 below).
A93: 3 | B93: The table may need to be customized for a utility's asset categories or for any new asset accounts announced or authorized by the Board.
A95: 4 | B95: The additions column (E) must not include construction work in progress (CWIP).
A97: 5 | B97: Effective on the date of IFRS adoption, customer contributions will no longer be recorded in Account 1995 Contributions & Grants, but will be recorded in Account 2440, Deferred Revenues.
A99: 6 | B99: Where a distributor for general financial reporting purposes under IFRS has accounted for the amount of gain or loss on the retirement of assets in a pool of like assets as a charge or credit to income, for reporting and rate application filings the distributor shall reclassify such gains and losses as depreciation expense, and disclose the amount separately.

Sheet App.2-BA_Fixed Asset Cont2015
L1: File Number: | M1: =EBNUMBER -> EB-2014-0096
L2: Exhibit: | M2: 2
L3: Tab: | M3: 1
L4: Schedule: | M4: 1
L5: Page: | M5: 8
L7: Date: | M7: 2014-08-29
A9: Appendix 2-BA
A10: Fixed Asset Continuity Schedule
E12: Accounting Standard | F12: MIFRS
E13: Year | F13: 2015
D15: Cost | J15: Accumulated Depreciation
A16: CCA Class | B16: OEB | C16: Description | D16: Opening Balance | E16: Additions | F16: Disposals | G16: Closing Balance | I16: Opening Balance | J16: Additions | K16: Disposals | L16: Closing Balance | M16: Net Book Value
A17: 12 | B17: 1611 | C17: Computer Software (Formally known as Account 1925) | D17: ='App.2-BA_Fixed Asset Cont2014'!G17 -> 3429672.57 | E17: 368740.48 | G17: =D17+E17+F17 -> 3798413.05 | I17: ='App.2-BA_Fixed Asset Cont2014'!L17 -> -2901179.938 | J17: -78908.69444 | L17: =I17+J17+K17 -> -2980088.632 | M17: =G17+L17 -> 818324.4181
A18: CEC | B18: 1612 | C18: Land Rights (Formally known as Account 1906) | D18: ='App.2-BA_Fixed Asset Cont2014'!G18 -> 0 | G18: =D18+E18+F18 -> 0 | I18: ='App.2-BA_Fixed Asset Cont2014'!L18 -> 0 | L18: =I18+J18+K18 -> 0 | M18: =G18+L18 -> 0
A19: N/A | B19: 1805 | C19: Land | D19: ='App.2-BA_Fixed Asset Cont2014'!G19 -> 507272.79 | G19: 507272.79 | I19: ='App.2-BA_Fixed Asset Cont2014'!L19 -> 0 | L19: 0 | M19: 507272.79
A20: 47 | B20: 1806 | C20: Land Rights | D20: ='App.2-BA_Fixed Asset Cont2014'!G20 -> 1604396.28 | G20: 1604396.28 | I20: ='App.2-BA_Fixed Asset Cont2014'!L20 -> -925228.3548 | J20: -57066.5676 | L20: -982294.9224 | M20: 622101.3576
A21: 47 | B21: 1808 | C21: Buildings | D21: ='App.2-BA_Fixed Asset Cont2014'!G21 -> 111638.13 | G21: 111638.13 | I21: ='App.2-BA_Fixed Asset Cont2014'!L21 -> -111637 | J21: 0 | L21: -111637 | M21: 1.13
A22: 13 | B22: 1810 | C22: Leasehold Improvements | D22: ='App.2-BA_Fixed Asset Cont2014'!G22 -> 0 | G22: 0 | I22: ='App.2-BA_Fixed Asset Cont2014'!L22 -> 0 | L22: 0 | M22: 0
A23: 47 | B23: 1815 | C23: Transformer Station Equipment > 50 kV (1708, 1740, 1745) | D23: ='App.2-BA_Fixed Asset Cont2014'!G23 -> 3833012.8 | G23: 3833012.8 | I23: ='App.2-BA_Fixed Asset Cont2014'!L23 -> -777993.9525 | J23: -76660.28136 | L23: -854654.2338 | M23: 2978358.566
A24: 47 | B24: 1815 | C24: Transformer Station Equipment > 50 kV (1715, 1815) | D24: ='App.2-BA_Fixed Asset Cont2014'!G24 -> 1519064.84 | G24: 1519064.84 | I24: ='App.2-BA_Fixed Asset Cont2014'!L24 -> -249094.56 | J24: -36488.1 | L24: -285582.66 | M24: 1233482.18
A25: 47 | B25: 1815 | C25: Transformer Station Equipment > 50 kV (1716) | D25: ='App.2-BA_Fixed Asset Cont2014'!G25 -> 46955.06 | G25: 46955.06 | I25: ='App.2-BA_Fixed Asset Cont2014'!L25 -> -47860.38 | J25: 905.19 | L25: -46955.19 | M25: -0.13
A26: 47 | B26: 1815 | C26: Transformer Station Equipment > 50 kV (1717) | D26: ='App.2-BA_Fixed Asset Cont2014'!G26 -> 610733.93 | G26: 610733.93 | I26: ='App.2-BA_Fixed Asset Cont2014'!L26 -> -214405.69 | J26: -13339.38 | L26: -227745.07 | M26: 382988.86
A27: 47 | B27: 1815 | C27: Transformer Station Equipment > 50 kV (1719) | D27: ='App.2-BA_Fixed Asset Cont2014'!G27 -> 625178.94 | G27: 625178.94 | I27: ='App.2-BA_Fixed Asset Cont2014'!L27 -> -263660.4 | J27: -35746.73 | L27: -299407.13 | M27: 325771.81
A28: 47 | B28: 1820 | C28: Distribution Station Equipment <50 kV | D28: ='App.2-BA_Fixed Asset Cont2014'!G28 -> 4212520.39 | G28: 4212520.39 | I28: ='App.2-BA_Fixed Asset Cont2014'!L28 -> -2190707.143 | J28: -60924.27633 | L28: -2251631.419 | M28: 1960888.971
A29: 47 | B29: 1820 | C29: Distribution Station Equipment <50 Kv (1821) | D29: ='App.2-BA_Fixed Asset Cont2014'!G29 -> 2393556.43 | G29: 2393556.43 | I29: ='App.2-BA_Fixed Asset Cont2014'!L29 -> -865231.61 | J29: -73678.5 | L29: -938910.11 | M29: 1454646.32
A30: 47 | B30: 1825 | C30: Storage Battery Equipment | D30: ='App.2-BA_Fixed Asset Cont2014'!G30 -> 0 | G30: 0 | I30: ='App.2-BA_Fixed Asset Cont2014'!L30 -> 0 | L30: 0 | M30: 0
A31: 47 | B31: 1830 | C31: Poles, Towers & Fixtures - Wood | D31: ='App.2-BA_Fixed Asset Cont2014'!G31 -> 42404790 | E31: 2219067.491 | G31: 44623857.49 | I31: ='App.2-BA_Fixed Asset Cont2014'!L31 -> -23778945.42 | J31: -462430.8833 | L31: -24241376.31 | M31: 20382481.18
A32: 47 | B32: 1830 | C32: Poles, Towers & Fixtures - (1831) Concrete | D32: ='App.2-BA_Fixed Asset Cont2014'!G32 -> 3100891.88 | G32: 3100891.88 | I32: ='App.2-BA_Fixed Asset Cont2014'!L32 -> -1307747.44 | J32: -35210.24 | L32: -1342957.68 | M32: 1757934.2
A33: 47 | B33: 1835 | C33: Overhead Conductors & Devices | D33: ='App.2-BA_Fixed Asset Cont2014'!G33 -> 24009077.81 | E33: 1164812.151 | G33: 25173889.96 | I33: ='App.2-BA_Fixed Asset Cont2014'!L33 -> -8967528.13 | J33: -288574.0561 | L33: -9256102.186 | M33: 15917787.78
A34: 47 | B34: 1835 | C34: Overhead Conductors & Devices (1836) | D34: ='App.2-BA_Fixed Asset Cont2014'!G34 -> 2745055.9 | E34: 101000 | G34: 2846055.9 | I34: ='App.2-BA_Fixed Asset Cont2014'!L34 -> -1349564 | J34: -210712.6 | L34: -1560276.6 | M34: 1285779.3
A35: 47 | B35: 1835 | C35: Overhead Conductors & Devices (1837) | D35: ='App.2-BA_Fixed Asset Cont2014'!G35 -> 2272427.05 | E35: 30162.4 | G35: 2302589.45 | I35: ='App.2-BA_Fixed Asset Cont2014'!L35 -> -597052.46 | J35: -71265.68 | L35: -668318.14 | M35: 1634271.31
A36: 47 | B36: 1840 | C36: Underground Conduit | D36: ='App.2-BA_Fixed Asset Cont2014'!G36 -> 10910020.51 | E36: 836869.66 | G36: 11746890.17 | I36: ='App.2-BA_Fixed Asset Cont2014'!L36 -> -2538952.779 | J36: -200446.505 | L36: -2739399.284 | M36: 9007490.886
A37: 47 | B37: 1845 | C37: Underground Conductors & Devices | D37: ='App.2-BA_Fixed Asset Cont2014'!G37 -> 66944906.73 | E37: 2444065.462 | G37: 69388972.19 | I37: ='App.2-BA_Fixed Asset Cont2014'!L37 -> -39186970.96 | J37: -1245374.367 | L37: -40432345.33 | M37: 28956626.87
A38: 47 | B38: 1845 | C38: Underground Conductors & Devices (1846) | D38: ='App.2-BA_Fixed Asset Cont2014'!G38 -> 2166038.78 | E38: 561196.25 | G38: 2727235.03 | I38: ='App.2-BA_Fixed Asset Cont2014'!L38 -> -1090495.28 | J38: -59598.72 | L38: -1150094 | M38: 1577141.03
A39: 47 | B39: 1850 | C39: Line Transformers (1850) Polemount | D39: ='App.2-BA_Fixed Asset Cont2014'!G39 -> 20272305.44 | E39: 885008.164 | G39: 21157313.6 | I39: ='App.2-BA_Fixed Asset Cont2014'!L39 -> -13553447.45 | J39: -243964.7961 | L39: -13797412.24 | M39: 7359901.361
A40: 47 | B40: 1850 | C40: Line Transformers (1853) Padmount | D40: ='App.2-BA_Fixed Asset Cont2014'!G40 -> 18902363.84 | E40: 662260 | G40: 19564623.84 | I40: ='App.2-BA_Fixed Asset Cont2014'!L40 -> -8879822 | J40: -522072.12 | L40: -9401894.12 | M40: 10162729.72
A41: 47 | B41: 1855 | C41: Services (Overhead & Underground) | D41: ='App.2-BA_Fixed Asset Cont2014'!G41 -> 6492068.25 | E41: 1018442.517 | G41: 7510510.766 | I41: ='App.2-BA_Fixed Asset Cont2014'!L41 -> -1549406.538 | J41: -280050.8151 | L41: -1829457.353 | M41: 5681053.414
A42: 47 | B42: 1860 | C42: Meters | D42: ='App.2-BA_Fixed Asset Cont2014'!G42 -> 3495889.76 | E42: 284541 | G42: 3780430.76 | I42: ='App.2-BA_Fixed Asset Cont2014'!L42 -> -1152795.464 | J42: -186489.245 | L42: -1339284.708 | M42: 2441146.052
A43: 47 | B43: 1860 | C43: Meters (Smart Meters) | D43: ='App.2-BA_Fixed Asset Cont2014'!G43 -> 5861065.26 | E43: 143150 | G43: 6004215.26 | I43: ='App.2-BA_Fixed Asset Cont2014'!L43 -> -1440304.4 | J43: -405161.5867 | L43: -1845465.987 | M43: 4158749.273
A44: 47 | B44: 1865 | C44: Other Installations on Customer's Premises | D44: ='App.2-BA_Fixed Asset Cont2014'!G44 -> 0 | G44: 0 | I44: ='App.2-BA_Fixed Asset Cont2014'!L44 -> 0 | J44: 0 | L44: 0 | M44: 0
A45: 47 | B45: 1875 | C45: Street Lighting and Signal Systems | D45: ='App.2-BA_Fixed Asset Cont2014'!G45 -> 0 | G45: 0 | I45: ='App.2-BA_Fixed Asset Cont2014'!L45 -> 0 | L45: 0 | M45: 0
A46: N/A | B46: 1905 | C46: Land | D46: ='App.2-BA_Fixed Asset Cont2014'!G46 -> 508969.83 | G46: 508969.83 | I46: ='App.2-BA_Fixed Asset Cont2014'!L46 -> 0 | L46: 0 | M46: 508969.83
A47: 47 | B47: 1908 | C47: Buildings & Fixtures | D47: ='App.2-BA_Fixed Asset Cont2014'!G47 -> 16617915.53 | E47: 44000 | G47: 16661915.53 | I47: ='App.2-BA_Fixed Asset Cont2014'!L47 -> -2948127.572 | J47: -281046.6745 | L47: -3229174.247 | M47: 13432741.28
A48: 13 | B48: 1910 | C48: Leasehold Improvements | D48: ='App.2-BA_Fixed Asset Cont2014'!G48 -> 120252.32 | G48: 120252.32 | I48: ='App.2-BA_Fixed Asset Cont2014'!L48 -> -120252.32 | L48: -120252.32 | M48: 0
A49: 8 | B49: 1915 | C49: Office Furniture & Equipment (10 years) | D49: ='App.2-BA_Fixed Asset Cont2014'!G49 -> 1650564.44 | E49: 32823.80564 | G49: 1683388.246 | I49: ='App.2-BA_Fixed Asset Cont2014'!L49 -> -1037848.58 | J49: -97373.02028 | L49: -1135221.6 | M49: 548166.6454
A50: 8 | B50: 1915 | C50: Office Furniture & Equipment (5 years) | D50: ='App.2-BA_Fixed Asset Cont2014'!G50 -> 0 | G50: 0 | I50: ='App.2-BA_Fixed Asset Cont2014'!L50 -> 0 | L50: 0 | M50: 0
A51: 10 | B51: 1920 | C51: Computer Equipment - Hardware | D51: ='App.2-BA_Fixed Asset Cont2014'!G51 -> 1257769.3 | G51: 1257769.3 | I51: ='App.2-BA_Fixed Asset Cont2014'!L51 -> -1257769.3 | L51: -1257769.3 | M51: 0
A52: 45 | B52: 1920 | C52: Computer Equip.-Hardware(Post Mar. 22/04) | D52: ='App.2-BA_Fixed Asset Cont2014'!G52 -> 320323.46 | G52: 320323.46 | I52: ='App.2-BA_Fixed Asset Cont2014'!L52 -> -315054.356 | L52: =I52+J52+K52 -> -315054.356 | M52: 5269.104
A53: 50 | B53: 1920 | C53: Computer Equip.-Hardware(Post Mar. 19/07) | D53: ='App.2-BA_Fixed Asset Cont2014'!G53 -> 2501877.75 | E53: 240248 | G53: 2742125.75 | I53: ='App.2-BA_Fixed Asset Cont2014'!L53 -> -1699294.279 | J53: -236679.2239 | L53: -1935973.503 | M53: 806152.2471
A54: 10 | B54: 1930 | C54: Transportation Equipment (1931) | D54: ='App.2-BA_Fixed Asset Cont2014'!G54 -> 705983.68 | E54: 114085.5169 | G54: 820069.1969 | I54: ='App.2-BA_Fixed Asset Cont2014'!L54 -> -432197.8318 | J54: -65720.65122 | L54: -497918.483 | M54: 322150.7139
A55: 10 | B55: 1930 | C55: Transportation Equipment (1932) Large Trucks | D55: ='App.2-BA_Fixed Asset Cont2014'!G55 -> 8194698.03 | E55: 513992.42 | G55: 8708690.45 | I55: ='App.2-BA_Fixed Asset Cont2014'!L55 -> -4201080.61 | J55: -342028.07 | L55: -4543108.68 | M55: 4165581.77
A56: 10 | B56: 1930 | C56: Transportation Equipment (1933) Trailers | D56: ='App.2-BA_Fixed Asset Cont2014'!G56 -> 351326.27 | E56: 70800 | G56: 422126.27 | I56: ='App.2-BA_Fixed Asset Cont2014'!L56 -> -235766.66 | J56: -8453.61 | L56: -244220.27 | M56: 177906
A57: 8 | B57: 1935 | C57: Stores Equipment | D57: ='App.2-BA_Fixed Asset Cont2014'!G57 -> 311414.31 | E57: 0 | G57: 311414.31 | I57: ='App.2-BA_Fixed Asset Cont2014'!L57 -> -211239.84 | J57: -8799.28 | L57: -220039.12 | M57: 91375.19
A58: 8 | B58: 1940 | C58: Tools, Shop & Garage Equipment | D58: ='App.2-BA_Fixed Asset Cont2014'!G58 -> 2021825.55 | E58: 60802.69942 | G58: 2082628.249 | I58: ='App.2-BA_Fixed Asset Cont2014'!L58 -> -1611458.26 | J58: -78073.02497 | L58: -1689531.285 | M58: 393096.9645
A59: 8 | B59: 1945 | C59: Measurement & Testing Equipment | D59: ='App.2-BA_Fixed Asset Cont2014'!G59 -> 204006.33 | E59: 1000 | G59: 205006.33 | I59: ='App.2-BA_Fixed Asset Cont2014'!L59 -> -199219.45 | J59: -3239.18 | L59: -202458.63 | M59: 2547.7
A60: 8 | B60: 1950 | C60: Power Operated Equipment | D60: ='App.2-BA_Fixed Asset Cont2014'!G60 -> 0 | E60: 0 | G60: 0 | I60: ='App.2-BA_Fixed Asset Cont2014'!L60 -> 0 | J60: 0 | L60: 0 | M60: 0
A61: 8 | B61: 1955 | C61: Communications Equipment | D61: ='App.2-BA_Fixed Asset Cont2014'!G61 -> 1074284.33 | E61: 215000 | G61: 1289284.33 | I61: ='App.2-BA_Fixed Asset Cont2014'!L61 -> -215834.4589 | J61: -51496.46981 | L61: -267330.9287 | M61: 1021953.401
A62: 8 | B62: 1955 | C62: Communication Equipment (Smart Meters) | D62: ='App.2-BA_Fixed Asset Cont2014'!G62 -> 0 | E62: 1000 | G62: 1000 | I62: ='App.2-BA_Fixed Asset Cont2014'!L62 -> 0 | L62: 0 | M62: 1000
A63: 8 | B63: 1960 | C63: Miscellaneous Equipment | D63: ='App.2-BA_Fixed Asset Cont2014'!G63 -> 72951.31 | E63: 0 | G63: 72951.31 | I63: ='App.2-BA_Fixed Asset Cont2014'!L63 -> -72704.25 | J63: -249.3 | L63: -72953.55 | M63: -2.24
A64: 47 | B64: 1970 | C64: Load Management Controls Customer Premises | D64: ='App.2-BA_Fixed Asset Cont2014'!G64 -> 0 | E64: 0 | G64: 0 | I64: ='App.2-BA_Fixed Asset Cont2014'!L64 -> 0 | L64: 0 | M64: 0
A65: 47 | B65: 1975 | C65: Load Management Controls Utility Premises | D65: ='App.2-BA_Fixed Asset Cont2014'!G65 -> 0 | G65: 0 | I65: ='App.2-BA_Fixed Asset Cont2014'!L65 -> 0 | L65: 0 | M65: 0
A66: 47 | B66: 1980 | C66: System Supervisor Equipment | D66: ='App.2-BA_Fixed Asset Cont2014'!G66 -> 128960.64 | G66: 128960.64 | I66: ='App.2-BA_Fixed Asset Cont2014'!L66 -> -128961 | L66: -128961 | M66: -0.36
A67: 47 | B67: 1985 | C67: Miscellaneous Fixed Assets | D67: ='App.2-BA_Fixed Asset Cont2014'!G67 -> 0 | G67: 0 | I67: ='App.2-BA_Fixed Asset Cont2014'!L67 -> 0 | L67: 0 | M67: 0
A68: 47 | B68: 1990 | C68: Other Tangible Property | D68: ='App.2-BA_Fixed Asset Cont2014'!G68 -> 0 | G68: 0 | I68: ='App.2-BA_Fixed Asset Cont2014'!L68 -> 0 | L68: 0 | M68: 0
A69: 47 | B69: 1995 | C69: Contributions & Grants | D69: ='App.2-BA_Fixed Asset Cont2014'!G69 -> -22416863.36 | E69: -827800 | G69: -23244663.36 | I69: ='App.2-BA_Fixed Asset Cont2014'!L69 -> 7149358.615 | J69: 879538.5024 | L69: 8028897.118 | M69: -15215766.24
A70: 47 | B70: 2440 | C70: Deferred Revenue5 | D70: ='App.2-BA_Fixed Asset Cont2014'!G70 -> 0 | G70: 0 | I70: ='App.2-BA_Fixed Asset Cont2014'!L70 -> 0 | L70: 0 | M70: 0
A71: 47 | B71: 2005 | C71: 2005-Property Under Capital Leases | D71: ='App.2-BA_Fixed Asset Cont2014'!G71 -> 0 | G71: 0 | I71: ='App.2-BA_Fixed Asset Cont2014'!L71 -> 0 | M71: 0
G72: 0 | L72: 0 | M72: =G72+L72 -> 0
C73: Sub-Total | D73: =SUM(D17:D72) -> 242097163.1 | E73: =SUM(E17:E72) -> 11185268.02 | F73: =SUM(F17:F72) -> 0 | G73: =SUM(G17:G72) -> 253282431.1 | I73: =SUM(I17:I72) -> -121477481.5 | J73: =SUM(J17:J72) -> -4936878.956 | K73: =SUM(K17:K72) -> 0 | L73: =SUM(L17:L72) -> -126414360.5 | M73: =SUM(M17:M72) -> 126868070.6
C74: Less Socialized Renewable Energy Generation Investments (input as negative) | G74: =D74+E74+F74 -> 0 | L74: =I74+J74+K74 -> 0 | M74: =G74+L74 -> 0
C75: Less Other Non Rate-Regulated Utility Assets (input as negative) | G75: =D75+E75+F75 -> 0 | L75: =I75+J75+K75 -> 0 | M75: =G75+L75 -> 0
C76: Total PP&E | D76: =SUM(D73:D75) -> 242097163.1 | E76: =SUM(E73:E75) -> 11185268.02 | F76: =SUM(F73:F75) -> 0 | G76: =SUM(G73:G75) -> 253282431.1 | I76: =SUM(I73:I75) -> -121477481.5 | J76: =SUM(J73:J75) -> -4936878.956 | K76: =SUM(K73:K75) -> 0 | L76: =SUM(L73:L75) -> -126414360.5 | M76: =SUM(M73:M75) -> 126868070.6
C77: Depreciation Expense adj. from gain or loss on the retirement of assets (pool of like assets), if applicable6
C78: Total | J78: =J76+J77 -> -4936878.956
I80: Less: Fully Allocated Depreciation
A81: 10 | C81: Transportation | I81: Transportation
A82: 8 | C82: Stores Equipment | I82: Stores Equipment
I83: Net Depreciation | K83: =J78-K81-K82 -> -4936878.956
A85: Notes:
A87: 1 | B87: Tables in the format outlined above covering all fixed asset accounts should be submitted for the Test Year, Bridge Year and all relevant historical years. At a minimum , the applicant must provide data for the earlier of: 1) all historical years back to its last rebasing; or 2) at least three years of historical actuals, in addition to Bridge Year and Test Year forecasts.
A90: 2 | B90: The "CCA Class" for fixed assets should agree with the CCA Class used for tax purposes in Tax Returns. Fixed Assets sub-components may be used where the underlying asset components are classified under multiple CCA Classes for tax purposes. If an applicant uses any different classes from those shown in the table, an explanation should be provided. (also see note 3 below).
A93: 3 | B93: The table may need to be customized for a utility's asset categories or for any new asset accounts announced or authorized by the Board.
A95: 4 | B95: The additions column (E) must not include construction work in progress (CWIP).
A97: 5 | B97: Effective on the date of IFRS adoption, customer contributions will no longer be recorded in Account 1995 Contributions & Grants, but will be recorded in Account 2440, Deferred Revenues.
A99: 6 | B99: Where a distributor for general financial reporting purposes under IFRS has accounted for the amount of gain or loss on the retirement of assets in a pool of like assets as a charge or credit to income, for reporting and rate application filings the distributor shall reclassify such gains and losses as depreciation expense, and disclose the amount separately.

Sheet Appendix 2-BB Service Life
M1: File Number: | O1: 0
M2: Exhibit:
M3: Tab:
M4: Schedule:
M5: Page:
M7: Date:
A9: Appendix 2-BB
A10: Service Life Comparison
A11: Table F-1 from Kinetrics Report1
C15: Asset Details | F15: Useful Life | J15: USoA Account Number | K15: USoA Account Description | L15: Current | N15: Proposed | P15: Outside Range of Min, Max TUL?
A16: Parent* | B16: # | C16: Category| Component | Type | F16: MIN UL | G16: TUL | H16: MAX UL | L16: Years | M16: Rate | N16: Years | O16: Rate | P16: Below Min TUL | Q16: Above Max TUL
A17: OH | B17: 1 | C17: Fully Dressed Wood Poles | D17: Overall | F17: 35 | G17: 45 | H17: 75 | J17: 1830 | K17: Fully Dressed Wood Poles | L17: 25 | M17: =IF(ISERROR(1/L17), "", 1/L17) -> 0.04 | N17: 50 | O17: =IF(ISERROR(1/N17), "", 1/N17) -> 0.02 | P17: =IF(ISBLANK(N17),"",IF(N17<F17,"Yes","No")) -> No | Q17: =IF(ISBLANK(N17),"",IF(N17>H17,"Yes","No")) -> No
D18: Cross Arm | E18: Wood | F18: 20 | G18: 40 | H18: 55 | M18: =IF(ISERROR(1/L18), "", 1/L18) ->  | O18: =IF(ISERROR(1/N18), "", 1/N18) -> 
E19: Steel | F19: 30 | G19: 70 | H19: 95
B20: 2 | C20: Fully Dressed Concrete Poles | D20: Overall | F20: 50 | G20: 60 | H20: 80 | J20: 1831 | K20: Fully Dressed Concrete Poles | L20: 25 | M20: 0.04 | N20: 60 | O20: 0.01666666667 | P20: No | Q20: No
D21: Cross Arm | E21: Wood | F21: 20 | G21: 40 | H21: 55
E22: Steel | F22: 30 | G22: 70 | H22: 95
B23: 3 | C23: Fully Dressed Steel Poles | D23: Overall | F23: 60 | G23: 60 | H23: 80 | J23: 1831 | K23: Fully Dressed Steel Poles | L23: 25 | M23: 0.04 | N23: 60 | O23: 0.01666666667 | P23: No | Q23: No
D24: Cross Arm | E24: Wood | F24: 20 | G24: 40 | H24: 55
E25: Steel | F25: 30 | G25: 70 | H25: 95
B26: 4 | C26: OH Line Switch | F26: 30 | G26: 45 | H26: 55
B27: 5 | C27: OH Line Switch Motor | F27: 15 | G27: 25 | H27: 25 | J27: 1836 | K27: OH Switch - complex (Motor &RTU) | L27: 25 | M27: 0.04 | N27: 15 | O27: 0.06666666667 | P27: No | Q27: No
B28: 6 | C28: OH Line Switch RTU | F28: 15 | G28: 20 | H28: 20 | J28: 1836 | K28: OH Switch - complex (Motor &RTU) | L28: 25 | M28: 0.04 | N28: 15 | O28: 0.06666666667 | P28: No | Q28: No
B29: 7 | C29: OH Integral Switches | F29: 35 | G29: 45 | H29: 60
B30: 8 | C30: OH Conductors | F30: 50 | G30: 60 | H30: 75 | J30: 1835 | K30: OH Conductors & non-complex switches | L30: 25 | M30: 0.04 | N30: 60 | O30: 0.01666666667 | P30: No | Q30: No
C31: OH Secondary Conductor | F31: 30 | G31: 40 | H31: 60 | J31: 1837 | K31: OH secondary conductor | L31: 25 | M31: 0.04 | N31: 30 | O31: 0.03333333333 | P31: No | Q31: No
B32: 9 | C32: OH Transformers & Voltage Regulators | F32: 30 | G32: 40 | H32: 60 | J32: 1850 | K32: OH Transformers and Voltage Regulator | L32: 25 | M32: 0.04 | N32: 40 | O32: 0.025 | P32: No | Q32: No
B33: 10 | C33: OH Shunt Capacitor Banks | F33: 25 | G33: 30 | H33: 40
B34: 11 | C34: Reclosers | F34: 25 | G34: 40 | H34: 55
A35: TS & MS | B35: 12 | C35: Power Transformers | D35: Overall | F35: 30 | G35: 45 | H35: 60 | J35: 1715 | K35: Power Transformer | L35: 40 | M35: 0.025 | N35: 45 | O35: 0.02222222222 | P35: No | Q35: No
D36: Bushing | F36: 10 | G36: 20 | H36: 30 | P36: =IF(ISBLANK(N36),"",IF(N36<F36,"Yes","No")) ->  | Q36: =IF(ISBLANK(N36),"",IF(N36>H36,"Yes","No")) -> 
D37: Tap Changer | F37: 20 | G37: 30 | H37: 60
B38: 12 | C38: MS Station - Power Transformers | D38: Overall | F38: 30 | G38: 45 | H38: 60 | J38: 1820 | K38: Power Transformer | L38: 25 | M38: =IF(ISERROR(1/L38), "", 1/L38) -> 0.04 | N38: 45 | O38: 0.02222222222 | P38: No | Q38: No
D39: Bushing | F39: 10 | G39: 20 | H39: 30
D40: Tap Changer | F40: 20 | G40: 30 | H40: 60
B41: 13 | C41: Station Service Transformer | F41: 30 | G41: 45 | H41: 55
B42: 14 | C42: Station Grounding Transformer | F42: 30 | G42: 40 | H42: 40
B43: 15 | C43: Station DC System | D43: Overall | F43: 10 | G43: 20 | H43: 30 | J43: 1716 | K43: Station DC System | L43: 40 | M43: 0.025 | N43: 10 | O43: 0.1 | P43: No | Q43: No
D44: Battery Bank | F44: 10 | G44: 15 | H44: 15
D45: Charger | F45: 20 | G45: 20 | H45: 30
B46: 16 | C46: TS Station - Station Metal Clad Switchgear | D46: Overall | F46: 30 | G46: 40 | H46: 60 | J46: 1717 | K46: Station Metal Clad Switchgear | L46: 40 | M46: 0.025 | N46: 40 | O46: 0.025 | P46: No | Q46: No
D47: Removable Breaker | F47: 25 | G47: 40 | H47: 60
B48: 16 | C48: Station Metal Clad Switchgear | D48: Overall | F48: 30 | G48: 40 | H48: 60 | J48: 1821 | K48: Station Metal Clad Switchgear | L48: 25 | M48: 0.04 | N48: 30 | O48: 0.03333333333 | P48: No | Q48: No
D49: Removable Breaker | F49: 25 | G49: 40 | H49: 60
B50: 17 | C50: TS Station - Station Independent Breakers | F50: 35 | G50: 45 | H50: 65 | J50: 1718 | K50: Station Independent Breakers | L50: 25 | M50: 0.04 | N50: 45 | O50: 0.02222222222 | P50: No | Q50: No
B51: 17 | C51: MS Station - Station Independent Breakers | F51: 35 | G51: 45 | H51: 65 | J51: 1718 | K51: Station Independent Breakers | L51: 25 | M51: 0.04 | N51: 45 | O51: 0.02222222222 | P51: No | Q51: No
B52: 18 | C52: Station Switch | F52: 30 | G52: 50 | H52: 60
B53: 19 | C53: Electromechanical Relays | F53: 25 | G53: 35 | H53: 50
B54: 20 | C54: Solid State Relays | F54: 10 | G54: 30 | H54: 45 | J54: 1719 | K54: Protection System | L54: 40 | M54: 0.025 | N54: 20 | O54: 0.05 | P54: No | Q54: No
B55: 21 | C55: Digital & Numeric Relays | F55: 15 | G55: 20 | H55: 20 | J55: 1719 | K55: Protection System | L55: 40 | M55: 0.025 | N55: 20 | O55: 0.05 | P55: No | Q55: No
B56: 22 | C56: Rigid Busbars | F56: 30 | G56: 55 | H56: 60 | P56: =IF(ISBLANK(N56),"",IF(N56<F56,"Yes","No")) ->  | Q56: =IF(ISBLANK(N56),"",IF(N56>H56,"Yes","No")) -> 
B57: 23 | C57: Steel Structure | F57: 35 | G57: 50 | H57: 90
A58: UG | B58: 24 | C58: Primary Paper Insulated Lead Covered (PILC) Cables | F58: 60 | G58: 65 | H58: 75
B59: 25 | C59: Primary Ethylene-Propylene Rubber (EPR) Cables | F59: 20 | G59: 25 | H59: 25
B60: 26 | C60: Primary Non-Tree Retardant (TR) Cross Linked Polyethylene (XLPE) Cables Direct Buried | F60: 20 | G60: 25 | H60: 30
B61: 27 | C61: Primary Non-TR XLPE Cables in Duct | F61: 20 | G61: 25 | H61: 30
B62: 28 | C62: Primary TR XLPE Cables Direct Buried | F62: 25 | G62: 30 | H62: 35
B63: 29 | C63: Primary TR XLPE Cables in Duct | F63: 35 | G63: 40 | H63: 55 | J63: 1845 | K63: Primary TR XLPE Cables in Duct | L63: 25 | M63: 0.04 | N63: 35 | O63: 0.02857142857 | P63: No | Q63: No
B64: 30 | C64: Secondary PILC Cables | F64: 70 | G64: 75 | H64: 80
B65: 31 | C65: Secondary Cables Direct Buried | F65: 25 | G65: 35 | H65: 40
B66: 32 | C66: Secondary Cables in Duct | F66: 35 | G66: 40 | H66: 60
B67: 33 | C67: Network Tranformers | D67: Overall | F67: 20 | G67: 35 | H67: 50
D68: Protector | F68: 20 | G68: 35 | H68: 40
B69: 34 | C69: Pad-Mounted Transformers | F69: 25 | G69: 40 | H69: 45 | J69: 1853 | K69: Pad-Mounted Transformers & Mini-pads | L69: 25 | M69: 0.04 | N69: 30 | O69: 0.03333333333 | P69: No | Q69: No
B70: 35 | C70: Submersible/Vault Transformers | F70: 25 | G70: 35 | H70: 45
B71: 36 | C71: UG Foundation | F71: 35 | G71: 55 | H71: 70 | J71: 1840 | K71: Ducts/Concrete Encased Ducts Banks/Foundations | L71: 25 | M71: 0.04 | N71: 50 | O71: 0.02 | P71: =IF(ISBLANK(N71),"",IF(N71<F71,"Yes","No")) -> No | Q71: =IF(ISBLANK(N71),"",IF(N71>H71,"Yes","No")) -> No
B72: 37 | C72: UG Vaults | D72: Overall | F72: 40 | G72: 60 | H72: 80
D73: Roof | F73: 20 | G73: 30 | H73: 45
B74: 38 | C74: UG Vault Switches | F74: 20 | G74: 35 | H74: 50 | J74: 1846 | K74: UG Vault Switches & Pad-Mounted Switchgear | L74: 25 | M74: 0.04 | N74: 30 | O74: 0.03333333333 | P74: No | Q74: No
B75: 39 | C75: Pad-Mounted Switchgear | F75: 20 | G75: 30 | H75: 45 | J75: 1846 | K75: UG Vault Switches & Pad-Mounted Switchgear | L75: 25 | M75: 0.04 | N75: 30 | O75: 0.03333333333 | P75: No | Q75: No
B76: 40 | C76: Ducts | F76: 30 | G76: 50 | H76: 85 | J76: 1840 | K76: Ducts/Concrete Encased Ducts Banks/Foundations | L76: 25 | M76: 0.04 | N76: 50 | O76: 0.02 | P76: No | Q76: No
B77: 41 | C77: Concrete Encased Duct Banks | F77: 35 | G77: 55 | H77: 80 | J77: 1840 | K77: Ducts/Concrete Encased Ducts Banks/Foundations | L77: 25 | M77: 0.04 | N77: 50 | O77: 0.02 | P77: No | Q77: No
B78: 42 | C78: Cable Chambers | F78: 50 | G78: 60 | H78: 80 | J78: 1840 | K78: Ducts/Concrete Encased Ducts Banks/Foundations | L78: 25 | M78: 0.04 | N78: 50 | O78: 0.02 | P78: No | Q78: No
A79: S | B79: 43 | C79: Remote SCADA | F79: 15 | G79: 20 | H79: 30 | J79: 1955/1980 | K79: Remote SCADA/Wi-Max | L79: 4 | M79: 0.25 | N79: 20 | O79: 0.05 | P79: No | Q79: No
A82: Table F-2 from Kinetrics Report1
C84: Asset Details | F84: Useful Life Range | J84: USoA Account Number | K84: USoA Account Description | L84: Current | N84: Proposed | P84: Outside Range of Min, Max TUL?
B85: # | C85: Category| Component | Type | L85: Years | M85: Rate | N85: Years | O85: Rate | P85: Below Min Range | Q85: Above Max Range
B86: 1 | C86: Office Equipment | F86: 5 | G86: 15 | J86: 1915 | K86: Office Equipment | L86: 10 | M86: =IF(ISERROR(1/L86), "", 1/L86) -> 0.1 | N86: 10 | O86: =IF(ISERROR(1/N86), "", 1/N86) -> 0.1 | P86: =IF(ISBLANK(N86),"",IF(N86<F86,"Yes","No")) -> No | Q86: =IF(ISBLANK(N86),"",IF(N86>G86,"Yes","No")) -> No
B87: 2 | C87: Vehicles | D87: Trucks & Buckets | F87: 5 | G87: 15 | J87: 1932 | K87: Trucks & Buckets | L87: 8 | M87: =IF(ISERROR(1/L87), "", 1/L87) -> 0.125 | N87: 15 | O87: =IF(ISERROR(1/N87), "", 1/N87) -> 0.06666666667 | P87: =IF(ISBLANK(N87),"",IF(N87<F87,"Yes","No")) -> No | Q87: =IF(ISBLANK(N87),"",IF(N87>G87,"Yes","No")) -> No
D88: Trailers | F88: 5 | G88: 20 | J88: 1933 | K88: Trailers | L88: 8 | M88: 0.125 | N88: 20 | O88: 0.05 | P88: =IF(ISBLANK(N88),"",IF(N88<F88,"Yes","No")) -> No | Q88: =IF(ISBLANK(N88),"",IF(N88>G88,"Yes","No")) -> No
D89: Vans | F89: 5 | G89: 10 | J89: 1931 | K89: Vans/Cars | L89: 8 | M89: 0.125 | N89: 8 | O89: 0.125 | P89: =IF(ISBLANK(N89),"",IF(N89<F89,"Yes","No")) -> No | Q89: =IF(ISBLANK(N89),"",IF(N89>G89,"Yes","No")) -> No
B90: 3 | C90: Administrative Buildings | F90: 50 | G90: 75 | J90: 1908 | K90: Admin Buildings | L90: 60 | M90: 0.01666666667 | N90: 60 | O90: 0.01666666667 | P90: =IF(ISBLANK(N90),"",IF(N90<F90,"Yes","No")) -> No | Q90: =IF(ISBLANK(N90),"",IF(N90>G90,"Yes","No")) -> No
B91: 4 | C91: Leasehold Improvements | F91: Lease dependent
B92: 5 | C92: Station Buildings | D92: Station Buildings | F92: 50 | G92: 75 | J92: 1708 | K92: Station Building | L92: 50 | M92: 0.02 | N92: 50 | O92: 0.02 | P92: No | Q92: No
D93: Parking | F93: 25 | G93: 30
D94: Fence | F94: 25 | G94: 60
D95: Roof | F95: 20 | G95: 30
B96: 6 | C96: Computer Equipment | D96: Hardware | F96: 3 | G96: 5 | J96: 1920 | K96: Hardware | L96: 5 | M96: 0.2 | N96: 5 | O96: 0.2 | P96: No | Q96: No
D97: Software | F97: 2 | G97: 5 | J97: 1925 | K97: Software | L97: 3 | M97: 0.3333333333 | N97: 3 | O97: 0.3333333333 | P97: No | Q97: No
B98: 7 | C98: Equipment | D98: Power Operated | F98: 5 | G98: 10
D99: Stores | F99: 5 | G99: 10 | J99: 1935 | K99: Stores | L99: 10 | M99: 0.1 | N99: 10 | O99: 0.1 | P99: No | Q99: No
D100: Tools, Shop, Garage Equipment | F100: 5 | G100: 10 | J100: 1940 | K100: Tools | L100: 10 | M100: 0.1 | N100: 10 | O100: 0.1 | P100: No | Q100: No
D101: Measurement & Testing Equipment | F101: 5 | G101: 10 | J101: 1945 | K101: Measurement & Testing | L101: 5 | M101: 0.2 | N101: 5 | O101: 0.2 | P101: No | Q101: No
B102: 8 | C102: Communication | D102: Towers | F102: 60 | G102: 70
D103: Wireless | F103: 2 | G103: 10
B104: 9 | C104: Residential Energy Meters | F104: 25 | G104: 35
B105: 10 | C105: Industrial/Commercial Energy Meters | F105: 25 | G105: 35
B106: 11 | C106: Wholesale Energy Meters | F106: 15 | G106: 30 | J106: 1860 | K106: Meters - non-smart meters | L106: 25 | M106: 0.04 | N106: 20 | O106: 0.05 | P106: =IF(ISBLANK(N106),"",IF(N106<F106,"Yes","No")) -> No | Q106: =IF(ISBLANK(N106),"",IF(N106>G106,"Yes","No")) -> No
B107: 12 | C107: Current & Potential Transformer (CT & PT) | F107: 35 | G107: 50 | P107: =IF(ISBLANK(N107),"",IF(N107<F107,"Yes","No")) ->  | Q107: =IF(ISBLANK(N107),"",IF(N107>G107,"Yes","No")) -> 
B108: 13 | C108: Smart Meters | F108: 5 | G108: 15 | J108: 1860-01-06 | K108: Smart Meters | L108: 15 | M108: 0.06666666667 | N108: 15 | O108: 0.06666666667 | P108: =IF(ISBLANK(N108),"",IF(N108<F108,"Yes","No")) -> No | Q108: =IF(ISBLANK(N108),"",IF(N108>G108,"Yes","No")) -> No
B109: 14 | C109: Repeaters - Smart Metering | F109: 10 | G109: 15 | P109: =IF(ISBLANK(N109),"",IF(N109<F109,"Yes","No")) ->  | Q109: =IF(ISBLANK(N109),"",IF(N109>G109,"Yes","No")) -> 
B110: 15 | C110: Data Collectors - Smart Metering | F110: 15 | G110: 20 | P110: =IF(ISBLANK(N110),"",IF(N110<F110,"Yes","No")) ->  | Q110: =IF(ISBLANK(N110),"",IF(N110>G110,"Yes","No")) -> 
A113: * TS & MS = Transformer and Municipal Stations UG = Underground Systems S = Monitoring and Control Systems
A115: Note 1: | B115: Tables F-1 and F-2 above are to be used as a reference in order to complete columns J, K, L and N.
B116: See pages 17-19 of Kinetrics Report

Sheet App.2-CA_OldCGAAP_DepExp_2012
K1: File Number: | L1: =EBNUMBER -> EB-2014-0096
K2: Exhibit:
K3: Tab:
K4: Schedule:
K5: Page:
K7: Date:
A9: Appendix 2-CA
A10: Depreciation and Amortization Expense
B11: Assumes the applicant made capitalization and depreciation expense accounting policy changes under CGAAP effective January 1, 2012 and will adopt IFRS for financial reporting purposes effective January 1, 2015.
C13: Year | D13: 2012 | E13: Former CGAAP
A15: Account | B15: Description | C15: Opening Regulatory Gross PP&E as at Jan 1, 2012 | D15: Less Fully Depreciated | E15: Net for Depreciation | F15: Additions | G15: Total for Depreciation | H15: Years | I15: Depreciation Rate | J15: Depreciation Expense | K15: 2012 Depreciation Expense per Appendix 2-BA Fixed Assets, Column J (l) | L15: Variance 2
C16: (a) | D16: (b) | E16: (c) | F16: (d) | G16: (e) = (c) + ½ x (d) 1 | H16: (f) | I16: (g) = 1 / (f) | J16: (h) = (e) / (f) | L16: (m) = (h) - (l)
A17: 1611 | B17: Computer Software (Formally known as Account 1925) | E17: =C17-D17 -> 0 | G17: =E17+0.5*F17 -> 0 | I17: =IF(H17=0,0,1/H17) -> 0 | J17: =IF(H17=0,0,G17/H17) -> 0 | L17: =IF(ISERROR(+J17-K17), 0, +J17-K17) -> 0
A18: 1612 | B18: Land Rights (Formally known as Account 1906) | E18: =C18-D18 -> 0 | G18: =E18+0.5*F18 -> 0 | I18: 0 | J18: 0 | L18: 0
A19: 1805 | B19: Land | E19: 0 | G19: 0 | I19: 0 | J19: 0 | L19: 0
A20: 1808 | B20: Buildings | E20: 0 | G20: 0 | I20: 0 | J20: 0 | L20: 0
A21: 1810 | B21: Leasehold Improvements | E21: 0 | G21: 0 | I21: 0 | J21: 0 | L21: 0
A22: 1815 | B22: Transformer Station Equipment >50 kV | E22: 0 | G22: 0 | I22: 0 | J22: 0 | L22: 0
A23: 1820 | B23: Distribution Station Equipment <50 kV | E23: 0 | G23: 0 | I23: 0 | J23: 0 | L23: 0
A24: 1825 | B24: Storage Battery Equipment | E24: 0 | G24: 0 | I24: 0 | J24: 0 | L24: 0
A25: 1830 | B25: Poles, Towers & Fixtures | E25: 0 | G25: 0 | I25: 0 | J25: 0 | L25: 0
A26: 1835 | B26: Overhead Conductors & Devices | E26: 0 | G26: 0 | I26: 0 | J26: 0 | L26: 0
A27: 1840 | B27: Underground Conduit | E27: 0 | G27: 0 | I27: 0 | J27: 0 | L27: 0
A28: 1845 | B28: Underground Conductors & Devices | E28: 0 | G28: 0 | I28: 0 | J28: 0 | L28: 0
A29: 1850 | B29: Line Transformers | E29: 0 | G29: 0 | I29: 0 | J29: 0 | L29: 0
A30: 1855 | B30: Services (Overhead & Underground) | E30: 0 | G30: 0 | I30: 0 | J30: 0 | L30: 0
A31: 1860 | B31: Meters | E31: 0 | G31: 0 | I31: 0 | J31: 0 | L31: 0
A32: 1860 | B32: Meters (Smart Meters) | E32: 0 | G32: 0 | I32: 0 | J32: 0 | L32: 0
A33: 1905 | B33: Land | E33: 0 | G33: 0 | I33: 0 | J33: 0 | L33: 0
A34: 1908 | B34: Buildings & Fixtures | E34: 0 | G34: 0 | I34: 0 | J34: 0 | L34: 0
A35: 1910 | B35: Leasehold Improvements | E35: 0 | G35: 0 | I35: 0 | J35: 0 | L35: 0
A36: 1915 | B36: Office Furniture & Equipment (10 years) | E36: 0 | G36: 0 | I36: 0 | J36: 0 | L36: 0
A37: 1915 | B37: Office Furniture & Equipment (5 years) | E37: 0 | G37: 0 | I37: 0 | J37: 0 | L37: 0
A38: 1920 | B38: Computer Equipment - Hardware | E38: 0 | G38: 0 | I38: 0 | J38: 0 | L38: 0
A39: 1920 | B39: Computer Equip.-Hardware(Post Mar. 22/04) | E39: 0 | G39: 0 | I39: 0 | J39: 0 | L39: 0
A40: 1920 | B40: Computer Equip.-Hardware(Post Mar. 19/07) | E40: 0 | G40: 0 | I40: 0 | J40: 0 | L40: 0
A41: 1930 | B41: Transportation Equipment | E41: 0 | G41: 0 | I41: 0 | J41: 0 | L41: 0
A42: 1935 | B42: Stores Equipment | E42: 0 | G42: 0 | I42: 0 | J42: 0 | L42: 0
A43: 1940 | B43: Tools, Shop & Garage Equipment | E43: 0 | G43: 0 | I43: 0 | J43: 0 | L43: 0
A44: 1945 | B44: Measurement & Testing Equipment | E44: 0 | G44: 0 | I44: 0 | J44: 0 | L44: 0
A45: 1950 | B45: Power Operated Equipment | E45: 0 | G45: 0 | I45: 0 | J45: 0 | L45: 0
A46: 1955 | B46: Communications Equipment | E46: 0 | G46: 0 | I46: 0 | J46: 0 | L46: 0
A47: 1955 | B47: Communication Equipment (Smart Meters) | E47: 0 | G47: 0 | I47: 0 | J47: 0 | L47: 0
A48: 1960 | B48: Miscellaneous Equipment | E48: 0 | G48: 0 | I48: 0 | J48: 0 | L48: 0
A49: 1970 | B49: Load Management Controls Customer Premises | E49: 0 | G49: 0 | I49: 0 | J49: 0 | L49: 0
A50: 1975 | B50: Load Management Controls Utility Premises | E50: 0 | G50: 0 | I50: 0 | J50: 0 | L50: 0
A51: 1980 | B51: System Supervisor Equipment | E51: 0 | G51: 0 | I51: 0 | J51: 0 | L51: 0
A52: 1985 | B52: Miscellaneous Fixed Assets | E52: 0 | G52: 0 | I52: 0 | J52: 0 | L52: 0
A53: 1990 | B53: Other Tangible Property | E53: 0 | G53: 0 | I53: 0 | J53: 0 | L53: 0
A54: 1995 | B54: Contributions & Grants | E54: 0 | G54: 0 | I54: 0 | J54: 0 | L54: 0
B55: Total | C55: =SUM(C17:C54) -> 0 | D55: =SUM(D17:D54) -> 0 | E55: =SUM(E17:E54) -> 0 | F55: =SUM(F17:F54) -> 0 | G55: =SUM(G17:G54) -> 0 | J55: =SUM(J17:J54) -> 0 | K55: =SUM(K17:K54) -> 0 | L55: =SUM(L17:L54) -> 0
A57: Notes:
A59: 1 | B59: Board policy of the "half-year" rule - the applicant must ensure that additions in the year attract a half-year depreciation expense in the first year. Deviations from this standard practice must be supported in the application.
A60: 2 | B60: The applicant must provide an explanation of material variances in evidence.
A62: General | B62: Applicants must provide a breakdown of depreciation and amortization expense in the above format for all relevant accounts. Asset Retirement Obligations (AROs), depreciation and accretion expense should be disclosed separately consistent with the Notes of historical Audited Financial Statements.

Sheet App.2-CB_NewCGAAP_DepExp_2012
N1: File Number: | O1: =EBNUMBER -> EB-2014-0096
N2: Exhibit:
N3: Tab:
N4: Schedule:
N5: Page:
N7: Date:
A9: Appendix 2-CB
A10: Depreciation and Amortization Expense
A11: Assumes the applicant made capitalization and depreciation expense accounting policy changes under CGAAP effective January 1, 2012 and will adopt IFRS for financial reporting purposes effective January 1, 2015.
C13: Year | D13: 2012 | E13: Revised CGAAP
A15: Account | B15: Description | C15: Opening NBV as at Jan 1, 2012 5 | D15: Additions | E15: Average Remaining Life of Opening NBV 4 | F15: Years (new additions only) 3 | G15: Depreciation Rate on New Additions | H15: Depreciation Expense on Opening NBV | I15: Depreciation Expense on Additions 1 | J15: 2012 Depreciation Expense | K15: 2012 Depreciation Expense per Appendix 2-BA Fixed Assets, Column J (l) | L15: Variance 2 | M15: Depreciation Expense on 2012 Full Year Additions | N15: Less Depreciation Expense on Assets Fully Depreciated during the year (o) | O15: 2012 Full Year Depreciation 6
C16: (a) | D16: (d) | E16: (i) | F16: (f) | G16: (g) = 1 / (f) | H16: (j) = (a) / (i) | I16: (h)=((d)*0.5)/(f) | J16: (k) = (j) + (h) | L16: (m) = (k) - (l) | M16: (n) = (d)/(f) | O16: (p) = (j) + (n) - (o)
A17: 1611 | B17: Computer Software (Formally known as Account 1925) | G17: =IF(F17=0,0,1/F17) -> 0 | H17: =IF(E17=0,0,+C17/E17) -> 0 | I17: =IF(F17=0,0,+(D17*0.5)/F17) -> 0 | J17: =IF(ISERROR(+H17+I17), 0, +H17+I17) -> 0 | L17: =IF(ISERROR(+J17-K17), 0, +J17-K17) -> 0 | M17: =IF(F17=0,0,+(D17)/F17) -> 0 | O17: =IF(ISERROR(+M17+H17-N17), 0, +M17+H17-N17) -> 0
A18: 1612 | B18: Land Rights (Formally known as Account 1906) | G18: 0 | H18: 0 | I18: 0 | J18: 0 | L18: 0 | M18: 0 | O18: =IF(ISERROR(+M18+H18-N18), 0, +M18+H18-N18) -> 0
A19: 1805 | B19: Land | G19: 0 | H19: 0 | I19: 0 | J19: 0 | L19: 0 | M19: 0 | O19: 0
A20: 1808 | B20: Buildings | G20: 0 | H20: 0 | I20: 0 | J20: 0 | L20: 0 | M20: 0 | O20: 0
A21: 1810 | B21: Leasehold Improvements | G21: 0 | H21: 0 | I21: 0 | J21: 0 | L21: 0 | M21: 0 | O21: 0
A22: 1815 | B22: Transformer Station Equipment >50 kV | G22: 0 | H22: 0 | I22: 0 | J22: 0 | L22: 0 | M22: 0 | O22: 0
A23: 1820 | B23: Distribution Station Equipment <50 kV | G23: 0 | H23: 0 | I23: 0 | J23: 0 | L23: 0 | M23: 0 | O23: 0
A24: 1825 | B24: Storage Battery Equipment | G24: 0 | H24: 0 | I24: 0 | J24: 0 | L24: 0 | M24: 0 | O24: 0
A25: 1830 | B25: Poles, Towers & Fixtures | G25: 0 | H25: 0 | I25: 0 | J25: 0 | L25: 0 | M25: 0 | O25: 0
A26: 1835 | B26: Overhead Conductors & Devices | G26: 0 | H26: 0 | I26: 0 | J26: 0 | L26: 0 | M26: 0 | O26: 0
A27: 1840 | B27: Underground Conduit | G27: 0 | H27: 0 | I27: 0 | J27: 0 | L27: 0 | M27: 0 | O27: 0
A28: 1845 | B28: Underground Conductors & Devices | G28: 0 | H28: 0 | I28: 0 | J28: 0 | L28: 0 | M28: 0 | O28: 0
A29: 1850 | B29: Line Transformers | G29: 0 | H29: 0 | I29: 0 | J29: 0 | L29: 0 | M29: 0 | O29: 0
A30: 1855 | B30: Services (Overhead & Underground) | G30: 0 | H30: 0 | I30: 0 | J30: 0 | L30: 0 | M30: 0 | O30: 0
A31: 1860 | B31: Meters | G31: 0 | H31: 0 | I31: 0 | J31: 0 | L31: 0 | M31: 0 | O31: 0
A32: 1860 | B32: Meters (Smart Meters) | G32: 0 | H32: 0 | I32: 0 | J32: 0 | L32: 0 | M32: 0 | O32: 0
A33: 1905 | B33: Land | G33: 0 | H33: 0 | I33: 0 | J33: 0 | L33: 0 | M33: 0 | O33: 0
A34: 1908 | B34: Buildings & Fixtures | G34: 0 | H34: 0 | I34: 0 | J34: 0 | L34: 0 | M34: 0 | O34: 0
A35: 1910 | B35: Leasehold Improvements | G35: 0 | H35: 0 | I35: 0 | J35: 0 | L35: 0 | M35: 0 | O35: 0
A36: 1915 | B36: Office Furniture & Equipment (10 years) | G36: 0 | H36: 0 | I36: 0 | J36: 0 | L36: 0 | M36: 0 | O36: 0
A37: 1915 | B37: Office Furniture & Equipment (5 years) | G37: 0 | H37: 0 | I37: 0 | J37: 0 | L37: 0 | M37: 0 | O37: 0
A38: 1920 | B38: Computer Equipment - Hardware | G38: 0 | H38: 0 | I38: 0 | J38: 0 | L38: 0 | M38: 0 | O38: 0
A39: 1920 | B39: Computer Equip.-Hardware(Post Mar. 22/04) | G39: 0 | H39: 0 | I39: 0 | J39: 0 | L39: 0 | M39: 0 | O39: 0
A40: 1920 | B40: Computer Equip.-Hardware(Post Mar. 19/07) | G40: 0 | H40: 0 | I40: 0 | J40: 0 | L40: 0 | M40: 0 | O40: 0
A41: 1930 | B41: Transportation Equipment | G41: 0 | H41: 0 | I41: 0 | J41: 0 | L41: 0 | M41: 0 | O41: 0
A42: 1935 | B42: Stores Equipment | G42: 0 | H42: 0 | I42: 0 | J42: 0 | L42: 0 | M42: 0 | O42: 0
A43: 1940 | B43: Tools, Shop & Garage Equipment | G43: 0 | H43: 0 | I43: 0 | J43: 0 | L43: 0 | M43: 0 | O43: 0
A44: 1945 | B44: Measurement & Testing Equipment | G44: 0 | H44: 0 | I44: 0 | J44: 0 | L44: 0 | M44: 0 | O44: 0
A45: 1950 | B45: Power Operated Equipment | G45: 0 | H45: 0 | I45: 0 | J45: 0 | L45: 0 | M45: 0 | O45: 0
A46: 1955 | B46: Communications Equipment | G46: 0 | H46: 0 | I46: 0 | J46: 0 | L46: 0 | M46: 0 | O46: 0
A47: 1955 | B47: Communication Equipment (Smart Meters) | G47: 0 | H47: 0 | I47: 0 | J47: 0 | L47: 0 | M47: 0 | O47: 0
A48: 1960 | B48: Miscellaneous Equipment | G48: 0 | H48: 0 | I48: 0 | J48: 0 | L48: 0 | M48: 0 | O48: 0
A49: 1970 | B49: Load Management Controls Customer Premises | G49: 0 | H49: 0 | I49: 0 | J49: 0 | L49: 0 | M49: 0 | O49: 0
A50: 1975 | B50: Load Management Controls Utility Premises | G50: 0 | H50: 0 | I50: 0 | J50: 0 | L50: 0 | M50: 0 | O50: 0
A51: 1980 | B51: System Supervisor Equipment | G51: 0 | H51: 0 | I51: 0 | J51: 0 | L51: 0 | M51: 0 | O51: 0
A52: 1985 | B52: Miscellaneous Fixed Assets | G52: 0 | H52: 0 | I52: 0 | J52: 0 | L52: 0 | M52: 0 | O52: 0
A53: 1990 | B53: Other Tangible Property | G53: 0 | H53: 0 | I53: 0 | J53: 0 | L53: 0 | M53: 0 | O53: 0
A54: 1995 | B54: Contributions & Grants | G54: 0 | H54: 0 | I54: 0 | J54: 0 | L54: 0 | M54: 0 | O54: 0
B55: Total | C55: =SUM(C17:C54) -> 0 | D55: =SUM(D17:D54) -> 0 | H55: =SUM(H17:H54) -> 0 | I55: 0 | J55: 0 | K55: 0 | L55: 0 | M55: 0 | N55: 0 | O55: 0
A57: Notes:
A59: 1 | B59: Board policy of the "half-year" rule - the applicant must ensure that additions in the year attract a half-year depreciation expense in the first year. Deviations from this standard practice must be supported in the application.
A60: 2 | B60: The applicant must provide an explanation of material variances in evidence.
A61: 3 | B61: The applicant should ensure that the years for new additions of assets are the asset useful lives determined by management in accordance with the Board's regulatory accounting policies. The capitalization and depreciation expense accounting changes should be implemented consistent with the Board’s regulatory accounting policies as set out for modified IFRS as contained in the Report of the Board, Transition to International Financial Reporting Standards, EB-2008-0408, the Kinectrics Report, and the Revised 2012 Accounting Procedures Handbook for Electricity Distributors (“APH”).
A62: 4 | B62: A recalculation should be performed to determine the average remaining life of opening balance of assets (i.e. excluding 2012 additions) under the change in policies under CGAAP. For example, Asset A had a useful life of 20 years under CGAAP without the change in policies. On January 1, 2012, the effective date of the changes in policies, Asset A was 3 years depreciated. As a result, Asset A would have a remaining service life of 17 years (20 years less 3 years) as of January 1, 2012. Due to making the change in policies under CGAAP, management re-assessed the asset useful lives and concluded that the revised useful life of Asset A is now 30 years. Therefore, the average remaining useful life of the opening balance of Asset A is determined to be 27 years (30 years less 3 years) under the revised CGAAP as of January 1, 2012.
A63: 5 | B63: NBV must exclude assets still on the books but which have been fully amortized or depreciated.
A64: 6 | B64: This column refers to the calculated full year depreciation but excludes the depreciation expense on assets fully depreciated during the year. This column is used for the purpose of calculating depreciation expense in the following year on the next worksheet.
A66: General: | B66: Applicants must provide a breakdown of depreciation and amortization expense in the above format for all relevant accounts. Asset Retirement Obligations (AROs), depreciation and accretion expense should be disclosed separately consistent with the Notes of historical Audited Financial Statements.

Sheet App.2-CC_NewCGAAP_DepExp_2013
J1: File Number: | K1: =EBNUMBER -> EB-2014-0096
J2: Exhibit:
J3: Tab:
J4: Schedule:
J5: Page:
J7: Date:
A9: Appendix 2-CC
A10: Depreciation and Amortization Expense
A11: Assumes the applicant made capitalization and depreciation expense accounting policy changes under CGAAP effective January 1, 2012 and will adopt IFRS for financial reporting purposes effective January 1, 2015.
C13: 2013 | D13: Revised CGAAP
A15: Account | B15: Description | C15: Additions | D15: Years (new additions only) | E15: Depreciation Rate on New Additions | F15: 2013 Depreciation Expense 1 | G15: 2013 Depreciation Expense per Apppendix 2-BA Fixed Assets, Column J (l) | H15: Variance 2 | I15: Depreciation Expense on 2013 Full Year Additions | J15: Less Depreciation Expense on Assets Fully Depreciated during the year (o) | K15: 2013 Full Year Depreciation 3
C16: (d) | D16: (f) | E16: (g) = 1 / (f) | F16: (h)=2012 Full Year Deprecation + ((d)*0.5)/(f) | H16: (m) = (h) - (l) | I16: (n)=((d))/(f) | K16: (p) = 2012 Full Year Depreciation + (n) - (o)
A17: 1611 | B17: Computer Software (Formally known as Account 1925) | E17: =IF(D17=0,0,1/D17) -> 0 | F17: =IF(D17=0,+'App.2-CB_NewCGAAP_DepExp_2012'!O17,+'App.2-CB_NewCGAAP_DepExp_2012'!O17+((C17*0.5)/D17)) -> 0 | H17: =IF(ISERROR(+F17-G17), 0, +F17-G17) -> 0 | I17: =IF(D17=0,0,+(C17)/D17) -> 0 | K17: =IF(ISERROR(+I17+'App.2-CB_NewCGAAP_DepExp_2012'!O17-J17), 0, +I17+'App.2-CB_NewCGAAP_DepExp_2012'!O17-J17) -> 0
A18: 1612 | B18: Land Rights (Formally known as Account 1906) | E18: 0 | F18: =IF(D18=0,+'App.2-CB_NewCGAAP_DepExp_2012'!O18,+'App.2-CB_NewCGAAP_DepExp_2012'!O18+((C18*0.5)/D18)) -> 0 | H18: 0 | I18: 0 | K18: =IF(ISERROR(+I18+'App.2-CB_NewCGAAP_DepExp_2012'!O18-J18), 0, +I18+'App.2-CB_NewCGAAP_DepExp_2012'!O18-J18) -> 0
A19: 1805 | B19: Land | E19: 0 | F19: =IF(D19=0,+'App.2-CB_NewCGAAP_DepExp_2012'!O19,+'App.2-CB_NewCGAAP_DepExp_2012'!O19+((C19*0.5)/D19)) -> 0 | H19: 0 | I19: 0 | K19: =IF(ISERROR(+I19+'App.2-CB_NewCGAAP_DepExp_2012'!O19-J19), 0, +I19+'App.2-CB_NewCGAAP_DepExp_2012'!O19-J19) -> 0
A20: 1808 | B20: Buildings | E20: 0 | F20: =IF(D20=0,+'App.2-CB_NewCGAAP_DepExp_2012'!O20,+'App.2-CB_NewCGAAP_DepExp_2012'!O20+((C20*0.5)/D20)) -> 0 | H20: 0 | I20: 0 | K20: =IF(ISERROR(+I20+'App.2-CB_NewCGAAP_DepExp_2012'!O20-J20), 0, +I20+'App.2-CB_NewCGAAP_DepExp_2012'!O20-J20) -> 0
A21: 1810 | B21: Leasehold Improvements | E21: 0 | F21: =IF(D21=0,+'App.2-CB_NewCGAAP_DepExp_2012'!O21,+'App.2-CB_NewCGAAP_DepExp_2012'!O21+((C21*0.5)/D21)) -> 0 | H21: 0 | I21: 0 | K21: =IF(ISERROR(+I21+'App.2-CB_NewCGAAP_DepExp_2012'!O21-J21), 0, +I21+'App.2-CB_NewCGAAP_DepExp_2012'!O21-J21) -> 0
A22: 1815 | B22: Transformer Station Equipment >50 kV | E22: 0 | F22: =IF(D22=0,+'App.2-CB_NewCGAAP_DepExp_2012'!O22,+'App.2-CB_NewCGAAP_DepExp_2012'!O22+((C22*0.5)/D22)) -> 0 | H22: 0 | I22: 0 | K22: =IF(ISERROR(+I22+'App.2-CB_NewCGAAP_DepExp_2012'!O22-J22), 0, +I22+'App.2-CB_NewCGAAP_DepExp_2012'!O22-J22) -> 0
A23: 1820 | B23: Distribution Station Equipment <50 kV | E23: 0 | F23: =IF(D23=0,+'App.2-CB_NewCGAAP_DepExp_2012'!O23,+'App.2-CB_NewCGAAP_DepExp_2012'!O23+((C23*0.5)/D23)) -> 0 | H23: 0 | I23: 0 | K23: =IF(ISERROR(+I23+'App.2-CB_NewCGAAP_DepExp_2012'!O23-J23), 0, +I23+'App.2-CB_NewCGAAP_DepExp_2012'!O23-J23) -> 0
A24: 1825 | B24: Storage Battery Equipment | E24: 0 | F24: =IF(D24=0,+'App.2-CB_NewCGAAP_DepExp_2012'!O24,+'App.2-CB_NewCGAAP_DepExp_2012'!O24+((C24*0.5)/D24)) -> 0 | H24: 0 | I24: 0 | K24: =IF(ISERROR(+I24+'App.2-CB_NewCGAAP_DepExp_2012'!O24-J24), 0, +I24+'App.2-CB_NewCGAAP_DepExp_2012'!O24-J24) -> 0
A25: 1830 | B25: Poles, Towers & Fixtures | E25: 0 | F25: =IF(D25=0,+'App.2-CB_NewCGAAP_DepExp_2012'!O25,+'App.2-CB_NewCGAAP_DepExp_2012'!O25+((C25*0.5)/D25)) -> 0 | H25: 0 | I25: 0 | K25: =IF(ISERROR(+I25+'App.2-CB_NewCGAAP_DepExp_2012'!O25-J25), 0, +I25+'App.2-CB_NewCGAAP_DepExp_2012'!O25-J25) -> 0
A26: 1835 | B26: Overhead Conductors & Devices | E26: 0 | F26: =IF(D26=0,+'App.2-CB_NewCGAAP_DepExp_2012'!O26,+'App.2-CB_NewCGAAP_DepExp_2012'!O26+((C26*0.5)/D26)) -> 0 | H26: 0 | I26: 0 | K26: =IF(ISERROR(+I26+'App.2-CB_NewCGAAP_DepExp_2012'!O26-J26), 0, +I26+'App.2-CB_NewCGAAP_DepExp_2012'!O26-J26) -> 0
A27: 1840 | B27: Underground Conduit | E27: 0 | F27: =IF(D27=0,+'App.2-CB_NewCGAAP_DepExp_2012'!O27,+'App.2-CB_NewCGAAP_DepExp_2012'!O27+((C27*0.5)/D27)) -> 0 | H27: 0 | I27: 0 | K27: =IF(ISERROR(+I27+'App.2-CB_NewCGAAP_DepExp_2012'!O27-J27), 0, +I27+'App.2-CB_NewCGAAP_DepExp_2012'!O27-J27) -> 0
A28: 1845 | B28: Underground Conductors & Devices | E28: 0 | F28: =IF(D28=0,+'App.2-CB_NewCGAAP_DepExp_2012'!O28,+'App.2-CB_NewCGAAP_DepExp_2012'!O28+((C28*0.5)/D28)) -> 0 | H28: 0 | I28: 0 | K28: =IF(ISERROR(+I28+'App.2-CB_NewCGAAP_DepExp_2012'!O28-J28), 0, +I28+'App.2-CB_NewCGAAP_DepExp_2012'!O28-J28) -> 0
A29: 1850 | B29: Line Transformers | E29: 0 | F29: =IF(D29=0,+'App.2-CB_NewCGAAP_DepExp_2012'!O29,+'App.2-CB_NewCGAAP_DepExp_2012'!O29+((C29*0.5)/D29)) -> 0 | H29: 0 | I29: 0 | K29: =IF(ISERROR(+I29+'App.2-CB_NewCGAAP_DepExp_2012'!O29-J29), 0, +I29+'App.2-CB_NewCGAAP_DepExp_2012'!O29-J29) -> 0
A30: 1855 | B30: Services (Overhead & Underground) | E30: 0 | F30: =IF(D30=0,+'App.2-CB_NewCGAAP_DepExp_2012'!O30,+'App.2-CB_NewCGAAP_DepExp_2012'!O30+((C30*0.5)/D30)) -> 0 | H30: 0 | I30: 0 | K30: =IF(ISERROR(+I30+'App.2-CB_NewCGAAP_DepExp_2012'!O30-J30), 0, +I30+'App.2-CB_NewCGAAP_DepExp_2012'!O30-J30) -> 0
A31: 1860 | B31: Meters | E31: 0 | F31: =IF(D31=0,+'App.2-CB_NewCGAAP_DepExp_2012'!O31,+'App.2-CB_NewCGAAP_DepExp_2012'!O31+((C31*0.5)/D31)) -> 0 | H31: 0 | I31: 0 | K31: =IF(ISERROR(+I31+'App.2-CB_NewCGAAP_DepExp_2012'!O31-J31), 0, +I31+'App.2-CB_NewCGAAP_DepExp_2012'!O31-J31) -> 0
A32: 1860 | B32: Meters (Smart Meters) | E32: 0 | F32: =IF(D32=0,+'App.2-CB_NewCGAAP_DepExp_2012'!O32,+'App.2-CB_NewCGAAP_DepExp_2012'!O32+((C32*0.5)/D32)) -> 0 | H32: 0 | I32: 0 | K32: =IF(ISERROR(+I32+'App.2-CB_NewCGAAP_DepExp_2012'!O32-J32), 0, +I32+'App.2-CB_NewCGAAP_DepExp_2012'!O32-J32) -> 0
A33: 1905 | B33: Land | E33: 0 | F33: =IF(D33=0,+'App.2-CB_NewCGAAP_DepExp_2012'!O33,+'App.2-CB_NewCGAAP_DepExp_2012'!O33+((C33*0.5)/D33)) -> 0 | H33: 0 | I33: 0 | K33: =IF(ISERROR(+I33+'App.2-CB_NewCGAAP_DepExp_2012'!O33-J33), 0, +I33+'App.2-CB_NewCGAAP_DepExp_2012'!O33-J33) -> 0
A34: 1908 | B34: Buildings & Fixtures | E34: 0 | F34: =IF(D34=0,+'App.2-CB_NewCGAAP_DepExp_2012'!O34,+'App.2-CB_NewCGAAP_DepExp_2012'!O34+((C34*0.5)/D34)) -> 0 | H34: 0 | I34: 0 | K34: =IF(ISERROR(+I34+'App.2-CB_NewCGAAP_DepExp_2012'!O34-J34), 0, +I34+'App.2-CB_NewCGAAP_DepExp_2012'!O34-J34) -> 0
A35: 1910 | B35: Leasehold Improvements | E35: 0 | F35: =IF(D35=0,+'App.2-CB_NewCGAAP_DepExp_2012'!O35,+'App.2-CB_NewCGAAP_DepExp_2012'!O35+((C35*0.5)/D35)) -> 0 | H35: 0 | I35: 0 | K35: =IF(ISERROR(+I35+'App.2-CB_NewCGAAP_DepExp_2012'!O35-J35), 0, +I35+'App.2-CB_NewCGAAP_DepExp_2012'!O35-J35) -> 0
A36: 1915 | B36: Office Furniture & Equipment (10 years) | E36: 0 | F36: =IF(D36=0,+'App.2-CB_NewCGAAP_DepExp_2012'!O36,+'App.2-CB_NewCGAAP_DepExp_2012'!O36+((C36*0.5)/D36)) -> 0 | H36: 0 | I36: 0 | K36: =IF(ISERROR(+I36+'App.2-CB_NewCGAAP_DepExp_2012'!O36-J36), 0, +I36+'App.2-CB_NewCGAAP_DepExp_2012'!O36-J36) -> 0
A37: 1915 | B37: Office Furniture & Equipment (5 years) | E37: 0 | F37: =IF(D37=0,+'App.2-CB_NewCGAAP_DepExp_2012'!O37,+'App.2-CB_NewCGAAP_DepExp_2012'!O37+((C37*0.5)/D37)) -> 0 | H37: 0 | I37: 0 | K37: =IF(ISERROR(+I37+'App.2-CB_NewCGAAP_DepExp_2012'!O37-J37), 0, +I37+'App.2-CB_NewCGAAP_DepExp_2012'!O37-J37) -> 0
A38: 1920 | B38: Computer Equipment - Hardware | E38: 0 | F38: =IF(D38=0,+'App.2-CB_NewCGAAP_DepExp_2012'!O38,+'App.2-CB_NewCGAAP_DepExp_2012'!O38+((C38*0.5)/D38)) -> 0 | H38: 0 | I38: 0 | K38: =IF(ISERROR(+I38+'App.2-CB_NewCGAAP_DepExp_2012'!O38-J38), 0, +I38+'App.2-CB_NewCGAAP_DepExp_2012'!O38-J38) -> 0
A39: 1920 | B39: Computer Equip.-Hardware(Post Mar. 22/04) | E39: 0 | F39: =IF(D39=0,+'App.2-CB_NewCGAAP_DepExp_2012'!O39,+'App.2-CB_NewCGAAP_DepExp_2012'!O39+((C39*0.5)/D39)) -> 0 | H39: 0 | I39: 0 | K39: =IF(ISERROR(+I39+'App.2-CB_NewCGAAP_DepExp_2012'!O39-J39), 0, +I39+'App.2-CB_NewCGAAP_DepExp_2012'!O39-J39) -> 0
A40: 1920 | B40: Computer Equip.-Hardware(Post Mar. 19/07) | E40: 0 | F40: =IF(D40=0,+'App.2-CB_NewCGAAP_DepExp_2012'!O40,+'App.2-CB_NewCGAAP_DepExp_2012'!O40+((C40*0.5)/D40)) -> 0 | H40: 0 | I40: 0 | K40: =IF(ISERROR(+I40+'App.2-CB_NewCGAAP_DepExp_2012'!O40-J40), 0, +I40+'App.2-CB_NewCGAAP_DepExp_2012'!O40-J40) -> 0
A41: 1930 | B41: Transportation Equipment | E41: 0 | F41: =IF(D41=0,+'App.2-CB_NewCGAAP_DepExp_2012'!O41,+'App.2-CB_NewCGAAP_DepExp_2012'!O41+((C41*0.5)/D41)) -> 0 | H41: 0 | I41: 0 | K41: =IF(ISERROR(+I41+'App.2-CB_NewCGAAP_DepExp_2012'!O41-J41), 0, +I41+'App.2-CB_NewCGAAP_DepExp_2012'!O41-J41) -> 0
A42: 1935 | B42: Stores Equipment | E42: 0 | F42: =IF(D42=0,+'App.2-CB_NewCGAAP_DepExp_2012'!O42,+'App.2-CB_NewCGAAP_DepExp_2012'!O42+((C42*0.5)/D42)) -> 0 | H42: 0 | I42: 0 | K42: =IF(ISERROR(+I42+'App.2-CB_NewCGAAP_DepExp_2012'!O42-J42), 0, +I42+'App.2-CB_NewCGAAP_DepExp_2012'!O42-J42) -> 0
A43: 1940 | B43: Tools, Shop & Garage Equipment | E43: 0 | F43: =IF(D43=0,+'App.2-CB_NewCGAAP_DepExp_2012'!O43,+'App.2-CB_NewCGAAP_DepExp_2012'!O43+((C43*0.5)/D43)) -> 0 | H43: 0 | I43: 0 | K43: =IF(ISERROR(+I43+'App.2-CB_NewCGAAP_DepExp_2012'!O43-J43), 0, +I43+'App.2-CB_NewCGAAP_DepExp_2012'!O43-J43) -> 0
A44: 1945 | B44: Measurement & Testing Equipment | E44: 0 | F44: =IF(D44=0,+'App.2-CB_NewCGAAP_DepExp_2012'!O44,+'App.2-CB_NewCGAAP_DepExp_2012'!O44+((C44*0.5)/D44)) -> 0 | H44: 0 | I44: 0 | K44: =IF(ISERROR(+I44+'App.2-CB_NewCGAAP_DepExp_2012'!O44-J44), 0, +I44+'App.2-CB_NewCGAAP_DepExp_2012'!O44-J44) -> 0
A45: 1950 | B45: Power Operated Equipment | E45: 0 | F45: =IF(D45=0,+'App.2-CB_NewCGAAP_DepExp_2012'!O45,+'App.2-CB_NewCGAAP_DepExp_2012'!O45+((C45*0.5)/D45)) -> 0 | H45: 0 | I45: 0 | K45: =IF(ISERROR(+I45+'App.2-CB_NewCGAAP_DepExp_2012'!O45-J45), 0, +I45+'App.2-CB_NewCGAAP_DepExp_2012'!O45-J45) -> 0
A46: 1955 | B46: Communications Equipment | E46: 0 | F46: =IF(D46=0,+'App.2-CB_NewCGAAP_DepExp_2012'!O46,+'App.2-CB_NewCGAAP_DepExp_2012'!O46+((C46*0.5)/D46)) -> 0 | H46: 0 | I46: 0 | K46: =IF(ISERROR(+I46+'App.2-CB_NewCGAAP_DepExp_2012'!O46-J46), 0, +I46+'App.2-CB_NewCGAAP_DepExp_2012'!O46-J46) -> 0
A47: 1955 | B47: Communication Equipment (Smart Meters) | E47: 0 | F47: =IF(D47=0,+'App.2-CB_NewCGAAP_DepExp_2012'!O47,+'App.2-CB_NewCGAAP_DepExp_2012'!O47+((C47*0.5)/D47)) -> 0 | H47: 0 | I47: 0 | K47: =IF(ISERROR(+I47+'App.2-CB_NewCGAAP_DepExp_2012'!O47-J47), 0, +I47+'App.2-CB_NewCGAAP_DepExp_2012'!O47-J47) -> 0
A48: 1960 | B48: Miscellaneous Equipment | E48: 0 | F48: =IF(D48=0,+'App.2-CB_NewCGAAP_DepExp_2012'!O48,+'App.2-CB_NewCGAAP_DepExp_2012'!O48+((C48*0.5)/D48)) -> 0 | H48: 0 | I48: 0 | K48: =IF(ISERROR(+I48+'App.2-CB_NewCGAAP_DepExp_2012'!O48-J48), 0, +I48+'App.2-CB_NewCGAAP_DepExp_2012'!O48-J48) -> 0
A49: 1970 | B49: Load Management Controls Customer Premises | E49: 0 | F49: =IF(D49=0,+'App.2-CB_NewCGAAP_DepExp_2012'!O49,+'App.2-CB_NewCGAAP_DepExp_2012'!O49+((C49*0.5)/D49)) -> 0 | H49: 0 | I49: 0 | K49: =IF(ISERROR(+I49+'App.2-CB_NewCGAAP_DepExp_2012'!O49-J49), 0, +I49+'App.2-CB_NewCGAAP_DepExp_2012'!O49-J49) -> 0
A50: 1975 | B50: Load Management Controls Utility Premises | E50: 0 | F50: =IF(D50=0,+'App.2-CB_NewCGAAP_DepExp_2012'!O50,+'App.2-CB_NewCGAAP_DepExp_2012'!O50+((C50*0.5)/D50)) -> 0 | H50: 0 | I50: 0 | K50: =IF(ISERROR(+I50+'App.2-CB_NewCGAAP_DepExp_2012'!O50-J50), 0, +I50+'App.2-CB_NewCGAAP_DepExp_2012'!O50-J50) -> 0
A51: 1980 | B51: System Supervisor Equipment | E51: 0 | F51: =IF(D51=0,+'App.2-CB_NewCGAAP_DepExp_2012'!O51,+'App.2-CB_NewCGAAP_DepExp_2012'!O51+((C51*0.5)/D51)) -> 0 | H51: 0 | I51: 0 | K51: =IF(ISERROR(+I51+'App.2-CB_NewCGAAP_DepExp_2012'!O51-J51), 0, +I51+'App.2-CB_NewCGAAP_DepExp_2012'!O51-J51) -> 0
A52: 1985 | B52: Miscellaneous Fixed Assets | E52: 0 | F52: =IF(D52=0,+'App.2-CB_NewCGAAP_DepExp_2012'!O52,+'App.2-CB_NewCGAAP_DepExp_2012'!O52+((C52*0.5)/D52)) -> 0 | H52: 0 | I52: 0 | K52: =IF(ISERROR(+I52+'App.2-CB_NewCGAAP_DepExp_2012'!O52-J52), 0, +I52+'App.2-CB_NewCGAAP_DepExp_2012'!O52-J52) -> 0
A53: 1990 | B53: Other Tangible Property | E53: 0 | F53: =IF(D53=0,+'App.2-CB_NewCGAAP_DepExp_2012'!O53,+'App.2-CB_NewCGAAP_DepExp_2012'!O53+((C53*0.5)/D53)) -> 0 | H53: 0 | I53: 0 | K53: =IF(ISERROR(+I53+'App.2-CB_NewCGAAP_DepExp_2012'!O53-J53), 0, +I53+'App.2-CB_NewCGAAP_DepExp_2012'!O53-J53) -> 0
A54: 1995 | B54: Contributions & Grants | E54: 0 | F54: =IF(D54=0,+'App.2-CB_NewCGAAP_DepExp_2012'!O54,+'App.2-CB_NewCGAAP_DepExp_2012'!O54+((C54*0.5)/D54)) -> 0 | H54: 0 | I54: 0 | K54: =IF(ISERROR(+I54+'App.2-CB_NewCGAAP_DepExp_2012'!O54-J54), 0, +I54+'App.2-CB_NewCGAAP_DepExp_2012'!O54-J54) -> 0
B55: Total | C55: =SUM(C17:C54) -> 0 | F55: =SUM(F17:F54) -> 0 | G55: 0 | H55: 0 | I55: 0 | J55: 0 | K55: 0
A57: Notes:
A58: 1 | B58: Board policy of the "half-year" rule - the applicant must ensure that additions in the year attract a half-year depreciation expense in the first year. Deviations from this standard practice must be supported in the application.
A59: 2 | B59: The applicant must provide an explanation of material variances in evidence.
A60: 3 | B60: This column refers to the calculated full year depreciation but excludes the depreciation expense on assets fully depreciated during the year. This column is used for the purpose of calculating depreciation expense in the following year on the next worksheet.
A62: General: | B62: Applicants must provide a breakdown of depreciation and amortization expense in the above format for all relevant accounts. Asset Retirement Obligations (AROs), depreciation and accretion expense should be disclosed separately consistent with the Notes of historical Audited Financial Statements.

Sheet App.2-CD_MIFRS_DepExp_2014
J1: File Number: | K1: =EBNUMBER -> EB-2014-0096
J2: Exhibit:
J3: Tab:
J4: Schedule:
J5: Page:
J7: Date:
A9: Appendix 2-CD
A10: Depreciation and Amortization Expense
A11: Assumes the applicant made capitalization and depreciation expense accounting policy changes under CGAAP effective January 1, 2012 and will adopt IFRS for financial reporting purposes effective January 1, 2015.
E13: 2014 | F13: MIFRS
A15: Account | B15: Description | C15: Additions | D15: Years (new additions only) | E15: Depreciation Rate on New Additions | F15: 2014 Depreciation Expense 1 | G15: 2014 Depreciation Expense per Apppendix 2-BA Fixed Assets, Column J (l) | H15: Variance 2 | I15: Depreciation Expense on 2014 Full Year Additions | J15: Less Depreciation Expense on Assets Fully Depreciated during the year (o) | K15: 2014 Full Year Depreciation 3
C16: (d) | D16: (f) | E16: (g) = 1 / (f) | F16: (h)=2013 Full Year Deprecation + ((d)*0.5)/(f) | H16: (m) = (h) - (l) | I16: (n)=((d))/(f) | K16: (p) = 2013 Full Year Depreciation + (n) - (o)
A17: 1611 | B17: Computer Software (Formally known as Account 1925) | E17: =IF(D17=0,0,1/D17) -> 0 | F17: =IF(D17=0,+'App.2-CC_NewCGAAP_DepExp_2013'!K17,+'App.2-CC_NewCGAAP_DepExp_2013'!K17+((C17*0.5)/D17)) -> 0 | H17: =IF(ISERROR(+F17-G17), 0, +F17-G17) -> 0 | I17: =IF(D17=0,0,+(C17)/D17) -> 0 | K17: =IF(ISERROR(+I17+'App.2-CC_NewCGAAP_DepExp_2013'!K17-J17), 0, +I17+'App.2-CC_NewCGAAP_DepExp_2013'!K17-J17) -> 0
A18: 1612 | B18: Land Rights (Formally known as Account 1906) | E18: 0 | F18: =IF(D18=0,+'App.2-CC_NewCGAAP_DepExp_2013'!K18,+'App.2-CC_NewCGAAP_DepExp_2013'!K18+((C18*0.5)/D18)) -> 0 | H18: 0 | I18: 0 | K18: =IF(ISERROR(+I18+'App.2-CC_NewCGAAP_DepExp_2013'!K18-J18), 0, +I18+'App.2-CC_NewCGAAP_DepExp_2013'!K18-J18) -> 0
A19: 1805 | B19: Land | E19: 0 | F19: =IF(D19=0,+'App.2-CC_NewCGAAP_DepExp_2013'!K19,+'App.2-CC_NewCGAAP_DepExp_2013'!K19+((C19*0.5)/D19)) -> 0 | H19: 0 | I19: 0 | K19: =IF(ISERROR(+I19+'App.2-CC_NewCGAAP_DepExp_2013'!K19-J19), 0, +I19+'App.2-CC_NewCGAAP_DepExp_2013'!K19-J19) -> 0
A20: 1808 | B20: Buildings | E20: 0 | F20: =IF(D20=0,+'App.2-CC_NewCGAAP_DepExp_2013'!K20,+'App.2-CC_NewCGAAP_DepExp_2013'!K20+((C20*0.5)/D20)) -> 0 | H20: 0 | I20: 0 | K20: =IF(ISERROR(+I20+'App.2-CC_NewCGAAP_DepExp_2013'!K20-J20), 0, +I20+'App.2-CC_NewCGAAP_DepExp_2013'!K20-J20) -> 0
A21: 1810 | B21: Leasehold Improvements | E21: 0 | F21: =IF(D21=0,+'App.2-CC_NewCGAAP_DepExp_2013'!K21,+'App.2-CC_NewCGAAP_DepExp_2013'!K21+((C21*0.5)/D21)) -> 0 | H21: 0 | I21: 0 | K21: =IF(ISERROR(+I21+'App.2-CC_NewCGAAP_DepExp_2013'!K21-J21), 0, +I21+'App.2-CC_NewCGAAP_DepExp_2013'!K21-J21) -> 0
A22: 1815 | B22: Transformer Station Equipment >50 kV | E22: 0 | F22: =IF(D22=0,+'App.2-CC_NewCGAAP_DepExp_2013'!K22,+'App.2-CC_NewCGAAP_DepExp_2013'!K22+((C22*0.5)/D22)) -> 0 | H22: 0 | I22: 0 | K22: =IF(ISERROR(+I22+'App.2-CC_NewCGAAP_DepExp_2013'!K22-J22), 0, +I22+'App.2-CC_NewCGAAP_DepExp_2013'!K22-J22) -> 0
A23: 1820 | B23: Distribution Station Equipment <50 kV | E23: 0 | F23: =IF(D23=0,+'App.2-CC_NewCGAAP_DepExp_2013'!K23,+'App.2-CC_NewCGAAP_DepExp_2013'!K23+((C23*0.5)/D23)) -> 0 | H23: 0 | I23: 0 | K23: =IF(ISERROR(+I23+'App.2-CC_NewCGAAP_DepExp_2013'!K23-J23), 0, +I23+'App.2-CC_NewCGAAP_DepExp_2013'!K23-J23) -> 0
A24: 1825 | B24: Storage Battery Equipment | E24: 0 | F24: =IF(D24=0,+'App.2-CC_NewCGAAP_DepExp_2013'!K24,+'App.2-CC_NewCGAAP_DepExp_2013'!K24+((C24*0.5)/D24)) -> 0 | H24: 0 | I24: 0 | K24: =IF(ISERROR(+I24+'App.2-CC_NewCGAAP_DepExp_2013'!K24-J24), 0, +I24+'App.2-CC_NewCGAAP_DepExp_2013'!K24-J24) -> 0
A25: 1830 | B25: Poles, Towers & Fixtures | E25: 0 | F25: =IF(D25=0,+'App.2-CC_NewCGAAP_DepExp_2013'!K25,+'App.2-CC_NewCGAAP_DepExp_2013'!K25+((C25*0.5)/D25)) -> 0 | H25: 0 | I25: 0 | K25: =IF(ISERROR(+I25+'App.2-CC_NewCGAAP_DepExp_2013'!K25-J25), 0, +I25+'App.2-CC_NewCGAAP_DepExp_2013'!K25-J25) -> 0
A26: 1835 | B26: Overhead Conductors & Devices | E26: 0 | F26: =IF(D26=0,+'App.2-CC_NewCGAAP_DepExp_2013'!K26,+'App.2-CC_NewCGAAP_DepExp_2013'!K26+((C26*0.5)/D26)) -> 0 | H26: 0 | I26: 0 | K26: =IF(ISERROR(+I26+'App.2-CC_NewCGAAP_DepExp_2013'!K26-J26), 0, +I26+'App.2-CC_NewCGAAP_DepExp_2013'!K26-J26) -> 0
A27: 1840 | B27: Underground Conduit | E27: 0 | F27: =IF(D27=0,+'App.2-CC_NewCGAAP_DepExp_2013'!K27,+'App.2-CC_NewCGAAP_DepExp_2013'!K27+((C27*0.5)/D27)) -> 0 | H27: 0 | I27: 0 | K27: =IF(ISERROR(+I27+'App.2-CC_NewCGAAP_DepExp_2013'!K27-J27), 0, +I27+'App.2-CC_NewCGAAP_DepExp_2013'!K27-J27) -> 0
A28: 1845 | B28: Underground Conductors & Devices | E28: 0 | F28: =IF(D28=0,+'App.2-CC_NewCGAAP_DepExp_2013'!K28,+'App.2-CC_NewCGAAP_DepExp_2013'!K28+((C28*0.5)/D28)) -> 0 | H28: 0 | I28: 0 | K28: =IF(ISERROR(+I28+'App.2-CC_NewCGAAP_DepExp_2013'!K28-J28), 0, +I28+'App.2-CC_NewCGAAP_DepExp_2013'!K28-J28) -> 0
A29: 1850 | B29: Line Transformers | E29: 0 | F29: =IF(D29=0,+'App.2-CC_NewCGAAP_DepExp_2013'!K29,+'App.2-CC_NewCGAAP_DepExp_2013'!K29+((C29*0.5)/D29)) -> 0 | H29: 0 | I29: 0 | K29: =IF(ISERROR(+I29+'App.2-CC_NewCGAAP_DepExp_2013'!K29-J29), 0, +I29+'App.2-CC_NewCGAAP_DepExp_2013'!K29-J29) -> 0
A30: 1855 | B30: Services (Overhead & Underground) | E30: 0 | F30: =IF(D30=0,+'App.2-CC_NewCGAAP_DepExp_2013'!K30,+'App.2-CC_NewCGAAP_DepExp_2013'!K30+((C30*0.5)/D30)) -> 0 | H30: 0 | I30: 0 | K30: =IF(ISERROR(+I30+'App.2-CC_NewCGAAP_DepExp_2013'!K30-J30), 0, +I30+'App.2-CC_NewCGAAP_DepExp_2013'!K30-J30) -> 0
A31: 1860 | B31: Meters | E31: 0 | F31: =IF(D31=0,+'App.2-CC_NewCGAAP_DepExp_2013'!K31,+'App.2-CC_NewCGAAP_DepExp_2013'!K31+((C31*0.5)/D31)) -> 0 | H31: 0 | I31: 0 | K31: =IF(ISERROR(+I31+'App.2-CC_NewCGAAP_DepExp_2013'!K31-J31), 0, +I31+'App.2-CC_NewCGAAP_DepExp_2013'!K31-J31) -> 0
A32: 1860 | B32: Meters (Smart Meters) | E32: 0 | F32: =IF(D32=0,+'App.2-CC_NewCGAAP_DepExp_2013'!K32,+'App.2-CC_NewCGAAP_DepExp_2013'!K32+((C32*0.5)/D32)) -> 0 | H32: 0 | I32: 0 | K32: =IF(ISERROR(+I32+'App.2-CC_NewCGAAP_DepExp_2013'!K32-J32), 0, +I32+'App.2-CC_NewCGAAP_DepExp_2013'!K32-J32) -> 0
A33: 1905 | B33: Land | E33: 0 | F33: =IF(D33=0,+'App.2-CC_NewCGAAP_DepExp_2013'!K33,+'App.2-CC_NewCGAAP_DepExp_2013'!K33+((C33*0.5)/D33)) -> 0 | H33: 0 | I33: 0 | K33: =IF(ISERROR(+I33+'App.2-CC_NewCGAAP_DepExp_2013'!K33-J33), 0, +I33+'App.2-CC_NewCGAAP_DepExp_2013'!K33-J33) -> 0
A34: 1908 | B34: Buildings & Fixtures | E34: 0 | F34: =IF(D34=0,+'App.2-CC_NewCGAAP_DepExp_2013'!K34,+'App.2-CC_NewCGAAP_DepExp_2013'!K34+((C34*0.5)/D34)) -> 0 | H34: 0 | I34: 0 | K34: =IF(ISERROR(+I34+'App.2-CC_NewCGAAP_DepExp_2013'!K34-J34), 0, +I34+'App.2-CC_NewCGAAP_DepExp_2013'!K34-J34) -> 0
A35: 1910 | B35: Leasehold Improvements | E35: 0 | F35: =IF(D35=0,+'App.2-CC_NewCGAAP_DepExp_2013'!K35,+'App.2-CC_NewCGAAP_DepExp_2013'!K35+((C35*0.5)/D35)) -> 0 | H35: 0 | I35: 0 | K35: =IF(ISERROR(+I35+'App.2-CC_NewCGAAP_DepExp_2013'!K35-J35), 0, +I35+'App.2-CC_NewCGAAP_DepExp_2013'!K35-J35) -> 0
A36: 1915 | B36: Office Furniture & Equipment (10 years) | E36: 0 | F36: =IF(D36=0,+'App.2-CC_NewCGAAP_DepExp_2013'!K36,+'App.2-CC_NewCGAAP_DepExp_2013'!K36+((C36*0.5)/D36)) -> 0 | H36: 0 | I36: 0 | K36: =IF(ISERROR(+I36+'App.2-CC_NewCGAAP_DepExp_2013'!K36-J36), 0, +I36+'App.2-CC_NewCGAAP_DepExp_2013'!K36-J36) -> 0
A37: 1915 | B37: Office Furniture & Equipment (5 years) | E37: 0 | F37: =IF(D37=0,+'App.2-CC_NewCGAAP_DepExp_2013'!K37,+'App.2-CC_NewCGAAP_DepExp_2013'!K37+((C37*0.5)/D37)) -> 0 | H37: 0 | I37: 0 | K37: =IF(ISERROR(+I37+'App.2-CC_NewCGAAP_DepExp_2013'!K37-J37), 0, +I37+'App.2-CC_NewCGAAP_DepExp_2013'!K37-J37) -> 0
A38: 1920 | B38: Computer Equipment - Hardware | E38: 0 | F38: =IF(D38=0,+'App.2-CC_NewCGAAP_DepExp_2013'!K38,+'App.2-CC_NewCGAAP_DepExp_2013'!K38+((C38*0.5)/D38)) -> 0 | H38: 0 | I38: 0 | K38: =IF(ISERROR(+I38+'App.2-CC_NewCGAAP_DepExp_2013'!K38-J38), 0, +I38+'App.2-CC_NewCGAAP_DepExp_2013'!K38-J38) -> 0
A39: 1920 | B39: Computer Equip.-Hardware(Post Mar. 22/04) | E39: 0 | F39: =IF(D39=0,+'App.2-CC_NewCGAAP_DepExp_2013'!K39,+'App.2-CC_NewCGAAP_DepExp_2013'!K39+((C39*0.5)/D39)) -> 0 | H39: 0 | I39: 0 | K39: =IF(ISERROR(+I39+'App.2-CC_NewCGAAP_DepExp_2013'!K39-J39), 0, +I39+'App.2-CC_NewCGAAP_DepExp_2013'!K39-J39) -> 0
A40: 1920 | B40: Computer Equip.-Hardware(Post Mar. 19/07) | E40: 0 | F40: =IF(D40=0,+'App.2-CC_NewCGAAP_DepExp_2013'!K40,+'App.2-CC_NewCGAAP_DepExp_2013'!K40+((C40*0.5)/D40)) -> 0 | H40: 0 | I40: 0 | K40: =IF(ISERROR(+I40+'App.2-CC_NewCGAAP_DepExp_2013'!K40-J40), 0, +I40+'App.2-CC_NewCGAAP_DepExp_2013'!K40-J40) -> 0
A41: 1930 | B41: Transportation Equipment | E41: 0 | F41: =IF(D41=0,+'App.2-CC_NewCGAAP_DepExp_2013'!K41,+'App.2-CC_NewCGAAP_DepExp_2013'!K41+((C41*0.5)/D41)) -> 0 | H41: 0 | I41: 0 | K41: =IF(ISERROR(+I41+'App.2-CC_NewCGAAP_DepExp_2013'!K41-J41), 0, +I41+'App.2-CC_NewCGAAP_DepExp_2013'!K41-J41) -> 0
A42: 1935 | B42: Stores Equipment | E42: 0 | F42: =IF(D42=0,+'App.2-CC_NewCGAAP_DepExp_2013'!K42,+'App.2-CC_NewCGAAP_DepExp_2013'!K42+((C42*0.5)/D42)) -> 0 | H42: 0 | I42: 0 | K42: =IF(ISERROR(+I42+'App.2-CC_NewCGAAP_DepExp_2013'!K42-J42), 0, +I42+'App.2-CC_NewCGAAP_DepExp_2013'!K42-J42) -> 0
A43: 1940 | B43: Tools, Shop & Garage Equipment | E43: 0 | F43: =IF(D43=0,+'App.2-CC_NewCGAAP_DepExp_2013'!K43,+'App.2-CC_NewCGAAP_DepExp_2013'!K43+((C43*0.5)/D43)) -> 0 | H43: 0 | I43: 0 | K43: =IF(ISERROR(+I43+'App.2-CC_NewCGAAP_DepExp_2013'!K43-J43), 0, +I43+'App.2-CC_NewCGAAP_DepExp_2013'!K43-J43) -> 0
A44: 1945 | B44: Measurement & Testing Equipment | E44: 0 | F44: =IF(D44=0,+'App.2-CC_NewCGAAP_DepExp_2013'!K44,+'App.2-CC_NewCGAAP_DepExp_2013'!K44+((C44*0.5)/D44)) -> 0 | H44: 0 | I44: 0 | K44: =IF(ISERROR(+I44+'App.2-CC_NewCGAAP_DepExp_2013'!K44-J44), 0, +I44+'App.2-CC_NewCGAAP_DepExp_2013'!K44-J44) -> 0
A45: 1950 | B45: Power Operated Equipment | E45: 0 | F45: =IF(D45=0,+'App.2-CC_NewCGAAP_DepExp_2013'!K45,+'App.2-CC_NewCGAAP_DepExp_2013'!K45+((C45*0.5)/D45)) -> 0 | H45: 0 | I45: 0 | K45: =IF(ISERROR(+I45+'App.2-CC_NewCGAAP_DepExp_2013'!K45-J45), 0, +I45+'App.2-CC_NewCGAAP_DepExp_2013'!K45-J45) -> 0
A46: 1955 | B46: Communications Equipment | E46: 0 | F46: =IF(D46=0,+'App.2-CC_NewCGAAP_DepExp_2013'!K46,+'App.2-CC_NewCGAAP_DepExp_2013'!K46+((C46*0.5)/D46)) -> 0 | H46: 0 | I46: 0 | K46: =IF(ISERROR(+I46+'App.2-CC_NewCGAAP_DepExp_2013'!K46-J46), 0, +I46+'App.2-CC_NewCGAAP_DepExp_2013'!K46-J46) -> 0
A47: 1955 | B47: Communication Equipment (Smart Meters) | E47: 0 | F47: =IF(D47=0,+'App.2-CC_NewCGAAP_DepExp_2013'!K47,+'App.2-CC_NewCGAAP_DepExp_2013'!K47+((C47*0.5)/D47)) -> 0 | H47: 0 | I47: 0 | K47: =IF(ISERROR(+I47+'App.2-CC_NewCGAAP_DepExp_2013'!K47-J47), 0, +I47+'App.2-CC_NewCGAAP_DepExp_2013'!K47-J47) -> 0
A48: 1960 | B48: Miscellaneous Equipment | E48: 0 | F48: =IF(D48=0,+'App.2-CC_NewCGAAP_DepExp_2013'!K48,+'App.2-CC_NewCGAAP_DepExp_2013'!K48+((C48*0.5)/D48)) -> 0 | H48: 0 | I48: 0 | K48: =IF(ISERROR(+I48+'App.2-CC_NewCGAAP_DepExp_2013'!K48-J48), 0, +I48+'App.2-CC_NewCGAAP_DepExp_2013'!K48-J48) -> 0
A49: 1970 | B49: Load Management Controls Customer Premises | E49: 0 | F49: =IF(D49=0,+'App.2-CC_NewCGAAP_DepExp_2013'!K49,+'App.2-CC_NewCGAAP_DepExp_2013'!K49+((C49*0.5)/D49)) -> 0 | H49: 0 | I49: 0 | K49: =IF(ISERROR(+I49+'App.2-CC_NewCGAAP_DepExp_2013'!K49-J49), 0, +I49+'App.2-CC_NewCGAAP_DepExp_2013'!K49-J49) -> 0
A50: 1975 | B50: Load Management Controls Utility Premises | E50: 0 | F50: =IF(D50=0,+'App.2-CC_NewCGAAP_DepExp_2013'!K50,+'App.2-CC_NewCGAAP_DepExp_2013'!K50+((C50*0.5)/D50)) -> 0 | H50: 0 | I50: 0 | K50: =IF(ISERROR(+I50+'App.2-CC_NewCGAAP_DepExp_2013'!K50-J50), 0, +I50+'App.2-CC_NewCGAAP_DepExp_2013'!K50-J50) -> 0
A51: 1980 | B51: System Supervisor Equipment | E51: 0 | F51: =IF(D51=0,+'App.2-CC_NewCGAAP_DepExp_2013'!K51,+'App.2-CC_NewCGAAP_DepExp_2013'!K51+((C51*0.5)/D51)) -> 0 | H51: 0 | I51: 0 | K51: =IF(ISERROR(+I51+'App.2-CC_NewCGAAP_DepExp_2013'!K51-J51), 0, +I51+'App.2-CC_NewCGAAP_DepExp_2013'!K51-J51) -> 0
A52: 1985 | B52: Miscellaneous Fixed Assets | E52: 0 | F52: =IF(D52=0,+'App.2-CC_NewCGAAP_DepExp_2013'!K52,+'App.2-CC_NewCGAAP_DepExp_2013'!K52+((C52*0.5)/D52)) -> 0 | H52: 0 | I52: 0 | K52: =IF(ISERROR(+I52+'App.2-CC_NewCGAAP_DepExp_2013'!K52-J52), 0, +I52+'App.2-CC_NewCGAAP_DepExp_2013'!K52-J52) -> 0
A53: 1990 | B53: Other Tangible Property | E53: 0 | F53: =IF(D53=0,+'App.2-CC_NewCGAAP_DepExp_2013'!K53,+'App.2-CC_NewCGAAP_DepExp_2013'!K53+((C53*0.5)/D53)) -> 0 | H53: 0 | I53: 0 | K53: =IF(ISERROR(+I53+'App.2-CC_NewCGAAP_DepExp_2013'!K53-J53), 0, +I53+'App.2-CC_NewCGAAP_DepExp_2013'!K53-J53) -> 0
E54: 0 | F54: =IF(D54=0,+'App.2-CC_NewCGAAP_DepExp_2013'!K54,+'App.2-CC_NewCGAAP_DepExp_2013'!K54+((C54*0.5)/D54)) -> 0 | H54: 0 | I54: 0 | K54: =IF(ISERROR(+I54+'App.2-CC_NewCGAAP_DepExp_2013'!K54-J54), 0, +I54+'App.2-CC_NewCGAAP_DepExp_2013'!K54-J54) -> 0
B55: Total | C55: =SUM(C17:C54) -> 0 | F55: =SUM(F17:F54) -> 0 | G55: 0 | H55: 0 | I55: 0 | J55: 0 | K55: 0
B56: Depreciation exp. adj. from gain or loss on the retirement of assets (pool of like assets) | F56: 0
B57: Total Depreciation Expense | F57: =+F56+F55 -> 0
A59: Notes:
A60: 1 | B60: Board policy of the "half-year" rule - the applicant must ensure that additions in the year attract a half-year depreciation expense in the first year. Deviations from this standard practice must be supported in the application.
A61: 2 | B61: The applicant must provide an explanation of material variances in evidence.
A62: 3 | B62: This column refers to the calculated full year depreciation but excludes the depreciation expense on assets fully depreciated during the year. This column is used for the purpose of calculating depreciation expense in the following year on the next worksheet.
A64: General: | B64: Applicants must provide a breakdown of depreciation and amortization expense in the above format for all relevant accounts. Asset Retirement Obligations (AROs), depreciation and accretion expense should be disclosed separately consistent with the Notes of historical Audited Financial Statements.

Sheet App.2-CE_MIFRS_DepExp_2015
G1: File Number: | H1: =EBNUMBER -> EB-2014-0096
G2: Exhibit:
G3: Tab:
G4: Schedule:
G5: Page:
G7: Date:
A9: Appendix 2-CE
A10: Depreciation and Amortization Expense
A11: Assumes the applicant made capitalization and depreciation expense accounting policy changes under CGAAP effective January 1, 2012 and will adopt IFRS for financial reporting purposes effective January 1, 2015.
C13: 2015 | D13: MIFRS
A15: Account | B15: Description | C15: Additions | D15: Years (new additions only) | E15: Depreciation Rate on New Additions | F15: 2015 Depreciation Expense 1 | G15: 2015 Depreciation Expense per Appendix 2-BA Fixed Assets, Column J (l) | H15: Variance 2
C16: (d) | D16: (f) | E16: (g) = 1 / (f) | F16: (h)=2014 Full Year Depreciation + ((d)*0.5)/(f) | H16: (m) = (h) - (l)
A17: 1611 | B17: Computer Software (Formally known as Account 1925) | E17: =IF(D17=0,0,1/D17) -> 0 | F17: =IF(D17=0,'App.2-CD_MIFRS_DepExp_2014'!K17,+'App.2-CD_MIFRS_DepExp_2014'!K17+((C17*0.5)/D17)) -> 0 | H17: =IF(ISERROR(+F17-G17), 0, +F17-G17) -> 0
A18: 1612 | B18: Land Rights (Formally known as Account 1906) | E18: 0 | F18: =IF(D18=0,'App.2-CD_MIFRS_DepExp_2014'!K18,+'App.2-CD_MIFRS_DepExp_2014'!K18+((C18*0.5)/D18)) -> 0 | H18: 0
A19: 1805 | B19: Land | E19: 0 | F19: =IF(D19=0,'App.2-CD_MIFRS_DepExp_2014'!K19,+'App.2-CD_MIFRS_DepExp_2014'!K19+((C19*0.5)/D19)) -> 0 | H19: 0
A20: 1808 | B20: Buildings | E20: 0 | F20: =IF(D20=0,'App.2-CD_MIFRS_DepExp_2014'!K20,+'App.2-CD_MIFRS_DepExp_2014'!K20+((C20*0.5)/D20)) -> 0 | H20: 0
A21: 1810 | B21: Leasehold Improvements | E21: 0 | F21: =IF(D21=0,'App.2-CD_MIFRS_DepExp_2014'!K21,+'App.2-CD_MIFRS_DepExp_2014'!K21+((C21*0.5)/D21)) -> 0 | H21: 0
A22: 1815 | B22: Transformer Station Equipment >50 kV | E22: 0 | F22: =IF(D22=0,'App.2-CD_MIFRS_DepExp_2014'!K22,+'App.2-CD_MIFRS_DepExp_2014'!K22+((C22*0.5)/D22)) -> 0 | H22: 0
A23: 1820 | B23: Distribution Station Equipment <50 kV | E23: 0 | F23: =IF(D23=0,'App.2-CD_MIFRS_DepExp_2014'!K23,+'App.2-CD_MIFRS_DepExp_2014'!K23+((C23*0.5)/D23)) -> 0 | H23: 0
A24: 1825 | B24: Storage Battery Equipment | E24: 0 | F24: =IF(D24=0,'App.2-CD_MIFRS_DepExp_2014'!K24,+'App.2-CD_MIFRS_DepExp_2014'!K24+((C24*0.5)/D24)) -> 0 | H24: 0
A25: 1830 | B25: Poles, Towers & Fixtures | E25: 0 | F25: =IF(D25=0,'App.2-CD_MIFRS_DepExp_2014'!K25,+'App.2-CD_MIFRS_DepExp_2014'!K25+((C25*0.5)/D25)) -> 0 | H25: 0
A26: 1835 | B26: Overhead Conductors & Devices | E26: 0 | F26: =IF(D26=0,'App.2-CD_MIFRS_DepExp_2014'!K26,+'App.2-CD_MIFRS_DepExp_2014'!K26+((C26*0.5)/D26)) -> 0 | H26: 0
A27: 1840 | B27: Underground Conduit | E27: 0 | F27: =IF(D27=0,'App.2-CD_MIFRS_DepExp_2014'!K27,+'App.2-CD_MIFRS_DepExp_2014'!K27+((C27*0.5)/D27)) -> 0 | H27: 0
A28: 1845 | B28: Underground Conductors & Devices | E28: 0 | F28: =IF(D28=0,'App.2-CD_MIFRS_DepExp_2014'!K28,+'App.2-CD_MIFRS_DepExp_2014'!K28+((C28*0.5)/D28)) -> 0 | H28: 0
A29: 1850 | B29: Line Transformers | E29: 0 | F29: =IF(D29=0,'App.2-CD_MIFRS_DepExp_2014'!K29,+'App.2-CD_MIFRS_DepExp_2014'!K29+((C29*0.5)/D29)) -> 0 | H29: 0
A30: 1855 | B30: Services (Overhead & Underground) | E30: 0 | F30: =IF(D30=0,'App.2-CD_MIFRS_DepExp_2014'!K30,+'App.2-CD_MIFRS_DepExp_2014'!K30+((C30*0.5)/D30)) -> 0 | H30: 0
A31: 1860 | B31: Meters | E31: 0 | F31: =IF(D31=0,'App.2-CD_MIFRS_DepExp_2014'!K31,+'App.2-CD_MIFRS_DepExp_2014'!K31+((C31*0.5)/D31)) -> 0 | H31: 0
A32: 1860 | B32: Meters (Smart Meters) | E32: 0 | F32: =IF(D32=0,'App.2-CD_MIFRS_DepExp_2014'!K32,+'App.2-CD_MIFRS_DepExp_2014'!K32+((C32*0.5)/D32)) -> 0 | H32: 0
A33: 1905 | B33: Land | E33: 0 | F33: =IF(D33=0,'App.2-CD_MIFRS_DepExp_2014'!K33,+'App.2-CD_MIFRS_DepExp_2014'!K33+((C33*0.5)/D33)) -> 0 | H33: 0
A34: 1908 | B34: Buildings & Fixtures | E34: 0 | F34: =IF(D34=0,'App.2-CD_MIFRS_DepExp_2014'!K34,+'App.2-CD_MIFRS_DepExp_2014'!K34+((C34*0.5)/D34)) -> 0 | H34: 0
A35: 1910 | B35: Leasehold Improvements | E35: 0 | F35: =IF(D35=0,'App.2-CD_MIFRS_DepExp_2014'!K35,+'App.2-CD_MIFRS_DepExp_2014'!K35+((C35*0.5)/D35)) -> 0 | H35: 0
A36: 1915 | B36: Office Furniture & Equipment (10 years) | E36: 0 | F36: =IF(D36=0,'App.2-CD_MIFRS_DepExp_2014'!K36,+'App.2-CD_MIFRS_DepExp_2014'!K36+((C36*0.5)/D36)) -> 0 | H36: 0
A37: 1915 | B37: Office Furniture & Equipment (5 years) | E37: 0 | F37: =IF(D37=0,'App.2-CD_MIFRS_DepExp_2014'!K37,+'App.2-CD_MIFRS_DepExp_2014'!K37+((C37*0.5)/D37)) -> 0 | H37: 0
A38: 1920 | B38: Computer Equipment - Hardware | E38: 0 | F38: =IF(D38=0,'App.2-CD_MIFRS_DepExp_2014'!K38,+'App.2-CD_MIFRS_DepExp_2014'!K38+((C38*0.5)/D38)) -> 0 | H38: 0
A39: 1920 | B39: Computer Equip.-Hardware(Post Mar. 22/04) | E39: 0 | F39: =IF(D39=0,'App.2-CD_MIFRS_DepExp_2014'!K39,+'App.2-CD_MIFRS_DepExp_2014'!K39+((C39*0.5)/D39)) -> 0 | H39: 0
A40: 1920 | B40: Computer Equip.-Hardware(Post Mar. 19/07) | E40: 0 | F40: =IF(D40=0,'App.2-CD_MIFRS_DepExp_2014'!K40,+'App.2-CD_MIFRS_DepExp_2014'!K40+((C40*0.5)/D40)) -> 0 | H40: 0
A41: 1930 | B41: Transportation Equipment | E41: 0 | F41: =IF(D41=0,'App.2-CD_MIFRS_DepExp_2014'!K41,+'App.2-CD_MIFRS_DepExp_2014'!K41+((C41*0.5)/D41)) -> 0 | H41: 0
A42: 1935 | B42: Stores Equipment | E42: 0 | F42: =IF(D42=0,'App.2-CD_MIFRS_DepExp_2014'!K42,+'App.2-CD_MIFRS_DepExp_2014'!K42+((C42*0.5)/D42)) -> 0 | H42: 0
A43: 1940 | B43: Tools, Shop & Garage Equipment | E43: 0 | F43: =IF(D43=0,'App.2-CD_MIFRS_DepExp_2014'!K43,+'App.2-CD_MIFRS_DepExp_2014'!K43+((C43*0.5)/D43)) -> 0 | H43: 0
A44: 1945 | B44: Measurement & Testing Equipment | E44: 0 | F44: =IF(D44=0,'App.2-CD_MIFRS_DepExp_2014'!K44,+'App.2-CD_MIFRS_DepExp_2014'!K44+((C44*0.5)/D44)) -> 0 | H44: 0
A45: 1950 | B45: Power Operated Equipment | E45: 0 | F45: =IF(D45=0,'App.2-CD_MIFRS_DepExp_2014'!K45,+'App.2-CD_MIFRS_DepExp_2014'!K45+((C45*0.5)/D45)) -> 0 | H45: 0
A46: 1955 | B46: Communications Equipment | E46: 0 | F46: =IF(D46=0,'App.2-CD_MIFRS_DepExp_2014'!K46,+'App.2-CD_MIFRS_DepExp_2014'!K46+((C46*0.5)/D46)) -> 0 | H46: 0
A47: 1955 | B47: Communication Equipment (Smart Meters) | E47: 0 | F47: =IF(D47=0,'App.2-CD_MIFRS_DepExp_2014'!K47,+'App.2-CD_MIFRS_DepExp_2014'!K47+((C47*0.5)/D47)) -> 0 | H47: 0
A48: 1960 | B48: Miscellaneous Equipment | E48: 0 | F48: =IF(D48=0,'App.2-CD_MIFRS_DepExp_2014'!K48,+'App.2-CD_MIFRS_DepExp_2014'!K48+((C48*0.5)/D48)) -> 0 | H48: 0
A49: 1970 | B49: Load Management Controls Customer Premises | E49: 0 | F49: =IF(D49=0,'App.2-CD_MIFRS_DepExp_2014'!K49,+'App.2-CD_MIFRS_DepExp_2014'!K49+((C49*0.5)/D49)) -> 0 | H49: 0
A50: 1975 | B50: Load Management Controls Utility Premises | E50: 0 | F50: =IF(D50=0,'App.2-CD_MIFRS_DepExp_2014'!K50,+'App.2-CD_MIFRS_DepExp_2014'!K50+((C50*0.5)/D50)) -> 0 | H50: 0
A51: 1980 | B51: System Supervisor Equipment | E51: 0 | F51: =IF(D51=0,'App.2-CD_MIFRS_DepExp_2014'!K51,+'App.2-CD_MIFRS_DepExp_2014'!K51+((C51*0.5)/D51)) -> 0 | H51: 0
A52: 1985 | B52: Miscellaneous Fixed Assets | E52: 0 | F52: =IF(D52=0,'App.2-CD_MIFRS_DepExp_2014'!K52,+'App.2-CD_MIFRS_DepExp_2014'!K52+((C52*0.5)/D52)) -> 0 | H52: 0
A53: 1990 | B53: Other Tangible Property | E53: 0 | F53: =IF(D53=0,'App.2-CD_MIFRS_DepExp_2014'!K53,+'App.2-CD_MIFRS_DepExp_2014'!K53+((C53*0.5)/D53)) -> 0 | H53: 0
E54: 0 | F54: =IF(D54=0,'App.2-CD_MIFRS_DepExp_2014'!K54,+'App.2-CD_MIFRS_DepExp_2014'!K54+((C54*0.5)/D54)) -> 0 | H54: 0
B55: Total | C55: =SUM(C17:C54) -> 0 | F55: =SUM(F17:F54) -> 0 | G55: =SUM(G17:G54) -> 0 | H55: =SUM(H17:H54) -> 0
B56: Depreciation exp. adj. from gain or loss on the retirement of assets (pool of like assets)
B57: Total Depreciation expense to be included in the test year revenue requirement | F57: =SUM(F55:F56) -> 0
A58: Notes:
A59: 1 | B59: Board policy of the "half-year" rule - the applicant must ensure that additions in the year attract a half-year depreciation expense in the first year. Deviations from this standard practice must be supported in the application.
A60: 2 | B60: The applicant must provide an explanation of material variances in evidence.
A63: General: | B63: Applicants must provide a breakdown of depreciation and amortization expense in the above format for all relevant accounts. Asset Retirement Obligations (AROs), depreciation and accretion expense should be disclosed separately consistent with the Notes of historical Audited Financial Statements.

Sheet App.2-CF_OldCGAAP_DepExp_2013
K1: File Number: | L1: =EBNUMBER -> EB-2014-0096
K2: Exhibit: | L2: 4
K3: Tab: | L3: 4
K4: Schedule: | L4: 1
K5: Page: | L5: 3
K7: Date: | L7: 2014-08-29
A9: Appendix 2-CF
A10: Depreciation and Amortization Expense
B11: Assumes the applicant made capitalization and depreciation expense accounting policy changes under CGAAP effective January 1, 2013 and will adopt IFRS for financial reporting purposes effective January 1, 2015.
C13: Year | D13: 2013 | E13: Former CGAAP
A15: Account | B15: Description | C15: Opening Regulatory Gross PP&E as at Jan 1, 2013 | D15: Less Fully Depreciated | E15: Net for Depreciation | F15: Additions | G15: Total for Depreciation | H15: Years | I15: Depreciation Rate | J15: Depreciation Expense | K15: 2013 Depreciation Expense per Appendix 2-BA Fixed Assets, Column J (l) | L15: Variance 2
C16: (a) | D16: (b) | E16: (c) | F16: (d) | G16: (e) = (c) + ½ x (d) 1 | H16: (f) | I16: (g) = 1 / (f) | J16: (h) = (e) / (f) | L16: (m) = (h) - (l)
A17: 1611 | B17: Computer Software (Formally known as Account 1925) | C17: 2576964.23 | D17: 1920006 | E17: =C17-D17 -> 656958.23 | F17: 114742 | G17: =E17+0.5*F17 -> 714329.23 | H17: 3 | I17: =IF(H17=0,0,1/H17) -> 0.3333333333 | J17: =IF(H17=0,0,G17/H17) -> 238109.7433 | K17: 223111.6758 | L17: =IF(ISERROR(+J17-K17), 0, +J17-K17) -> 14998.0675
A18: 1612 | B18: Land Rights (Formally known as Account 1906) | C18: 1603586.98 | D18: =166587.99 -> 166587.99 | E18: =C18-D18 -> 1436998.99 | F18: 809.6 | G18: =E18+0.5*F18 -> 1437403.79 | H18: 25 | I18: 0.04 | J18: 57496.1516 | K18: 57097.9776 | L18: 398.174
A19: 1805 | B19: Land | C19: 507272.79 | E19: 507272.79 | G19: 507272.79 | I19: 0 | J19: 0 | L19: 0
A20: 1808 | B20: Buildings | C20: 111638.13 | D20: 111638 | E20: 0.13 | G20: 0.13 | H20: 50 | I20: 0.02 | J20: 0.0026 | L20: 0.0026
A21: 1810 | B21: Leasehold Improvements | E21: 0 | G21: 0 | I21: 0 | J21: 0 | L21: 0
A22: 1815 | B22: Transformer Station Equipment >50 kV(1708,1740,1745) | C22: =3833014.14 -> 3833014.14 | E22: 3833014.14 | G22: =E22+0.5*F22 -> 3833014.14 | H22: 50 | I22: 0.02 | J22: 76660.2828 | K22: =76660.28 -> 76660.28 | L22: 0.002800000002
A23: 1815 | B23: Transformer Station Equipment >50 kV (1715) | C23: =2726687.83+58564.58 -> 2785252.41 | E23: 2785252.41 | F23: 16679 | G23: =E23+0.5*F23 -> 2793591.91 | H23: 40 | I23: 0.025 | J23: 69839.79775 | K23: =42043.75+925.57+13339.39+13654.86 -> 69963.57 | L23: -123.77225
A24: 1820 | B24: Distribution Station Equipment <50 kV | C24: 6450524.96 | D24: =615644.53+27967.76+48600.58+70656+1346.39+61824+19000+44162+64468+85537 -> 1039206.26 | E24: 5411318.7 | F24: -96485 | G24: 5363076.2 | H24: 25 | I24: 0.04 | J24: 214523.048 | K24: 213305.168 | L24: 1217.88
A25: 1825 | B25: Storage Battery Equipment | E25: 0 | G25: 0 | H25: 0 | I25: 0 | J25: 0 | L25: 0
A26: 1830 | B26: Poles, Towers & Fixtures | C26: 41553403.6 | D26: =2492337+340747+338270.62+421740+6060689.22+467364 -> 10121147.84 | E26: 31432255.76 | F26: 2020539.71 | G26: 32442525.62 | H26: 25 | I26: 0.04 | J26: 1297701.025 | K26: 1293914.45 | L26: 3786.574308
A27: 1835 | B27: Overhead Conductors & Devices | C27: 26220717.27 | D27: 1019957 | E27: 25200760.27 | F27: 1964011.76 | G27: 26182766.15 | H27: 25 | I27: 0.04 | J27: 1047310.646 | K27: 1061182.712 | L27: -13872.06591
A28: 1840 | B28: Underground Conduit | C28: 9072907.39 | D28: 0 | E28: 9072907.39 | F28: 590886.75 | G28: 9368350.765 | H28: 25 | I28: 0.04 | J28: 374734.0306 | K28: 374689.7373 | L28: 44.29326289
A29: 1845 | B29: Underground Conductors & Devices | C29: 64689818.89 | D29: =666727+2886392+869027+184619+485516+237320+460351+41496+159689 -> 5991137 | E29: 58698681.89 | F29: 1885218.66 | G29: 59641291.22 | H29: 25 | I29: 0.04 | J29: 2385651.649 | K29: 2327443.812 | L29: 58207.83654
A30: 1850 | B30: Line Transformers | C30: 36258270.76 | D30: =5102067+1644799-3638+304445 -> 7047673 | E30: 29210597.76 | F30: 1097946.17 | G30: 29759570.84 | H30: 25 | I30: 0.04 | J30: 1190382.834 | K30: 1225004.906 | L30: -34622.072
A31: 1855 | B31: Services (Overhead & Underground) | C31: 4629063.25 | D31: 0 | E31: 4629063.25 | F31: 800998 | G31: 5029562.25 | H31: 25 | I31: 0.04 | J31: 201182.49 | K31: 201181.7258 | L31: 0.7642
A32: 1860 | B32: Meters | C32: 2645455.78 | D32: 0 | E32: 2645455.78 | F32: 248020 | G32: 2769465.78 | H32: 25 | I32: 0.04 | J32: 110778.6312 | K32: 128806.331 | L32: -18027.6998
A33: 1860 | B33: Meters (Smart Meters) | C33: 4175009 | D33: 0 | E33: 4175009 | F33: 27477 | G33: 4188747.5 | H33: 15 | I33: 0.06666666667 | J33: 279249.8333 | K33: 279238.28 | L33: 11.55333333
A34: 1905 | B34: Land | C34: 508969.83 | E34: 508969.83 | G34: 508969.83 | I34: 0 | J34: 0 | L34: 0
A35: 1908 | B35: Buildings & Fixtures | C35: 13205845.69 | D35: 0 | E35: 13205845.69 | F35: 1911585 | G35: 14161638.19 | H35: 60 | I35: 0.01666666667 | J35: 236027.3032 | K35: 231983.6691 | L35: 4043.634067
A36: 1910 | B36: Leasehold Improvements | C36: 120252.32 | E36: 120252.32 | G36: 120252.32 | I36: 0 | J36: 0 | L36: 0
A37: 1915 | B37: Office Furniture & Equipment (10 years) | C37: 1323138.81 | D37: 475923.27 | E37: 847215.54 | F37: 170426 | G37: 932428.54 | H37: 10 | I37: 0.1 | J37: 93242.854 | K37: 85856.73 | L37: 7386.124
A38: 1915 | B38: Office Furniture & Equipment (5 years) | C38: 0 | E38: 0 | G38: 0 | I38: 0 | J38: 0 | L38: 0
A39: 1920 | B39: Computer Equipment - Hardware | C39: 3133839.7 | D39: =1830028.83-D40-D41 -> 1462546.83 | E39: 1671292.87 | F39: 276353 | G39: 1809469.37 | H39: 5 | I39: 0.2 | J39: 361893.874 | K39: 304064.93 | L39: 57828.944
A40: 1920 | B40: Computer Equip.-Hardware(Post Mar. 22/04) | C40: 2832 | D40: 2832 | E40: 0 | G40: 0 | H40: 5 | I40: 0.2 | J40: 0 | L40: 0
A41: 1920 | B41: Computer Equip.-Hardware(Post Mar. 19/07) | C41: 364650 | D41: 364650 | E41: 0 | G41: 0 | H41: 5 | I41: 0.2 | J41: 0 | L41: 0
A42: 1930 | B42: Transportation Equipment | C42: 7605132.65 | D42: 3052671 | E42: 4552461.65 | F42: 974875 | G42: 5039899.15 | H42: 8 | I42: 0.125 | J42: 629987.3938 | K42: 567673.25 | L42: 62314.14375
A43: 1935 | B43: Stores Equipment | C43: 236413.92 | D43: 182171 | E43: 54242.92 | G43: 54242.92 | H43: 10 | I43: 0.1 | J43: 5424.292 | K43: 5424.28 | L43: 0.012
A44: 1940 | B44: Tools, Shop & Garage Equipment | C44: 1871743.96 | D44: 1154343 | E44: 717400.96 | F44: 83082 | G44: 758941.96 | H44: 10 | I44: 0.1 | J44: 75894.196 | K44: 75413.36 | L44: 480.836
A45: 1945 | B45: Measurement & Testing Equipment | C45: 204006.18 | D45: 164467 | E45: 39539.18 | G45: 39539.18 | H45: 5 | I45: 0.2 | J45: 7907.836 | K45: 7508.17 | L45: 399.666
A46: 1950 | B46: Power Operated Equipment | E46: 0 | G46: 0 | I46: 0 | J46: 0 | L46: 0
A47: 1955 | B47: Communications Equipment | C47: 502920.61 | D47: 113663 | E47: 389257.61 | F47: 343864 | G47: 561189.61 | H47: 4 | I47: 0.25 | J47: 140297.4025 | K47: 107082.25 | L47: 33215.1525
A48: 1955 | B48: Communication Equipment (Smart Meters) | E48: 0 | G48: 0 | I48: 0 | J48: 0 | L48: 0
A49: 1960 | B49: Miscellaneous Equipment | C49: 72951.31 | D49: 38089 | E49: 34862.31 | G49: 34862.31 | H49: 5 | I49: 0.2 | J49: 6972.462 | K49: 3318.45 | L49: 3654.012
A50: 1970 | B50: Load Management Controls - Customer Premises | E50: 0 | G50: 0 | I50: 0 | J50: 0 | L50: 0
A51: 1975 | B51: Load Management Controls Utility Premises | E51: 0 | G51: 0 | I51: 0 | J51: 0 | L51: 0
A52: 1980 | B52: System Supervisor Equipment | C52: 128960.64 | D52: 128961 | E52: -0.36 | G52: -0.36 | H52: 15 | I52: 0.06666666667 | J52: -0.024 | K52: 0 | L52: -0.024
A53: 1985 | B53: Miscellaneous Fixed Assets | E53: 0 | G53: 0 | I53: 0 | J53: 0 | L53: 0
A54: 1990 | B54: Other Tangible Property | E54: 0 | G54: 0 | I54: 0 | J54: 0 | L54: 0
A55: 1995 | B55: Contributions & Grants | C55: -20525490.62 | D55: 0 | E55: -20525490.62 | F55: -991373 | G55: -21021177.12 | H55: 25 | I55: 0.04 | J55: -840847.0848 | K55: -810260.9988 | L55: -30586.086
B56: Total | C56: =SUM(C17:C55) -> 215869066.6 | D56: =SUM(D17:D55) -> 34557670.19 | E56: =SUM(E17:E55) -> 181311396.4 | F56: =SUM(F17:F55) -> 11439655.65 | G56: =SUM(G17:G55) -> 187031224.2 | J56: =SUM(J17:J55) -> 8260420.669 | K56: =SUM(K17:K55) -> 8109664.716 | L56: =SUM(L17:L55) -> 150755.9529
A58: Notes:
A60: 1 | B60: Board policy of the "half-year" rule - the applicant must ensure that additions in the year attract a half-year depreciation expense in the first year. Deviations from this standard practice must be supported in the application.
A61: 2 | B61: The applicant must provide an explanation of material variances in evidence.
A63: General | B63: Applicants must provide a breakdown of depreciation and amortization expense in the above format for all relevant accounts. Asset Retirement Obligations (AROs), depreciation and accretion expense should be disclosed separately consistent with the Notes of historical Audited Financial Statements.

Sheet App.2-CG_NewCGAAP_DepExp_2013
N1: File Number: | O1: =EBNUMBER -> EB-2014-0096
N2: Exhibit: | O2: 4
N3: Tab: | O3: 4
N4: Schedule: | O4: 1
N5: Page: | O5: 3
N7: Date: | O7: 2014-08-29
A9: Appendix 2-CG
A10: Depreciation and Amortization Expense
A11: Assumes the applicant made capitalization and depreciation expense accounting policy changes under CGAAP effective January 1, 2013 and will adopt IFRS for financial reporting purposes effective January 1, 2015.
C13: Year | D13: 2013 | E13: Revised CGAAP
A15: Account | B15: Description | C15: Opening NBV as at Jan 1, 2013 5 | D15: Additions | E15: Average Remaining Life of Opening NBV 4 | F15: Years (new additions only) 3 | G15: Depreciation Rate on New Additions | H15: Depreciation Expense on Opening NBV | I15: Depreciation Expense on Additions 1 | J15: 2013 Depreciation Expense | K15: 2013 Depreciation Expense per Appendix 2-BA Fixed Assets, Column J (l) | L15: Variance 2 | M15: Depreciation Expense on 2013 Full Year Additions | N15: Less Depreciation Expense on Assets Fully Depreciated during the year (o) | O15: 2013 Full Year Depreciation 6
C16: (a) | D16: (d) | E16: (i) | F16: (f) | G16: (g) = 1 / (f) | H16: (j) = (a) / (i) | I16: (h)=((d)*0.5)/(f) | J16: (k) = (j) + (h) | L16: (m) = (k) - (l) | M16: (n) = (d)/(f) | O16: (p) = (j) + (n) - (o)
A17: 1611 | B17: Computer Software (Formally known as Account 1925) | C17: =2576964.23-73577.76-2136822 -> 366564.47 | D17: ='App.2-CF_OldCGAAP_DepExp_2013'!F17 -> 114742 | E17: 1.79699 | F17: 3 | G17: =IF(F17=0,0,1/F17) -> 0.3333333333 | H17: =IF(E17=0,0,+C17/E17) -> 203988.0411 | I17: =IF(F17=0,0,+(D17*0.5)/F17) -> 19123.66667 | J17: =IF(ISERROR(+H17+I17), 0, +H17+I17) -> 223111.7078 | K17: 223111.68 | L17: =IF(ISERROR(+J17-K17), 0, +J17-K17) -> 0.02777986162 | M17: =IF(F17=0,0,+(D17)/F17) -> 38247.33333 | N17: 55419 | O17: =IF(ISERROR(+M17+H17-N17), 0, +M17+H17-N17) -> 186816.3744
A18: 1612 | B18: Land Rights (Formally known as Account 1906) | C18: =1603586.98-811063.73 -> 792523.25 | D18: ='App.2-CF_OldCGAAP_DepExp_2013'!F18 -> 809.6 | E18: 13.884 | F18: 25 | G18: 0.04 | H18: 57081.76678 | I18: 16.192 | J18: 57097.95878 | K18: 57098 | L18: -0.04121809277 | M18: 32.384 | N18: 48 | O18: =IF(ISERROR(+M18+H18-N18), 0, +M18+H18-N18) -> 57066.15078
A19: 1805 | B19: Land | C19: 507272.79 | D19: ='App.2-CF_OldCGAAP_DepExp_2013'!F19 -> 0 | G19: 0 | H19: 0 | I19: 0 | J19: 0 | K19: 0 | L19: 0 | M19: 0 | O19: 0
A20: 1808 | B20: Buildings | C20: =111638.13-111638.13 -> 0 | D20: ='App.2-CF_OldCGAAP_DepExp_2013'!F20 -> 0 | E20: 0 | F20: 50 | G20: 0.02 | H20: 0 | I20: 0 | J20: 0 | K20: 0 | L20: 0 | M20: 0 | O20: 0
A21: 1810 | B21: Leasehold Improvements | C21: 0 | D21: ='App.2-CF_OldCGAAP_DepExp_2013'!F21 -> 0 | G21: 0 | H21: 0 | I21: 0 | J21: 0 | L21: 0 | M21: 0 | O21: 0
A22: 1815 | B22: Transformer Station Equipment >50 kV (1708,1740,1745) | C22: =3833014.14-624673 -> 3208341.14 | D22: ='App.2-CF_OldCGAAP_DepExp_2013'!F22 -> 0 | E22: =C22/K22 -> 41.85141432 | F22: 50 | G22: 0.02 | H22: 76660.28 | I22: 0 | J22: 76660.28 | K22: 76660.28 | L22: 0 | M22: 0 | O22: 76660.28
A23: 1815 | B23: Transformer Station Equipment >50 kV (1715, 1815, 17) | C23: =2214599-C24-C25-C26 -> 1326058.59 | D23: ='App.2-CF_OldCGAAP_DepExp_2013'!F23 -> 16679 | E23: 36.6375 | F23: 45 | G23: =IF(F23=0,0,1/F23) -> 0.02222222222 | H23: =IF(E23=0,0,+C23/E23) -> 36194.02497 | I23: =IF(F23=0,0,+(D23*0.5)/F23) -> 185.3222222 | J23: =IF(ISERROR(+H23+I23), 0, +H23+I23) -> 36379.3472 | K23: 36379.63 | L23: =IF(ISERROR(+J23-K23), 0, +J23-K23) -> -0.2828033663 | M23: =IF(F23=0,0,+(D23)/F23) -> 370.6444444 | N23: 77 | O23: =IF(ISERROR(+M23+H23-N23), 0, +M23+H23-N23) -> 36487.66942
A24: 1815 | B24: Transformer Station Equipment >50 kV (1716) | C24: 32522.13 | D24: ='App.2-CF_OldCGAAP_DepExp_2013'!F25 -> 0 | E24: =C24/K24 -> 1.446288702 | F24: 10 | G24: =IF(F24=0,0,1/F24) -> 0.1 | H24: =IF(E24=0,0,+C24/E24) -> 22486.61 | I24: =IF(F24=0,0,+(D24*0.5)/F24) -> 0 | J24: =IF(ISERROR(+H24+I24), 0, +H24+I24) -> 22486.61 | K24: 22486.61 | L24: =IF(ISERROR(+J24-K24), 0, +J24-K24) -> 0 | M24: =IF(F24=0,0,+(D24)/F24) -> 0 | N24: =11745-99 -> 11646 | O24: =IF(ISERROR(+M24+H24-N24), 0, +M24+H24-N24) -> 10840.61
A25: 1815 | B25: Transformer Station Equipment >50 kV (1717) | C25: 423006.78 | D25: 0 | E25: =C25/K25 -> 31.71110373 | F25: 40 | G25: =IF(F25=0,0,1/F25) -> 0.025 | H25: =IF(E25=0,0,+C25/E25) -> 13339.39 | I25: =IF(F25=0,0,+(D25*0.5)/F25) -> 0 | J25: =IF(ISERROR(+H25+I25), 0, +H25+I25) -> 13339.39 | K25: 13339.39 | L25: =IF(ISERROR(+J25-K25), 0, +J25-K25) -> 0 | M25: =IF(F25=0,0,+(D25)/F25) -> 0 | O25: =IF(ISERROR(+M25+H25-N25), 0, +M25+H25-N25) -> 13339.39
A26: 1815 | B26: Transformer Station Equipment >50 kV (1719) | C26: =546194.98-113183.48 -> 433011.5 | D26: 0 | E26: =C26/K26 -> 12.11332117 | F26: 20 | G26: =IF(F26=0,0,1/F26) -> 0.05 | H26: =IF(E26=0,0,+C26/E26) -> 35746.72 | I26: =IF(F26=0,0,+(D26*0.5)/F26) -> 0 | J26: =IF(ISERROR(+H26+I26), 0, +H26+I26) -> 35746.72 | K26: 35746.72 | L26: =IF(ISERROR(+J26-K26), 0, +J26-K26) -> 0 | M26: =IF(F26=0,0,+(D26)/F26) -> 0 | O26: =IF(ISERROR(+M26+H26-N26), 0, +M26+H26-N26) -> 35746.72
A27: 1820 | B27: Distribution Station Equipment <50 kV | C27: 2004873.03 | D27: -497870 | E27: 23.37715 | F27: 45 | G27: 0.02222222222 | H27: 85762.08092 | I27: -5531.888889 | J27: 80230.19203 | K27: 80229.87 | L27: 0.3220320104 | M27: -11063.77778 | N27: 16891 | O27: 57807.30314
A28: 1820 | B28: Distribution Station Equipment <50 kV (1821) | C28: =1880385.35-730153.71 -> 1150231.64 | D28: 401384.64 | E28: 20.332 | F28: 30 | G28: =IF(F28=0,0,1/F28) -> 0.03333333333 | H28: =IF(E28=0,0,+C28/E28) -> 56572.47885 | I28: =IF(F28=0,0,+(D28*0.5)/F28) -> 6689.744 | J28: =IF(ISERROR(+H28+I28), 0, +H28+I28) -> 63262.22285 | K28: 63262.52 | L28: =IF(ISERROR(+J28-K28), 0, +J28-K28) -> -0.2971489278 | M28: =IF(F28=0,0,+(D28)/F28) -> 13379.488 | O28: =IF(ISERROR(+M28+H28-N28), 0, +M28+H28-N28) -> 69951.96685
A29: 1825 | B29: Storage Battery Equipment | C29: 0 | D29: ='App.2-CF_OldCGAAP_DepExp_2013'!F25 -> 0 | G29: 0 | H29: 0 | I29: 0 | J29: 0 | L29: 0 | M29: 0 | O29: 0
A30: 1830 | B30: Poles, Towers & Fixtures-Wood poles | C30: 15662777.79 | D30: ='App.2-CF_OldCGAAP_DepExp_2013'!F26-120419 -> 1900120.71 | E30: 42.8606 | F30: 50 | G30: 0.02 | H30: 365435.3366 | I30: 19001.2071 | J30: 384436.5437 | K30: =383562.8+873.4 -> 384436.2 | L30: 0.3437495102 | M30: 38002.4142 | N30: 0 | O30: 403437.7508
A31: 1830 | B31: Poles, Towers & Fixtures (1831) Concrete | C31: =2732088.36+186160.95-1180177.31-60687.91 -> 1677384.09 | D31: 120419 | E31: 52.953 | F31: 60 | G31: =IF(F31=0,0,1/F31) -> 0.01666666667 | H31: =IF(E31=0,0,+C31/E31) -> 31676.8472 | I31: =IF(F31=0,0,+(D31*0.5)/F31) -> 1003.491667 | J31: =IF(ISERROR(+H31+I31), 0, +H31+I31) -> 32680.33887 | K31: 32680.1 | L31: =IF(ISERROR(+J31-K31), 0, +J31-K31) -> 0.2388707911 | M31: =IF(F31=0,0,+(D31)/F31) -> 2006.983333 | O31: =IF(ISERROR(+M31+H31-N31), 0, +M31+H31-N31) -> 33683.83054
A32: 1835 | B32: Overhead Conductors & Devices | C32: 13378699.48 | D32: ='App.2-CF_OldCGAAP_DepExp_2013'!F27-D33-D34 -> 1858349.76 | E32: 23.96419 | F32: 60 | G32: 0.01666666667 | H32: 558278.8102 | I32: 15486.248 | J32: 573765.0582 | K32: =254998.99+318766.52 -> 573765.51 | L32: -0.4518253185 | M32: 30972.496 | N32: =215041+106561 -> 321602 | O32: 267649.3062
A33: 1835 | B33: Overhead Conductors & Devices (1836) | C33: =1784853.54+716194.76-509196.53-307213.62 -> 1684638.15 | D33: 105662 | E33: 27.8196 | F33: 15 | G33: =IF(F33=0,0,1/F33) -> 0.06666666667 | H33: =IF(E33=0,0,+C33/E33) -> 60555.80059 | I33: =IF(F33=0,0,+(D33*0.5)/F33) -> 3522.066667 | J33: =IF(ISERROR(+H33+I33), 0, +H33+I33) -> 64077.86725 | K33: 64077.51 | L33: =IF(ISERROR(+J33-K33), 0, +J33-K33) -> 0.3572533034 | M33: =IF(F33=0,0,+(D33)/F33) -> 7044.133333 | N33: =-112512.78-29663 -> -142175.78 | O33: =IF(ISERROR(+M33+H33-N33), 0, +M33+H33-N33) -> 209775.7139
A34: 1835 | B34: Overhead Conductors & Devices (1837) | C34: =1586350.23+315348.35-330670.47-132048.16 -> 1438979.95 | D34: 0 | E34: 0 | F34: 30 | G34: =IF(F34=0,0,1/F34) -> 0.03333333333 | H34: =IF(E34=0,0,+C34/E34) -> 0 | I34: =IF(F34=0,0,+(D34*0.5)/F34) -> 0 | J34: =IF(ISERROR(+H34+I34), 0, +H34+I34) -> 0 | L34: =IF(ISERROR(+J34-K34), 0, +J34-K34) -> 0 | M34: =IF(F34=0,0,+(D34)/F34) -> 0 | N34: -69750 | O34: =IF(ISERROR(+M34+H34-N34), 0, +M34+H34-N34) -> 69750
A35: 1840 | B35: Underground Conduit | C35: 6874814.57 | D35: ='App.2-CF_OldCGAAP_DepExp_2013'!F28 -> 590886.75 | E35: 44.2579 | F35: 50 | G35: 0.02 | H35: 155335.309 | I35: 5908.8675 | J35: 161244.1765 | K35: 161244 | L35: 0.1764504925 | M35: 11817.735 | O35: 167153.044
A36: 1845 | B36: Underground Conductors & Devices | C36: 26944944.49 | D36: ='App.2-CF_OldCGAAP_DepExp_2013'!F29-D37 -> 1698458.66 | E36: 16.80687 | F36: 35 | G36: 0.02857142857 | H36: 1603210.145 | I36: 24263.69514 | J36: 1627473.84 | K36: 1627473.43 | L36: 0.4101609362 | M36: 48527.39029 | N36: -14060 | O36: 1665797.535
A37: 1845 | B37: Underground Conductors & Devices (1846) | C37: =1807419.2+77396.51-881472.62-64472.43 -> 938870.66 | D37: 186760 | E37: 10.758 | F37: 30 | G37: =IF(F37=0,0,1/F37) -> 0.03333333333 | H37: =IF(E37=0,0,+C37/E37) -> 87271.85908 | I37: =IF(F37=0,0,+(D37*0.5)/F37) -> 3112.666667 | J37: =IF(ISERROR(+H37+I37), 0, +H37+I37) -> 90384.52575 | K37: 90384.23 | L37: =IF(ISERROR(+J37-K37), 0, +J37-K37) -> 0.2957482804 | M37: =IF(F37=0,0,+(D37)/F37) -> 6225.333333 | N37: =25304+3011+13827 -> 42142 | O37: =IF(ISERROR(+M37+H37-N37), 0, +M37+H37-N37) -> 51355.19241
A38: 1850 | B38: Line Transformers (1850) Polemount | C38: 5768242.17 | D38: ='App.2-CF_OldCGAAP_DepExp_2013'!F30-D39 -> 289471.03 | E38: 27.7477 | F38: 40 | G38: 0.025 | H38: 207881.8125 | I38: 3618.387875 | J38: 211500.2004 | K38: 211500.12 | L38: 0.08042162561 | M38: 7236.77575 | N38: 5978 | O38: 209140.5883
A39: 1850 | B39: Line Transformers (1853) Padmount | C39: =14540422.95+2685474.31-6629220.78-1413244.68 -> 9183431.8 | D39: 808475.14 | E39: 20.2046 | F39: 30 | G39: =IF(F39=0,0,1/F39) -> 0.03333333333 | H39: =IF(E39=0,0,+C39/E39) -> 454521.8317 | I39: =IF(F39=0,0,+(D39*0.5)/F39) -> 13474.58567 | J39: =IF(ISERROR(+H39+I39), 0, +H39+I39) -> 467996.4173 | K39: 467996 | L39: =IF(ISERROR(+J39-K39), 0, +J39-K39) -> 0.4173287633 | M39: =IF(F39=0,0,+(D39)/F39) -> 26949.17133 | N39: =1315.72+106.92-4315 -> -2892.36 | O39: =IF(ISERROR(+M39+H39-N39), 0, +M39+H39-N39) -> 484363.363
A40: 1855 | B40: Services (Overhead & Underground) | C40: 3519280.26 | D40: ='App.2-CF_OldCGAAP_DepExp_2013'!F31 -> 800998 | E40: 19.0065 | F40: 25 | G40: 0.04 | H40: 185161.932 | I40: 16019.96 | J40: 201181.892 | K40: 201181.73 | L40: 0.1619706416 | M40: 32039.92 | N40: 0 | O40: 217201.852
A41: 1860 | B41: Meters | C41: 1804529.01 | D41: ='App.2-CF_OldCGAAP_DepExp_2013'!F32 -> 248020 | E41: 12.8228 | F41: 20 | G41: 0.05 | H41: 140728.1569 | I41: 6200.5 | J41: 146928.6569 | K41: 146928.29 | L41: 0.3668768131 | M41: 12401 | N41: 3249 | O41: 149880.1569
A42: 1860 | B42: Meters (Smart Meters) | C42: 3479173.91 | D42: ='App.2-CF_OldCGAAP_DepExp_2013'!F33 -> 27477 | E42: 12.50051 | F42: 15 | G42: 0.06666666667 | H42: 278322.5572 | I42: 915.9 | J42: 279238.4572 | K42: 279238 | L42: 0.4572396646 | M42: 1831.8 | N42: 0 | O42: 280154.3572
A43: 1905 | B43: Land | C43: 508969.83 | D43: ='App.2-CF_OldCGAAP_DepExp_2013'!F34 -> 0 | E43: 0 | F43: 0 | G43: 0 | H43: 0 | I43: 0 | J43: 0 | L43: 0 | M43: 0 | O43: 0
A44: 1908 | B44: Buildings & Fixtures | C44: =13205845.69-1250.44-2454282.89 -> 10750312.36 | D44: ='App.2-CF_OldCGAAP_DepExp_2013'!F35 -> 1911585 | E44: 48.07 | F44: 60 | G44: 0.01666666667 | H44: 223638.7011 | I44: 15929.875 | J44: 239568.5761 | K44: =2650.48+229333.19 -> 231983.67 | L44: 7584.906061 | M44: 31859.75 | O44: 255498.4511
A45: 1910 | B45: Leasehold Improvements | C45: =120252.32-120252.32 -> 0 | D45: ='App.2-CF_OldCGAAP_DepExp_2013'!F36 -> 0 | G45: 0 | H45: 0 | I45: 0 | J45: 0 | L45: 0 | M45: 0 | O45: 0
A46: 1915 | B46: Office Furniture & Equipment (10 years) | C46: =1323138.81-21600-830163.17 -> 471375.64 | D46: ='App.2-CF_OldCGAAP_DepExp_2013'!F37 -> 170426 | E46: 6.0952 | F46: 10 | G46: 0.1 | H46: 77335.54928 | I46: 8521.3 | J46: 85856.84928 | K46: 85856.73 | L46: 0.119284683 | M46: 17042.6 | O46: 94378.14928
A47: 1915 | B47: Office Furniture & Equipment (5 years) | C47: 0 | D47: ='App.2-CF_OldCGAAP_DepExp_2013'!F38 -> 0 | G47: 0 | H47: 0 | I47: 0 | J47: 0 | L47: 0 | M47: 0 | O47: 0
A48: 1920 | B48: Computer Equipment - Hardware | C48: =3133839.7-317112.36-2366558.62+2832+364650 -> 817650.72 | D48: ='App.2-CF_OldCGAAP_DepExp_2013'!F39 -> 276353 | E48: 2.957894 | F48: 5 | G48: 0.2 | H48: 276430.0276 | I48: 27635.3 | J48: 304065.3276 | K48: 304064.93 | L48: 0.397580434 | M48: 55270.6 | N48: =157888.9*0.5 -> 78944.45 | O48: 252756.1776
A49: 1920 | B49: Computer Equip.-Hardware(Post Mar. 22/04) | C49: =2832-2832 -> 0 | D49: ='App.2-CF_OldCGAAP_DepExp_2013'!F40 -> 0 | G49: 0 | H49: 0 | I49: 0 | J49: 0 | L49: 0 | M49: 0 | O49: 0
A50: 1920 | B50: Computer Equip.-Hardware(Post Mar. 19/07) | C50: =364650-364650 -> 0 | D50: ='App.2-CF_OldCGAAP_DepExp_2013'!F41 -> 0 | G50: 0 | H50: 0 | I50: 0 | J50: 0 | L50: 0 | M50: 0 | O50: 0
A51: 1930 | B51: Transportation Equipment (1931) | C51: =548320.97-321095.91 -> 227225.06 | D51: ='App.2-CF_OldCGAAP_DepExp_2013'!F42-D52-D53 -> 157663 | E51: 4.1316 | F51: 8 | G51: 0.125 | H51: 54996.86804 | I51: 9853.9375 | J51: 64850.80554 | K51: 64851.07 | L51: -0.2644585633 | M51: 19707.875 | O51: 74704.74304
A52: 1930 | B52: Transportation Equipment (1932) Large Trucks | C52: =6735905.41-4017550.03 -> 2718355.38 | D52: 808792 | E52: 14.6064 | F52: 15 | G52: =IF(F52=0,0,1/F52) -> 0.06666666667 | H52: =IF(E52=0,0,+C52/E52) -> 186107.1434 | I52: =IF(F52=0,0,+(D52*0.5)/F52) -> 26959.73333 | J52: =IF(ISERROR(+H52+I52), 0, +H52+I52) -> 213066.8768 | K52: 213066.99 | L52: =IF(ISERROR(+J52-K52), 0, +J52-K52) -> -0.1132226969 | M52: =IF(F52=0,0,+(D52)/F52) -> 53919.46667 | N52: -6166.95 | O52: =IF(ISERROR(+M52+H52-N52), 0, +M52+H52-N52) -> 246193.5601
A53: 1930 | B53: Transportation Equipment (1933) Trailers | C53: =320906.27-224400.54 -> 96505.73 | D53: 8420 | E53: 19.215 | F53: 20 | G53: =IF(F53=0,0,1/F53) -> 0.05 | H53: =IF(E53=0,0,+C53/E53) -> 5022.416341 | I53: =IF(F53=0,0,+(D53*0.5)/F53) -> 210.5 | J53: =IF(ISERROR(+H53+I53), 0, +H53+I53) -> 5232.916341 | K53: 5232.51 | L53: =IF(ISERROR(+J53-K53), 0, +J53-K53) -> 0.4063413999 | M53: =IF(F53=0,0,+(D53)/F53) -> 421 | O53: =IF(ISERROR(+M53+H53-N53), 0, +M53+H53-N53) -> 5443.416341
A54: 1935 | B54: Stores Equipment | C54: =236413.92-196641.13 -> 39772.79 | D54: ='App.2-CF_OldCGAAP_DepExp_2013'!F43 -> 0 | E54: =C54/K54 -> 7.332363005 | F54: 10 | G54: 0.1 | H54: 5424.28 | I54: 0 | J54: 5424.28 | K54: 5424.28 | L54: 0 | M54: 0 | O54: 5424.28
A55: 1940 | B55: Tools, Shop & Garage Equipment | C55: =1871743.96-263830.99-1193399.07 -> 414513.9 | D55: ='App.2-CF_OldCGAAP_DepExp_2013'!F44 -> 83082 | E55: 5.817 | F55: 10 | G55: 0.1 | H55: 71259.05106 | I55: 4154.1 | J55: 75413.15106 | K55: 75413.36 | L55: -0.208942754 | M55: 8308.2 | O55: 79567.25106
A56: 1945 | B56: Measurement & Testing Equipment | C56: =204006.18-138691.33-47927.72 -> 17387.13 | D56: ='App.2-CF_OldCGAAP_DepExp_2013'!F45 -> 0 | E56: =C56/K56 -> 2.315761364 | F56: 5 | G56: 0.2 | H56: 7508.17 | I56: 0 | J56: 7508.17 | K56: 7508.17 | L56: 0 | M56: 0 | O56: 7508.17
A57: 1950 | B57: Power Operated Equipment | C57: 0 | D57: ='App.2-CF_OldCGAAP_DepExp_2013'!F46 -> 0 | G57: 0 | H57: 0 | I57: 0 | J57: 0 | L57: 0 | M57: 0 | O57: 0
A58: 1955 | B58: Communications Equipment | C58: =502920.61-155981.08 -> 346939.53 | D58: ='App.2-CF_OldCGAAP_DepExp_2013'!F47 -> 343864 | E58: =C58/K58 -> 17.86590971 | F58: 20 | G58: 0.05 | H58: 19419.08 | I58: 8596.6 | J58: 28015.68 | K58: 19419.08 | L58: 8596.6 | M58: 17193.2 | O58: 36612.28
A59: 1955 | B59: Communication Equipment (Smart Meters) | C59: 0 | D59: ='App.2-CF_OldCGAAP_DepExp_2013'!F48 -> 0 | G59: 0 | H59: 0 | I59: 0 | J59: 0 | L59: 0 | M59: 0 | O59: 0
A60: 1960 | B60: Miscellaneous Equipment | C60: =72951.31-67311.72-2 -> 5637.59 | D60: ='App.2-CF_OldCGAAP_DepExp_2013'!F49 -> 0 | E60: =C60/K60 -> 1.698862421 | F60: 5 | G60: 0.2 | H60: 3318.45 | I60: 0 | J60: 3318.45 | K60: 3318.45 | L60: 0 | M60: 0 | O60: 3318.45
A61: 1970 | B61: Load Management Controls - Customer Premises | C61: 0 | D61: ='App.2-CF_OldCGAAP_DepExp_2013'!F50 -> 0 | G61: 0 | H61: 0 | I61: 0 | J61: 0 | L61: 0 | M61: 0 | O61: 0
A62: 1975 | B62: Load Management Controls Utility Premises | C62: 0 | D62: ='App.2-CF_OldCGAAP_DepExp_2013'!F51 -> 0 | G62: 0 | H62: 0 | I62: 0 | J62: 0 | L62: 0 | M62: 0 | O62: 0
A63: 1980 | B63: System Supervisor Equipment | C63: =128960.64-128960.64 -> 0 | D63: ='App.2-CF_OldCGAAP_DepExp_2013'!F52 -> 0 | F63: 15 | G63: 0.06666666667 | H63: 0 | I63: 0 | J63: 0 | L63: 0 | M63: 0 | O63: 0
A64: 1985 | B64: Miscellaneous Fixed Assets | C64: 0 | D64: ='App.2-CF_OldCGAAP_DepExp_2013'!F53 -> 0 | G64: 0 | H64: 0 | I64: 0 | J64: 0 | L64: 0 | M64: 0 | O64: 0
A65: 1990 | B65: Other Tangible Property | C65: 0 | D65: ='App.2-CF_OldCGAAP_DepExp_2013'!F54 -> 0 | G65: 0 | H65: 0 | I65: 0 | J65: 0 | L65: 0 | M65: 0 | O65: 0
A66: 1995 | B66: Contributions & Grants | C66: =-20525490.62+2457304.51+3036309.99 -> -15031876.12 | D66: ='App.2-CF_OldCGAAP_DepExp_2013'!F55 -> -991373 | E66: 19.017265 | F66: 25 | G66: 0.04 | H66: -790433.1206 | I66: -19827.46 | J66: -810260.5806 | K66: -810261.01 | L66: 0.4293593611 | M66: -39654.92 | O66: -830088.0406
B67: Total | C67: =SUM(C17:C66) -> 103982941.2 | D67: =SUM(D17:D66) -> 11439655.29 | H67: =SUM(H17:H66) -> 4856238.407 | I67: 215044.4981 | J67: 5071282.905 | K67: 5055098.05 | L67: 16184.85489 | M67: 430088.9962 | N67: 300951.36 | O67: 4985376.043
A69: Notes:
A71: 1 | B71: Board policy of the "half-year" rule - the applicant must ensure that additions in the year attract a half-year depreciation expense in the first year. Deviations from this standard practice must be supported in the application.
A72: 2 | B72: The applicant must provide an explanation of material variances in evidence.
A73: 3 | B73: The applicant should ensure that the years for new additions of assets are the asset useful lives determined by management in accordance with the Board's regulatory accounting policies. The capitalization and depreciation expense accounting changes should be implemented consistent with the Board’s regulatory accounting policies as set out for MIFRS as contained in the Report of the Board, Transition to International Financial Reporting Standards, EB-2008-0408, the Kinectrics Report, and the Revised 2012 Accounting Procedures Handbook for Electricity Distributors.
A74: 4 | B74: A recalculation should be performed to determine the average remaining life of opening balance of assets (i.e. excluding 2013 additions) under the change in policies under CGAAP. For example, Asset A had a useful life of 20 years under CGAAP without the change in policies. On January 1, 2013, the effective date of the changes in policies, Asset A was 3 years depreciated. As a result, Asset A would have a remaining service life of 17 years (20 years less 3 years) as of January 1, 2013. Due to making the change in policies under CGAAP, management re-assessed the asset useful lives and concluded that the revised useful life of Asset A is now 30 years. Therefore, the average remaining useful life of the opening balance of Asset A is determined to be 27 years (30 years less 3 years) under the revised CGAAP as of January 1, 2013.
A75: 5 | B75: NBV must exclude assets still on the books but which have been fully amortized or depreciated.
A76: 6 | B76: This column refers to the calculated full year depreciation but excludes the depreciation expense on assets fully depreciated during the year. This column is used for the purpose of calculating depreciation expense in the following year on the next worksheet.
A78: General: | B78: Applicants must provide a breakdown of depreciation and amortization expense in the above format for all relevant accounts. Asset Retirement Obligations (AROs), depreciation and accretion expense should be disclosed separately consistent with the Notes of historical Audited Financial Statements.

Sheet App.2-CH_OldCGAAP_DepExp_2014
K1: File Number: | L1: =EBNUMBER -> EB-2014-0096
K2: Exhibit: | L2: 4
K3: Tab: | L3: 4
K4: Schedule: | L4: 1
K5: Page: | L5: 3
K7: Date: | L7: 2014-08-29
A9: Appendix 2-CH 2014-1
A10: Depreciation and Amortization Expense
B11: Assumes the applicant made capitalization and depreciation expense accounting policy changes under CGAAP effective January 1, 2013 and will adopt IFRS for financial reporting purposes effective January 1, 2015.
C13: Year | D13: 2014 | E13: Former CGAAP
A15: Account | B15: Description | C15: Opening Regulatory Gross PP&E as at Jan 1, 2014 | D15: Less Fully Depreciated | E15: Net for Depreciation | F15: Additions | G15: Total for Depreciation | H15: Years | I15: Depreciation Rate | J15: Depreciation Expense | K15: 2014 Depreciation Expense per Appendix 2-BA Fixed Assets, Column J (l) | L15: Variance 2
C16: (a) | D16: (b) | E16: (c) | F16: (d) | G16: (e) = (c) + ½ x (d) 1 | H16: (f) | I16: (g) = 1 / (f) | J16: (h) = (e) / (f) | L16: (m) = (h) - (l)
A17: 1611 | B17: Computer Software (Formally known as Account 1925) | C17: 2691706.16 | D17: 2215733.31 | E17: =C17-D17 -> 475972.85 | F17: 737966 | G17: =E17+0.5*F17 -> 844955.85 | H17: 3 | I17: =IF(H17=0,0,1/H17) -> 0.3333333333 | J17: =IF(H17=0,0,G17/H17) -> 281651.95 | K17: 467668.0575 | L17: =IF(ISERROR(+J17-K17), 0, +J17-K17) -> -186016.1075
A18: 1612 | B18: Land Rights (Formally known as Account 1906) | C18: 1604396.58 | D18: =201895.34 -> 201895.34 | E18: =C18-D18 -> 1402501.24 | F18: 0 | G18: =E18+0.5*F18 -> 1402501.24 | H18: 25 | I18: 0.04 | J18: 56100.0496 | K18: 57066.5648 | L18: -966.5152
A19: 1805 | B19: Land | C19: 507272.792 | E19: 507272.792 | G19: 507272.792 | I19: 0 | J19: 0 | L19: 0
A20: 1808 | B20: Buildings | C20: 111638.13 | D20: 111638 | E20: 0.13 | G20: 0.13 | H20: 50 | I20: 0.02 | J20: 0.0026 | L20: 0.0026
A21: 1810 | B21: Leasehold Improvements | E21: 0 | G21: 0 | I21: 0 | J21: 0 | L21: 0
A22: 1815 | B22: Transformer Station Equipment >50 kV(1708,1740,1745) | C22: =3833014.14 -> 3833014.14 | E22: 3833014.14 | G22: =E22+0.5*F22 -> 3833014.14 | H22: 50 | I22: 0.02 | J22: 76660.2828 | K22: 76660.28 | L22: 0.002799999857
A23: 1815 | B23: Transformer Station Equipment >50 kV (1715) | C23: =2726687.83+58564.58+'App.2-CG_NewCGAAP_DepExp_2013'!D23 -> 2801931.41 | E23: 2801931.41 | F23: 0 | G23: =E23+0.5*F23 -> 2801931.41 | H23: 40 | I23: 0.025 | J23: 70048.28525 | K23: 70172.05585 | L23: -123.7706
A24: 1820 | B24: Distribution Station Equipment <50 kV | C24: 6354039.79 | D24: =615644.53+27967.76+48600.58+70656+1346.39+61824+19000+44162+64468+85537+70504+26103.78 -> 1135814.04 | E24: 5218225.75 | F24: 252037 | G24: 5344244.25 | H24: 25 | I24: 0.04 | J24: 213769.77 | K24: 204690.4532 | L24: 9079.3168
A25: 1825 | B25: Storage Battery Equipment | E25: 0 | G25: 0 | H25: 0 | I25: 0 | J25: 0 | L25: 0
A26: 1830 | B26: Poles, Towers & Fixtures | C26: 43573943.42 | D26: =2492337+340747+338270.62+421740+6060689.22+467364 -> 10121147.84 | E26: 33452795.58 | F26: 1931739 | G26: 34418665.08 | H26: 25 | I26: 0.04 | J26: 1376746.603 | K26: 1352859.918 | L26: 23886.68565
A27: 1835 | B27: Overhead Conductors & Devices | C27: 28184729.14 | D27: 1019957 | E27: 27164772.14 | F27: 841832 | G27: 27585688.14 | H27: 25 | I27: 0.04 | J27: 1103427.526 | K27: 1108573.694 | L27: -5146.167913
A28: 1840 | B28: Underground Conduit | C28: 9663793.74 | D28: 0 | E28: 9663793.74 | F28: 1246226 | G28: 10286906.74 | H28: 25 | I28: 0.04 | J28: 411476.2696 | K28: 411432.0036 | L28: 44.26603304
A29: 1845 | B29: Underground Conductors & Devices | C29: 66575037.95 | D29: =666727+2944456.79+869027+184619+485516+237320+457698.82+41496+1404944.88 -> 7291805.49 | E29: 59283232.46 | F29: 2535908 | G29: 60551186.46 | H29: 25 | I29: 0.04 | J29: 2422047.458 | K29: 2343300.343 | L29: 78747.11557
A30: 1850 | B30: Line Transformers | C30: 37356216.71 | D30: =5102067+1644799-3638+304445+118050 -> 7165723 | E30: 30190493.71 | F30: 1818452.01 | G30: 31099719.71 | H30: 25 | I30: 0.04 | J30: 1243988.789 | K30: 1243779.592 | L30: 209.1962666
A31: 1855 | B31: Services (Overhead & Underground) | C31: 5430060.8 | D31: 0 | E31: 5430060.8 | F31: 1062007 | G31: 5961064.3 | H31: 25 | I31: 0.04 | J31: 238442.572 | K31: 238441.8176 | L31: 0.7544
A32: 1860 | B32: Meters | C32: 2893475.87 | D32: 0 | E32: 2893475.87 | F32: 602413.58 | G32: 3194682.66 | H32: 25 | I32: 0.04 | J32: 127787.3064 | K32: 152822.455 | L32: -25035.1486
A33: 1860 | B33: Meters (Smart Meters) | C33: 4202486.36 | D33: 0 | E33: 4202486.36 | F33: 1658578.32 | G33: 5031775.52 | H33: 15 | I33: 0.06666666667 | J33: 335451.7013 | K33: 465231.03 | L33: -129779.3287
A34: 1905 | B34: Land | C34: 508969.83 | E34: 508969.83 | G34: 508969.83 | I34: 0 | J34: 0 | L34: 0
A35: 1908 | B35: Buildings & Fixtures | C35: 15117430.2 | D35: 0 | E35: 15117430.2 | F35: 1500485 | G35: 15867672.7 | H35: 60 | I35: 0.01666666667 | J35: 264461.2117 | K35: 260610.5721 | L35: 3850.639533
A36: 1910 | B36: Leasehold Improvements | C36: 120252.32 | E36: 120252.32 | G36: 120252.32 | I36: 0 | J36: 0 | L36: 0
A37: 1915 | B37: Office Furniture & Equipment (10 years) | C37: 1493564.37 | D37: 546937.59 | E37: 946626.78 | F37: 157000 | G37: 1025126.78 | H37: 10 | I37: 0.1 | J37: 102512.678 | K37: 100229.14 | L37: 2283.538
A38: 1915 | B38: Office Furniture & Equipment (5 years) | C38: 0 | E38: 0 | G38: 0 | I38: 0 | J38: 0 | L38: 0
A39: 1920 | B39: Computer Equipment - Hardware | C39: 3410192.42 | D39: 2070286.71 | E39: 1339905.71 | F39: 302295 | G39: 1491053.21 | H39: 5 | I39: 0.2 | J39: 298210.642 | K39: 284534.359 | L39: 13676.283
A40: 1920 | B40: Computer Equip.-Hardware(Post Mar. 22/04) | C40: 2832 | D40: 2832 | E40: 0 | G40: 0 | H40: 5 | I40: 0.2 | J40: 0 | L40: 0
A41: 1920 | B41: Computer Equip.-Hardware(Post Mar. 19/07) | C41: 364650 | D41: 364650 | E41: 0 | G41: 0 | H41: 5 | I41: 0.2 | J41: 0 | L41: 0
A42: 1930 | B42: Transportation Equipment | C42: 8580007.54 | D42: 3226934.55 | E42: 5353072.99 | F42: 672000 | G42: 5689072.99 | H42: 8 | I42: 0.125 | J42: 711134.1237 | K42: 724983.36 | L42: -13849.23625
A43: 1935 | B43: Stores Equipment | C43: 236413.92 | D43: 182171.13 | E43: 54242.79 | F43: 75000 | G43: 91742.79 | H43: 10 | I43: 0.1 | J43: 9174.279 | K43: 9174.28 | L43: -0.0009999999984
A44: 1940 | B44: Tools, Shop & Garage Equipment | C44: 1954825.97 | D44: 1178844.27 | E44: 775981.7 | F44: 67000 | G44: 809481.7 | H44: 10 | I44: 0.1 | J44: 80948.17 | K44: 78814.84 | L44: 2133.33
A45: 1945 | B45: Measurement & Testing Equipment | C45: 204006.18 | D45: 170549.68 | E45: 33456.5 | G45: 33456.5 | H45: 5 | I45: 0.2 | J45: 6691.3 | K45: 5092.23 | L45: 1599.07
A46: 1950 | B46: Power Operated Equipment | E46: 0 | G46: 0 | I46: 0 | J46: 0 | L46: 0
A47: 1955 | B47: Communications Equipment | C47: 846784.65 | D47: 158934.6 | E47: 687850.05 | F47: 227500 | G47: 801600.05 | H47: 4 | I47: 0.25 | J47: 200400.0125 | K47: 199196.16 | L47: 1203.8525
A48: 1955 | B48: Communication Equipment (Smart Meters) | E48: 0 | G48: 0 | I48: 0 | J48: 0 | L48: 0
A49: 1960 | B49: Miscellaneous Equipment | C49: 72951.31 | D49: 62316.73 | E49: 10634.58 | G49: 10634.58 | H49: 5 | I49: 0.2 | J49: 2126.916 | K49: 2071.84 | L49: 55.076
A50: 1970 | B50: Load Management Controls - Customer Premises | E50: 0 | G50: 0 | I50: 0 | J50: 0 | L50: 0
A51: 1975 | B51: Load Management Controls Utility Premises | E51: 0 | G51: 0 | I51: 0 | J51: 0 | L51: 0
A52: 1980 | B52: System Supervisor Equipment | C52: 128960.64 | D52: 128961 | E52: -0.36 | G52: -0.36 | H52: 15 | I52: 0.06666666667 | J52: -0.024 | L52: -0.024
A53: 1985 | B53: Miscellaneous Fixed Assets | E53: 0 | G53: 0 | I53: 0 | J53: 0 | L53: 0
A54: 1990 | B54: Other Tangible Property | E54: 0 | G54: 0 | I54: 0 | J54: 0 | L54: 0
A55: 1995 | B55: Contributions & Grants | C55: -21516864.1 | D55: 0 | E55: -21516864.1 | F55: -900000 | G55: -21966864.1 | H55: 25 | I55: 0.04 | J55: -878674.564 | K55: -845482.4952 | L55: -33192.0688
B56: Total | C56: =SUM(C17:C55) -> 227308720.2 | D56: =SUM(D17:D55) -> 37357132.28 | E56: =SUM(E17:E55) -> 189951588 | F56: =SUM(F17:F55) -> 14788438.91 | G56: =SUM(G17:G55) -> 197345807.4 | J56: =SUM(J17:J55) -> 8754583.31 | K56: =SUM(K17:K55) -> 9011922.55 | L56: =SUM(L17:L55) -> -257339.2394
A58: Notes:
A60: 1 | B60: Board policy of the "half-year" rule - the applicant must ensure that additions in the year attract a half-year depreciation expense in the first year. Deviations from this standard practice must be supported in the application.
A61: 2 | B61: The applicant must provide an explanation of material variances in evidence.
A63: General | B63: Applicants must provide a breakdown of depreciation and amortization expense in the above format for all relevant accounts. Asset Retirement Obligations (AROs), depreciation and accretion expense should be disclosed separately consistent with the Notes of historical Audited Financial Statements.

Sheet App.2-CH_MIFRS_DepExp_2014
J1: File Number: | K1: =EBNUMBER -> EB-2014-0096
J2: Exhibit: | K2: 4
J3: Tab: | K3: 4
J4: Schedule: | K4: 1
J5: Page: | K5: 3
J7: Date: | K7: 2014-08-29
A9: Appendix 2-CH-2014-2
A10: Depreciation and Amortization Expense
A11: Assumes the applicant made capitalization and depreciation expense accounting policy changes under CGAAP effective January 1, 2013 and will adopt IFRS for financial reporting purposes effective January 1, 2015.
E13: 2014 | F13: MIFRS
A15: Account | B15: Description | C15: Additions | D15: Years (new additions only) | E15: Depreciation Rate on New Additions | F15: 2014 Depreciation Expense 1 | G15: 2014 Depreciation Expense per Apppendix 2-BA Fixed Assets, Column J (l) | H15: Variance 2 | I15: Depreciation Expense on 2014 Full Year Additions | J15: Less Depreciation Expense on Assets Fully Depreciated during the year (o) | K15: 2014 Full Year Depreciation 3
C16: (d) | D16: (f) | E16: (g) = 1 / (f) | F16: (h)=2013 Full Year Deprecation + ((d)*0.5)/(f) | H16: (m) = (h) - (l) | I16: (n)=((d))/(f) | K16: (p) = 2013 Full Year Depreciation + (n) - (o)
A17: ='App.2-CG_NewCGAAP_DepExp_2013'!A17 -> 1611 | B17: ='App.2-CG_NewCGAAP_DepExp_2013'!B17 -> Computer Software (Formally known as Account 1925) | C17: 737966 | D17: ='App.2-CG_NewCGAAP_DepExp_2013'!F17 -> 3 | E17: =IF(D17=0,0,1/D17) -> 0.3333333333 | F17: =IF(D17=0,+'App.2-CG_NewCGAAP_DepExp_2013'!O17,+'App.2-CG_NewCGAAP_DepExp_2013'!O17+((C17*0.5)/D17)) -> 309810.7078 | G17: =260670.56+206998 -> 467668.56 | H17: =IF(ISERROR(+F17-G17), 0, +F17-G17) -> -157857.8522 | I17: =IF(D17=0,0,+(C17)/D17) -> 245988.6667 | J17: =70602+136103-35918+207247-107062+223112-145309+39875 -> 388650 | K17: =IF(ISERROR(+I17+'App.2-CG_NewCGAAP_DepExp_2013'!O17-J17), 0, +I17+'App.2-CG_NewCGAAP_DepExp_2013'!O17-J17) -> 44155.04111
A18: ='App.2-CG_NewCGAAP_DepExp_2013'!A18 -> 1612 | B18: ='App.2-CG_NewCGAAP_DepExp_2013'!B18 -> Land Rights (Formally known as Account 1906) | C18: 0 | D18: ='App.2-CG_NewCGAAP_DepExp_2013'!F18 -> 25 | E18: 0.04 | F18: =IF(D18=0,+'App.2-CG_NewCGAAP_DepExp_2013'!O18,+'App.2-CG_NewCGAAP_DepExp_2013'!O18+((C18*0.5)/D18)) -> 57066.15078 | G18: 57066.5 | H18: -0.3492180928 | I18: 0 | K18: =IF(ISERROR(+I18+'App.2-CG_NewCGAAP_DepExp_2013'!O18-J18), 0, +I18+'App.2-CG_NewCGAAP_DepExp_2013'!O18-J18) -> 57066.15078
A19: ='App.2-CG_NewCGAAP_DepExp_2013'!A19 -> 1805 | B19: ='App.2-CG_NewCGAAP_DepExp_2013'!B19 -> Land | D19: ='App.2-CG_NewCGAAP_DepExp_2013'!F19 -> 0 | E19: 0 | F19: =IF(D19=0,+'App.2-CG_NewCGAAP_DepExp_2013'!O19,+'App.2-CG_NewCGAAP_DepExp_2013'!O19+((C19*0.5)/D19)) -> 0 | H19: 0 | I19: 0 | K19: =IF(ISERROR(+I19+'App.2-CG_NewCGAAP_DepExp_2013'!O19-J19), 0, +I19+'App.2-CG_NewCGAAP_DepExp_2013'!O19-J19) -> 0
A20: ='App.2-CG_NewCGAAP_DepExp_2013'!A20 -> 1808 | B20: ='App.2-CG_NewCGAAP_DepExp_2013'!B20 -> Buildings | D20: ='App.2-CG_NewCGAAP_DepExp_2013'!F20 -> 50 | E20: 0.02 | F20: =IF(D20=0,+'App.2-CG_NewCGAAP_DepExp_2013'!O20,+'App.2-CG_NewCGAAP_DepExp_2013'!O20+((C20*0.5)/D20)) -> 0 | H20: 0 | I20: 0 | K20: =IF(ISERROR(+I20+'App.2-CG_NewCGAAP_DepExp_2013'!O20-J20), 0, +I20+'App.2-CG_NewCGAAP_DepExp_2013'!O20-J20) -> 0
A21: ='App.2-CG_NewCGAAP_DepExp_2013'!A21 -> 1810 | B21: ='App.2-CG_NewCGAAP_DepExp_2013'!B21 -> Leasehold Improvements | D21: ='App.2-CG_NewCGAAP_DepExp_2013'!F21 -> 0 | E21: 0 | F21: =IF(D21=0,+'App.2-CG_NewCGAAP_DepExp_2013'!O21,+'App.2-CG_NewCGAAP_DepExp_2013'!O21+((C21*0.5)/D21)) -> 0 | H21: 0 | I21: 0 | K21: =IF(ISERROR(+I21+'App.2-CG_NewCGAAP_DepExp_2013'!O21-J21), 0, +I21+'App.2-CG_NewCGAAP_DepExp_2013'!O21-J21) -> 0
A22: ='App.2-CG_NewCGAAP_DepExp_2013'!A22 -> 1815 | B22: ='App.2-CG_NewCGAAP_DepExp_2013'!B22 -> Transformer Station Equipment >50 kV (1708,1740,1745) | D22: ='App.2-CG_NewCGAAP_DepExp_2013'!F22 -> 50 | E22: 0.02 | F22: =IF(D22=0,+'App.2-CG_NewCGAAP_DepExp_2013'!O22,+'App.2-CG_NewCGAAP_DepExp_2013'!O22+((C22*0.5)/D22)) -> 76660.28 | G22: 76660.28 | H22: 0 | I22: 0 | K22: =IF(ISERROR(+I22+'App.2-CG_NewCGAAP_DepExp_2013'!O22-J22), 0, +I22+'App.2-CG_NewCGAAP_DepExp_2013'!O22-J22) -> 76660.28
A23: ='App.2-CG_NewCGAAP_DepExp_2013'!A23 -> 1815 | B23: ='App.2-CG_NewCGAAP_DepExp_2013'!B23 -> Transformer Station Equipment >50 kV (1715, 1815, 17) | D23: ='App.2-CG_NewCGAAP_DepExp_2013'!F23 -> 45 | E23: 0.02222222222 | F23: =IF(D23=0,+'App.2-CG_NewCGAAP_DepExp_2013'!O23,+'App.2-CG_NewCGAAP_DepExp_2013'!O23+((C23*0.5)/D23)) -> 36487.66942 | G23: 36488.1 | H23: -0.4305811441 | I23: 0 | K23: =IF(ISERROR(+I23+'App.2-CG_NewCGAAP_DepExp_2013'!O23-J23), 0, +I23+'App.2-CG_NewCGAAP_DepExp_2013'!O23-J23) -> 36487.66942
A24: ='App.2-CG_NewCGAAP_DepExp_2013'!A24 -> 1815 | B24: ='App.2-CG_NewCGAAP_DepExp_2013'!B24 -> Transformer Station Equipment >50 kV (1716) | D24: ='App.2-CG_NewCGAAP_DepExp_2013'!F24 -> 10 | E24: 0.1 | F24: =IF(D24=0,+'App.2-CG_NewCGAAP_DepExp_2013'!O24,+'App.2-CG_NewCGAAP_DepExp_2013'!O24+((C24*0.5)/D24)) -> 10840.61 | G24: 10840.71 | H24: -0.1 | I24: 0 | J24: 11746 | K24: =IF(ISERROR(+I24+'App.2-CG_NewCGAAP_DepExp_2013'!O24-J24), 0, +I24+'App.2-CG_NewCGAAP_DepExp_2013'!O24-J24) -> -905.39
A25: ='App.2-CG_NewCGAAP_DepExp_2013'!A25 -> 1815 | B25: ='App.2-CG_NewCGAAP_DepExp_2013'!B25 -> Transformer Station Equipment >50 kV (1717) | D25: ='App.2-CG_NewCGAAP_DepExp_2013'!F25 -> 40 | E25: 0.025 | F25: =IF(D25=0,+'App.2-CG_NewCGAAP_DepExp_2013'!O25,+'App.2-CG_NewCGAAP_DepExp_2013'!O25+((C25*0.5)/D25)) -> 13339.39 | G25: 13339.37 | H25: 0.02 | I25: 0 | K25: =IF(ISERROR(+I25+'App.2-CG_NewCGAAP_DepExp_2013'!O25-J25), 0, +I25+'App.2-CG_NewCGAAP_DepExp_2013'!O25-J25) -> 13339.39
A26: ='App.2-CG_NewCGAAP_DepExp_2013'!A26 -> 1815 | B26: ='App.2-CG_NewCGAAP_DepExp_2013'!B26 -> Transformer Station Equipment >50 kV (1719) | D26: ='App.2-CG_NewCGAAP_DepExp_2013'!F26 -> 20 | E26: 0.05 | F26: =IF(D26=0,+'App.2-CG_NewCGAAP_DepExp_2013'!O26,+'App.2-CG_NewCGAAP_DepExp_2013'!O26+((C26*0.5)/D26)) -> 35746.72 | G26: 35746.73 | H26: -0.01 | I26: 0 | K26: =IF(ISERROR(+I26+'App.2-CG_NewCGAAP_DepExp_2013'!O26-J26), 0, +I26+'App.2-CG_NewCGAAP_DepExp_2013'!O26-J26) -> 35746.72
A27: ='App.2-CG_NewCGAAP_DepExp_2013'!A27 -> 1820 | B27: ='App.2-CG_NewCGAAP_DepExp_2013'!B27 -> Distribution Station Equipment <50 kV | C27: 140250 | D27: ='App.2-CG_NewCGAAP_DepExp_2013'!F27 -> 45 | E27: 0.02222222222 | F27: =IF(D27=0,+'App.2-CG_NewCGAAP_DepExp_2013'!O27,+'App.2-CG_NewCGAAP_DepExp_2013'!O27+((C27*0.5)/D27)) -> 59365.63648 | G27: 59365.95 | H27: -0.3135235452 | I27: 3116.666667 | K27: =IF(ISERROR(+I27+'App.2-CG_NewCGAAP_DepExp_2013'!O27-J27), 0, +I27+'App.2-CG_NewCGAAP_DepExp_2013'!O27-J27) -> 60923.96981
A28: ='App.2-CG_NewCGAAP_DepExp_2013'!A28 -> 1820 | B28: ='App.2-CG_NewCGAAP_DepExp_2013'!B28 -> Distribution Station Equipment <50 kV (1821) | C28: 111787.08 | D28: ='App.2-CG_NewCGAAP_DepExp_2013'!F28 -> 30 | E28: 0.03333333333 | F28: =IF(D28=0,+'App.2-CG_NewCGAAP_DepExp_2013'!O28,+'App.2-CG_NewCGAAP_DepExp_2013'!O28+((C28*0.5)/D28)) -> 71815.08485 | G28: 71815.38 | H28: -0.2951489278 | I28: 3726.236 | K28: =IF(ISERROR(+I28+'App.2-CG_NewCGAAP_DepExp_2013'!O28-J28), 0, +I28+'App.2-CG_NewCGAAP_DepExp_2013'!O28-J28) -> 73678.20285
A29: ='App.2-CG_NewCGAAP_DepExp_2013'!A29 -> 1825 | B29: ='App.2-CG_NewCGAAP_DepExp_2013'!B29 -> Storage Battery Equipment | D29: ='App.2-CG_NewCGAAP_DepExp_2013'!F29 -> 0 | E29: 0 | F29: =IF(D29=0,+'App.2-CG_NewCGAAP_DepExp_2013'!O29,+'App.2-CG_NewCGAAP_DepExp_2013'!O29+((C29*0.5)/D29)) -> 0 | H29: 0 | I29: 0 | K29: =IF(ISERROR(+I29+'App.2-CG_NewCGAAP_DepExp_2013'!O29-J29), 0, +I29+'App.2-CG_NewCGAAP_DepExp_2013'!O29-J29) -> 0
A30: ='App.2-CG_NewCGAAP_DepExp_2013'!A30 -> 1830 | B30: ='App.2-CG_NewCGAAP_DepExp_2013'!B30 -> Poles, Towers & Fixtures-Wood poles | C30: 1869515.04 | D30: ='App.2-CG_NewCGAAP_DepExp_2013'!F30 -> 50 | E30: 0.02 | F30: =IF(D30=0,+'App.2-CG_NewCGAAP_DepExp_2013'!O30,+'App.2-CG_NewCGAAP_DepExp_2013'!O30+((C30*0.5)/D30)) -> 422132.9012 | G30: =421259.16+873.4 -> 422132.56 | H30: 0.3412495102 | I30: 37390.3008 | K30: =IF(ISERROR(+I30+'App.2-CG_NewCGAAP_DepExp_2013'!O30-J30), 0, +I30+'App.2-CG_NewCGAAP_DepExp_2013'!O30-J30) -> 440828.0516
A31: ='App.2-CG_NewCGAAP_DepExp_2013'!A31 -> 1830 | B31: ='App.2-CG_NewCGAAP_DepExp_2013'!B31 -> Poles, Towers & Fixtures (1831) Concrete | C31: 62223.96 | D31: ='App.2-CG_NewCGAAP_DepExp_2013'!F31 -> 60 | E31: 0.01666666667 | F31: =IF(D31=0,+'App.2-CG_NewCGAAP_DepExp_2013'!O31,+'App.2-CG_NewCGAAP_DepExp_2013'!O31+((C31*0.5)/D31)) -> 34202.36354 | G31: 34202.12 | H31: 0.2435374577 | I31: 1037.066 | K31: =IF(ISERROR(+I31+'App.2-CG_NewCGAAP_DepExp_2013'!O31-J31), 0, +I31+'App.2-CG_NewCGAAP_DepExp_2013'!O31-J31) -> 34720.89654
A32: ='App.2-CG_NewCGAAP_DepExp_2013'!A32 -> 1835 | B32: ='App.2-CG_NewCGAAP_DepExp_2013'!B32 -> Overhead Conductors & Devices | C32: 673087.92 | D32: ='App.2-CG_NewCGAAP_DepExp_2013'!F32 -> 60 | E32: 0.01666666667 | F32: =IF(D32=0,+'App.2-CG_NewCGAAP_DepExp_2013'!O32,+'App.2-CG_NewCGAAP_DepExp_2013'!O32+((C32*0.5)/D32)) -> 273258.3722 | G32: 273258.22 | H32: 0.1521746814 | I32: 11218.132 | K32: =IF(ISERROR(+I32+'App.2-CG_NewCGAAP_DepExp_2013'!O32-J32), 0, +I32+'App.2-CG_NewCGAAP_DepExp_2013'!O32-J32) -> 278867.4382
A33: ='App.2-CG_NewCGAAP_DepExp_2013'!A33 -> 1835 | B33: ='App.2-CG_NewCGAAP_DepExp_2013'!B33 -> Overhead Conductors & Devices (1836) | C33: 138345.6 | D33: ='App.2-CG_NewCGAAP_DepExp_2013'!F33 -> 15 | E33: 0.06666666667 | F33: =IF(D33=0,+'App.2-CG_NewCGAAP_DepExp_2013'!O33,+'App.2-CG_NewCGAAP_DepExp_2013'!O33+((C33*0.5)/D33)) -> 214387.2339 | G33: 214387.33 | H33: -0.09608002991 | I33: 9223.04 | J33: 11653 | K33: =IF(ISERROR(+I33+'App.2-CG_NewCGAAP_DepExp_2013'!O33-J33), 0, +I33+'App.2-CG_NewCGAAP_DepExp_2013'!O33-J33) -> 207345.7539
A34: ='App.2-CG_NewCGAAP_DepExp_2013'!A34 -> 1835 | B34: ='App.2-CG_NewCGAAP_DepExp_2013'!B34 -> Overhead Conductors & Devices (1837) | C34: 30398.88 | D34: ='App.2-CG_NewCGAAP_DepExp_2013'!F34 -> 30 | E34: 0.03333333333 | F34: =IF(D34=0,+'App.2-CG_NewCGAAP_DepExp_2013'!O34,+'App.2-CG_NewCGAAP_DepExp_2013'!O34+((C34*0.5)/D34)) -> 70256.648 | G34: 70256.32 | H34: 0.328 | I34: 1013.296 | K34: =IF(ISERROR(+I34+'App.2-CG_NewCGAAP_DepExp_2013'!O34-J34), 0, +I34+'App.2-CG_NewCGAAP_DepExp_2013'!O34-J34) -> 70763.296
A35: ='App.2-CG_NewCGAAP_DepExp_2013'!A35 -> 1840 | B35: ='App.2-CG_NewCGAAP_DepExp_2013'!B35 -> Underground Conduit | C35: 1246226.28 | D35: ='App.2-CG_NewCGAAP_DepExp_2013'!F35 -> 50 | E35: 0.02 | F35: =IF(D35=0,+'App.2-CG_NewCGAAP_DepExp_2013'!O35,+'App.2-CG_NewCGAAP_DepExp_2013'!O35+((C35*0.5)/D35)) -> 179615.3068 | G35: =132409.26+47206.27 -> 179615.53 | H35: -0.2232495075 | I35: 24924.5256 | K35: =IF(ISERROR(+I35+'App.2-CG_NewCGAAP_DepExp_2013'!O35-J35), 0, +I35+'App.2-CG_NewCGAAP_DepExp_2013'!O35-J35) -> 192077.5696
A36: ='App.2-CG_NewCGAAP_DepExp_2013'!A36 -> 1845 | B36: ='App.2-CG_NewCGAAP_DepExp_2013'!B36 -> Underground Conductors & Devices | C36: 2441445.24 | D36: ='App.2-CG_NewCGAAP_DepExp_2013'!F36 -> 35 | E36: 0.02857142857 | F36: =IF(D36=0,+'App.2-CG_NewCGAAP_DepExp_2013'!O36,+'App.2-CG_NewCGAAP_DepExp_2013'!O36+((C36*0.5)/D36)) -> 1700675.324 | G36: =1590103.47+110571.92 -> 1700675.39 | H36: -0.06555334968 | I36: 69755.57829 | J36: =522583.96+510.09+2000 -> 525094.05 | K36: =IF(ISERROR(+I36+'App.2-CG_NewCGAAP_DepExp_2013'!O36-J36), 0, +I36+'App.2-CG_NewCGAAP_DepExp_2013'!O36-J36) -> 1210459.064
A37: ='App.2-CG_NewCGAAP_DepExp_2013'!A37 -> 1845 | B37: ='App.2-CG_NewCGAAP_DepExp_2013'!B37 -> Underground Conductors & Devices (1846) | C37: 94463.04 | D37: ='App.2-CG_NewCGAAP_DepExp_2013'!F37 -> 30 | E37: 0.03333333333 | F37: =IF(D37=0,+'App.2-CG_NewCGAAP_DepExp_2013'!O37,+'App.2-CG_NewCGAAP_DepExp_2013'!O37+((C37*0.5)/D37)) -> 52929.57641 | G37: 52929.45 | H37: 0.126414947 | I37: 3148.768 | J37: =4258.3 -> 4258.3 | K37: =IF(ISERROR(+I37+'App.2-CG_NewCGAAP_DepExp_2013'!O37-J37), 0, +I37+'App.2-CG_NewCGAAP_DepExp_2013'!O37-J37) -> 50245.66041
A38: ='App.2-CG_NewCGAAP_DepExp_2013'!A38 -> 1850 | B38: ='App.2-CG_NewCGAAP_DepExp_2013'!B38 -> Line Transformers (1850) Polemount | C38: 950460.72 | D38: ='App.2-CG_NewCGAAP_DepExp_2013'!F38 -> 40 | E38: 0.025 | F38: =IF(D38=0,+'App.2-CG_NewCGAAP_DepExp_2013'!O38,+'App.2-CG_NewCGAAP_DepExp_2013'!O38+((C38*0.5)/D38)) -> 221021.3473 | G38: 221021.43 | H38: -0.08270337436 | I38: 23761.518 | K38: =IF(ISERROR(+I38+'App.2-CG_NewCGAAP_DepExp_2013'!O38-J38), 0, +I38+'App.2-CG_NewCGAAP_DepExp_2013'!O38-J38) -> 232902.1063
A39: ='App.2-CG_NewCGAAP_DepExp_2013'!A39 -> 1850 | B39: ='App.2-CG_NewCGAAP_DepExp_2013'!B39 -> Line Transformers (1853) Padmount | C39: 867991.44 | D39: ='App.2-CG_NewCGAAP_DepExp_2013'!F39 -> 30 | E39: 0.03333333333 | F39: =IF(D39=0,+'App.2-CG_NewCGAAP_DepExp_2013'!O39,+'App.2-CG_NewCGAAP_DepExp_2013'!O39+((C39*0.5)/D39)) -> 498829.887 | G39: 498830.11 | H39: -0.2230045701 | I39: 28933.048 | J39: =1861.85+400 -> 2261.85 | K39: =IF(ISERROR(+I39+'App.2-CG_NewCGAAP_DepExp_2013'!O39-J39), 0, +I39+'App.2-CG_NewCGAAP_DepExp_2013'!O39-J39) -> 511034.561
A40: ='App.2-CG_NewCGAAP_DepExp_2013'!A40 -> 1855 | B40: ='App.2-CG_NewCGAAP_DepExp_2013'!B40 -> Services (Overhead & Underground) | C40: 1062007.2 | D40: ='App.2-CG_NewCGAAP_DepExp_2013'!F40 -> 25 | E40: 0.04 | F40: =IF(D40=0,+'App.2-CG_NewCGAAP_DepExp_2013'!O40,+'App.2-CG_NewCGAAP_DepExp_2013'!O40+((C40*0.5)/D40)) -> 238441.996 | G40: 238441.82 | H40: 0.1759706416 | I40: 42480.288 | K40: =IF(ISERROR(+I40+'App.2-CG_NewCGAAP_DepExp_2013'!O40-J40), 0, +I40+'App.2-CG_NewCGAAP_DepExp_2013'!O40-J40) -> 259682.14
A41: ='App.2-CG_NewCGAAP_DepExp_2013'!A41 -> 1860 | B41: ='App.2-CG_NewCGAAP_DepExp_2013'!B41 -> Meters | C41: 602413.16 | D41: ='App.2-CG_NewCGAAP_DepExp_2013'!F41 -> 20 | E41: 0.05 | F41: =IF(D41=0,+'App.2-CG_NewCGAAP_DepExp_2013'!O41,+'App.2-CG_NewCGAAP_DepExp_2013'!O41+((C41*0.5)/D41)) -> 164940.4859 | G41: 164940.39 | H41: 0.09587681314 | I41: 30120.658 | J41: 625 | K41: =IF(ISERROR(+I41+'App.2-CG_NewCGAAP_DepExp_2013'!O41-J41), 0, +I41+'App.2-CG_NewCGAAP_DepExp_2013'!O41-J41) -> 179375.8149
A42: ='App.2-CG_NewCGAAP_DepExp_2013'!A42 -> 1860 | B42: ='App.2-CG_NewCGAAP_DepExp_2013'!B42 -> Meters (Smart Meters) | C42: 1658578.32 | D42: ='App.2-CG_NewCGAAP_DepExp_2013'!F42 -> 15 | E42: 0.06666666667 | F42: =IF(D42=0,+'App.2-CG_NewCGAAP_DepExp_2013'!O42,+'App.2-CG_NewCGAAP_DepExp_2013'!O42+((C42*0.5)/D42)) -> 335440.3012 | G42: =465231.03 -> 465231.03 | H42: -129790.7288 | I42: 110571.888 | J42: 0 | K42: =IF(ISERROR(+I42+'App.2-CG_NewCGAAP_DepExp_2013'!O42-J42), 0, +I42+'App.2-CG_NewCGAAP_DepExp_2013'!O42-J42) -> 390726.2452
A43: ='App.2-CG_NewCGAAP_DepExp_2013'!A43 -> 1905 | B43: ='App.2-CG_NewCGAAP_DepExp_2013'!B43 -> Land | D43: ='App.2-CG_NewCGAAP_DepExp_2013'!F43 -> 0 | E43: 0 | F43: =IF(D43=0,+'App.2-CG_NewCGAAP_DepExp_2013'!O43,+'App.2-CG_NewCGAAP_DepExp_2013'!O43+((C43*0.5)/D43)) -> 0 | H43: 0 | I43: 0 | K43: =IF(ISERROR(+I43+'App.2-CG_NewCGAAP_DepExp_2013'!O43-J43), 0, +I43+'App.2-CG_NewCGAAP_DepExp_2013'!O43-J43) -> 0
A44: ='App.2-CG_NewCGAAP_DepExp_2013'!A44 -> 1908 | B44: ='App.2-CG_NewCGAAP_DepExp_2013'!B44 -> Buildings & Fixtures | C44: 1500484.98 | D44: ='App.2-CG_NewCGAAP_DepExp_2013'!F44 -> 60 | E44: 0.01666666667 | F44: =IF(D44=0,+'App.2-CG_NewCGAAP_DepExp_2013'!O44,+'App.2-CG_NewCGAAP_DepExp_2013'!O44+((C44*0.5)/D44)) -> 268002.4926 | G44: 260610.57 | H44: 7391.922561 | I44: 25008.083 | J44: 8171 | K44: =IF(ISERROR(+I44+'App.2-CG_NewCGAAP_DepExp_2013'!O44-J44), 0, +I44+'App.2-CG_NewCGAAP_DepExp_2013'!O44-J44) -> 272335.5341
A45: ='App.2-CG_NewCGAAP_DepExp_2013'!A45 -> 1910 | B45: ='App.2-CG_NewCGAAP_DepExp_2013'!B45 -> Leasehold Improvements | D45: ='App.2-CG_NewCGAAP_DepExp_2013'!F45 -> 0 | E45: 0 | F45: =IF(D45=0,+'App.2-CG_NewCGAAP_DepExp_2013'!O45,+'App.2-CG_NewCGAAP_DepExp_2013'!O45+((C45*0.5)/D45)) -> 0 | H45: 0 | I45: 0 | K45: =IF(ISERROR(+I45+'App.2-CG_NewCGAAP_DepExp_2013'!O45-J45), 0, +I45+'App.2-CG_NewCGAAP_DepExp_2013'!O45-J45) -> 0
A46: ='App.2-CG_NewCGAAP_DepExp_2013'!A46 -> 1915 | B46: ='App.2-CG_NewCGAAP_DepExp_2013'!B46 -> Office Furniture & Equipment (10 years) | C46: 157000 | D46: ='App.2-CG_NewCGAAP_DepExp_2013'!F46 -> 10 | E46: 0.1 | F46: =IF(D46=0,+'App.2-CG_NewCGAAP_DepExp_2013'!O46,+'App.2-CG_NewCGAAP_DepExp_2013'!O46+((C46*0.5)/D46)) -> 102228.1493 | G46: 100229.14 | H46: 1999.009285 | I46: 15700 | J46: 2478 | K46: =IF(ISERROR(+I46+'App.2-CG_NewCGAAP_DepExp_2013'!O46-J46), 0, +I46+'App.2-CG_NewCGAAP_DepExp_2013'!O46-J46) -> 107600.1493
A47: ='App.2-CG_NewCGAAP_DepExp_2013'!A47 -> 1915 | B47: ='App.2-CG_NewCGAAP_DepExp_2013'!B47 -> Office Furniture & Equipment (5 years) | D47: ='App.2-CG_NewCGAAP_DepExp_2013'!F47 -> 0 | E47: 0 | F47: =IF(D47=0,+'App.2-CG_NewCGAAP_DepExp_2013'!O47,+'App.2-CG_NewCGAAP_DepExp_2013'!O47+((C47*0.5)/D47)) -> 0 | H47: 0 | I47: 0 | K47: =IF(ISERROR(+I47+'App.2-CG_NewCGAAP_DepExp_2013'!O47-J47), 0, +I47+'App.2-CG_NewCGAAP_DepExp_2013'!O47-J47) -> 0
A48: ='App.2-CG_NewCGAAP_DepExp_2013'!A48 -> 1920 | B48: ='App.2-CG_NewCGAAP_DepExp_2013'!B48 -> Computer Equipment - Hardware | C48: 302294.09 | D48: ='App.2-CG_NewCGAAP_DepExp_2013'!F48 -> 5 | E48: 0.2 | F48: =IF(D48=0,+'App.2-CG_NewCGAAP_DepExp_2013'!O48,+'App.2-CG_NewCGAAP_DepExp_2013'!O48+((C48*0.5)/D48)) -> 282985.5866 | G48: =283226.86+1307.5 -> 284534.36 | H48: -1548.77342 | I48: 60458.818 | J48: =100561+1308 -> 101869 | K48: =IF(ISERROR(+I48+'App.2-CG_NewCGAAP_DepExp_2013'!O48-J48), 0, +I48+'App.2-CG_NewCGAAP_DepExp_2013'!O48-J48) -> 211345.9956
A49: ='App.2-CG_NewCGAAP_DepExp_2013'!A49 -> 1920 | B49: ='App.2-CG_NewCGAAP_DepExp_2013'!B49 -> Computer Equip.-Hardware(Post Mar. 22/04) | D49: ='App.2-CG_NewCGAAP_DepExp_2013'!F49 -> 0 | E49: 0 | F49: =IF(D49=0,+'App.2-CG_NewCGAAP_DepExp_2013'!O49,+'App.2-CG_NewCGAAP_DepExp_2013'!O49+((C49*0.5)/D49)) -> 0 | H49: 0 | I49: 0 | K49: =IF(ISERROR(+I49+'App.2-CG_NewCGAAP_DepExp_2013'!O49-J49), 0, +I49+'App.2-CG_NewCGAAP_DepExp_2013'!O49-J49) -> 0
A50: ='App.2-CG_NewCGAAP_DepExp_2013'!A50 -> 1920 | B50: ='App.2-CG_NewCGAAP_DepExp_2013'!B50 -> Computer Equip.-Hardware(Post Mar. 19/07) | D50: ='App.2-CG_NewCGAAP_DepExp_2013'!F50 -> 0 | E50: 0 | F50: =IF(D50=0,+'App.2-CG_NewCGAAP_DepExp_2013'!O50,+'App.2-CG_NewCGAAP_DepExp_2013'!O50+((C50*0.5)/D50)) -> 0 | H50: 0 | I50: 0 | K50: =IF(ISERROR(+I50+'App.2-CG_NewCGAAP_DepExp_2013'!O50-J50), 0, +I50+'App.2-CG_NewCGAAP_DepExp_2013'!O50-J50) -> 0
A51: ='App.2-CG_NewCGAAP_DepExp_2013'!A51 -> 1930 | B51: ='App.2-CG_NewCGAAP_DepExp_2013'!B51 -> Transportation Equipment (1931) | C51: 0 | D51: ='App.2-CG_NewCGAAP_DepExp_2013'!F51 -> 8 | E51: 0.125 | F51: =IF(D51=0,+'App.2-CG_NewCGAAP_DepExp_2013'!O51,+'App.2-CG_NewCGAAP_DepExp_2013'!O51+((C51*0.5)/D51)) -> 74704.74304 | G51: 68306.85 | H51: 6397.893041 | I51: 0 | K51: =IF(ISERROR(+I51+'App.2-CG_NewCGAAP_DepExp_2013'!O51-J51), 0, +I51+'App.2-CG_NewCGAAP_DepExp_2013'!O51-J51) -> 74704.74304
A52: ='App.2-CG_NewCGAAP_DepExp_2013'!A52 -> 1930 | B52: ='App.2-CG_NewCGAAP_DepExp_2013'!B52 -> Transportation Equipment (1932) Large Trucks | C52: 650000 | D52: ='App.2-CG_NewCGAAP_DepExp_2013'!F52 -> 15 | E52: 0.06666666667 | F52: =IF(D52=0,+'App.2-CG_NewCGAAP_DepExp_2013'!O52,+'App.2-CG_NewCGAAP_DepExp_2013'!O52+((C52*0.5)/D52)) -> 267860.2268 | G52: 303228.31 | H52: -35368.08322 | I52: 43333.33333 | K52: =IF(ISERROR(+I52+'App.2-CG_NewCGAAP_DepExp_2013'!O52-J52), 0, +I52+'App.2-CG_NewCGAAP_DepExp_2013'!O52-J52) -> 289526.8934
A53: ='App.2-CG_NewCGAAP_DepExp_2013'!A53 -> 1930 | B53: ='App.2-CG_NewCGAAP_DepExp_2013'!B53 -> Transportation Equipment (1933) Trailers | C53: 22000 | D53: ='App.2-CG_NewCGAAP_DepExp_2013'!F53 -> 20 | E53: 0.05 | F53: =IF(D53=0,+'App.2-CG_NewCGAAP_DepExp_2013'!O53,+'App.2-CG_NewCGAAP_DepExp_2013'!O53+((C53*0.5)/D53)) -> 5993.416341 | G53: 6133.61 | H53: -140.1936586 | I53: 1100 | K53: =IF(ISERROR(+I53+'App.2-CG_NewCGAAP_DepExp_2013'!O53-J53), 0, +I53+'App.2-CG_NewCGAAP_DepExp_2013'!O53-J53) -> 6543.416341
A54: ='App.2-CG_NewCGAAP_DepExp_2013'!A54 -> 1935 | B54: ='App.2-CG_NewCGAAP_DepExp_2013'!B54 -> Stores Equipment | C54: 75000 | D54: ='App.2-CG_NewCGAAP_DepExp_2013'!F54 -> 10 | E54: 0.1 | F54: =IF(D54=0,+'App.2-CG_NewCGAAP_DepExp_2013'!O54,+'App.2-CG_NewCGAAP_DepExp_2013'!O54+((C54*0.5)/D54)) -> 9174.28 | G54: 9174.28 | H54: -1.818989404e-12 | I54: 7500 | K54: =IF(ISERROR(+I54+'App.2-CG_NewCGAAP_DepExp_2013'!O54-J54), 0, +I54+'App.2-CG_NewCGAAP_DepExp_2013'!O54-J54) -> 12924.28
A55: ='App.2-CG_NewCGAAP_DepExp_2013'!A55 -> 1940 | B55: ='App.2-CG_NewCGAAP_DepExp_2013'!B55 -> Tools, Shop & Garage Equipment | C55: 67000 | D55: ='App.2-CG_NewCGAAP_DepExp_2013'!F55 -> 10 | E55: 0.1 | F55: =IF(D55=0,+'App.2-CG_NewCGAAP_DepExp_2013'!O55,+'App.2-CG_NewCGAAP_DepExp_2013'!O55+((C55*0.5)/D55)) -> 82917.25106 | G55: 78814.84 | H55: 4102.411057 | I55: 6700 | K55: =IF(ISERROR(+I55+'App.2-CG_NewCGAAP_DepExp_2013'!O55-J55), 0, +I55+'App.2-CG_NewCGAAP_DepExp_2013'!O55-J55) -> 86267.25106
A56: ='App.2-CG_NewCGAAP_DepExp_2013'!A56 -> 1945 | B56: ='App.2-CG_NewCGAAP_DepExp_2013'!B56 -> Measurement & Testing Equipment | D56: ='App.2-CG_NewCGAAP_DepExp_2013'!F56 -> 5 | E56: 0.2 | F56: =IF(D56=0,+'App.2-CG_NewCGAAP_DepExp_2013'!O56,+'App.2-CG_NewCGAAP_DepExp_2013'!O56+((C56*0.5)/D56)) -> 7508.17 | G56: 5092.23 | H56: 2415.94 | I56: 0 | K56: =IF(ISERROR(+I56+'App.2-CG_NewCGAAP_DepExp_2013'!O56-J56), 0, +I56+'App.2-CG_NewCGAAP_DepExp_2013'!O56-J56) -> 7508.17
A57: ='App.2-CG_NewCGAAP_DepExp_2013'!A57 -> 1950 | B57: ='App.2-CG_NewCGAAP_DepExp_2013'!B57 -> Power Operated Equipment | D57: ='App.2-CG_NewCGAAP_DepExp_2013'!F57 -> 0 | E57: 0 | F57: =IF(D57=0,+'App.2-CG_NewCGAAP_DepExp_2013'!O57,+'App.2-CG_NewCGAAP_DepExp_2013'!O57+((C57*0.5)/D57)) -> 0 | H57: 0 | I57: 0 | K57: =IF(ISERROR(+I57+'App.2-CG_NewCGAAP_DepExp_2013'!O57-J57), 0, +I57+'App.2-CG_NewCGAAP_DepExp_2013'!O57-J57) -> 0
A58: ='App.2-CG_NewCGAAP_DepExp_2013'!A58 -> 1955 | B58: ='App.2-CG_NewCGAAP_DepExp_2013'!B58 -> Communications Equipment | C58: 227500 | D58: ='App.2-CG_NewCGAAP_DepExp_2013'!F58 -> 20 | E58: 0.05 | F58: =IF(D58=0,+'App.2-CG_NewCGAAP_DepExp_2013'!O58,+'App.2-CG_NewCGAAP_DepExp_2013'!O58+((C58*0.5)/D58)) -> 42299.78 | G58: 40433.97 | H58: 1865.81 | I58: 11375 | K58: =IF(ISERROR(+I58+'App.2-CG_NewCGAAP_DepExp_2013'!O58-J58), 0, +I58+'App.2-CG_NewCGAAP_DepExp_2013'!O58-J58) -> 47987.28
A59: ='App.2-CG_NewCGAAP_DepExp_2013'!A59 -> 1955 | B59: ='App.2-CG_NewCGAAP_DepExp_2013'!B59 -> Communication Equipment (Smart Meters) | D59: ='App.2-CG_NewCGAAP_DepExp_2013'!F59 -> 0 | E59: 0 | F59: =IF(D59=0,+'App.2-CG_NewCGAAP_DepExp_2013'!O59,+'App.2-CG_NewCGAAP_DepExp_2013'!O59+((C59*0.5)/D59)) -> 0 | H59: 0 | I59: 0 | K59: =IF(ISERROR(+I59+'App.2-CG_NewCGAAP_DepExp_2013'!O59-J59), 0, +I59+'App.2-CG_NewCGAAP_DepExp_2013'!O59-J59) -> 0
A60: ='App.2-CG_NewCGAAP_DepExp_2013'!A60 -> 1960 | B60: ='App.2-CG_NewCGAAP_DepExp_2013'!B60 -> Miscellaneous Equipment | D60: ='App.2-CG_NewCGAAP_DepExp_2013'!F60 -> 5 | E60: 0.2 | F60: =IF(D60=0,+'App.2-CG_NewCGAAP_DepExp_2013'!O60,+'App.2-CG_NewCGAAP_DepExp_2013'!O60+((C60*0.5)/D60)) -> 3318.45 | G60: 2071.84 | H60: 1246.61 | I60: 0 | K60: =IF(ISERROR(+I60+'App.2-CG_NewCGAAP_DepExp_2013'!O60-J60), 0, +I60+'App.2-CG_NewCGAAP_DepExp_2013'!O60-J60) -> 3318.45
A61: ='App.2-CG_NewCGAAP_DepExp_2013'!A61 -> 1970 | B61: ='App.2-CG_NewCGAAP_DepExp_2013'!B61 -> Load Management Controls - Customer Premises | D61: ='App.2-CG_NewCGAAP_DepExp_2013'!F61 -> 0 | E61: 0 | F61: =IF(D61=0,+'App.2-CG_NewCGAAP_DepExp_2013'!O61,+'App.2-CG_NewCGAAP_DepExp_2013'!O61+((C61*0.5)/D61)) -> 0 | H61: 0 | I61: 0 | K61: =IF(ISERROR(+I61+'App.2-CG_NewCGAAP_DepExp_2013'!O61-J61), 0, +I61+'App.2-CG_NewCGAAP_DepExp_2013'!O61-J61) -> 0
A62: ='App.2-CG_NewCGAAP_DepExp_2013'!A62 -> 1975 | B62: ='App.2-CG_NewCGAAP_DepExp_2013'!B62 -> Load Management Controls Utility Premises | D62: ='App.2-CG_NewCGAAP_DepExp_2013'!F62 -> 0 | E62: 0 | F62: =IF(D62=0,+'App.2-CG_NewCGAAP_DepExp_2013'!O62,+'App.2-CG_NewCGAAP_DepExp_2013'!O62+((C62*0.5)/D62)) -> 0 | H62: 0 | I62: 0 | K62: =IF(ISERROR(+I62+'App.2-CG_NewCGAAP_DepExp_2013'!O62-J62), 0, +I62+'App.2-CG_NewCGAAP_DepExp_2013'!O62-J62) -> 0
A63: ='App.2-CG_NewCGAAP_DepExp_2013'!A63 -> 1980 | B63: ='App.2-CG_NewCGAAP_DepExp_2013'!B63 -> System Supervisor Equipment | D63: ='App.2-CG_NewCGAAP_DepExp_2013'!F63 -> 15 | E63: 0.06666666667 | F63: =IF(D63=0,+'App.2-CG_NewCGAAP_DepExp_2013'!O63,+'App.2-CG_NewCGAAP_DepExp_2013'!O63+((C63*0.5)/D63)) -> 0 | G63: 0 | H63: 0 | I63: 0 | K63: =IF(ISERROR(+I63+'App.2-CG_NewCGAAP_DepExp_2013'!O63-J63), 0, +I63+'App.2-CG_NewCGAAP_DepExp_2013'!O63-J63) -> 0
A64: ='App.2-CG_NewCGAAP_DepExp_2013'!A64 -> 1985 | B64: ='App.2-CG_NewCGAAP_DepExp_2013'!B64 -> Miscellaneous Fixed Assets | D64: ='App.2-CG_NewCGAAP_DepExp_2013'!F64 -> 0 | E64: 0 | F64: =IF(D64=0,+'App.2-CG_NewCGAAP_DepExp_2013'!O64,+'App.2-CG_NewCGAAP_DepExp_2013'!O64+((C64*0.5)/D64)) -> 0 | H64: 0 | I64: 0 | K64: =IF(ISERROR(+I64+'App.2-CG_NewCGAAP_DepExp_2013'!O64-J64), 0, +I64+'App.2-CG_NewCGAAP_DepExp_2013'!O64-J64) -> 0
A65: ='App.2-CG_NewCGAAP_DepExp_2013'!A65 -> 1990 | B65: ='App.2-CG_NewCGAAP_DepExp_2013'!B65 -> Other Tangible Property | D65: ='App.2-CG_NewCGAAP_DepExp_2013'!F65 -> 0 | E65: 0 | F65: =IF(D65=0,+'App.2-CG_NewCGAAP_DepExp_2013'!O65,+'App.2-CG_NewCGAAP_DepExp_2013'!O65+((C65*0.5)/D65)) -> 0 | H65: 0 | I65: 0 | K65: =IF(ISERROR(+I65+'App.2-CG_NewCGAAP_DepExp_2013'!O65-J65), 0, +I65+'App.2-CG_NewCGAAP_DepExp_2013'!O65-J65) -> 0
A66: ='App.2-CG_NewCGAAP_DepExp_2013'!A66 -> 1995 | B66: ='App.2-CG_NewCGAAP_DepExp_2013'!B66 -> Contributions & Grants | C66: -900000.04 | D66: ='App.2-CG_NewCGAAP_DepExp_2013'!F66 -> 25 | E66: 0.04 | F66: =IF(D66=0,+'App.2-CG_NewCGAAP_DepExp_2013'!O66,+'App.2-CG_NewCGAAP_DepExp_2013'!O66+((C66*0.5)/D66)) -> -848088.0414 | G66: -845482.5 | H66: -2605.541441 | I66: -36000.0016 | K66: =IF(ISERROR(+I66+'App.2-CG_NewCGAAP_DepExp_2013'!O66-J66), 0, +I66+'App.2-CG_NewCGAAP_DepExp_2013'!O66-J66) -> -866088.0422
B67: Total | C67: =SUM(C17:C66) -> 14788438.91 | F67: =SUM(F17:F66) -> 5376168.497 | G67: 5678060.78 | H67: -301892.2826 | I67: 781584.9088 | J67: 1056806.2 | K67: 4710154.752
B68: Depreciation exp. adj. from gain or loss on the retirement of assets (pool of like assets)
B69: Total Depreciation Expense | F69: =SUM(F67:F68) -> 5376168.497
A71: Notes:
A72: 1 | B72: Board policy of the "half-year" rule - the applicant must ensure that additions in the year attract a half-year depreciation expense in the first year. Deviations from this standard practice must be supported in the application.
A73: 2 | B73: The applicant must provide an explanation of material variances in evidence.
A74: 3 | B74: This column refers to the calculated full year depreciation but excludes the depreciation expense on assets fully depreciated during the year. This column is used for the purpose of calculating depreciation expense in the following year on the next worksheet.
A76: General: | B76: Applicants must provide a breakdown of depreciation and amortization expense in the above format for all relevant accounts. Asset Retirement Obligations (AROs), depreciation and accretion expense should be disclosed separately consistent with the Notes of historical Audited Financial Statements.

Sheet App.2-CI MIFRS_DepExp_2015
G1: File Number: | H1: =EBNUMBER -> EB-2014-0096
G2: Exhibit: | H2: 4
G3: Tab: | H3: 4
G4: Schedule: | H4: 1
G5: Page: | H5: 3
G7: Date: | H7: 2014-08-29
A9: Appendix 2-CI
A10: Depreciation and Amortization Expense
A11: Assumes the applicant made capitalization and depreciation expense accounting policy changes under CGAAP effective January 1, 2013 and will adopt IFRS for financial reporting purposes effective January 1, 2015.
D13: 2015 | E13: MIFRS
A15: Account | B15: Description | C15: Additions | D15: Years (new additions only) | E15: Depreciation Rate on New Additions | F15: 2015 Depreciation Expense 1 | G15: 2015 Depreciation Expense per Appendix 2-BA Fixed Assets, Column J (l) | H15: Variance 2
C16: (d) | D16: (f) | E16: (g) = 1 / (f) | F16: (h)=2014 Full Year Depreciation + ((d)*0.5)/(f) | H16: (m) = (h) - (l)
A17: ='App.2-CH_MIFRS_DepExp_2014'!A17 -> 1611 | B17: ='App.2-CH_MIFRS_DepExp_2014'!B17 -> Computer Software (Formally known as Account 1925) | C17: 368740.48 | D17: ='App.2-CH_MIFRS_DepExp_2014'!D17 -> 3 | E17: =IF(D17=0,0,1/D17) -> 0.3333333333 | F17: =IF(D17=0,'App.2-CH_MIFRS_DepExp_2014'!K17,+'App.2-CH_MIFRS_DepExp_2014'!K17+((C17*0.5)/D17)) -> 105611.7878 | G17: 78908.69444 | H17: =IF(ISERROR(+F17-G17), 0, +F17-G17) -> 26703.09334
A18: ='App.2-CH_MIFRS_DepExp_2014'!A18 -> 1612 | B18: ='App.2-CH_MIFRS_DepExp_2014'!B18 -> Land Rights (Formally known as Account 1906) | D18: ='App.2-CH_MIFRS_DepExp_2014'!D18 -> 25 | E18: =IF(D18=0,0,1/D18) -> 0.04 | F18: =IF(D18=0,'App.2-CH_MIFRS_DepExp_2014'!K18,+'App.2-CH_MIFRS_DepExp_2014'!K18+((C18*0.5)/D18)) -> 57066.15078 | G18: 57066.5676 | H18: -0.4168180927
A19: ='App.2-CH_MIFRS_DepExp_2014'!A19 -> 1805 | B19: ='App.2-CH_MIFRS_DepExp_2014'!B19 -> Land | D19: ='App.2-CH_MIFRS_DepExp_2014'!D19 -> 0 | E19: 0 | F19: =IF(D19=0,'App.2-CH_MIFRS_DepExp_2014'!K19,+'App.2-CH_MIFRS_DepExp_2014'!K19+((C19*0.5)/D19)) -> 0 | H19: 0
A20: ='App.2-CH_MIFRS_DepExp_2014'!A20 -> 1808 | B20: ='App.2-CH_MIFRS_DepExp_2014'!B20 -> Buildings | D20: ='App.2-CH_MIFRS_DepExp_2014'!D20 -> 50 | E20: 0.02 | F20: =IF(D20=0,'App.2-CH_MIFRS_DepExp_2014'!K20,+'App.2-CH_MIFRS_DepExp_2014'!K20+((C20*0.5)/D20)) -> 0 | H20: 0
A21: ='App.2-CH_MIFRS_DepExp_2014'!A21 -> 1810 | B21: ='App.2-CH_MIFRS_DepExp_2014'!B21 -> Leasehold Improvements | D21: ='App.2-CH_MIFRS_DepExp_2014'!D21 -> 0 | E21: 0 | F21: =IF(D21=0,'App.2-CH_MIFRS_DepExp_2014'!K21,+'App.2-CH_MIFRS_DepExp_2014'!K21+((C21*0.5)/D21)) -> 0 | H21: 0
A22: ='App.2-CH_MIFRS_DepExp_2014'!A22 -> 1815 | B22: ='App.2-CH_MIFRS_DepExp_2014'!B22 -> Transformer Station Equipment >50 kV (1708,1740,1745) | D22: ='App.2-CH_MIFRS_DepExp_2014'!D22 -> 50 | E22: 0.02 | F22: =IF(D22=0,'App.2-CH_MIFRS_DepExp_2014'!K22,+'App.2-CH_MIFRS_DepExp_2014'!K22+((C22*0.5)/D22)) -> 76660.28 | G22: 76660.28 | H22: -2.910383046e-11
A23: ='App.2-CH_MIFRS_DepExp_2014'!A23 -> 1815 | B23: ='App.2-CH_MIFRS_DepExp_2014'!B23 -> Transformer Station Equipment >50 kV (1715, 1815, 17) | D23: ='App.2-CH_MIFRS_DepExp_2014'!D23 -> 45 | E23: 0.02222222222 | F23: =IF(D23=0,'App.2-CH_MIFRS_DepExp_2014'!K23,+'App.2-CH_MIFRS_DepExp_2014'!K23+((C23*0.5)/D23)) -> 36487.66942 | G23: 36488.10254 | H23: -0.4331249878
A24: ='App.2-CH_MIFRS_DepExp_2014'!A24 -> 1815 | B24: ='App.2-CH_MIFRS_DepExp_2014'!B24 -> Transformer Station Equipment >50 kV (1716) | D24: ='App.2-CH_MIFRS_DepExp_2014'!D24 -> 10 | E24: 0.1 | F24: =IF(D24=0,'App.2-CH_MIFRS_DepExp_2014'!K24,+'App.2-CH_MIFRS_DepExp_2014'!K24+((C24*0.5)/D24)) -> -905.39 | G24: -905.19 | H24: -0.2
A25: ='App.2-CH_MIFRS_DepExp_2014'!A25 -> 1815 | B25: ='App.2-CH_MIFRS_DepExp_2014'!B25 -> Transformer Station Equipment >50 kV (1717) | D25: ='App.2-CH_MIFRS_DepExp_2014'!D25 -> 40 | E25: 0.025 | F25: =IF(D25=0,'App.2-CH_MIFRS_DepExp_2014'!K25,+'App.2-CH_MIFRS_DepExp_2014'!K25+((C25*0.5)/D25)) -> 13339.39 | G25: 13339.37787 | H25: 0.01213195872
A26: ='App.2-CH_MIFRS_DepExp_2014'!A26 -> 1815 | B26: ='App.2-CH_MIFRS_DepExp_2014'!B26 -> Transformer Station Equipment >50 kV (1719) | D26: ='App.2-CH_MIFRS_DepExp_2014'!D26 -> 20 | E26: 0.05 | F26: =IF(D26=0,'App.2-CH_MIFRS_DepExp_2014'!K26,+'App.2-CH_MIFRS_DepExp_2014'!K26+((C26*0.5)/D26)) -> 35746.72 | G26: 35746.73095 | H26: -0.01094700396
A27: ='App.2-CH_MIFRS_DepExp_2014'!A27 -> 1820 | B27: ='App.2-CH_MIFRS_DepExp_2014'!B27 -> Distribution Station Equipment <50 kV | D27: ='App.2-CH_MIFRS_DepExp_2014'!D27 -> 45 | E27: 0.02222222222 | F27: =IF(D27=0,'App.2-CH_MIFRS_DepExp_2014'!K27,+'App.2-CH_MIFRS_DepExp_2014'!K27+((C27*0.5)/D27)) -> 60923.96981 | G27: 60924.27474 | H27: -0.3049261178
A28: ='App.2-CH_MIFRS_DepExp_2014'!A28 -> 1820 | B28: ='App.2-CH_MIFRS_DepExp_2014'!B28 -> Distribution Station Equipment <50 kV (1821) | D28: ='App.2-CH_MIFRS_DepExp_2014'!D28 -> 30 | E28: 0.03333333333 | F28: =IF(D28=0,'App.2-CH_MIFRS_DepExp_2014'!K28,+'App.2-CH_MIFRS_DepExp_2014'!K28+((C28*0.5)/D28)) -> 73678.20285 | G28: 73678.5016 | H28: -0.2987443283
A29: ='App.2-CH_MIFRS_DepExp_2014'!A29 -> 1825 | B29: ='App.2-CH_MIFRS_DepExp_2014'!B29 -> Storage Battery Equipment | D29: ='App.2-CH_MIFRS_DepExp_2014'!D29 -> 0 | E29: 0 | F29: =IF(D29=0,'App.2-CH_MIFRS_DepExp_2014'!K29,+'App.2-CH_MIFRS_DepExp_2014'!K29+((C29*0.5)/D29)) -> 0 | H29: 0
A30: ='App.2-CH_MIFRS_DepExp_2014'!A30 -> 1830 | B30: ='App.2-CH_MIFRS_DepExp_2014'!B30 -> Poles, Towers & Fixtures-Wood poles | C30: 2160317.491 | D30: ='App.2-CH_MIFRS_DepExp_2014'!D30 -> 50 | E30: 0.02 | F30: =IF(D30=0,'App.2-CH_MIFRS_DepExp_2014'!K30,+'App.2-CH_MIFRS_DepExp_2014'!K30+((C30*0.5)/D30)) -> 462431.2266 | G30: 462430.8848 | H30: 0.3417698779
A31: ='App.2-CH_MIFRS_DepExp_2014'!A31 -> 1830 | B31: ='App.2-CH_MIFRS_DepExp_2014'!B31 -> Poles, Towers & Fixtures (1831) Concrete | C31: 58750 | D31: ='App.2-CH_MIFRS_DepExp_2014'!D31 -> 60 | E31: 0.01666666667 | F31: =IF(D31=0,'App.2-CH_MIFRS_DepExp_2014'!K31,+'App.2-CH_MIFRS_DepExp_2014'!K31+((C31*0.5)/D31)) -> 35210.47987 | G31: 35210.23854 | H31: 0.2413347717
A32: ='App.2-CH_MIFRS_DepExp_2014'!A32 -> 1835 | B32: ='App.2-CH_MIFRS_DepExp_2014'!B32 -> Overhead Conductors & Devices | C32: 1164812.151 | D32: ='App.2-CH_MIFRS_DepExp_2014'!D32 -> 60 | E32: 0.01666666667 | F32: =IF(D32=0,'App.2-CH_MIFRS_DepExp_2014'!K32,+'App.2-CH_MIFRS_DepExp_2014'!K32+((C32*0.5)/D32)) -> 288574.2061 | G32: 288574.0576 | H32: 0.1484905747
A33: ='App.2-CH_MIFRS_DepExp_2014'!A33 -> 1835 | B33: ='App.2-CH_MIFRS_DepExp_2014'!B33 -> Overhead Conductors & Devices (1836) | C33: 101000 | D33: ='App.2-CH_MIFRS_DepExp_2014'!D33 -> 15 | E33: 0.06666666667 | F33: =IF(D33=0,'App.2-CH_MIFRS_DepExp_2014'!K33,+'App.2-CH_MIFRS_DepExp_2014'!K33+((C33*0.5)/D33)) -> 210712.4206 | G33: 210712.6 | H33: -0.1794274445
A34: ='App.2-CH_MIFRS_DepExp_2014'!A34 -> 1835 | B34: ='App.2-CH_MIFRS_DepExp_2014'!B34 -> Overhead Conductors & Devices (1837) | C34: 30162.4 | D34: ='App.2-CH_MIFRS_DepExp_2014'!D34 -> 30 | E34: 0.03333333333 | F34: =IF(D34=0,'App.2-CH_MIFRS_DepExp_2014'!K34,+'App.2-CH_MIFRS_DepExp_2014'!K34+((C34*0.5)/D34)) -> 71266.00267 | G34: 71265.67848 | H34: 0.3241841784
A35: ='App.2-CH_MIFRS_DepExp_2014'!A35 -> 1840 | B35: ='App.2-CH_MIFRS_DepExp_2014'!B35 -> Underground Conduit | C35: 836869.66 | D35: ='App.2-CH_MIFRS_DepExp_2014'!D35 -> 50 | E35: 0.02 | F35: =IF(D35=0,'App.2-CH_MIFRS_DepExp_2014'!K35,+'App.2-CH_MIFRS_DepExp_2014'!K35+((C35*0.5)/D35)) -> 200446.2662 | G35: 200446.505 | H35: -0.2388535042
A36: ='App.2-CH_MIFRS_DepExp_2014'!A36 -> 1845 | B36: ='App.2-CH_MIFRS_DepExp_2014'!B36 -> Underground Conductors & Devices | C36: 2444065.464 | D36: ='App.2-CH_MIFRS_DepExp_2014'!D36 -> 35 | E36: 0.02857142857 | F36: =IF(D36=0,'App.2-CH_MIFRS_DepExp_2014'!K36,+'App.2-CH_MIFRS_DepExp_2014'!K36+((C36*0.5)/D36)) -> 1245374.285 | G36: 1245374.36 | H36: -0.07571736467
A37: ='App.2-CH_MIFRS_DepExp_2014'!A37 -> 1845 | B37: ='App.2-CH_MIFRS_DepExp_2014'!B37 -> Underground Conductors & Devices (1846) | C37: 561196.248 | D37: ='App.2-CH_MIFRS_DepExp_2014'!D37 -> 30 | E37: 0.03333333333 | F37: =IF(D37=0,'App.2-CH_MIFRS_DepExp_2014'!K37,+'App.2-CH_MIFRS_DepExp_2014'!K37+((C37*0.5)/D37)) -> 59598.93121 | G37: 59598.72663 | H37: 0.2045849948
A38: ='App.2-CH_MIFRS_DepExp_2014'!A38 -> 1850 | B38: ='App.2-CH_MIFRS_DepExp_2014'!B38 -> Line Transformers (1850) Polemount | C38: 885008.164 | D38: ='App.2-CH_MIFRS_DepExp_2014'!D38 -> 40 | E38: 0.025 | F38: =IF(D38=0,'App.2-CH_MIFRS_DepExp_2014'!K38,+'App.2-CH_MIFRS_DepExp_2014'!K38+((C38*0.5)/D38)) -> 243964.7083 | G38: 243964.7927 | H38: -0.08435839895
A39: ='App.2-CH_MIFRS_DepExp_2014'!A39 -> 1850 | B39: ='App.2-CH_MIFRS_DepExp_2014'!B39 -> Line Transformers (1853) Padmount | C39: 662260 | D39: ='App.2-CH_MIFRS_DepExp_2014'!D39 -> 30 | E39: 0.03333333333 | F39: =IF(D39=0,'App.2-CH_MIFRS_DepExp_2014'!K39,+'App.2-CH_MIFRS_DepExp_2014'!K39+((C39*0.5)/D39)) -> 522072.2277 | G39: 522072.1234 | H39: 0.1042868671
A40: ='App.2-CH_MIFRS_DepExp_2014'!A40 -> 1855 | B40: ='App.2-CH_MIFRS_DepExp_2014'!B40 -> Services (Overhead & Underground) | C40: 1018442.517 | D40: ='App.2-CH_MIFRS_DepExp_2014'!D40 -> 25 | E40: 0.04 | F40: =IF(D40=0,'App.2-CH_MIFRS_DepExp_2014'!K40,+'App.2-CH_MIFRS_DepExp_2014'!K40+((C40*0.5)/D40)) -> 280050.9903 | G40: 280050.8151 | H40: 0.1751706416
A41: ='App.2-CH_MIFRS_DepExp_2014'!A41 -> 1860 | B41: ='App.2-CH_MIFRS_DepExp_2014'!B41 -> Meters | C41: 284541 | D41: ='App.2-CH_MIFRS_DepExp_2014'!D41 -> 20 | E41: 0.05 | F41: =IF(D41=0,'App.2-CH_MIFRS_DepExp_2014'!K41,+'App.2-CH_MIFRS_DepExp_2014'!K41+((C41*0.5)/D41)) -> 186489.3399 | G41: 186489.245 | H41: 0.09490579952
A42: ='App.2-CH_MIFRS_DepExp_2014'!A42 -> 1860 | B42: ='App.2-CH_MIFRS_DepExp_2014'!B42 -> Meters (Smart Meters) | C42: 143150 | D42: ='App.2-CH_MIFRS_DepExp_2014'!D42 -> 15 | E42: 0.06666666667 | F42: =IF(D42=0,'App.2-CH_MIFRS_DepExp_2014'!K42,+'App.2-CH_MIFRS_DepExp_2014'!K42+((C42*0.5)/D42)) -> 395497.9119 | G42: 405161.5867 | H42: -9663.67476
A43: ='App.2-CH_MIFRS_DepExp_2014'!A43 -> 1905 | B43: ='App.2-CH_MIFRS_DepExp_2014'!B43 -> Land | D43: ='App.2-CH_MIFRS_DepExp_2014'!D43 -> 0 | E43: 0 | F43: =IF(D43=0,'App.2-CH_MIFRS_DepExp_2014'!K43,+'App.2-CH_MIFRS_DepExp_2014'!K43+((C43*0.5)/D43)) -> 0 | H43: 0
